Workbook

Sheet Protect
B2: Empire District Gas Company
B3: WNAR Filing
B4: Password Protection Worksheet
B6: This worksheet provides password protection for the report pages to prevent unintentional formula changes. The password is "WNAR".
G16: All Report Worksheets are Unprotected

Sheet Final Checklist
B2: Empire District Gas Company
B3: Annual WNAR Filing
B4: Final Checklist
B7: Data Table List | C7: Check For | D7: Result | E7: Initials | F7: Initials
B8: Validation Lists | C8: Changes from prior filings | D8: Ok, no prior filings | E8: RS
B9: Rate Case Summary | C9: Verify Final WNAR Billing Determinants | D9: Copied from rate case workpapers received from Dana Liner | E9: RS
B10: Beta Coefficient | C10: Matches tariff sheets | D10: Ok until reset by new rate case | E10: RS
B11: Billing Determinants | C11: Matches Rate Case Summary above | D11: Ok until reset by new rate case | E11: RS
B12: Volumetric Rates | C12: Matches tariff sheets | D12: Ok until reset by new rate case | E12: RS
B13: Volumetric True-Up | C13: Ties out on Reconciliation Worksheet | D13: Tied to ARR worksheets | E13: RS
B14: Reconciliation Period Adjustment | C14: Ties out on Reconciliation Worksheet | D14: Checked and ties. | E14: RS
B15: Meter Read Schedule | C15: Ties to actual billing cycles in revenue reports | D15: Reviewed with Tatiana
B16: KCI Actual Temperatures | C16: Temperatures are updated from NOAA website | D16: Reconciled with Robert Brown in Rev. Dept accrual workpapers
B17: KCI Normal HDD | C17: Matches ranked normal HDDs provided by Staff | D17: Checked and matches | E17: RS
B18: CAWNA Amounts | C18: Ties out on Reconciliation Worksheet | D18: Checked and ties. | E18: RS
B19: WNAR Rates | C19: Ties out on Reconciliation Worksheet | D19: Checked and ties. | E19: RS
B20: WNA Revenue Allocation | C20: Total Revenue Allocation ties to revenue reports | D20: Ties to revenue reports used for GL entries | E20: RS
B21: Customer Estimated Vols and Rev | C21: Table has been updated. | D21: Checked and updated through December 2026 | E21: RS
B22: South Cycles | C22: Customer charge counts from revenue reports | D22: Reviewed with Tatiana
B23: NW Cycles | C23: Customer charge counts from revenue reports | D23: Reviewed with Tatiana
B24: North Cycles | C24: Customer charge counts from revenue reports | D24: Reviewed with Tatiana
B26: Report Worksheets | C26: Check For | D26: Result | E26: Initials | F26: Initials
B27: All Report Pages | C27: Correct year is showing on the dropdown menus. | D27: Checked OK. | E27: RS
B28: Reconciliaion worksheet | C28: No cells are shaded yellow, which indicate inconsistencies. | D28: Checked OK. | E28: RS
B29: Protect worksheet | C29: Password protection is turned on for report worksheets | D29: Checked OK. | E29: RS

Sheet Tariff Sheet 68
B3: Tariff Sheet 68 for Filing Effective: | F3: =DateSet!$C$4 -> 46296
B5: Calculation of Current Weather Normalization Adjustment Rider Rate (WNAR)
B7: Monthly WNA included in WNA Factor: | H7: Date of this Sheet through: | K7: =F3-1+365 -> 46660
B9: Residential Class
B11: CAWNA
B13: Sum of Monthly WNA/rate case billing determinants | I13: =SUMPRODUCT((WNARRates[BeginDate]=$F$3)*(WNARRates[CustClass]="Res")*WNARRates[AdjCAWNA]) -> 0.03508
B15: Annual Reconciliation Rate (ARR) | I15: =SUMPRODUCT((WNARRates[BeginDate]=$F$3)*(WNARRates[CustClass]="Res")*WNARRates[AdjARR]) -> 0.00402
B17: WNA Rider Rate | I17: =I13+I15 -> 0.0391
B20: Small General Service Sales Class
B22: ARR
B24: Sum of Monthly WNA/rate case billing determinants | I24: =SUMPRODUCT((WNARRates[BeginDate]=$F$3)*(WNARRates[CustClass]="SGS")*WNARRates[AdjCAWNA]) -> 0.04209
B26: Annual Reconciliation Rate (ARR) | I26: =SUMPRODUCT((WNARRates[BeginDate]=$F$3)*(WNARRates[CustClass]="SGS")*WNARRates[AdjARR]) -> 0.00291
B28: WNA Rider Rate | I28: =I24+I26 -> 0.045

Sheet Reconciliation
B2: Empire District Gas Company | E2: Filing Year
B3: WNAR Filing Reconciliation
B4: Worksheets vs. Tables
B5: Year | C5: =DateSet!C2 -> 2026
B6: Analysis Start | C6: =DateSet!C3 -> 45901
B8: CAWNA Amounts
B9: Res | C9: CAWNA Worksheets | F9: CAWNA Amount Table | I9: Difference
B10: Month | C10: North | D10: NW | E10: South | F10: North | G10: NW | H10: South | I10: North | J10: NW | K10: South
B11: =$C$6 -> 2025-09-01 | C11: ='CAWNA North'!E11 -> 7303.92 | D11: ='CAWNA NW'!E11 -> 4418 | E11: ='CAWNA South'!E11 -> 22232.52 | F11: =SUMPRODUCT((CAWNAAmounts[Month]=$B11)*(CAWNAAmounts[Territory]=F$10)*(CAWNAAmounts[CustClass]=$B$9)*CAWNAAmounts[CAWNA]) -> 7303.92 | G11: =SUMPRODUCT((CAWNAAmounts[Month]=$B11)*(CAWNAAmounts[Territory]=G$10)*(CAWNAAmounts[CustClass]=$B$9)*CAWNAAmounts[CAWNA]) -> 4418 | H11: =SUMPRODUCT((CAWNAAmounts[Month]=$B11)*(CAWNAAmounts[Territory]=H$10)*(CAWNAAmounts[CustClass]=$B$9)*CAWNAAmounts[CAWNA]) -> 22232.52 | I11: =C11-F11 -> 0 | J11: =D11-G11 -> 0 | K11: =E11-H11 -> 0
B12: =EDATE(B11,1) -> 2025-10-01 | C12: ='CAWNA North'!E12 -> 6822.83 | D12: ='CAWNA NW'!E12 -> 6770.91 | E12: ='CAWNA South'!E12 -> 20393.07 | F12: =SUMPRODUCT((CAWNAAmounts[Month]=$B12)*(CAWNAAmounts[Territory]=F$10)*(CAWNAAmounts[CustClass]=$B$9)*CAWNAAmounts[CAWNA]) -> 6822.83 | G12: =SUMPRODUCT((CAWNAAmounts[Month]=$B12)*(CAWNAAmounts[Territory]=G$10)*(CAWNAAmounts[CustClass]=$B$9)*CAWNAAmounts[CAWNA]) -> 6770.91 | H12: =SUMPRODUCT((CAWNAAmounts[Month]=$B12)*(CAWNAAmounts[Territory]=H$10)*(CAWNAAmounts[CustClass]=$B$9)*CAWNAAmounts[CAWNA]) -> 20393.07 | I12: =C12-F12 -> 0 | J12: =D12-G12 -> 0 | K12: 0
B13: =EDATE(B12,1) -> 2025-11-01 | C13: ='CAWNA North'!E13 -> 25593.39 | D13: ='CAWNA NW'!E13 -> 13801.71 | E13: ='CAWNA South'!E13 -> 77742.1 | F13: =SUMPRODUCT((CAWNAAmounts[Month]=$B13)*(CAWNAAmounts[Territory]=F$10)*(CAWNAAmounts[CustClass]=$B$9)*CAWNAAmounts[CAWNA]) -> 25593.39 | G13: =SUMPRODUCT((CAWNAAmounts[Month]=$B13)*(CAWNAAmounts[Territory]=G$10)*(CAWNAAmounts[CustClass]=$B$9)*CAWNAAmounts[CAWNA]) -> 13801.71 | H13: =SUMPRODUCT((CAWNAAmounts[Month]=$B13)*(CAWNAAmounts[Territory]=H$10)*(CAWNAAmounts[CustClass]=$B$9)*CAWNAAmounts[CAWNA]) -> 77742.1 | I13: 0 | J13: 0 | K13: 0
B14: =EDATE(B13,1) -> 2025-12-01 | C14: ='CAWNA North'!E14 -> 12052.07 | D14: ='CAWNA NW'!E14 -> 6496.15 | E14: ='CAWNA South'!E14 -> 39115.98 | F14: =SUMPRODUCT((CAWNAAmounts[Month]=$B14)*(CAWNAAmounts[Territory]=F$10)*(CAWNAAmounts[CustClass]=$B$9)*CAWNAAmounts[CAWNA]) -> 12052.07 | G14: =SUMPRODUCT((CAWNAAmounts[Month]=$B14)*(CAWNAAmounts[Territory]=G$10)*(CAWNAAmounts[CustClass]=$B$9)*CAWNAAmounts[CAWNA]) -> 6496.15 | H14: =SUMPRODUCT((CAWNAAmounts[Month]=$B14)*(CAWNAAmounts[Territory]=H$10)*(CAWNAAmounts[CustClass]=$B$9)*CAWNAAmounts[CAWNA]) -> 39115.98 | I14: 0 | J14: 0 | K14: 0
B15: =EDATE(B14,1) -> 2026-01-01 | C15: ='CAWNA North'!E15 -> 17051.46 | D15: ='CAWNA NW'!E15 -> 10045.83 | E15: ='CAWNA South'!E15 -> 53944.29 | F15: =SUMPRODUCT((CAWNAAmounts[Month]=$B15)*(CAWNAAmounts[Territory]=F$10)*(CAWNAAmounts[CustClass]=$B$9)*CAWNAAmounts[CAWNA]) -> 17051.46 | G15: =SUMPRODUCT((CAWNAAmounts[Month]=$B15)*(CAWNAAmounts[Territory]=G$10)*(CAWNAAmounts[CustClass]=$B$9)*CAWNAAmounts[CAWNA]) -> 10045.83 | H15: =SUMPRODUCT((CAWNAAmounts[Month]=$B15)*(CAWNAAmounts[Territory]=H$10)*(CAWNAAmounts[CustClass]=$B$9)*CAWNAAmounts[CAWNA]) -> 53944.29 | I15: 0 | J15: 0 | K15: 0
B16: =EDATE(B15,1) -> 2026-02-01 | C16: ='CAWNA North'!E16 -> 8769.05 | D16: ='CAWNA NW'!E16 -> 9832.78 | E16: ='CAWNA South'!E16 -> 17673.32 | F16: =SUMPRODUCT((CAWNAAmounts[Month]=$B16)*(CAWNAAmounts[Territory]=F$10)*(CAWNAAmounts[CustClass]=$B$9)*CAWNAAmounts[CAWNA]) -> 8769.05 | G16: =SUMPRODUCT((CAWNAAmounts[Month]=$B16)*(CAWNAAmounts[Territory]=G$10)*(CAWNAAmounts[CustClass]=$B$9)*CAWNAAmounts[CAWNA]) -> 9832.78 | H16: =SUMPRODUCT((CAWNAAmounts[Month]=$B16)*(CAWNAAmounts[Territory]=H$10)*(CAWNAAmounts[CustClass]=$B$9)*CAWNAAmounts[CAWNA]) -> 17673.32 | I16: 0 | J16: 0 | K16: 0
B17: =EDATE(B16,1) -> 2026-03-01 | C17: ='CAWNA North'!E17 -> 55690.72 | D17: ='CAWNA NW'!E17 -> 30476.9 | E17: ='CAWNA South'!E17 -> 169715.46 | F17: =SUMPRODUCT((CAWNAAmounts[Month]=$B17)*(CAWNAAmounts[Territory]=F$10)*(CAWNAAmounts[CustClass]=$B$9)*CAWNAAmounts[CAWNA]) -> 55690.72 | G17: =SUMPRODUCT((CAWNAAmounts[Month]=$B17)*(CAWNAAmounts[Territory]=G$10)*(CAWNAAmounts[CustClass]=$B$9)*CAWNAAmounts[CAWNA]) -> 30476.9 | H17: =SUMPRODUCT((CAWNAAmounts[Month]=$B17)*(CAWNAAmounts[Territory]=H$10)*(CAWNAAmounts[CustClass]=$B$9)*CAWNAAmounts[CAWNA]) -> 169715.46 | I17: 0 | J17: 0 | K17: 0
B18: 2026-04-01 | C18: ='CAWNA North'!E18 -> 41201.75 | D18: ='CAWNA NW'!E18 -> 23164.1 | E18: ='CAWNA South'!E18 -> 135518.74 | F18: =SUMPRODUCT((CAWNAAmounts[Month]=$B18)*(CAWNAAmounts[Territory]=F$10)*(CAWNAAmounts[CustClass]=$B$9)*CAWNAAmounts[CAWNA]) -> 41201.75 | G18: =SUMPRODUCT((CAWNAAmounts[Month]=$B18)*(CAWNAAmounts[Territory]=G$10)*(CAWNAAmounts[CustClass]=$B$9)*CAWNAAmounts[CAWNA]) -> 23164.1 | H18: =SUMPRODUCT((CAWNAAmounts[Month]=$B18)*(CAWNAAmounts[Territory]=H$10)*(CAWNAAmounts[CustClass]=$B$9)*CAWNAAmounts[CAWNA]) -> 135518.74 | I18: 0 | J18: 0 | K18: 0
B19: 2026-05-01 | C19: ='CAWNA North'!E19 -> 16087.5 | D19: ='CAWNA NW'!E19 -> 8644.23 | E19: ='CAWNA South'!E19 -> 53674.77 | F19: =SUMPRODUCT((CAWNAAmounts[Month]=$B19)*(CAWNAAmounts[Territory]=F$10)*(CAWNAAmounts[CustClass]=$B$9)*CAWNAAmounts[CAWNA]) -> 16087.5 | G19: =SUMPRODUCT((CAWNAAmounts[Month]=$B19)*(CAWNAAmounts[Territory]=G$10)*(CAWNAAmounts[CustClass]=$B$9)*CAWNAAmounts[CAWNA]) -> 8644.23 | H19: =SUMPRODUCT((CAWNAAmounts[Month]=$B19)*(CAWNAAmounts[Territory]=H$10)*(CAWNAAmounts[CustClass]=$B$9)*CAWNAAmounts[CAWNA]) -> 53674.77 | I19: 0 | J19: 0 | K19: 0
B20: 2026-06-01 | C20: ='CAWNA North'!E20 -> -474.46 | D20: ='CAWNA NW'!E20 -> -343.33 | E20: ='CAWNA South'!E20 -> -2062.01 | F20: =SUMPRODUCT((CAWNAAmounts[Month]=$B20)*(CAWNAAmounts[Territory]=F$10)*(CAWNAAmounts[CustClass]=$B$9)*CAWNAAmounts[CAWNA]) -> -474.46 | G20: =SUMPRODUCT((CAWNAAmounts[Month]=$B20)*(CAWNAAmounts[Territory]=G$10)*(CAWNAAmounts[CustClass]=$B$9)*CAWNAAmounts[CAWNA]) -> -343.33 | H20: =SUMPRODUCT((CAWNAAmounts[Month]=$B20)*(CAWNAAmounts[Territory]=H$10)*(CAWNAAmounts[CustClass]=$B$9)*CAWNAAmounts[CAWNA]) -> -2062.01 | I20: 0 | J20: 0 | K20: 0
B21: 2026-07-01 | C21: ='CAWNA North'!E21 -> 1483.49 | D21: ='CAWNA NW'!E21 -> 880.7 | E21: ='CAWNA South'!E21 -> 4606.17 | F21: =SUMPRODUCT((CAWNAAmounts[Month]=$B21)*(CAWNAAmounts[Territory]=F$10)*(CAWNAAmounts[CustClass]=$B$9)*CAWNAAmounts[CAWNA]) -> 1483.49 | G21: =SUMPRODUCT((CAWNAAmounts[Month]=$B21)*(CAWNAAmounts[Territory]=G$10)*(CAWNAAmounts[CustClass]=$B$9)*CAWNAAmounts[CAWNA]) -> 880.7 | H21: =SUMPRODUCT((CAWNAAmounts[Month]=$B21)*(CAWNAAmounts[Territory]=H$10)*(CAWNAAmounts[CustClass]=$B$9)*CAWNAAmounts[CAWNA]) -> 4606.17 | I21: 0 | J21: 0 | K21: 0
B22: =EDATE(B21,1) -> 2026-08-01 | C22: ='CAWNA North'!E22 -> 0 | D22: ='CAWNA NW'!E22 -> 0 | E22: ='CAWNA South'!E22 -> 0 | F22: =SUMPRODUCT((CAWNAAmounts[Month]=$B22)*(CAWNAAmounts[Territory]=F$10)*(CAWNAAmounts[CustClass]=$B$9)*CAWNAAmounts[CAWNA]) -> 0 | G22: =SUMPRODUCT((CAWNAAmounts[Month]=$B22)*(CAWNAAmounts[Territory]=G$10)*(CAWNAAmounts[CustClass]=$B$9)*CAWNAAmounts[CAWNA]) -> 0 | H22: =SUMPRODUCT((CAWNAAmounts[Month]=$B22)*(CAWNAAmounts[Territory]=H$10)*(CAWNAAmounts[CustClass]=$B$9)*CAWNAAmounts[CAWNA]) -> 0 | I22: 0 | J22: 0 | K22: 0
B23: Total | C23: =SUM(C11:C22) -> 191581.72 | D23: =SUM(D11:D22) -> 114187.98 | E23: 592554.41 | F23: 191581.72 | G23: 114187.98 | H23: 592554.41 | I23: 0 | J23: 0 | K23: 0
B25: SGS | C25: CAWNA Worksheets | F25: CAWNA Amount Table | I25: Difference
B26: Month | C26: North | D26: NW | E26: South | F26: North | G26: NW | H26: South | I26: North | J26: NW | K26: South
B27: =$C$6 -> 2025-09-01 | C27: ='CAWNA North'!E31 -> 3172.61 | D27: ='CAWNA NW'!E31 -> 1874.08 | E27: ='CAWNA South'!E31 -> 7447.42 | F27: =SUMPRODUCT((CAWNAAmounts[Month]=$B27)*(CAWNAAmounts[Territory]=F$10)*(CAWNAAmounts[CustClass]=$B$25)*CAWNAAmounts[CAWNA]) -> 3172.61 | G27: =SUMPRODUCT((CAWNAAmounts[Month]=$B27)*(CAWNAAmounts[Territory]=G$10)*(CAWNAAmounts[CustClass]=$B$25)*CAWNAAmounts[CAWNA]) -> 1874.08 | H27: =SUMPRODUCT((CAWNAAmounts[Month]=$B27)*(CAWNAAmounts[Territory]=H$10)*(CAWNAAmounts[CustClass]=$B$25)*CAWNAAmounts[CAWNA]) -> 7447.42 | I27: =C27-F27 -> 0 | J27: =D27-G27 -> 0 | K27: =E27-H27 -> 0
B28: =EDATE(B27,1) -> 2025-10-01 | C28: ='CAWNA North'!E32 -> 2692.38 | D28: ='CAWNA NW'!E32 -> 2706.86 | E28: ='CAWNA South'!E32 -> 6235.79 | F28: =SUMPRODUCT((CAWNAAmounts[Month]=$B28)*(CAWNAAmounts[Territory]=F$10)*(CAWNAAmounts[CustClass]=$B$25)*CAWNAAmounts[CAWNA]) -> 2692.38 | G28: =SUMPRODUCT((CAWNAAmounts[Month]=$B28)*(CAWNAAmounts[Territory]=G$10)*(CAWNAAmounts[CustClass]=$B$25)*CAWNAAmounts[CAWNA]) -> 2706.86 | H28: =SUMPRODUCT((CAWNAAmounts[Month]=$B28)*(CAWNAAmounts[Territory]=H$10)*(CAWNAAmounts[CustClass]=$B$25)*CAWNAAmounts[CAWNA]) -> 6235.79 | I28: =C28-F28 -> 0 | J28: =D28-G28 -> 0 | K28: =E28-H28 -> 0
B29: =EDATE(B28,1) -> 2025-11-01 | C29: ='CAWNA North'!E33 -> 10132.1 | D29: ='CAWNA NW'!E33 -> 5486.62 | E29: ='CAWNA South'!E33 -> 24920.33 | F29: =SUMPRODUCT((CAWNAAmounts[Month]=$B29)*(CAWNAAmounts[Territory]=F$10)*(CAWNAAmounts[CustClass]=$B$25)*CAWNAAmounts[CAWNA]) -> 10132.1 | G29: =SUMPRODUCT((CAWNAAmounts[Month]=$B29)*(CAWNAAmounts[Territory]=G$10)*(CAWNAAmounts[CustClass]=$B$25)*CAWNAAmounts[CAWNA]) -> 5486.62 | H29: =SUMPRODUCT((CAWNAAmounts[Month]=$B29)*(CAWNAAmounts[Territory]=H$10)*(CAWNAAmounts[CustClass]=$B$25)*CAWNAAmounts[CAWNA]) -> 24920.33 | I29: 0 | J29: 0 | K29: 0
B30: =EDATE(B29,1) -> 2025-12-01 | C30: ='CAWNA North'!E34 -> 4671 | D30: ='CAWNA NW'!E34 -> 2524.82 | E30: ='CAWNA South'!E34 -> 11938.48 | F30: =SUMPRODUCT((CAWNAAmounts[Month]=$B30)*(CAWNAAmounts[Territory]=F$10)*(CAWNAAmounts[CustClass]=$B$25)*CAWNAAmounts[CAWNA]) -> 4671 | G30: =SUMPRODUCT((CAWNAAmounts[Month]=$B30)*(CAWNAAmounts[Territory]=G$10)*(CAWNAAmounts[CustClass]=$B$25)*CAWNAAmounts[CAWNA]) -> 2524.82 | H30: =SUMPRODUCT((CAWNAAmounts[Month]=$B30)*(CAWNAAmounts[Territory]=H$10)*(CAWNAAmounts[CustClass]=$B$25)*CAWNAAmounts[CAWNA]) -> 11938.48 | I30: 0 | J30: 0 | K30: 0
B31: =EDATE(B30,1) -> 2026-01-01 | C31: ='CAWNA North'!E35 -> 6341.34 | D31: ='CAWNA NW'!E35 -> 3730.89 | E31: ='CAWNA South'!E35 -> 15809.51 | F31: =SUMPRODUCT((CAWNAAmounts[Month]=$B31)*(CAWNAAmounts[Territory]=F$10)*(CAWNAAmounts[CustClass]=$B$25)*CAWNAAmounts[CAWNA]) -> 6341.34 | G31: =SUMPRODUCT((CAWNAAmounts[Month]=$B31)*(CAWNAAmounts[Territory]=G$10)*(CAWNAAmounts[CustClass]=$B$25)*CAWNAAmounts[CAWNA]) -> 3730.89 | H31: =SUMPRODUCT((CAWNAAmounts[Month]=$B31)*(CAWNAAmounts[Territory]=H$10)*(CAWNAAmounts[CustClass]=$B$25)*CAWNAAmounts[CAWNA]) -> 15809.51 | I31: 0 | J31: 0 | K31: 0
B32: =EDATE(B31,1) -> 2026-02-01 | C32: ='CAWNA North'!E36 -> 3475.83 | D32: ='CAWNA NW'!E36 -> 3832.53 | E32: ='CAWNA South'!E36 -> 5331.93 | F32: =SUMPRODUCT((CAWNAAmounts[Month]=$B32)*(CAWNAAmounts[Territory]=F$10)*(CAWNAAmounts[CustClass]=$B$25)*CAWNAAmounts[CAWNA]) -> 3475.83 | G32: =SUMPRODUCT((CAWNAAmounts[Month]=$B32)*(CAWNAAmounts[Territory]=G$10)*(CAWNAAmounts[CustClass]=$B$25)*CAWNAAmounts[CAWNA]) -> 3832.53 | H32: =SUMPRODUCT((CAWNAAmounts[Month]=$B32)*(CAWNAAmounts[Territory]=H$10)*(CAWNAAmounts[CustClass]=$B$25)*CAWNAAmounts[CAWNA]) -> 5331.93 | I32: 0 | J32: 0 | K32: 0
B33: =EDATE(B32,1) -> 2026-03-01 | C33: ='CAWNA North'!E37 -> 21505.08 | D33: ='CAWNA NW'!E37 -> 11882.6 | E33: ='CAWNA South'!E37 -> 51615.09 | F33: =SUMPRODUCT((CAWNAAmounts[Month]=$B33)*(CAWNAAmounts[Territory]=F$10)*(CAWNAAmounts[CustClass]=$B$25)*CAWNAAmounts[CAWNA]) -> 21505.08 | G33: =SUMPRODUCT((CAWNAAmounts[Month]=$B33)*(CAWNAAmounts[Territory]=G$10)*(CAWNAAmounts[CustClass]=$B$25)*CAWNAAmounts[CAWNA]) -> 11882.6 | H33: =SUMPRODUCT((CAWNAAmounts[Month]=$B33)*(CAWNAAmounts[Territory]=H$10)*(CAWNAAmounts[CustClass]=$B$25)*CAWNAAmounts[CAWNA]) -> 51615.09 | I33: 0 | J33: 0 | K33: 0
B34: 2026-04-01 | C34: ='CAWNA North'!E38 -> 15792.93 | D34: ='CAWNA NW'!E38 -> 8911.25 | E34: ='CAWNA South'!E38 -> 41762.16 | F34: =SUMPRODUCT((CAWNAAmounts[Month]=$B34)*(CAWNAAmounts[Territory]=F$10)*(CAWNAAmounts[CustClass]=$B$25)*CAWNAAmounts[CAWNA]) -> 15792.93 | G34: =SUMPRODUCT((CAWNAAmounts[Month]=$B34)*(CAWNAAmounts[Territory]=G$10)*(CAWNAAmounts[CustClass]=$B$25)*CAWNAAmounts[CAWNA]) -> 8911.25 | H34: =SUMPRODUCT((CAWNAAmounts[Month]=$B34)*(CAWNAAmounts[Territory]=H$10)*(CAWNAAmounts[CustClass]=$B$25)*CAWNAAmounts[CAWNA]) -> 41762.16 | I34: 0 | J34: 0 | K34: 0
B35: 2026-05-01 | C35: ='CAWNA North'!E39 -> 6211.29 | D35: ='CAWNA NW'!E39 -> 3431.42 | E35: ='CAWNA South'!E39 -> 16429.36 | F35: =SUMPRODUCT((CAWNAAmounts[Month]=$B35)*(CAWNAAmounts[Territory]=F$10)*(CAWNAAmounts[CustClass]=$B$25)*CAWNAAmounts[CAWNA]) -> 6211.29 | G35: =SUMPRODUCT((CAWNAAmounts[Month]=$B35)*(CAWNAAmounts[Territory]=G$10)*(CAWNAAmounts[CustClass]=$B$25)*CAWNAAmounts[CAWNA]) -> 3431.42 | H35: =SUMPRODUCT((CAWNAAmounts[Month]=$B35)*(CAWNAAmounts[Territory]=H$10)*(CAWNAAmounts[CustClass]=$B$25)*CAWNAAmounts[CAWNA]) -> 16429.36 | I35: 0 | J35: 0 | K35: 0
B36: 2026-06-01 | C36: ='CAWNA North'!E40 -> -187.26 | D36: ='CAWNA NW'!E40 -> -134.99 | E36: ='CAWNA South'!E40 -> -624.41 | F36: =SUMPRODUCT((CAWNAAmounts[Month]=$B36)*(CAWNAAmounts[Territory]=F$10)*(CAWNAAmounts[CustClass]=$B$25)*CAWNAAmounts[CAWNA]) -> -187.26 | G36: =SUMPRODUCT((CAWNAAmounts[Month]=$B36)*(CAWNAAmounts[Territory]=G$10)*(CAWNAAmounts[CustClass]=$B$25)*CAWNAAmounts[CAWNA]) -> -134.99 | H36: =SUMPRODUCT((CAWNAAmounts[Month]=$B36)*(CAWNAAmounts[Territory]=H$10)*(CAWNAAmounts[CustClass]=$B$25)*CAWNAAmounts[CAWNA]) -> -624.41 | I36: 0 | J36: 0 | K36: 0
B37: 2026-07-01 | C37: ='CAWNA North'!E41 -> 570.05 | D37: ='CAWNA NW'!E41 -> 345.38 | E37: ='CAWNA South'!E41 -> 1379.57 | F37: =SUMPRODUCT((CAWNAAmounts[Month]=$B37)*(CAWNAAmounts[Territory]=F$10)*(CAWNAAmounts[CustClass]=$B$25)*CAWNAAmounts[CAWNA]) -> 570.05 | G37: =SUMPRODUCT((CAWNAAmounts[Month]=$B37)*(CAWNAAmounts[Territory]=G$10)*(CAWNAAmounts[CustClass]=$B$25)*CAWNAAmounts[CAWNA]) -> 345.38 | H37: =SUMPRODUCT((CAWNAAmounts[Month]=$B37)*(CAWNAAmounts[Territory]=H$10)*(CAWNAAmounts[CustClass]=$B$25)*CAWNAAmounts[CAWNA]) -> 1379.57 | I37: 0 | J37: 0 | K37: 0
B38: =EDATE(B37,1) -> 2026-08-01 | C38: ='CAWNA North'!E42 -> 0 | D38: ='CAWNA NW'!E42 -> 0 | E38: ='CAWNA South'!E42 -> 0 | F38: =SUMPRODUCT((CAWNAAmounts[Month]=$B38)*(CAWNAAmounts[Territory]=F$10)*(CAWNAAmounts[CustClass]=$B$25)*CAWNAAmounts[CAWNA]) -> 0 | G38: =SUMPRODUCT((CAWNAAmounts[Month]=$B38)*(CAWNAAmounts[Territory]=G$10)*(CAWNAAmounts[CustClass]=$B$25)*CAWNAAmounts[CAWNA]) -> 0 | H38: =SUMPRODUCT((CAWNAAmounts[Month]=$B38)*(CAWNAAmounts[Territory]=H$10)*(CAWNAAmounts[CustClass]=$B$25)*CAWNAAmounts[CAWNA]) -> 0 | I38: 0 | J38: 0 | K38: 0
B39: Total | C39: =SUM(C27:C38) -> 74377.35 | D39: =SUM(D27:D38) -> 44591.46 | E39: =SUM(E27:E38) -> 182245.23 | F39: =SUM(F27:F38) -> 74377.35 | G39: =SUM(G27:G38) -> 44591.46 | H39: =SUM(H27:H38) -> 182245.23 | I39: =SUM(I27:I38) -> 0 | J39: =SUM(J27:J38) -> 0 | K39: =SUM(K27:K38) -> 0
B41: Reconciliation Period Adjustments
B42: CAWNA | C42: CAWNA Worksheets | E42: ReconPerAdj Table | G42: Difference
B43: Territory | C43: Res | D43: SGS | E43: Res | F43: SGS | G43: Res | H43: SGS
B44: North | C44: ='CAWNA North'!C24 -> 191581.72 | D44: ='CAWNA North'!C44 -> 74377.35 | E44: =SUMPRODUCT((ReconPerAdj[Year]=$C$5)*(ReconPerAdj[Territory]=$B44)*(ReconPerAdj[CustClass]=C$43)*(ReconPerAdj[RateName]=$B$42)*ReconPerAdj[ReconcilingPeriodAdj]) -> 191581.72 | F44: =SUMPRODUCT((ReconPerAdj[Year]=$C$5)*(ReconPerAdj[Territory]=$B44)*(ReconPerAdj[CustClass]=D$43)*(ReconPerAdj[RateName]=$B$42)*ReconPerAdj[ReconcilingPeriodAdj]) -> 74377.35 | G44: =C44-E44 -> 0 | H44: =D44-F44 -> 0
B45: NW | C45: ='CAWNA NW'!C24 -> 114187.98 | D45: ='CAWNA NW'!C44 -> 44591.46 | E45: =SUMPRODUCT((ReconPerAdj[Year]=$C$5)*(ReconPerAdj[Territory]=$B45)*(ReconPerAdj[CustClass]=C$43)*(ReconPerAdj[RateName]=$B$42)*ReconPerAdj[ReconcilingPeriodAdj]) -> 114187.98 | F45: =SUMPRODUCT((ReconPerAdj[Year]=$C$5)*(ReconPerAdj[Territory]=$B45)*(ReconPerAdj[CustClass]=D$43)*(ReconPerAdj[RateName]=$B$42)*ReconPerAdj[ReconcilingPeriodAdj]) -> 44591.46 | G45: =C45-E45 -> 0 | H45: 0
B46: South | C46: ='CAWNA South'!C24 -> 592554.41 | D46: ='CAWNA South'!C44 -> 182245.23 | E46: =SUMPRODUCT((ReconPerAdj[Year]=$C$5)*(ReconPerAdj[Territory]=$B46)*(ReconPerAdj[CustClass]=C$43)*(ReconPerAdj[RateName]=$B$42)*ReconPerAdj[ReconcilingPeriodAdj]) -> 592554.41 | F46: =SUMPRODUCT((ReconPerAdj[Year]=$C$5)*(ReconPerAdj[Territory]=$B46)*(ReconPerAdj[CustClass]=D$43)*(ReconPerAdj[RateName]=$B$42)*ReconPerAdj[ReconcilingPeriodAdj]) -> 182245.23 | G46: 0 | H46: 0
B47: ARR | C47: ARR Summary Worksheet | E47: ReconPerAdj Table | G47: Difference
B48: Territory | C48: Res | D48: SGS | E48: Res | F48: SGS | G48: Res | H48: SGS
B49: North | C49: ='ARR Summary'!C60 -> 8909.32 | D49: ='ARR Summary'!G60 -> -53321.59 | E49: =SUMPRODUCT((ReconPerAdj[Year]=$C$5)*(ReconPerAdj[Territory]=$B49)*(ReconPerAdj[CustClass]=C$48)*(ReconPerAdj[RateName]=$B$47)*ReconPerAdj[ReconcilingPeriodAdj]) -> 8909.32 | F49: =SUMPRODUCT((ReconPerAdj[Year]=$C$5)*(ReconPerAdj[Territory]=$B49)*(ReconPerAdj[CustClass]=D$48)*(ReconPerAdj[RateName]=$B$47)*ReconPerAdj[ReconcilingPeriodAdj]) -> -53321.59 | G49: =C49-E49 -> 0 | H49: =D49-F49 -> 0
B50: NW | C50: ='ARR Summary'!D60 -> 4618.93 | D50: ='ARR Summary'!H60 -> 5985.79 | E50: =SUMPRODUCT((ReconPerAdj[Year]=$C$5)*(ReconPerAdj[Territory]=$B50)*(ReconPerAdj[CustClass]=C$48)*(ReconPerAdj[RateName]=$B$47)*ReconPerAdj[ReconcilingPeriodAdj]) -> 4618.93 | F50: =SUMPRODUCT((ReconPerAdj[Year]=$C$5)*(ReconPerAdj[Territory]=$B50)*(ReconPerAdj[CustClass]=D$48)*(ReconPerAdj[RateName]=$B$47)*ReconPerAdj[ReconcilingPeriodAdj]) -> 5985.79 | G50: =C50-E50 -> 0 | H50: =D50-F50 -> 0
B51: South | C51: ='ARR Summary'!E60 -> 89314.49 | D51: ='ARR Summary'!I60 -> 68149.54 | E51: =SUMPRODUCT((ReconPerAdj[Year]=$C$5)*(ReconPerAdj[Territory]=$B51)*(ReconPerAdj[CustClass]=C$48)*(ReconPerAdj[RateName]=$B$47)*ReconPerAdj[ReconcilingPeriodAdj]) -> 89314.49 | F51: =SUMPRODUCT((ReconPerAdj[Year]=$C$5)*(ReconPerAdj[Territory]=$B51)*(ReconPerAdj[CustClass]=D$48)*(ReconPerAdj[RateName]=$B$47)*ReconPerAdj[ReconcilingPeriodAdj]) -> 68149.54 | G51: 0 | H51: 0
B53: ARR Volumetric True-Ups
B54: Territory | C54: ARR Worksheets | E54: VolTrueUp Table | G54: Difference
C55: Res | D55: SGS | E55: Res | F55: SGS | G55: Res | H55: SGS
B56: North | C56: ='ARR North'!C21 -> -126.81 | D56: ='ARR North'!C36 -> -988.56 | E56: =SUMPRODUCT((VolTrueUp[Year]=$C$5)*(VolTrueUp[Territory]=$B56)*(VolTrueUp[CustClass]=E$55)*VolTrueUp[TrueUp]) -> -126.81 | F56: =SUMPRODUCT((VolTrueUp[Year]=$C$5)*(VolTrueUp[Territory]=$B56)*(VolTrueUp[CustClass]=F$55)*VolTrueUp[TrueUp]) -> -988.56 | G56: =C56-E56 -> 0 | H56: =D56-F56 -> 0
B57: NW | C57: ='ARR NW'!C21 -> -298.53 | D57: ='ARR NW'!C36 -> 96.51 | E57: =SUMPRODUCT((VolTrueUp[Year]=$C$5)*(VolTrueUp[Territory]=$B57)*(VolTrueUp[CustClass]=E$55)*VolTrueUp[TrueUp]) -> -298.53 | F57: =SUMPRODUCT((VolTrueUp[Year]=$C$5)*(VolTrueUp[Territory]=$B57)*(VolTrueUp[CustClass]=F$55)*VolTrueUp[TrueUp]) -> 96.51 | G57: =C57-E57 -> 0 | H57: =D57-F57 -> 0
B58: South | C58: ='ARR South'!C21 -> -239.27 | D58: ='ARR South'!C36 -> -591 | E58: =SUMPRODUCT((VolTrueUp[Year]=$C$5)*(VolTrueUp[Territory]=$B58)*(VolTrueUp[CustClass]=E$55)*VolTrueUp[TrueUp]) -> -239.27 | F58: =SUMPRODUCT((VolTrueUp[Year]=$C$5)*(VolTrueUp[Territory]=$B58)*(VolTrueUp[CustClass]=F$55)*VolTrueUp[TrueUp]) -> -591 | G58: 0 | H58: 0
B60: WNAR Rates
B61: CAWNA | C61: CAWNA Summary Wrksht | E61: WNAR Rates Table | G61: Difference
B62: Customer Class | C62: Res | D62: SGS | E62: Res | F62: SGS | G62: Res | H62: SGS
B63: Rate | C63: ='CAWNA Summary'!C30 -> 0.03508 | D63: ='CAWNA Summary'!D30 -> 0.04209 | E63: =SUMPRODUCT((WNARRates[Year]=$C$5)*(WNARRates[CustClass]=E$62)*WNARRates[AdjCAWNA]) -> 0.03508 | F63: =SUMPRODUCT((WNARRates[Year]=$C$5)*(WNARRates[CustClass]=F$62)*WNARRates[AdjCAWNA]) -> 0.04209 | G63: =C63-E63 -> 0 | H63: =D63-F63 -> 0
B64: ARR | C64: ARR Summary Worksheet | E64: WNAR Rates Table | G64: Difference
B65: Customer Class | C65: Res | D65: SGS | E65: Res | F65: SGS | G65: Res | H65: SGS
B66: Rate | C66: ='ARR Summary'!C83 -> 0.00402 | D66: ='ARR Summary'!D83 -> 0.00291 | E66: =SUMPRODUCT((WNARRates[Year]=$C$5)*(WNARRates[CustClass]=E$62)*WNARRates[AdjARR]) -> 0.00402 | F66: =SUMPRODUCT((WNARRates[Year]=$C$5)*(WNARRates[CustClass]=F$62)*WNARRates[AdjARR]) -> 0.00291 | G66: =C66-E66 -> 0 | H66: =D66-F66 -> 0

Sheet CAWNA Summary
B2: Empire District Gas Company | E2: Filing Year
B3: WNAR Filing
B4: CAWNA Summary
B5: Year | C5: =DateSet!C2 -> 2026
B6: Analysis Start | C6: =DateSet!C3 -> 45901
B7: New Rate Effecc. | C7: =DateSet!C4 -> 46296
B9: Current Period Dollar Adjustment
B10: Customer Class | C10: Res | G10: SGS | K10: Notes
B11: Month | C11: North | D11: NW | E11: South | F11: Combined | G11: North | H11: NW | I11: South | J11: Combined
B12: =$C$6 -> 2025-09-01 | C12: =SUMPRODUCT((CAWNAAmounts[Month]=$B12)*(CAWNAAmounts[Territory]=C$11)*(CAWNAAmounts[CustClass]=$C$10)*CAWNAAmounts[CAWNA]) -> 7303.92 | D12: =SUMPRODUCT((CAWNAAmounts[Month]=$B12)*(CAWNAAmounts[Territory]=D$11)*(CAWNAAmounts[CustClass]=$C$10)*CAWNAAmounts[CAWNA]) -> 4418 | E12: =SUMPRODUCT((CAWNAAmounts[Month]=$B12)*(CAWNAAmounts[Territory]=E$11)*(CAWNAAmounts[CustClass]=$C$10)*CAWNAAmounts[CAWNA]) -> 22232.52 | F12: =SUM(C12:E12) -> 33954.44 | G12: =SUMPRODUCT((CAWNAAmounts[Month]=$B12)*(CAWNAAmounts[Territory]=G$11)*(CAWNAAmounts[CustClass]=$G$10)*CAWNAAmounts[CAWNA]) -> 3172.61 | H12: =SUMPRODUCT((CAWNAAmounts[Month]=$B12)*(CAWNAAmounts[Territory]=H$11)*(CAWNAAmounts[CustClass]=$G$10)*CAWNAAmounts[CAWNA]) -> 1874.08 | I12: =SUMPRODUCT((CAWNAAmounts[Month]=$B12)*(CAWNAAmounts[Territory]=I$11)*(CAWNAAmounts[CustClass]=$G$10)*CAWNAAmounts[CAWNA]) -> 7447.42 | J12: =SUM(G12:I12) -> 12494.11 | K12: From CAWNA Amounts table
B13: =EDATE(B12,1) -> 2025-10-01 | C13: =SUMPRODUCT((CAWNAAmounts[Month]=$B13)*(CAWNAAmounts[Territory]=C$11)*(CAWNAAmounts[CustClass]=$C$10)*CAWNAAmounts[CAWNA]) -> 6822.83 | D13: =SUMPRODUCT((CAWNAAmounts[Month]=$B13)*(CAWNAAmounts[Territory]=D$11)*(CAWNAAmounts[CustClass]=$C$10)*CAWNAAmounts[CAWNA]) -> 6770.91 | E13: =SUMPRODUCT((CAWNAAmounts[Month]=$B13)*(CAWNAAmounts[Territory]=E$11)*(CAWNAAmounts[CustClass]=$C$10)*CAWNAAmounts[CAWNA]) -> 20393.07 | F13: =SUM(C13:E13) -> 33986.81 | G13: =SUMPRODUCT((CAWNAAmounts[Month]=$B13)*(CAWNAAmounts[Territory]=G$11)*(CAWNAAmounts[CustClass]=$G$10)*CAWNAAmounts[CAWNA]) -> 2692.38 | H13: =SUMPRODUCT((CAWNAAmounts[Month]=$B13)*(CAWNAAmounts[Territory]=H$11)*(CAWNAAmounts[CustClass]=$G$10)*CAWNAAmounts[CAWNA]) -> 2706.86 | I13: =SUMPRODUCT((CAWNAAmounts[Month]=$B13)*(CAWNAAmounts[Territory]=I$11)*(CAWNAAmounts[CustClass]=$G$10)*CAWNAAmounts[CAWNA]) -> 6235.79 | J13: =SUM(G13:I13) -> 11635.03 | K13: From CAWNA Amounts table
B14: =EDATE(B13,1) -> 2025-11-01 | C14: =SUMPRODUCT((CAWNAAmounts[Month]=$B14)*(CAWNAAmounts[Territory]=C$11)*(CAWNAAmounts[CustClass]=$C$10)*CAWNAAmounts[CAWNA]) -> 25593.39 | D14: =SUMPRODUCT((CAWNAAmounts[Month]=$B14)*(CAWNAAmounts[Territory]=D$11)*(CAWNAAmounts[CustClass]=$C$10)*CAWNAAmounts[CAWNA]) -> 13801.71 | E14: =SUMPRODUCT((CAWNAAmounts[Month]=$B14)*(CAWNAAmounts[Territory]=E$11)*(CAWNAAmounts[CustClass]=$C$10)*CAWNAAmounts[CAWNA]) -> 77742.1 | F14: 117137.2 | G14: =SUMPRODUCT((CAWNAAmounts[Month]=$B14)*(CAWNAAmounts[Territory]=G$11)*(CAWNAAmounts[CustClass]=$G$10)*CAWNAAmounts[CAWNA]) -> 10132.1 | H14: =SUMPRODUCT((CAWNAAmounts[Month]=$B14)*(CAWNAAmounts[Territory]=H$11)*(CAWNAAmounts[CustClass]=$G$10)*CAWNAAmounts[CAWNA]) -> 5486.62 | I14: =SUMPRODUCT((CAWNAAmounts[Month]=$B14)*(CAWNAAmounts[Territory]=I$11)*(CAWNAAmounts[CustClass]=$G$10)*CAWNAAmounts[CAWNA]) -> 24920.33 | J14: 40539.05 | K14: From CAWNA Amounts table
B15: =EDATE(B14,1) -> 2025-12-01 | C15: =SUMPRODUCT((CAWNAAmounts[Month]=$B15)*(CAWNAAmounts[Territory]=C$11)*(CAWNAAmounts[CustClass]=$C$10)*CAWNAAmounts[CAWNA]) -> 12052.07 | D15: =SUMPRODUCT((CAWNAAmounts[Month]=$B15)*(CAWNAAmounts[Territory]=D$11)*(CAWNAAmounts[CustClass]=$C$10)*CAWNAAmounts[CAWNA]) -> 6496.15 | E15: =SUMPRODUCT((CAWNAAmounts[Month]=$B15)*(CAWNAAmounts[Territory]=E$11)*(CAWNAAmounts[CustClass]=$C$10)*CAWNAAmounts[CAWNA]) -> 39115.98 | F15: 57664.2 | G15: =SUMPRODUCT((CAWNAAmounts[Month]=$B15)*(CAWNAAmounts[Territory]=G$11)*(CAWNAAmounts[CustClass]=$G$10)*CAWNAAmounts[CAWNA]) -> 4671 | H15: =SUMPRODUCT((CAWNAAmounts[Month]=$B15)*(CAWNAAmounts[Territory]=H$11)*(CAWNAAmounts[CustClass]=$G$10)*CAWNAAmounts[CAWNA]) -> 2524.82 | I15: =SUMPRODUCT((CAWNAAmounts[Month]=$B15)*(CAWNAAmounts[Territory]=I$11)*(CAWNAAmounts[CustClass]=$G$10)*CAWNAAmounts[CAWNA]) -> 11938.48 | J15: 19134.3 | K15: From CAWNA Amounts table
B16: =EDATE(B15,1) -> 2026-01-01 | C16: =SUMPRODUCT((CAWNAAmounts[Month]=$B16)*(CAWNAAmounts[Territory]=C$11)*(CAWNAAmounts[CustClass]=$C$10)*CAWNAAmounts[CAWNA]) -> 17051.46 | D16: =SUMPRODUCT((CAWNAAmounts[Month]=$B16)*(CAWNAAmounts[Territory]=D$11)*(CAWNAAmounts[CustClass]=$C$10)*CAWNAAmounts[CAWNA]) -> 10045.83 | E16: =SUMPRODUCT((CAWNAAmounts[Month]=$B16)*(CAWNAAmounts[Territory]=E$11)*(CAWNAAmounts[CustClass]=$C$10)*CAWNAAmounts[CAWNA]) -> 53944.29 | F16: 81041.58 | G16: =SUMPRODUCT((CAWNAAmounts[Month]=$B16)*(CAWNAAmounts[Territory]=G$11)*(CAWNAAmounts[CustClass]=$G$10)*CAWNAAmounts[CAWNA]) -> 6341.34 | H16: =SUMPRODUCT((CAWNAAmounts[Month]=$B16)*(CAWNAAmounts[Territory]=H$11)*(CAWNAAmounts[CustClass]=$G$10)*CAWNAAmounts[CAWNA]) -> 3730.89 | I16: =SUMPRODUCT((CAWNAAmounts[Month]=$B16)*(CAWNAAmounts[Territory]=I$11)*(CAWNAAmounts[CustClass]=$G$10)*CAWNAAmounts[CAWNA]) -> 15809.51 | J16: 25881.74 | K16: From CAWNA Amounts table
B17: =EDATE(B16,1) -> 2026-02-01 | C17: =SUMPRODUCT((CAWNAAmounts[Month]=$B17)*(CAWNAAmounts[Territory]=C$11)*(CAWNAAmounts[CustClass]=$C$10)*CAWNAAmounts[CAWNA]) -> 8769.05 | D17: =SUMPRODUCT((CAWNAAmounts[Month]=$B17)*(CAWNAAmounts[Territory]=D$11)*(CAWNAAmounts[CustClass]=$C$10)*CAWNAAmounts[CAWNA]) -> 9832.78 | E17: =SUMPRODUCT((CAWNAAmounts[Month]=$B17)*(CAWNAAmounts[Territory]=E$11)*(CAWNAAmounts[CustClass]=$C$10)*CAWNAAmounts[CAWNA]) -> 17673.32 | F17: 36275.15 | G17: =SUMPRODUCT((CAWNAAmounts[Month]=$B17)*(CAWNAAmounts[Territory]=G$11)*(CAWNAAmounts[CustClass]=$G$10)*CAWNAAmounts[CAWNA]) -> 3475.83 | H17: =SUMPRODUCT((CAWNAAmounts[Month]=$B17)*(CAWNAAmounts[Territory]=H$11)*(CAWNAAmounts[CustClass]=$G$10)*CAWNAAmounts[CAWNA]) -> 3832.53 | I17: =SUMPRODUCT((CAWNAAmounts[Month]=$B17)*(CAWNAAmounts[Territory]=I$11)*(CAWNAAmounts[CustClass]=$G$10)*CAWNAAmounts[CAWNA]) -> 5331.93 | J17: 12640.29 | K17: From CAWNA Amounts table
B18: =EDATE(B17,1) -> 2026-03-01 | C18: =SUMPRODUCT((CAWNAAmounts[Month]=$B18)*(CAWNAAmounts[Territory]=C$11)*(CAWNAAmounts[CustClass]=$C$10)*CAWNAAmounts[CAWNA]) -> 55690.72 | D18: =SUMPRODUCT((CAWNAAmounts[Month]=$B18)*(CAWNAAmounts[Territory]=D$11)*(CAWNAAmounts[CustClass]=$C$10)*CAWNAAmounts[CAWNA]) -> 30476.9 | E18: =SUMPRODUCT((CAWNAAmounts[Month]=$B18)*(CAWNAAmounts[Territory]=E$11)*(CAWNAAmounts[CustClass]=$C$10)*CAWNAAmounts[CAWNA]) -> 169715.46 | F18: 255883.08 | G18: =SUMPRODUCT((CAWNAAmounts[Month]=$B18)*(CAWNAAmounts[Territory]=G$11)*(CAWNAAmounts[CustClass]=$G$10)*CAWNAAmounts[CAWNA]) -> 21505.08 | H18: =SUMPRODUCT((CAWNAAmounts[Month]=$B18)*(CAWNAAmounts[Territory]=H$11)*(CAWNAAmounts[CustClass]=$G$10)*CAWNAAmounts[CAWNA]) -> 11882.6 | I18: =SUMPRODUCT((CAWNAAmounts[Month]=$B18)*(CAWNAAmounts[Territory]=I$11)*(CAWNAAmounts[CustClass]=$G$10)*CAWNAAmounts[CAWNA]) -> 51615.09 | J18: 85002.77 | K18: From CAWNA Amounts table
B19: 2026-04-01 | C19: =SUMPRODUCT((CAWNAAmounts[Month]=$B19)*(CAWNAAmounts[Territory]=C$11)*(CAWNAAmounts[CustClass]=$C$10)*CAWNAAmounts[CAWNA]) -> 41201.75 | D19: =SUMPRODUCT((CAWNAAmounts[Month]=$B19)*(CAWNAAmounts[Territory]=D$11)*(CAWNAAmounts[CustClass]=$C$10)*CAWNAAmounts[CAWNA]) -> 23164.1 | E19: =SUMPRODUCT((CAWNAAmounts[Month]=$B19)*(CAWNAAmounts[Territory]=E$11)*(CAWNAAmounts[CustClass]=$C$10)*CAWNAAmounts[CAWNA]) -> 135518.74 | F19: 199884.59 | G19: =SUMPRODUCT((CAWNAAmounts[Month]=$B19)*(CAWNAAmounts[Territory]=G$11)*(CAWNAAmounts[CustClass]=$G$10)*CAWNAAmounts[CAWNA]) -> 15792.93 | H19: =SUMPRODUCT((CAWNAAmounts[Month]=$B19)*(CAWNAAmounts[Territory]=H$11)*(CAWNAAmounts[CustClass]=$G$10)*CAWNAAmounts[CAWNA]) -> 8911.25 | I19: =SUMPRODUCT((CAWNAAmounts[Month]=$B19)*(CAWNAAmounts[Territory]=I$11)*(CAWNAAmounts[CustClass]=$G$10)*CAWNAAmounts[CAWNA]) -> 41762.16 | J19: 66466.34 | K19: From CAWNA Amounts table
B20: 2026-05-01 | C20: =SUMPRODUCT((CAWNAAmounts[Month]=$B20)*(CAWNAAmounts[Territory]=C$11)*(CAWNAAmounts[CustClass]=$C$10)*CAWNAAmounts[CAWNA]) -> 16087.5 | D20: =SUMPRODUCT((CAWNAAmounts[Month]=$B20)*(CAWNAAmounts[Territory]=D$11)*(CAWNAAmounts[CustClass]=$C$10)*CAWNAAmounts[CAWNA]) -> 8644.23 | E20: =SUMPRODUCT((CAWNAAmounts[Month]=$B20)*(CAWNAAmounts[Territory]=E$11)*(CAWNAAmounts[CustClass]=$C$10)*CAWNAAmounts[CAWNA]) -> 53674.77 | F20: 78406.5 | G20: =SUMPRODUCT((CAWNAAmounts[Month]=$B20)*(CAWNAAmounts[Territory]=G$11)*(CAWNAAmounts[CustClass]=$G$10)*CAWNAAmounts[CAWNA]) -> 6211.29 | H20: =SUMPRODUCT((CAWNAAmounts[Month]=$B20)*(CAWNAAmounts[Territory]=H$11)*(CAWNAAmounts[CustClass]=$G$10)*CAWNAAmounts[CAWNA]) -> 3431.42 | I20: =SUMPRODUCT((CAWNAAmounts[Month]=$B20)*(CAWNAAmounts[Territory]=I$11)*(CAWNAAmounts[CustClass]=$G$10)*CAWNAAmounts[CAWNA]) -> 16429.36 | J20: 26072.07 | K20: From CAWNA Amounts table
B21: 2026-06-01 | C21: =SUMPRODUCT((CAWNAAmounts[Month]=$B21)*(CAWNAAmounts[Territory]=C$11)*(CAWNAAmounts[CustClass]=$C$10)*CAWNAAmounts[CAWNA]) -> -474.46 | D21: =SUMPRODUCT((CAWNAAmounts[Month]=$B21)*(CAWNAAmounts[Territory]=D$11)*(CAWNAAmounts[CustClass]=$C$10)*CAWNAAmounts[CAWNA]) -> -343.33 | E21: =SUMPRODUCT((CAWNAAmounts[Month]=$B21)*(CAWNAAmounts[Territory]=E$11)*(CAWNAAmounts[CustClass]=$C$10)*CAWNAAmounts[CAWNA]) -> -2062.01 | F21: -2879.8 | G21: =SUMPRODUCT((CAWNAAmounts[Month]=$B21)*(CAWNAAmounts[Territory]=G$11)*(CAWNAAmounts[CustClass]=$G$10)*CAWNAAmounts[CAWNA]) -> -187.26 | H21: =SUMPRODUCT((CAWNAAmounts[Month]=$B21)*(CAWNAAmounts[Territory]=H$11)*(CAWNAAmounts[CustClass]=$G$10)*CAWNAAmounts[CAWNA]) -> -134.99 | I21: =SUMPRODUCT((CAWNAAmounts[Month]=$B21)*(CAWNAAmounts[Territory]=I$11)*(CAWNAAmounts[CustClass]=$G$10)*CAWNAAmounts[CAWNA]) -> -624.41 | J21: -946.66 | K21: From CAWNA Amounts table
B22: 2026-07-01 | C22: =SUMPRODUCT((CAWNAAmounts[Month]=$B22)*(CAWNAAmounts[Territory]=C$11)*(CAWNAAmounts[CustClass]=$C$10)*CAWNAAmounts[CAWNA]) -> 1483.49 | D22: =SUMPRODUCT((CAWNAAmounts[Month]=$B22)*(CAWNAAmounts[Territory]=D$11)*(CAWNAAmounts[CustClass]=$C$10)*CAWNAAmounts[CAWNA]) -> 880.7 | E22: =SUMPRODUCT((CAWNAAmounts[Month]=$B22)*(CAWNAAmounts[Territory]=E$11)*(CAWNAAmounts[CustClass]=$C$10)*CAWNAAmounts[CAWNA]) -> 4606.17 | F22: 6970.36 | G22: =SUMPRODUCT((CAWNAAmounts[Month]=$B22)*(CAWNAAmounts[Territory]=G$11)*(CAWNAAmounts[CustClass]=$G$10)*CAWNAAmounts[CAWNA]) -> 570.05 | H22: =SUMPRODUCT((CAWNAAmounts[Month]=$B22)*(CAWNAAmounts[Territory]=H$11)*(CAWNAAmounts[CustClass]=$G$10)*CAWNAAmounts[CAWNA]) -> 345.38 | I22: =SUMPRODUCT((CAWNAAmounts[Month]=$B22)*(CAWNAAmounts[Territory]=I$11)*(CAWNAAmounts[CustClass]=$G$10)*CAWNAAmounts[CAWNA]) -> 1379.57 | J22: 2295 | K22: From CAWNA Amounts table
B23: =EDATE(B22,1) -> 2026-08-01 | C23: =SUMPRODUCT((CAWNAAmounts[Month]=$B23)*(CAWNAAmounts[Territory]=C$11)*(CAWNAAmounts[CustClass]=$C$10)*CAWNAAmounts[CAWNA]) -> 0 | D23: =SUMPRODUCT((CAWNAAmounts[Month]=$B23)*(CAWNAAmounts[Territory]=D$11)*(CAWNAAmounts[CustClass]=$C$10)*CAWNAAmounts[CAWNA]) -> 0 | E23: =SUMPRODUCT((CAWNAAmounts[Month]=$B23)*(CAWNAAmounts[Territory]=E$11)*(CAWNAAmounts[CustClass]=$C$10)*CAWNAAmounts[CAWNA]) -> 0 | F23: 0 | G23: =SUMPRODUCT((CAWNAAmounts[Month]=$B23)*(CAWNAAmounts[Territory]=G$11)*(CAWNAAmounts[CustClass]=$G$10)*CAWNAAmounts[CAWNA]) -> 0 | H23: =SUMPRODUCT((CAWNAAmounts[Month]=$B23)*(CAWNAAmounts[Territory]=H$11)*(CAWNAAmounts[CustClass]=$G$10)*CAWNAAmounts[CAWNA]) -> 0 | I23: =SUMPRODUCT((CAWNAAmounts[Month]=$B23)*(CAWNAAmounts[Territory]=I$11)*(CAWNAAmounts[CustClass]=$G$10)*CAWNAAmounts[CAWNA]) -> 0 | J23: 0 | K23: From CAWNA Amounts table
B24: Total Adjustment | C24: =SUM(C12:C23) -> 191581.72 | D24: =SUM(D12:D23) -> 114187.98 | E24: 592554.41 | F24: 898324.11 | G24: 74377.35 | H24: 44591.46 | I24: 182245.23 | J24: 301214.04
B26: CAWNA Rate Calculation | C26: Res | D26: SGS
B27: Billing Determinants | C27: =INDEX(BillDeter[BillingDeterminants],MATCH(C26,BillDeter[CustClass],0)) -> 25605076.09 | D27: =INDEX(BillDeter[BillingDeterminants],MATCH(D26,BillDeter[CustClass],0)) -> 7155623
B28: CAWNA Unadjusted | C28: =ROUND(F24/C27,5) -> 0.03508 | D28: =ROUND(J24/D27,5) -> 0.04209
B29: WNA Limit Adjust. | C29: =E43 -> 0 | D29: =F43 -> 0
B30: CAWNA Adjusted | C30: =C28+C29 -> 0.03508 | D30: =ROUND(J24/D27,5) -> 0.04209
B31: Enter these rates in the CAWNA column of the WNAR Rates table.
B33: New WNA Rate Calculation
B34: Rate | C34: Res | D34: SGS
B35: CAWNA | C35: =SUMPRODUCT((WNARRates[BeginDate]=$C$7)*(WNARRates[CustClass]=C$34)*WNARRates[AdjCAWNA]) -> 0.03508 | D35: =SUMPRODUCT((WNARRates[BeginDate]=$C$7)*(WNARRates[CustClass]=D$34)*WNARRates[AdjCAWNA]) -> 0.04209
B36: ARR | C36: =SUMPRODUCT((WNARRates[BeginDate]=$C$7)*(WNARRates[CustClass]=C$34)*WNARRates[AdjARR]) -> 0.00402 | D36: =SUMPRODUCT((WNARRates[BeginDate]=$C$7)*(WNARRates[CustClass]=D$34)*WNARRates[AdjARR]) -> 0.00291
B37: Proposed WNA | C37: =C35+C36 -> 0.0391 | D37: =D35+D36 -> 0.045
B39: Change Limit Calculations | C39: Year | D39: Eff. Date | E39: Res | F39: SGS
B40: Prior Period WNA Rate | C40: =$C$5-1 -> 2025 | D40: =DATE(C40-1,10,1) -> 45566 | E40: =SUMPRODUCT((WNARRates[Year]=$C40)*(WNARRates[CustClass]=E$39)*WNARRates[AdjCombined]) -> 0.01852 | F40: =SUMPRODUCT((WNARRates[Year]=$C40)*(WNARRates[CustClass]=F$39)*WNARRates[AdjCombined]) -> 0.01756
B41: Change from Prior Period | E41: =C37-E40 -> 0.02058 | F41: =D37-F40 -> 0.02744
B42: Change Limit | E42: 0.05 | F42: 0.05
B43: Change Limit Adjustment | E43: =IF(E42>E41,0,E42-E41) -> 0 | F43: =IF(F42>F41,0,F42-F41) -> 0
B44: Excess Limit Amount | E44: =E43*C27 -> 0 | F44: =F43*D27 -> 0

Sheet ARR Summary
B2: Empire District Gas Company | E2: Filing Year
B3: WNAR Filing
B4: ARR Summary
B5: Year | C5: =DateSet!C2 -> 2026
B6: Billed Rev. From | C6: =DATE(C5-1,10,1) -> 45931
B7: New Rate Effec. | C7: =DATE(C5,10,1) -> 46296
B9: Reconciliation Summary | C9: CAWNA
B10: Customer Class | C10: Res | G10: SGS | K10: Notes
B11: Territory | C11: North | D11: NW | E11: South | F11: Combined | G11: North | H11: NW | I11: South | J11: Combined
B12: Reconciling Period Adj. | C12: =SUMPRODUCT((ReconPerAdj[EffDate]=$C$6)*(ReconPerAdj[Territory]=C11)*(ReconPerAdj[CustClass]=$C10)*(ReconPerAdj[RateName]=$C$9)*ReconPerAdj[ReconcilingPeriodAdj]) -> 72335.39 | D12: =SUMPRODUCT((ReconPerAdj[EffDate]=$C$6)*(ReconPerAdj[Territory]=D11)*(ReconPerAdj[CustClass]=$C10)*(ReconPerAdj[RateName]=$C$9)*ReconPerAdj[ReconcilingPeriodAdj]) -> 40865.08 | E12: =SUMPRODUCT((ReconPerAdj[EffDate]=$C$6)*(ReconPerAdj[Territory]=E11)*(ReconPerAdj[CustClass]=$C10)*(ReconPerAdj[RateName]=$C$9)*ReconPerAdj[ReconcilingPeriodAdj]) -> 227370.33 | F12: =SUM(C12:E12) -> 340570.8 | G12: =SUMPRODUCT((ReconPerAdj[EffDate]=$C$6)*(ReconPerAdj[Territory]=G11)*(ReconPerAdj[CustClass]=$G10)*(ReconPerAdj[RateName]=$C$9)*ReconPerAdj[ReconcilingPeriodAdj]) -> 28260.86 | H12: =SUMPRODUCT((ReconPerAdj[EffDate]=$C$6)*(ReconPerAdj[Territory]=H11)*(ReconPerAdj[CustClass]=$G10)*(ReconPerAdj[RateName]=$C$9)*ReconPerAdj[ReconcilingPeriodAdj]) -> 15999 | I12: =SUMPRODUCT((ReconPerAdj[EffDate]=$C$6)*(ReconPerAdj[Territory]=I11)*(ReconPerAdj[CustClass]=$G10)*(ReconPerAdj[RateName]=$C$9)*ReconPerAdj[ReconcilingPeriodAdj]) -> 69748.09 | J12: =SUM(G12:I12) -> 114007.95 | K12: From ReconPerAdj Table
B13: PPA Correction | C13: 0 | D13: 0 | E13: 0 | F13: =SUM(C13:E13) -> 0 | G13: 0 | H13: 0 | I13: 0 | J13: =SUM(G13:I13) -> 0 | K13: From PriorPerAdj Table
B14: Net Reconciling Period Adj. | C14: =C12+C13 -> 72335.39 | D14: =D12+D13 -> 40865.08 | E14: 227370.33 | F14: =F12+F13 -> 340570.8 | G14: =G12+G13 -> 28260.86 | H14: =H12+H13 -> 15999 | I14: =I12+I13 -> 69748.09 | J14: =J12+J13 -> 114007.95
B15: Actual Revenues
B16: =$C$6 -> 2025-10-01 | C16: =-SUMPRODUCT((WNARevAlloc[MonthFlow]=$B16)*(WNARevAlloc[Territory]=C$11)*(WNARevAlloc[CustClassRate]=$C$10)*WNARevAlloc[AdjCAWNARev]) -> -4239.248499 | D16: =-SUMPRODUCT((WNARevAlloc[MonthFlow]=$B16)*(WNARevAlloc[Territory]=D$11)*(WNARevAlloc[CustClassRate]=$C$10)*WNARevAlloc[AdjCAWNARev]) -> -2929.167104 | E16: =-SUMPRODUCT((WNARevAlloc[MonthFlow]=$B16)*(WNARevAlloc[Territory]=E$11)*(WNARevAlloc[CustClassRate]=$C$10)*WNARevAlloc[AdjCAWNARev]) -> -10901.5138 | F16: =SUM(C16:E16) -> -18069.92941 | G16: =-SUMPRODUCT((WNARevAlloc[MonthFlow]=$B16)*(WNARevAlloc[Territory]=G$11)*(WNARevAlloc[CustClassRate]=$G$10)*WNARevAlloc[AdjCAWNARev]) -> -1433.510493 | H16: =-SUMPRODUCT((WNARevAlloc[MonthFlow]=$B16)*(WNARevAlloc[Territory]=H$11)*(WNARevAlloc[CustClassRate]=$G$10)*WNARevAlloc[AdjCAWNARev]) -> -839.6139417 | I16: =-SUMPRODUCT((WNARevAlloc[MonthFlow]=$B16)*(WNARevAlloc[Territory]=I$11)*(WNARevAlloc[CustClassRate]=$G$10)*WNARevAlloc[AdjCAWNARev]) -> -3602.148453 | J16: =SUM(G16:I16) -> -5875.272888 | K16: From WNARevAlloc Table
B17: =EDATE(B16,1) -> 2025-11-01 | C17: =-SUMPRODUCT((WNARevAlloc[MonthFlow]=$B17)*(WNARevAlloc[Territory]=C$11)*(WNARevAlloc[CustClassRate]=$C$10)*WNARevAlloc[AdjCAWNARev]) -> -9092.997521 | D17: =-SUMPRODUCT((WNARevAlloc[MonthFlow]=$B17)*(WNARevAlloc[Territory]=D$11)*(WNARevAlloc[CustClassRate]=$C$10)*WNARevAlloc[AdjCAWNARev]) -> -5620.145613 | E17: =-SUMPRODUCT((WNARevAlloc[MonthFlow]=$B17)*(WNARevAlloc[Territory]=E$11)*(WNARevAlloc[CustClassRate]=$C$10)*WNARevAlloc[AdjCAWNARev]) -> -25236.32997 | F17: =SUM(C17:E17) -> -39949.4731 | G17: =-SUMPRODUCT((WNARevAlloc[MonthFlow]=$B17)*(WNARevAlloc[Territory]=G$11)*(WNARevAlloc[CustClassRate]=$G$10)*WNARevAlloc[AdjCAWNARev]) -> -3334.052014 | H17: =-SUMPRODUCT((WNARevAlloc[MonthFlow]=$B17)*(WNARevAlloc[Territory]=H$11)*(WNARevAlloc[CustClassRate]=$G$10)*WNARevAlloc[AdjCAWNARev]) -> -2330.408109 | I17: =-SUMPRODUCT((WNARevAlloc[MonthFlow]=$B17)*(WNARevAlloc[Territory]=I$11)*(WNARevAlloc[CustClassRate]=$G$10)*WNARevAlloc[AdjCAWNARev]) -> -7913.038773 | J17: =SUM(G17:I17) -> -13577.4989 | K17: From WNARevAlloc Table
B18: =EDATE(B17,1) -> 2025-12-01 | C18: =-SUMPRODUCT((WNARevAlloc[MonthFlow]=$B18)*(WNARevAlloc[Territory]=C$11)*(WNARevAlloc[CustClassRate]=$C$10)*WNARevAlloc[AdjCAWNARev]) -> -12001.77047 | D18: =-SUMPRODUCT((WNARevAlloc[MonthFlow]=$B18)*(WNARevAlloc[Territory]=D$11)*(WNARevAlloc[CustClassRate]=$C$10)*WNARevAlloc[AdjCAWNARev]) -> -7056.499883 | E18: =-SUMPRODUCT((WNARevAlloc[MonthFlow]=$B18)*(WNARevAlloc[Territory]=E$11)*(WNARevAlloc[CustClassRate]=$C$10)*WNARevAlloc[AdjCAWNARev]) -> -30756.50359 | F18: -49814.77395 | G18: =-SUMPRODUCT((WNARevAlloc[MonthFlow]=$B18)*(WNARevAlloc[Territory]=G$11)*(WNARevAlloc[CustClassRate]=$G$10)*WNARevAlloc[AdjCAWNARev]) -> -4363.99447 | H18: =-SUMPRODUCT((WNARevAlloc[MonthFlow]=$B18)*(WNARevAlloc[Territory]=H$11)*(WNARevAlloc[CustClassRate]=$G$10)*WNARevAlloc[AdjCAWNARev]) -> -2852.6584 | I18: =-SUMPRODUCT((WNARevAlloc[MonthFlow]=$B18)*(WNARevAlloc[Territory]=I$11)*(WNARevAlloc[CustClassRate]=$G$10)*WNARevAlloc[AdjCAWNARev]) -> -9796.512827 | J18: -17013.1657 | K18: From WNARevAlloc Table
B19: 2026-01-01 | C19: =-SUMPRODUCT((WNARevAlloc[MonthFlow]=$B19)*(WNARevAlloc[Territory]=C$11)*(WNARevAlloc[CustClassRate]=$C$10)*WNARevAlloc[AdjCAWNARev]) -> -15852.65249 | D19: =-SUMPRODUCT((WNARevAlloc[MonthFlow]=$B19)*(WNARevAlloc[Territory]=D$11)*(WNARevAlloc[CustClassRate]=$C$10)*WNARevAlloc[AdjCAWNARev]) -> -8776.33557 | E19: =-SUMPRODUCT((WNARevAlloc[MonthFlow]=$B19)*(WNARevAlloc[Territory]=E$11)*(WNARevAlloc[CustClassRate]=$C$10)*WNARevAlloc[AdjCAWNARev]) -> -46010.08631 | F19: -70639.07437 | G19: =-SUMPRODUCT((WNARevAlloc[MonthFlow]=$B19)*(WNARevAlloc[Territory]=G$11)*(WNARevAlloc[CustClassRate]=$G$10)*WNARevAlloc[AdjCAWNARev]) -> -6376.064146 | H19: =-SUMPRODUCT((WNARevAlloc[MonthFlow]=$B19)*(WNARevAlloc[Territory]=H$11)*(WNARevAlloc[CustClassRate]=$G$10)*WNARevAlloc[AdjCAWNARev]) -> -3910.225336 | I19: =-SUMPRODUCT((WNARevAlloc[MonthFlow]=$B19)*(WNARevAlloc[Territory]=I$11)*(WNARevAlloc[CustClassRate]=$G$10)*WNARevAlloc[AdjCAWNARev]) -> -16007.43649 | J19: -26293.72597 | K19: From WNARevAlloc Table
B20: 2026-02-01 | C20: =-SUMPRODUCT((WNARevAlloc[MonthFlow]=$B20)*(WNARevAlloc[Territory]=C$11)*(WNARevAlloc[CustClassRate]=$C$10)*WNARevAlloc[AdjCAWNARev]) -> -7837.348164 | D20: =-SUMPRODUCT((WNARevAlloc[MonthFlow]=$B20)*(WNARevAlloc[Territory]=D$11)*(WNARevAlloc[CustClassRate]=$C$10)*WNARevAlloc[AdjCAWNARev]) -> -4509.059071 | E20: =-SUMPRODUCT((WNARevAlloc[MonthFlow]=$B20)*(WNARevAlloc[Territory]=E$11)*(WNARevAlloc[CustClassRate]=$C$10)*WNARevAlloc[AdjCAWNARev]) -> -21463.94503 | F20: -33810.35227 | G20: =-SUMPRODUCT((WNARevAlloc[MonthFlow]=$B20)*(WNARevAlloc[Territory]=G$11)*(WNARevAlloc[CustClassRate]=$G$10)*WNARevAlloc[AdjCAWNARev]) -> -2864.741976 | H20: =-SUMPRODUCT((WNARevAlloc[MonthFlow]=$B20)*(WNARevAlloc[Territory]=H$11)*(WNARevAlloc[CustClassRate]=$G$10)*WNARevAlloc[AdjCAWNARev]) -> -2027.546088 | I20: =-SUMPRODUCT((WNARevAlloc[MonthFlow]=$B20)*(WNARevAlloc[Territory]=I$11)*(WNARevAlloc[CustClassRate]=$G$10)*WNARevAlloc[AdjCAWNARev]) -> -7065.662597 | J20: -11957.95066 | K20: From WNARevAlloc Table
B21: 2026-03-01 | C21: =-SUMPRODUCT((WNARevAlloc[MonthFlow]=$B21)*(WNARevAlloc[Territory]=C$11)*(WNARevAlloc[CustClassRate]=$C$10)*WNARevAlloc[AdjCAWNARev]) -> -5471.750702 | D21: =-SUMPRODUCT((WNARevAlloc[MonthFlow]=$B21)*(WNARevAlloc[Territory]=D$11)*(WNARevAlloc[CustClassRate]=$C$10)*WNARevAlloc[AdjCAWNARev]) -> -3304.633477 | E21: =-SUMPRODUCT((WNARevAlloc[MonthFlow]=$B21)*(WNARevAlloc[Territory]=E$11)*(WNARevAlloc[CustClassRate]=$C$10)*WNARevAlloc[AdjCAWNARev]) -> -14762.40469 | F21: -23538.78887 | G21: =-SUMPRODUCT((WNARevAlloc[MonthFlow]=$B21)*(WNARevAlloc[Territory]=G$11)*(WNARevAlloc[CustClassRate]=$G$10)*WNARevAlloc[AdjCAWNARev]) -> -1803.909208 | H21: =-SUMPRODUCT((WNARevAlloc[MonthFlow]=$B21)*(WNARevAlloc[Territory]=H$11)*(WNARevAlloc[CustClassRate]=$G$10)*WNARevAlloc[AdjCAWNARev]) -> -1282.437574 | I21: =-SUMPRODUCT((WNARevAlloc[MonthFlow]=$B21)*(WNARevAlloc[Territory]=I$11)*(WNARevAlloc[CustClassRate]=$G$10)*WNARevAlloc[AdjCAWNARev]) -> -4545.910929 | J21: -7632.257712 | K21: From WNARevAlloc Table
B22: 2026-04-01 | C22: =-SUMPRODUCT((WNARevAlloc[MonthFlow]=$B22)*(WNARevAlloc[Territory]=C$11)*(WNARevAlloc[CustClassRate]=$C$10)*WNARevAlloc[AdjCAWNARev]) -> -2041.966523 | D22: =-SUMPRODUCT((WNARevAlloc[MonthFlow]=$B22)*(WNARevAlloc[Territory]=D$11)*(WNARevAlloc[CustClassRate]=$C$10)*WNARevAlloc[AdjCAWNARev]) -> -1066.886933 | E22: =-SUMPRODUCT((WNARevAlloc[MonthFlow]=$B22)*(WNARevAlloc[Territory]=E$11)*(WNARevAlloc[CustClassRate]=$C$10)*WNARevAlloc[AdjCAWNARev]) -> -5978.285367 | F22: -9087.138823 | G22: =-SUMPRODUCT((WNARevAlloc[MonthFlow]=$B22)*(WNARevAlloc[Territory]=G$11)*(WNARevAlloc[CustClassRate]=$G$10)*WNARevAlloc[AdjCAWNARev]) -> -613.5771526 | H22: =-SUMPRODUCT((WNARevAlloc[MonthFlow]=$B22)*(WNARevAlloc[Territory]=H$11)*(WNARevAlloc[CustClassRate]=$G$10)*WNARevAlloc[AdjCAWNARev]) -> -402.3776481 | I22: =-SUMPRODUCT((WNARevAlloc[MonthFlow]=$B22)*(WNARevAlloc[Territory]=I$11)*(WNARevAlloc[CustClassRate]=$G$10)*WNARevAlloc[AdjCAWNARev]) -> -1807.592341 | J22: -2823.547141 | K22: From WNARevAlloc Table
B23: 2026-05-01 | C23: =-SUMPRODUCT((WNARevAlloc[MonthFlow]=$B23)*(WNARevAlloc[Territory]=C$11)*(WNARevAlloc[CustClassRate]=$C$10)*WNARevAlloc[AdjCAWNARev]) -> -822.0649568 | D23: =-SUMPRODUCT((WNARevAlloc[MonthFlow]=$B23)*(WNARevAlloc[Territory]=D$11)*(WNARevAlloc[CustClassRate]=$C$10)*WNARevAlloc[AdjCAWNARev]) -> -471.0943305 | E23: =-SUMPRODUCT((WNARevAlloc[MonthFlow]=$B23)*(WNARevAlloc[Territory]=E$11)*(WNARevAlloc[CustClassRate]=$C$10)*WNARevAlloc[AdjCAWNARev]) -> -3619.340355 | F23: -4912.499642 | G23: =-SUMPRODUCT((WNARevAlloc[MonthFlow]=$B23)*(WNARevAlloc[Territory]=G$11)*(WNARevAlloc[CustClassRate]=$G$10)*WNARevAlloc[AdjCAWNARev]) -> -352.3299134 | H23: =-SUMPRODUCT((WNARevAlloc[MonthFlow]=$B23)*(WNARevAlloc[Territory]=H$11)*(WNARevAlloc[CustClassRate]=$G$10)*WNARevAlloc[AdjCAWNARev]) -> -184.8369875 | I23: =-SUMPRODUCT((WNARevAlloc[MonthFlow]=$B23)*(WNARevAlloc[Territory]=I$11)*(WNARevAlloc[CustClassRate]=$G$10)*WNARevAlloc[AdjCAWNARev]) -> -1195.250384 | J23: -1732.417285 | K23: From WNARevAlloc Table
B24: 2026-06-01 | C24: =-SUMPRODUCT((WNARevAlloc[MonthFlow]=$B24)*(WNARevAlloc[Territory]=C$11)*(WNARevAlloc[CustClassRate]=$C$10)*WNARevAlloc[AdjCAWNARev]) -> -662.1623318 | D24: =-SUMPRODUCT((WNARevAlloc[MonthFlow]=$B24)*(WNARevAlloc[Territory]=D$11)*(WNARevAlloc[CustClassRate]=$C$10)*WNARevAlloc[AdjCAWNARev]) -> -420.0703024 | E24: =-SUMPRODUCT((WNARevAlloc[MonthFlow]=$B24)*(WNARevAlloc[Territory]=E$11)*(WNARevAlloc[CustClassRate]=$C$10)*WNARevAlloc[AdjCAWNARev]) -> -3103.481724 | F24: -4185.714358 | G24: =-SUMPRODUCT((WNARevAlloc[MonthFlow]=$B24)*(WNARevAlloc[Territory]=G$11)*(WNARevAlloc[CustClassRate]=$G$10)*WNARevAlloc[AdjCAWNARev]) -> -288.0281891 | H24: =-SUMPRODUCT((WNARevAlloc[MonthFlow]=$B24)*(WNARevAlloc[Territory]=H$11)*(WNARevAlloc[CustClassRate]=$G$10)*WNARevAlloc[AdjCAWNARev]) -> -283.7463212 | I24: =-SUMPRODUCT((WNARevAlloc[MonthFlow]=$B24)*(WNARevAlloc[Territory]=I$11)*(WNARevAlloc[CustClassRate]=$G$10)*WNARevAlloc[AdjCAWNARev]) -> -1087.273917 | J24: -1659.048427 | K24: From WNARevAlloc Table
B25: Total Actual Revenues | C25: =SUM(C16:C24) -> -58021.96166 | D25: -34153.89228 | E25: -161831.8908 | F25: -254007.7448 | G25: -21430.20756 | H25: -14113.8504 | I25: -53020.82671 | J25: -88564.88468
B26: Projected Revenues
B27: =EDATE(B24,1) -> 2026-07-01 | C27: =-SUMPRODUCT((CustEstVol[MonthBill]=$B27)*(CustEstVol[Territory]=C$11)*(CustEstVol[CustClass]=$C$10)*CustEstVol[CAWNARev]) -> -666.17 | D27: =-SUMPRODUCT((CustEstVol[MonthBill]=$B27)*(CustEstVol[Territory]=D$11)*(CustEstVol[CustClass]=$C$10)*CustEstVol[CAWNARev]) -> -419.35 | E27: =-SUMPRODUCT((CustEstVol[MonthBill]=$B27)*(CustEstVol[Territory]=E$11)*(CustEstVol[CustClass]=$C$10)*CustEstVol[CAWNARev]) -> -3103.42 | F27: =SUM(C27:E27) -> -4188.94 | G27: =-SUMPRODUCT((CustEstVol[MonthBill]=$B27)*(CustEstVol[Territory]=G$11)*(CustEstVol[CustClass]=$G$10)*CustEstVol[CAWNARev]) -> -287.71 | H27: =-SUMPRODUCT((CustEstVol[MonthBill]=$B27)*(CustEstVol[Territory]=H$11)*(CustEstVol[CustClass]=$G$10)*CustEstVol[CAWNARev]) -> -283.59 | I27: =-SUMPRODUCT((CustEstVol[MonthBill]=$B27)*(CustEstVol[Territory]=I$11)*(CustEstVol[CustClass]=$G$10)*CustEstVol[CAWNARev]) -> -1086.65 | J27: =SUM(G27:I27) -> -1657.95 | K27: From CustEstRev Table
B28: =EDATE(B27,1) -> 2026-08-01 | C28: =-SUMPRODUCT((CustEstVol[MonthBill]=$B28)*(CustEstVol[Territory]=C$11)*(CustEstVol[CustClass]=$C$10)*CustEstVol[CAWNARev]) -> -639.12 | D28: =-SUMPRODUCT((CustEstVol[MonthBill]=$B28)*(CustEstVol[Territory]=D$11)*(CustEstVol[CustClass]=$C$10)*CustEstVol[CAWNARev]) -> -363.53 | E28: =-SUMPRODUCT((CustEstVol[MonthBill]=$B28)*(CustEstVol[Territory]=E$11)*(CustEstVol[CustClass]=$C$10)*CustEstVol[CAWNARev]) -> -2818.2 | F28: =SUM(C28:E28) -> -3820.85 | G28: =-SUMPRODUCT((CustEstVol[MonthBill]=$B28)*(CustEstVol[Territory]=G$11)*(CustEstVol[CustClass]=$G$10)*CustEstVol[CAWNARev]) -> -239.28 | H28: =-SUMPRODUCT((CustEstVol[MonthBill]=$B28)*(CustEstVol[Territory]=H$11)*(CustEstVol[CustClass]=$G$10)*CustEstVol[CAWNARev]) -> -144.98 | I28: =-SUMPRODUCT((CustEstVol[MonthBill]=$B28)*(CustEstVol[Territory]=I$11)*(CustEstVol[CustClass]=$G$10)*CustEstVol[CAWNARev]) -> -813.47 | J28: =SUM(G28:I28) -> -1197.73 | K28: From CustEstRev Table
B29: =EDATE(B28,1) -> 2026-09-01 | C29: =-SUMPRODUCT((CustEstVol[MonthBill]=$B29)*(CustEstVol[Territory]=C$11)*(CustEstVol[CustClass]=$C$10)*CustEstVol[CAWNARev]) -> -668.02 | D29: =-SUMPRODUCT((CustEstVol[MonthBill]=$B29)*(CustEstVol[Territory]=D$11)*(CustEstVol[CustClass]=$C$10)*CustEstVol[CAWNARev]) -> -461.96 | E29: =-SUMPRODUCT((CustEstVol[MonthBill]=$B29)*(CustEstVol[Territory]=E$11)*(CustEstVol[CustClass]=$C$10)*CustEstVol[CAWNARev]) -> -3106.25 | F29: -4236.23 | G29: =-SUMPRODUCT((CustEstVol[MonthBill]=$B29)*(CustEstVol[Territory]=G$11)*(CustEstVol[CustClass]=$G$10)*CustEstVol[CAWNARev]) -> -524.45 | H29: =-SUMPRODUCT((CustEstVol[MonthBill]=$B29)*(CustEstVol[Territory]=H$11)*(CustEstVol[CustClass]=$G$10)*CustEstVol[CAWNARev]) -> -633.47 | I29: =-SUMPRODUCT((CustEstVol[MonthBill]=$B29)*(CustEstVol[Territory]=I$11)*(CustEstVol[CustClass]=$G$10)*CustEstVol[CAWNARev]) -> -1168.9 | J29: -2326.82 | K29: From CustEstRev Table
B30: Total Projected Revenues | C30: =SUM(C27:C29) -> -1973.31 | D30: =SUM(D27:D29) -> -1244.84 | E30: -9027.87 | F30: -12246.02 | G30: -1051.44 | H30: -1062.04 | I30: -3069.02 | J30: -5182.5
B31: Total Billings | C31: =C25+C30 -> -59995.27166 | D31: =D25+D30 -> -35398.73228 | E31: -170859.7608 | F31: -266253.7648 | G31: -22481.64756 | H31: -15175.8904 | I31: -56089.84671 | J31: -93747.38468
B32: CAWNA Net (Over)/Under Recov 1/ | C32: =ROUND(C14+C31,2) -> 12340.12 | D32: 5466.35 | E32: 56510.57 | F32: 74317.04 | G32: 5779.21 | H32: 823.11 | I32: 13658.24 | J32: 20260.57
B34: Reconciliation Summary | C34: ARR
B35: Customer Class | C35: Res | G35: SGS | K35: Notes
B36: Region | C36: North | D36: NW | E36: South | F36: Combined | G36: North | H36: NW | I36: South | J36: Combined
B37: Reconciling Period Adj. | C37: =SUMPRODUCT((ReconPerAdj[EffDate]=$C$6)*(ReconPerAdj[Territory]=C36)*(ReconPerAdj[CustClass]=$C35)*(ReconPerAdj[RateName]=$C$34)*ReconPerAdj[ReconcilingPeriodAdj]) -> 20246.59 | D37: =SUMPRODUCT((ReconPerAdj[EffDate]=$C$6)*(ReconPerAdj[Territory]=D36)*(ReconPerAdj[CustClass]=$C35)*(ReconPerAdj[RateName]=$C$34)*ReconPerAdj[ReconcilingPeriodAdj]) -> 13309.66 | E37: =SUMPRODUCT((ReconPerAdj[EffDate]=$C$6)*(ReconPerAdj[Territory]=E36)*(ReconPerAdj[CustClass]=$C35)*(ReconPerAdj[RateName]=$C$34)*ReconPerAdj[ReconcilingPeriodAdj]) -> 100093 | F37: =SUM(C37:E37) -> 133649.25 | G37: =SUMPRODUCT((ReconPerAdj[EffDate]=$C$6)*(ReconPerAdj[Territory]=G36)*(ReconPerAdj[CustClass]=$G35)*(ReconPerAdj[RateName]=$C$34)*ReconPerAdj[ReconcilingPeriodAdj]) -> -55821.43 | H37: =SUMPRODUCT((ReconPerAdj[EffDate]=$C$6)*(ReconPerAdj[Territory]=H36)*(ReconPerAdj[CustClass]=$G35)*(ReconPerAdj[RateName]=$C$34)*ReconPerAdj[ReconcilingPeriodAdj]) -> 6641.83 | I37: =SUMPRODUCT((ReconPerAdj[EffDate]=$C$6)*(ReconPerAdj[Territory]=I36)*(ReconPerAdj[CustClass]=$G35)*(ReconPerAdj[RateName]=$C$34)*ReconPerAdj[ReconcilingPeriodAdj]) -> 60870.77 | J37: =SUM(G37:I37) -> 11691.17 | K37: From ReconPerAdj Table
B38: Volumetric True-Up | C38: =SUMPRODUCT((VolTrueUp[Year]=$C$5)*(VolTrueUp[Territory]=C36)*(VolTrueUp[CustClass]=$C$35)*VolTrueUp[TrueUp]) -> -126.81 | D38: =SUMPRODUCT((VolTrueUp[Year]=$C$5)*(VolTrueUp[Territory]=D36)*(VolTrueUp[CustClass]=$C$35)*VolTrueUp[TrueUp]) -> -298.53 | E38: =SUMPRODUCT((VolTrueUp[Year]=$C$5)*(VolTrueUp[Territory]=E36)*(VolTrueUp[CustClass]=$C$35)*VolTrueUp[TrueUp]) -> -239.27 | F38: -664.61 | G38: =SUMPRODUCT((VolTrueUp[Year]=$C$5)*(VolTrueUp[Territory]=G36)*(VolTrueUp[CustClass]=$G$35)*VolTrueUp[TrueUp]) -> -988.56 | H38: =SUMPRODUCT((VolTrueUp[Year]=$C$5)*(VolTrueUp[Territory]=H36)*(VolTrueUp[CustClass]=$G$35)*VolTrueUp[TrueUp]) -> 96.51 | I38: =SUMPRODUCT((VolTrueUp[Year]=$C$5)*(VolTrueUp[Territory]=I36)*(VolTrueUp[CustClass]=$G$35)*VolTrueUp[TrueUp]) -> -591 | J38: =SUM(G38:I38) -> -1483.05 | K38: From VolTrueUp Table
B39: Adj. Amount to be Recovered | C39: =SUM(C37:C38) -> 20119.78 | D39: =SUM(D37:D38) -> 13011.13 | E39: =SUM(E37:E38) -> 99853.73 | F39: 132984.64 | G39: -56809.99 | H39: 6738.34 | I39: 60279.77 | J39: 10208.12
B40: Actual Revenues
B41: =$C$6 -> 2025-10-01 | C41: =-SUMPRODUCT((WNARevAlloc[MonthFlow]=$B41)*(WNARevAlloc[Territory]=C$36)*(WNARevAlloc[CustClassRate]=$C$35)*WNARevAlloc[AdjARRRev]) -> -1662.021501 | D41: =-SUMPRODUCT((WNARevAlloc[MonthFlow]=$B41)*(WNARevAlloc[Territory]=D$36)*(WNARevAlloc[CustClassRate]=$C$35)*WNARevAlloc[AdjARRRev]) -> -1118.412896 | E41: =-SUMPRODUCT((WNARevAlloc[MonthFlow]=$B41)*(WNARevAlloc[Territory]=E$36)*(WNARevAlloc[CustClassRate]=$C$35)*WNARevAlloc[AdjARRRev]) -> -4273.046197 | F41: =SUM(C41:E41) -> -7053.480594 | G41: =-SUMPRODUCT((WNARevAlloc[MonthFlow]=$B41)*(WNARevAlloc[Territory]=G$36)*(WNARevAlloc[CustClassRate]=$G$35)*WNARevAlloc[AdjARRRev]) -> -143.3595074 | H41: =-SUMPRODUCT((WNARevAlloc[MonthFlow]=$B41)*(WNARevAlloc[Territory]=H$36)*(WNARevAlloc[CustClassRate]=$G$35)*WNARevAlloc[AdjARRRev]) -> -108.7260583 | I41: =-SUMPRODUCT((WNARevAlloc[MonthFlow]=$B41)*(WNARevAlloc[Territory]=I$36)*(WNARevAlloc[CustClassRate]=$G$35)*WNARevAlloc[AdjARRRev]) -> -420.8915466 | J41: =SUM(G41:I41) -> -672.9771122 | K41: From WNARevAlloc Table
B42: =EDATE(B41,1) -> 2025-11-01 | C42: =-SUMPRODUCT((WNARevAlloc[MonthFlow]=$B42)*(WNARevAlloc[Territory]=C$36)*(WNARevAlloc[CustClassRate]=$C$35)*WNARevAlloc[AdjARRRev]) -> -3568.922479 | D42: =-SUMPRODUCT((WNARevAlloc[MonthFlow]=$B42)*(WNARevAlloc[Territory]=D$36)*(WNARevAlloc[CustClassRate]=$C$35)*WNARevAlloc[AdjARRRev]) -> -2205.344387 | E42: =-SUMPRODUCT((WNARevAlloc[MonthFlow]=$B42)*(WNARevAlloc[Territory]=E$36)*(WNARevAlloc[CustClassRate]=$C$35)*WNARevAlloc[AdjARRRev]) -> -9905.24003 | F42: =SUM(C42:E42) -> -15679.5069 | G42: =-SUMPRODUCT((WNARevAlloc[MonthFlow]=$B42)*(WNARevAlloc[Territory]=G$36)*(WNARevAlloc[CustClassRate]=$G$35)*WNARevAlloc[AdjARRRev]) -> -341.0879857 | H42: =-SUMPRODUCT((WNARevAlloc[MonthFlow]=$B42)*(WNARevAlloc[Territory]=H$36)*(WNARevAlloc[CustClassRate]=$G$35)*WNARevAlloc[AdjARRRev]) -> -238.461891 | I42: =-SUMPRODUCT((WNARevAlloc[MonthFlow]=$B42)*(WNARevAlloc[Territory]=I$36)*(WNARevAlloc[CustClassRate]=$G$35)*WNARevAlloc[AdjARRRev]) -> -808.9112272 | J42: =SUM(G42:I42) -> -1388.461104 | K42: From WNARevAlloc Table
B43: =EDATE(B42,1) -> 2025-12-01 | C43: =-SUMPRODUCT((WNARevAlloc[MonthFlow]=$B43)*(WNARevAlloc[Territory]=C$36)*(WNARevAlloc[CustClassRate]=$C$35)*WNARevAlloc[AdjARRRev]) -> -4717.059528 | D43: =-SUMPRODUCT((WNARevAlloc[MonthFlow]=$B43)*(WNARevAlloc[Territory]=D$36)*(WNARevAlloc[CustClassRate]=$C$35)*WNARevAlloc[AdjARRRev]) -> -2768.860117 | E43: =-SUMPRODUCT((WNARevAlloc[MonthFlow]=$B43)*(WNARevAlloc[Territory]=E$36)*(WNARevAlloc[CustClassRate]=$C$35)*WNARevAlloc[AdjARRRev]) -> -12066.01641 | F43: -19551.93605 | G43: =-SUMPRODUCT((WNARevAlloc[MonthFlow]=$B43)*(WNARevAlloc[Territory]=G$36)*(WNARevAlloc[CustClassRate]=$G$35)*WNARevAlloc[AdjARRRev]) -> -446.5355296 | H43: =-SUMPRODUCT((WNARevAlloc[MonthFlow]=$B43)*(WNARevAlloc[Territory]=H$36)*(WNARevAlloc[CustClassRate]=$G$35)*WNARevAlloc[AdjARRRev]) -> -291.8916002 | I43: =-SUMPRODUCT((WNARevAlloc[MonthFlow]=$B43)*(WNARevAlloc[Territory]=I$36)*(WNARevAlloc[CustClassRate]=$G$35)*WNARevAlloc[AdjARRRev]) -> -996.7571729 | J43: -1735.184303 | K43: From WNARevAlloc Table
B44: 2026-01-01 | C44: =-SUMPRODUCT((WNARevAlloc[MonthFlow]=$B44)*(WNARevAlloc[Territory]=C$36)*(WNARevAlloc[CustClassRate]=$C$35)*WNARevAlloc[AdjARRRev]) -> -6218.247506 | D44: =-SUMPRODUCT((WNARevAlloc[MonthFlow]=$B44)*(WNARevAlloc[Territory]=D$36)*(WNARevAlloc[CustClassRate]=$C$35)*WNARevAlloc[AdjARRRev]) -> -3442.12443 | E44: =-SUMPRODUCT((WNARevAlloc[MonthFlow]=$B44)*(WNARevAlloc[Territory]=E$36)*(WNARevAlloc[CustClassRate]=$C$35)*WNARevAlloc[AdjARRRev]) -> -18058.05369 | F44: -27718.42563 | G44: =-SUMPRODUCT((WNARevAlloc[MonthFlow]=$B44)*(WNARevAlloc[Territory]=G$36)*(WNARevAlloc[CustClassRate]=$G$35)*WNARevAlloc[AdjARRRev]) -> -652.4158542 | H44: =-SUMPRODUCT((WNARevAlloc[MonthFlow]=$B44)*(WNARevAlloc[Territory]=H$36)*(WNARevAlloc[CustClassRate]=$G$35)*WNARevAlloc[AdjARRRev]) -> -400.104664 | I44: =-SUMPRODUCT((WNARevAlloc[MonthFlow]=$B44)*(WNARevAlloc[Territory]=I$36)*(WNARevAlloc[CustClassRate]=$G$35)*WNARevAlloc[AdjARRRev]) -> -1637.923508 | J44: -2690.444026 | K44: From WNARevAlloc Table
B45: 2026-02-01 | C45: =-SUMPRODUCT((WNARevAlloc[MonthFlow]=$B45)*(WNARevAlloc[Territory]=C$36)*(WNARevAlloc[CustClassRate]=$C$35)*WNARevAlloc[AdjARRRev]) -> -3076.011836 | D45: =-SUMPRODUCT((WNARevAlloc[MonthFlow]=$B45)*(WNARevAlloc[Territory]=D$36)*(WNARevAlloc[CustClassRate]=$C$35)*WNARevAlloc[AdjARRRev]) -> -1769.720929 | E45: =-SUMPRODUCT((WNARevAlloc[MonthFlow]=$B45)*(WNARevAlloc[Territory]=E$36)*(WNARevAlloc[CustClassRate]=$C$35)*WNARevAlloc[AdjARRRev]) -> -8424.194968 | F45: -13269.92773 | G45: =-SUMPRODUCT((WNARevAlloc[MonthFlow]=$B45)*(WNARevAlloc[Territory]=G$36)*(WNARevAlloc[CustClassRate]=$G$35)*WNARevAlloc[AdjARRRev]) -> -293.1280239 | H45: =-SUMPRODUCT((WNARevAlloc[MonthFlow]=$B45)*(WNARevAlloc[Territory]=H$36)*(WNARevAlloc[CustClassRate]=$G$35)*WNARevAlloc[AdjARRRev]) -> -207.4639123 | I45: =-SUMPRODUCT((WNARevAlloc[MonthFlow]=$B45)*(WNARevAlloc[Territory]=I$36)*(WNARevAlloc[CustClassRate]=$G$35)*WNARevAlloc[AdjARRRev]) -> -722.9774032 | J45: -1223.569339 | K45: From WNARevAlloc Table
B46: 2026-03-01 | C46: =-SUMPRODUCT((WNARevAlloc[MonthFlow]=$B46)*(WNARevAlloc[Territory]=C$36)*(WNARevAlloc[CustClassRate]=$C$35)*WNARevAlloc[AdjARRRev]) -> -2147.559298 | D46: =-SUMPRODUCT((WNARevAlloc[MonthFlow]=$B46)*(WNARevAlloc[Territory]=D$36)*(WNARevAlloc[CustClassRate]=$C$35)*WNARevAlloc[AdjARRRev]) -> -1297.006523 | E46: =-SUMPRODUCT((WNARevAlloc[MonthFlow]=$B46)*(WNARevAlloc[Territory]=E$36)*(WNARevAlloc[CustClassRate]=$C$35)*WNARevAlloc[AdjARRRev]) -> -5793.975314 | F46: -9238.541135 | G46: =-SUMPRODUCT((WNARevAlloc[MonthFlow]=$B46)*(WNARevAlloc[Territory]=G$36)*(WNARevAlloc[CustClassRate]=$G$35)*WNARevAlloc[AdjARRRev]) -> -184.5807916 | H46: =-SUMPRODUCT((WNARevAlloc[MonthFlow]=$B46)*(WNARevAlloc[Territory]=H$36)*(WNARevAlloc[CustClassRate]=$G$35)*WNARevAlloc[AdjARRRev]) -> -131.222426 | I46: =-SUMPRODUCT((WNARevAlloc[MonthFlow]=$B46)*(WNARevAlloc[Territory]=I$36)*(WNARevAlloc[CustClassRate]=$G$35)*WNARevAlloc[AdjARRRev]) -> -463.7390707 | J46: -779.5422882 | K46: From WNARevAlloc Table
B47: 2026-04-01 | C47: =-SUMPRODUCT((WNARevAlloc[MonthFlow]=$B47)*(WNARevAlloc[Territory]=C$36)*(WNARevAlloc[CustClassRate]=$C$35)*WNARevAlloc[AdjARRRev]) -> -801.4334773 | D47: =-SUMPRODUCT((WNARevAlloc[MonthFlow]=$B47)*(WNARevAlloc[Territory]=D$36)*(WNARevAlloc[CustClassRate]=$C$35)*WNARevAlloc[AdjARRRev]) -> -418.733067 | E47: =-SUMPRODUCT((WNARevAlloc[MonthFlow]=$B47)*(WNARevAlloc[Territory]=E$36)*(WNARevAlloc[CustClassRate]=$C$35)*WNARevAlloc[AdjARRRev]) -> -2346.364633 | F47: -3566.531177 | G47: =-SUMPRODUCT((WNARevAlloc[MonthFlow]=$B47)*(WNARevAlloc[Territory]=G$36)*(WNARevAlloc[CustClassRate]=$G$35)*WNARevAlloc[AdjARRRev]) -> -62.78284738 | H47: =-SUMPRODUCT((WNARevAlloc[MonthFlow]=$B47)*(WNARevAlloc[Territory]=H$36)*(WNARevAlloc[CustClassRate]=$G$35)*WNARevAlloc[AdjARRRev]) -> -41.17235194 | I47: =-SUMPRODUCT((WNARevAlloc[MonthFlow]=$B47)*(WNARevAlloc[Territory]=I$36)*(WNARevAlloc[CustClassRate]=$G$35)*WNARevAlloc[AdjARRRev]) -> -184.9576595 | J47: -288.9128588 | K47: From WNARevAlloc Table
B48: 2026-05-01 | C48: =-SUMPRODUCT((WNARevAlloc[MonthFlow]=$B48)*(WNARevAlloc[Territory]=C$36)*(WNARevAlloc[CustClassRate]=$C$35)*WNARevAlloc[AdjARRRev]) -> -322.6450432 | D48: =-SUMPRODUCT((WNARevAlloc[MonthFlow]=$B48)*(WNARevAlloc[Territory]=D$36)*(WNARevAlloc[CustClassRate]=$C$35)*WNARevAlloc[AdjARRRev]) -> -184.8956695 | E48: =-SUMPRODUCT((WNARevAlloc[MonthFlow]=$B48)*(WNARevAlloc[Territory]=E$36)*(WNARevAlloc[CustClassRate]=$C$35)*WNARevAlloc[AdjARRRev]) -> -1420.379645 | F48: -1927.920358 | G48: =-SUMPRODUCT((WNARevAlloc[MonthFlow]=$B48)*(WNARevAlloc[Territory]=G$36)*(WNARevAlloc[CustClassRate]=$G$35)*WNARevAlloc[AdjARRRev]) -> -29.87008663 | H48: =-SUMPRODUCT((WNARevAlloc[MonthFlow]=$B48)*(WNARevAlloc[Territory]=H$36)*(WNARevAlloc[CustClassRate]=$G$35)*WNARevAlloc[AdjARRRev]) -> -18.91301253 | I48: =-SUMPRODUCT((WNARevAlloc[MonthFlow]=$B48)*(WNARevAlloc[Territory]=I$36)*(WNARevAlloc[CustClassRate]=$G$35)*WNARevAlloc[AdjARRRev]) -> -126.9996155 | J48: -175.7827147 | K48: From WNARevAlloc Table
B49: 2026-06-01 | C49: =-SUMPRODUCT((WNARevAlloc[MonthFlow]=$B49)*(WNARevAlloc[Territory]=C$36)*(WNARevAlloc[CustClassRate]=$C$35)*WNARevAlloc[AdjARRRev]) -> -262.1976682 | D49: =-SUMPRODUCT((WNARevAlloc[MonthFlow]=$B49)*(WNARevAlloc[Territory]=D$36)*(WNARevAlloc[CustClassRate]=$C$35)*WNARevAlloc[AdjARRRev]) -> -164.8696976 | E49: =-SUMPRODUCT((WNARevAlloc[MonthFlow]=$B49)*(WNARevAlloc[Territory]=E$36)*(WNARevAlloc[CustClassRate]=$C$35)*WNARevAlloc[AdjARRRev]) -> -1219.268276 | F49: -1646.335642 | G49: =-SUMPRODUCT((WNARevAlloc[MonthFlow]=$B49)*(WNARevAlloc[Territory]=G$36)*(WNARevAlloc[CustClassRate]=$G$35)*WNARevAlloc[AdjARRRev]) -> -29.47181093 | H49: =-SUMPRODUCT((WNARevAlloc[MonthFlow]=$B49)*(WNARevAlloc[Territory]=H$36)*(WNARevAlloc[CustClassRate]=$G$35)*WNARevAlloc[AdjARRRev]) -> -29.03367882 | I49: =-SUMPRODUCT((WNARevAlloc[MonthFlow]=$B49)*(WNARevAlloc[Territory]=I$36)*(WNARevAlloc[CustClassRate]=$G$35)*WNARevAlloc[AdjARRRev]) -> -111.2860832 | J49: -169.7915729 | K49: From WNARevAlloc Table
B50: Total Actual Revenues | C50: =SUM(C41:C49) -> -22776.09834 | D50: -13369.96772 | E50: -63506.53916 | F50: -99652.60521 | G50: -2183.232437 | H50: -1466.989595 | I50: -5474.443287 | J50: -9124.665319
B51: Projected Revenues
B52: =EDATE(B49,1) -> 2026-07-01 | C52: =-SUMPRODUCT((CustEstVol[MonthBill]=$B52)*(CustEstVol[Territory]=C$36)*(CustEstVol[CustClass]=$C$35)*CustEstVol[ARRRev]) -> -261.46 | D52: =-SUMPRODUCT((CustEstVol[MonthBill]=$B52)*(CustEstVol[Territory]=D$36)*(CustEstVol[CustClass]=$C$35)*CustEstVol[ARRRev]) -> -164.59 | E52: =-SUMPRODUCT((CustEstVol[MonthBill]=$B52)*(CustEstVol[Territory]=E$36)*(CustEstVol[CustClass]=$C$35)*CustEstVol[ARRRev]) -> -1218.03 | F52: =SUM(C52:E52) -> -1644.08 | G52: =-SUMPRODUCT((CustEstVol[MonthBill]=$B52)*(CustEstVol[Territory]=G$36)*(CustEstVol[CustClass]=$G$35)*CustEstVol[ARRRev]) -> -29.44 | H52: =-SUMPRODUCT((CustEstVol[MonthBill]=$B52)*(CustEstVol[Territory]=H$36)*(CustEstVol[CustClass]=$G$35)*CustEstVol[ARRRev]) -> -29.02 | I52: =-SUMPRODUCT((CustEstVol[MonthBill]=$B52)*(CustEstVol[Territory]=I$36)*(CustEstVol[CustClass]=$G$35)*CustEstVol[ARRRev]) -> -111.19 | J52: =SUM(G52:I52) -> -169.65 | K52: From CustEstRev Table
B53: =EDATE(B52,1) -> 2026-08-01 | C53: =-SUMPRODUCT((CustEstVol[MonthBill]=$B53)*(CustEstVol[Territory]=C$36)*(CustEstVol[CustClass]=$C$35)*CustEstVol[ARRRev]) -> -250.84 | D53: =-SUMPRODUCT((CustEstVol[MonthBill]=$B53)*(CustEstVol[Territory]=D$36)*(CustEstVol[CustClass]=$C$35)*CustEstVol[ARRRev]) -> -142.68 | E53: =-SUMPRODUCT((CustEstVol[MonthBill]=$B53)*(CustEstVol[Territory]=E$36)*(CustEstVol[CustClass]=$C$35)*CustEstVol[ARRRev]) -> -1106.09 | F53: =SUM(C53:E53) -> -1499.61 | G53: =-SUMPRODUCT((CustEstVol[MonthBill]=$B53)*(CustEstVol[Territory]=G$36)*(CustEstVol[CustClass]=$G$35)*CustEstVol[ARRRev]) -> -24.48 | H53: =-SUMPRODUCT((CustEstVol[MonthBill]=$B53)*(CustEstVol[Territory]=H$36)*(CustEstVol[CustClass]=$G$35)*CustEstVol[ARRRev]) -> -14.83 | I53: =-SUMPRODUCT((CustEstVol[MonthBill]=$B53)*(CustEstVol[Territory]=I$36)*(CustEstVol[CustClass]=$G$35)*CustEstVol[ARRRev]) -> -83.24 | J53: =SUM(G53:I53) -> -122.55 | K53: From CustEstRev Table
B54: =EDATE(B53,1) -> 2026-09-01 | C54: =-SUMPRODUCT((CustEstVol[MonthBill]=$B54)*(CustEstVol[Territory]=C$36)*(CustEstVol[CustClass]=$C$35)*CustEstVol[ARRRev]) -> -262.18 | D54: =-SUMPRODUCT((CustEstVol[MonthBill]=$B54)*(CustEstVol[Territory]=D$36)*(CustEstVol[CustClass]=$C$35)*CustEstVol[ARRRev]) -> -181.31 | E54: =-SUMPRODUCT((CustEstVol[MonthBill]=$B54)*(CustEstVol[Territory]=E$36)*(CustEstVol[CustClass]=$C$35)*CustEstVol[ARRRev]) -> -1219.15 | F54: -1662.64 | G54: =-SUMPRODUCT((CustEstVol[MonthBill]=$B54)*(CustEstVol[Territory]=G$36)*(CustEstVol[CustClass]=$G$35)*CustEstVol[ARRRev]) -> -53.66 | H54: =-SUMPRODUCT((CustEstVol[MonthBill]=$B54)*(CustEstVol[Territory]=H$36)*(CustEstVol[CustClass]=$G$35)*CustEstVol[ARRRev]) -> -64.82 | I54: =-SUMPRODUCT((CustEstVol[MonthBill]=$B54)*(CustEstVol[Territory]=I$36)*(CustEstVol[CustClass]=$G$35)*CustEstVol[ARRRev]) -> -119.6 | J54: -238.08 | K54: From CustEstRev Table
B55: Total Projected Revenues | C55: =SUM(C52:C54) -> -774.48 | D55: =SUM(D52:D54) -> -488.58 | E55: -3543.27 | F55: -4806.33 | G55: -107.58 | H55: -108.67 | I55: -314.03 | J55: -530.28
B56: Total Billings | C56: =C50+C55 -> -23550.57834 | D56: =D50+D55 -> -13858.54772 | E56: -67049.80916 | F56: -104458.9352 | G56: -2290.812437 | H56: -1575.659595 | I56: -5788.473287 | J56: -9654.945319
B57: Total WNA Recovery | C57: =C31+C56 -> -83545.85 | D57: -49257.28 | E57: -237909.57 | F57: -370712.7 | G57: -24772.46 | H57: -16751.55 | I57: -61878.32 | J57: -103402.33
B58: ARR Net (Over)/Under Recov 1/ | C58: =ROUND(C39+C56,2) -> -3430.8 | D58: -847.42 | E58: 32803.92 | F58: 28525.7 | G58: -59100.8 | H58: 5162.68 | I58: 54491.3 | J58: 553.17
B59: CAWNA Net (Over)/Under Recov 1/ | C59: =C32 -> 12340.12 | D59: 5466.35 | E59: 56510.57 | F59: 74317.04 | G59: 5779.21 | H59: 823.11 | I59: 13658.24 | J59: 20260.57
B60: Total Net O/U for ARR ReconPerAdj | C60: =C58+C59 -> 8909.32 | D60: =D58+D59 -> 4618.93 | E60: 89314.49 | F60: 102842.74 | G60: -53321.59 | H60: 5985.79 | I60: 68149.54 | J60: 20813.74
B61: Enter These Amounts in the ReconPerAdj Table
B63: Territory | C63: North + NW + South
B64: Customer Class | C64: Res | D64: SGS
B65: WNA to be Recovered
B66: CAWNA | C66: =F14 -> 340570.8 | D66: =J14 -> 114007.95
B67: ARR | C67: =F39 -> 132984.64 | D67: =J39 -> 10208.12
B68: Total | C68: =SUM(C66:C67) -> 473555.44 | D68: =SUM(D66:D67) -> 124216.07
B69: WNA Actually Recovered
B70: CAWNA | C70: =F31 -> -266253.7648 | D70: =J31 -> -93747.38468
B71: ARR | C71: =F56 -> -104458.9352 | D71: =J56 -> -9654.945319
B72: Total | C72: =SUM(C70:C71) -> -370712.7 | D72: =SUM(D70:D71) -> -103402.33
B73: WNA Net Difference
B74: CAWNA | C74: =C66+C70 -> 74317.03521 | D74: =D66+D70 -> 20260.56532
B75: ARR | C75: =C67+C71 -> 28525.70479 | D75: =D67+D71 -> 553.174681
B76: Total | C76: =SUM(C74:C75) -> 102842.74 | D76: =SUM(D74:D75) -> 20813.74
B78: WNA Deferred Balance 1/ | C78: 0 | D78: 0
B79: ARR Adjustment 1/ | C79: =C76+C78 -> 102842.74 | D79: =D76+D78 -> 20813.74
B81: Billing Determinants | C81: =SUMPRODUCT((BillDeter[BeginDate]<=$C$6)*(BillDeter[EndDate]>$C$6)*(BillDeter[CustClass]=C64)*BillDeter[BillingDeterminants]) -> 25605076.09 | D81: =SUMPRODUCT((BillDeter[BeginDate]<=$C$6)*(BillDeter[EndDate]>$C$6)*(BillDeter[CustClass]=D64)*BillDeter[BillingDeterminants]) -> 7155623
B83: Rate | C83: =ROUND(C79/C81,5) -> 0.00402 | D83: =ROUND(D79/D81,5) -> 0.00291
B84: Enter these rates in the ARR column of the WNAR Rates table.
B86: 1/ Negative amount = Due Customer, Positive amount = Due Company

Sheet ARR North
B2: Empire District Gas Company | F2: Filing Year
B3: Annual Reconciliation Rate
B4: Territory | C4: North
B5: Year | C5: =DateSet!C2 -> 2026
B6: Analysis Start | C6: =DATE(C5-1,7,1) -> 2025-07-01
B8: Rate Category | C8: ENGR_RS | D8: Res
B9: Residential | C9: True-Up Period | F9: Actual Period* | O9: Projected Period
B10: Month | C10: =C6 -> 45839 | D10: =EDATE(C10,1) -> 45870 | E10: =EDATE(D10,1) -> 45901 | F10: 45931 | G10: 45962 | H10: 45992 | I10: 46023 | J10: 46054 | K10: 46082 | L10: 46113 | M10: 46143 | N10: 46174 | O10: 46204 | P10: 46235 | Q10: 46266
B11: Est. Volume | C11: =SUMPRODUCT((CustEstVol[MonthFlow]=C10)*(CustEstVol[RateCategory]=$C8)*CustEstVol[NormVol]) -> 51908 | D11: =SUMPRODUCT((CustEstVol[MonthFlow]=D10)*(CustEstVol[RateCategory]=$C8)*CustEstVol[NormVol]) -> 47451 | E11: =SUMPRODUCT((CustEstVol[MonthFlow]=E10)*(CustEstVol[RateCategory]=$C8)*CustEstVol[NormVol]) -> 51665 | O11: =SUMPRODUCT((CustEstVol[MonthFlow]=O10)*(CustEstVol[RateCategory]=$C8)*CustEstVol[NormVol]) -> 48054 | P11: =SUMPRODUCT((CustEstVol[MonthFlow]=P10)*(CustEstVol[RateCategory]=$C8)*CustEstVol[NormVol]) -> 50227 | Q11: =SUMPRODUCT((CustEstVol[MonthFlow]=Q10)*(CustEstVol[RateCategory]=$C8)*CustEstVol[NormVol]) -> 49127
B12: Actual Volume | C12: =SUMPRODUCT((WNARevAlloc[MonthFlow]=C10)*(WNARevAlloc[RateSched]=$C8)*WNARevAlloc[Consumption]) -> 48054.177 | D12: =SUMPRODUCT((WNARevAlloc[MonthFlow]=D10)*(WNARevAlloc[RateSched]=$C8)*WNARevAlloc[Consumption]) -> 50226.526 | E12: =SUMPRODUCT((WNARevAlloc[MonthFlow]=E10)*(WNARevAlloc[RateSched]=$C8)*WNARevAlloc[Consumption]) -> 49126.594 | F12: =SUMPRODUCT((WNARevAlloc[MonthFlow]=F10)*(WNARevAlloc[RateSched]=$C8)*WNARevAlloc[Consumption]) -> 318437.835 | G12: =SUMPRODUCT((WNARevAlloc[MonthFlow]=G10)*(WNARevAlloc[RateSched]=$C8)*WNARevAlloc[Consumption]) -> 683698.64 | H12: =SUMPRODUCT((WNARevAlloc[MonthFlow]=H10)*(WNARevAlloc[RateSched]=$C8)*WNARevAlloc[Consumption]) -> 903483.112 | I12: =SUMPRODUCT((WNARevAlloc[MonthFlow]=I10)*(WNARevAlloc[RateSched]=$C8)*WNARevAlloc[Consumption]) -> 1191293.828 | J12: =SUMPRODUCT((WNARevAlloc[MonthFlow]=J10)*(WNARevAlloc[RateSched]=$C8)*WNARevAlloc[Consumption]) -> 589305.806 | K12: =SUMPRODUCT((WNARevAlloc[MonthFlow]=K10)*(WNARevAlloc[RateSched]=$C8)*WNARevAlloc[Consumption]) -> 411427.087 | L12: =SUMPRODUCT((WNARevAlloc[MonthFlow]=L10)*(WNARevAlloc[RateSched]=$C8)*WNARevAlloc[Consumption]) -> 153495.973 | M12: =SUMPRODUCT((WNARevAlloc[MonthFlow]=M10)*(WNARevAlloc[RateSched]=$C8)*WNARevAlloc[Consumption]) -> 61666.932 | N12: =SUMPRODUCT((WNARevAlloc[MonthFlow]=N10)*(WNARevAlloc[RateSched]=$C8)*WNARevAlloc[Consumption]) -> 50087.989
B13: Vol True-Up | C13: =C12-C11 -> -3853.823 | D13: =D12-D11 -> 2775.526 | E13: -2538.406
B14: WNAR Rates in Effect
B15: CAWNA | C15: =SUMPRODUCT((WNARRates[BeginDate]<=C10)*(WNARRates[EndDate]>C10)*(WNARRates[CustClass]=$D8)*WNARRates[CAWNAR]) -> 0.03082 | D15: =SUMPRODUCT((WNARRates[BeginDate]<=D10)*(WNARRates[EndDate]>D10)*(WNARRates[CustClass]=$D8)*WNARRates[CAWNAR]) -> 0.03082 | E15: =SUMPRODUCT((WNARRates[BeginDate]<=E10)*(WNARRates[EndDate]>E10)*(WNARRates[CustClass]=$D8)*WNARRates[CAWNAR]) -> 0.03082 | F15: =SUMPRODUCT((WNARRates[BeginDate]<=F10)*(WNARRates[EndDate]>F10)*(WNARRates[CustClass]=$D8)*WNARRates[CAWNAR]) -> 0.0133 | G15: =SUMPRODUCT((WNARRates[BeginDate]<=G10)*(WNARRates[EndDate]>G10)*(WNARRates[CustClass]=$D8)*WNARRates[CAWNAR]) -> 0.0133 | H15: =SUMPRODUCT((WNARRates[BeginDate]<=H10)*(WNARRates[EndDate]>H10)*(WNARRates[CustClass]=$D8)*WNARRates[CAWNAR]) -> 0.0133 | I15: =SUMPRODUCT((WNARRates[BeginDate]<=I10)*(WNARRates[EndDate]>I10)*(WNARRates[CustClass]=$D8)*WNARRates[CAWNAR]) -> 0.0133 | J15: =SUMPRODUCT((WNARRates[BeginDate]<=J10)*(WNARRates[EndDate]>J10)*(WNARRates[CustClass]=$D8)*WNARRates[CAWNAR]) -> 0.0133 | K15: =SUMPRODUCT((WNARRates[BeginDate]<=K10)*(WNARRates[EndDate]>K10)*(WNARRates[CustClass]=$D8)*WNARRates[CAWNAR]) -> 0.0133 | L15: =SUMPRODUCT((WNARRates[BeginDate]<=L10)*(WNARRates[EndDate]>L10)*(WNARRates[CustClass]=$D8)*WNARRates[CAWNAR]) -> 0.0133 | M15: =SUMPRODUCT((WNARRates[BeginDate]<=M10)*(WNARRates[EndDate]>M10)*(WNARRates[CustClass]=$D8)*WNARRates[CAWNAR]) -> 0.0133 | N15: =SUMPRODUCT((WNARRates[BeginDate]<=N10)*(WNARRates[EndDate]>N10)*(WNARRates[CustClass]=$D8)*WNARRates[CAWNAR]) -> 0.0133 | O15: =SUMPRODUCT((WNARRates[BeginDate]<=O10)*(WNARRates[EndDate]>O10)*(WNARRates[CustClass]=$D8)*WNARRates[CAWNAR]) -> 0.0133 | P15: =SUMPRODUCT((WNARRates[BeginDate]<=P10)*(WNARRates[EndDate]>P10)*(WNARRates[CustClass]=$D8)*WNARRates[CAWNAR]) -> 0.0133 | Q15: =SUMPRODUCT((WNARRates[BeginDate]<=Q10)*(WNARRates[EndDate]>Q10)*(WNARRates[CustClass]=$D8)*WNARRates[CAWNAR]) -> 0.0133
B16: ARR | C16: =SUMPRODUCT((WNARRates[BeginDate]<=C10)*(WNARRates[EndDate]>C10)*(WNARRates[CustClass]=$D8)*WNARRates[ARR]) -> 0.00424 | D16: =SUMPRODUCT((WNARRates[BeginDate]<=D10)*(WNARRates[EndDate]>D10)*(WNARRates[CustClass]=$D8)*WNARRates[ARR]) -> 0.00424 | E16: =SUMPRODUCT((WNARRates[BeginDate]<=E10)*(WNARRates[EndDate]>E10)*(WNARRates[CustClass]=$D8)*WNARRates[ARR]) -> 0.00424 | F16: =SUMPRODUCT((WNARRates[BeginDate]<=F10)*(WNARRates[EndDate]>F10)*(WNARRates[CustClass]=$D8)*WNARRates[ARR]) -> 0.00522 | G16: =SUMPRODUCT((WNARRates[BeginDate]<=G10)*(WNARRates[EndDate]>G10)*(WNARRates[CustClass]=$D8)*WNARRates[ARR]) -> 0.00522 | H16: =SUMPRODUCT((WNARRates[BeginDate]<=H10)*(WNARRates[EndDate]>H10)*(WNARRates[CustClass]=$D8)*WNARRates[ARR]) -> 0.00522 | I16: =SUMPRODUCT((WNARRates[BeginDate]<=I10)*(WNARRates[EndDate]>I10)*(WNARRates[CustClass]=$D8)*WNARRates[ARR]) -> 0.00522 | J16: =SUMPRODUCT((WNARRates[BeginDate]<=J10)*(WNARRates[EndDate]>J10)*(WNARRates[CustClass]=$D8)*WNARRates[ARR]) -> 0.00522 | K16: =SUMPRODUCT((WNARRates[BeginDate]<=K10)*(WNARRates[EndDate]>K10)*(WNARRates[CustClass]=$D8)*WNARRates[ARR]) -> 0.00522 | L16: =SUMPRODUCT((WNARRates[BeginDate]<=L10)*(WNARRates[EndDate]>L10)*(WNARRates[CustClass]=$D8)*WNARRates[ARR]) -> 0.00522 | M16: =SUMPRODUCT((WNARRates[BeginDate]<=M10)*(WNARRates[EndDate]>M10)*(WNARRates[CustClass]=$D8)*WNARRates[ARR]) -> 0.00522 | N16: =SUMPRODUCT((WNARRates[BeginDate]<=N10)*(WNARRates[EndDate]>N10)*(WNARRates[CustClass]=$D8)*WNARRates[ARR]) -> 0.00522 | O16: =SUMPRODUCT((WNARRates[BeginDate]<=O10)*(WNARRates[EndDate]>O10)*(WNARRates[CustClass]=$D8)*WNARRates[ARR]) -> 0.00522 | P16: =SUMPRODUCT((WNARRates[BeginDate]<=P10)*(WNARRates[EndDate]>P10)*(WNARRates[CustClass]=$D8)*WNARRates[ARR]) -> 0.00522 | Q16: =SUMPRODUCT((WNARRates[BeginDate]<=Q10)*(WNARRates[EndDate]>Q10)*(WNARRates[CustClass]=$D8)*WNARRates[ARR]) -> 0.00522
B17: Total | C17: =C15+C16 -> 0.03506 | D17: =D15+D16 -> 0.03506 | E17: 0.03506 | F17: 0.01852 | G17: 0.01852 | H17: 0.01852 | I17: 0.01852 | J17: 0.01852 | K17: 0.01852 | L17: 0.01852 | M17: 0.01852 | N17: 0.01852 | O17: 0.01852 | P17: 0.01852 | Q17: 0.01852
B18: CAWNA and ARR Revenue for Period
B19: CAWNA $ | F19: =SUMPRODUCT((WNARevAlloc[MonthFlow]=F10)*(WNARevAlloc[RateSched]=$C$8)*WNARevAlloc[AdjCAWNARev]) -> 4239.248499 | G19: =SUMPRODUCT((WNARevAlloc[MonthFlow]=G10)*(WNARevAlloc[RateSched]=$C$8)*WNARevAlloc[AdjCAWNARev]) -> 9092.997521 | H19: =SUMPRODUCT((WNARevAlloc[MonthFlow]=H10)*(WNARevAlloc[RateSched]=$C$8)*WNARevAlloc[AdjCAWNARev]) -> 12001.77047 | I19: =SUMPRODUCT((WNARevAlloc[MonthFlow]=I10)*(WNARevAlloc[RateSched]=$C$8)*WNARevAlloc[AdjCAWNARev]) -> 15852.65249 | J19: =SUMPRODUCT((WNARevAlloc[MonthFlow]=J10)*(WNARevAlloc[RateSched]=$C$8)*WNARevAlloc[AdjCAWNARev]) -> 7837.348164 | K19: =SUMPRODUCT((WNARevAlloc[MonthFlow]=K10)*(WNARevAlloc[RateSched]=$C$8)*WNARevAlloc[AdjCAWNARev]) -> 5471.750702 | L19: =SUMPRODUCT((WNARevAlloc[MonthFlow]=L10)*(WNARevAlloc[RateSched]=$C$8)*WNARevAlloc[AdjCAWNARev]) -> 2041.966523 | M19: =SUMPRODUCT((WNARevAlloc[MonthFlow]=M10)*(WNARevAlloc[RateSched]=$C$8)*WNARevAlloc[AdjCAWNARev]) -> 822.0649568 | N19: =SUMPRODUCT((WNARevAlloc[MonthFlow]=N10)*(WNARevAlloc[RateSched]=$C$8)*WNARevAlloc[AdjCAWNARev]) -> 662.1623318 | O19: =ROUND(O11*O15,2) -> 639.12 | P19: =ROUND(P11*P15,2) -> 668.02 | Q19: 653.39
B20: ARR $ | C20: =ROUND(C13*C17,2) -> -135.12 | D20: =ROUND(D13*D17,2) -> 97.31 | E20: -89 | F20: =SUMPRODUCT((WNARevAlloc[MonthFlow]=F10)*(WNARevAlloc[RateSched]=$C$8)*WNARevAlloc[AdjARRRev]) -> 1662.021501 | G20: =SUMPRODUCT((WNARevAlloc[MonthFlow]=G10)*(WNARevAlloc[RateSched]=$C$8)*WNARevAlloc[AdjARRRev]) -> 3568.922479 | H20: =SUMPRODUCT((WNARevAlloc[MonthFlow]=H10)*(WNARevAlloc[RateSched]=$C$8)*WNARevAlloc[AdjARRRev]) -> 4717.059528 | I20: =SUMPRODUCT((WNARevAlloc[MonthFlow]=I10)*(WNARevAlloc[RateSched]=$C$8)*WNARevAlloc[AdjARRRev]) -> 6218.247506 | J20: =SUMPRODUCT((WNARevAlloc[MonthFlow]=J10)*(WNARevAlloc[RateSched]=$C$8)*WNARevAlloc[AdjARRRev]) -> 3076.011836 | K20: =SUMPRODUCT((WNARevAlloc[MonthFlow]=K10)*(WNARevAlloc[RateSched]=$C$8)*WNARevAlloc[AdjARRRev]) -> 2147.559298 | L20: =SUMPRODUCT((WNARevAlloc[MonthFlow]=L10)*(WNARevAlloc[RateSched]=$C$8)*WNARevAlloc[AdjARRRev]) -> 801.4334773 | M20: =SUMPRODUCT((WNARevAlloc[MonthFlow]=M10)*(WNARevAlloc[RateSched]=$C$8)*WNARevAlloc[AdjARRRev]) -> 322.6450432 | N20: =SUMPRODUCT((WNARevAlloc[MonthFlow]=N10)*(WNARevAlloc[RateSched]=$C$8)*WNARevAlloc[AdjARRRev]) -> 262.1976682 | O20: =ROUND(O11*O16,2) -> 250.84 | P20: =ROUND(P11*P16,2) -> 262.18 | Q20: 256.44
B21: Total True-Up | C21: =SUM(C20:E20) -> -126.81 | D21: Enter in VolTrueUp Table
B23: Rate Category | C23: ENGC_SGS | D23: SGS
B24: Commercial | C24: True-Up Period | F24: Actual Period* | O24: Projected Period
B25: Month | C25: =C6 -> 45839 | D25: =EDATE(C25,1) -> 45870 | E25: =EDATE(D25,1) -> 45901 | F25: 45931 | G25: 45962 | H25: 45992 | I25: 46023 | J25: 46054 | K25: 46082 | L25: 46113 | M25: 46143 | N25: 46174 | O25: 46204 | P25: 46235 | Q25: 46266
B26: Est. Volume | C26: =SUMPRODUCT((CustEstVol[MonthFlow]=C25)*(CustEstVol[RateCategory]=$C23)*CustEstVol[NormVol]) -> 52026 | D26: =SUMPRODUCT((CustEstVol[MonthFlow]=D25)*(CustEstVol[RateCategory]=$C23)*CustEstVol[NormVol]) -> 44745 | E26: =SUMPRODUCT((CustEstVol[MonthFlow]=E25)*(CustEstVol[RateCategory]=$C23)*CustEstVol[NormVol]) -> 32459 | O26: =SUMPRODUCT((CustEstVol[MonthFlow]=O25)*(CustEstVol[RateCategory]=$C$23)*CustEstVol[NormVol]) -> 15021 | P26: =SUMPRODUCT((CustEstVol[MonthFlow]=P25)*(CustEstVol[RateCategory]=$C$23)*CustEstVol[NormVol]) -> 32922 | Q26: =SUMPRODUCT((CustEstVol[MonthFlow]=Q25)*(CustEstVol[RateCategory]=$C$23)*CustEstVol[NormVol]) -> 49387
B27: Actual Volume | C27: =SUMPRODUCT((WNARevAlloc[MonthFlow]=C25)*(WNARevAlloc[RateSched]=$C23)*WNARevAlloc[Consumption]) -> 15021.126 | D27: =SUMPRODUCT((WNARevAlloc[MonthFlow]=D25)*(WNARevAlloc[RateSched]=$C23)*WNARevAlloc[Consumption]) -> 32922.197 | E27: =SUMPRODUCT((WNARevAlloc[MonthFlow]=E25)*(WNARevAlloc[RateSched]=$C23)*WNARevAlloc[Consumption]) -> 49387.452 | F27: =SUMPRODUCT((WNARevAlloc[MonthFlow]=F25)*(WNARevAlloc[RateSched]=$C23)*WNARevAlloc[Consumption]) -> 89487.277 | G27: =SUMPRODUCT((WNARevAlloc[MonthFlow]=G25)*(WNARevAlloc[RateSched]=$C23)*WNARevAlloc[Consumption]) -> 209288.272 | H27: =SUMPRODUCT((WNARevAlloc[MonthFlow]=H25)*(WNARevAlloc[RateSched]=$C23)*WNARevAlloc[Consumption]) -> 273945.866 | I27: =SUMPRODUCT((WNARevAlloc[MonthFlow]=I25)*(WNARevAlloc[RateSched]=$C23)*WNARevAlloc[Consumption]) -> 400266.159 | J27: =SUMPRODUCT((WNARevAlloc[MonthFlow]=J25)*(WNARevAlloc[RateSched]=$C23)*WNARevAlloc[Consumption]) -> 179824.814 | K27: =SUMPRODUCT((WNARevAlloc[MonthFlow]=K25)*(WNARevAlloc[RateSched]=$C23)*WNARevAlloc[Consumption]) -> 113233.856 | L27: =SUMPRODUCT((WNARevAlloc[MonthFlow]=L25)*(WNARevAlloc[RateSched]=$C23)*WNARevAlloc[Consumption]) -> 38488.129 | M27: =SUMPRODUCT((WNARevAlloc[MonthFlow]=M25)*(WNARevAlloc[RateSched]=$C23)*WNARevAlloc[Consumption]) -> 21184.716 | N27: =SUMPRODUCT((WNARevAlloc[MonthFlow]=N25)*(WNARevAlloc[RateSched]=$C23)*WNARevAlloc[Consumption]) -> 18061.067
B28: Vol True-Up | C28: =C27-C26 -> -37004.874 | D28: =D27-D26 -> -11822.803 | E28: 16928.452
B29: WNAR Rates in Effect
B30: CAWNA | C30: =SUMPRODUCT((WNARRates[BeginDate]<=C25)*(WNARRates[EndDate]>C25)*(WNARRates[CustClass]=$D23)*WNARRates[CAWNAR]) -> 0.03592 | D30: =SUMPRODUCT((WNARRates[BeginDate]<=D25)*(WNARRates[EndDate]>D25)*(WNARRates[CustClass]=$D23)*WNARRates[CAWNAR]) -> 0.03592 | E30: =SUMPRODUCT((WNARRates[BeginDate]<=E25)*(WNARRates[EndDate]>E25)*(WNARRates[CustClass]=$D23)*WNARRates[CAWNAR]) -> 0.03592 | F30: =SUMPRODUCT((WNARRates[BeginDate]<=F25)*(WNARRates[EndDate]>F25)*(WNARRates[CustClass]=$D23)*WNARRates[CAWNAR]) -> 0.01593 | G30: =SUMPRODUCT((WNARRates[BeginDate]<=G25)*(WNARRates[EndDate]>G25)*(WNARRates[CustClass]=$D23)*WNARRates[CAWNAR]) -> 0.01593 | H30: =SUMPRODUCT((WNARRates[BeginDate]<=H25)*(WNARRates[EndDate]>H25)*(WNARRates[CustClass]=$D23)*WNARRates[CAWNAR]) -> 0.01593 | I30: =SUMPRODUCT((WNARRates[BeginDate]<=I25)*(WNARRates[EndDate]>I25)*(WNARRates[CustClass]=$D23)*WNARRates[CAWNAR]) -> 0.01593 | J30: =SUMPRODUCT((WNARRates[BeginDate]<=J25)*(WNARRates[EndDate]>J25)*(WNARRates[CustClass]=$D23)*WNARRates[CAWNAR]) -> 0.01593 | K30: =SUMPRODUCT((WNARRates[BeginDate]<=K25)*(WNARRates[EndDate]>K25)*(WNARRates[CustClass]=$D23)*WNARRates[CAWNAR]) -> 0.01593 | L30: =SUMPRODUCT((WNARRates[BeginDate]<=L25)*(WNARRates[EndDate]>L25)*(WNARRates[CustClass]=$D23)*WNARRates[CAWNAR]) -> 0.01593 | M30: =SUMPRODUCT((WNARRates[BeginDate]<=M25)*(WNARRates[EndDate]>M25)*(WNARRates[CustClass]=$D23)*WNARRates[CAWNAR]) -> 0.01593 | N30: =SUMPRODUCT((WNARRates[BeginDate]<=N25)*(WNARRates[EndDate]>N25)*(WNARRates[CustClass]=$D23)*WNARRates[CAWNAR]) -> 0.01593 | O30: =SUMPRODUCT((WNARRates[BeginDate]<=O25)*(WNARRates[EndDate]>O25)*(WNARRates[CustClass]=$D23)*WNARRates[CAWNAR]) -> 0.01593 | P30: =SUMPRODUCT((WNARRates[BeginDate]<=P25)*(WNARRates[EndDate]>P25)*(WNARRates[CustClass]=$D23)*WNARRates[CAWNAR]) -> 0.01593 | Q30: =SUMPRODUCT((WNARRates[BeginDate]<=Q25)*(WNARRates[EndDate]>Q25)*(WNARRates[CustClass]=$D23)*WNARRates[CAWNAR]) -> 0.01593
B31: ARR | C31: =SUMPRODUCT((WNARRates[BeginDate]<=C25)*(WNARRates[EndDate]>C25)*(WNARRates[CustClass]=$D23)*WNARRates[ARR]) -> -0.00493 | D31: =SUMPRODUCT((WNARRates[BeginDate]<=D25)*(WNARRates[EndDate]>D25)*(WNARRates[CustClass]=$D23)*WNARRates[ARR]) -> -0.00493 | E31: =SUMPRODUCT((WNARRates[BeginDate]<=E25)*(WNARRates[EndDate]>E25)*(WNARRates[CustClass]=$D23)*WNARRates[ARR]) -> -0.00493 | F31: =SUMPRODUCT((WNARRates[BeginDate]<=F25)*(WNARRates[EndDate]>F25)*(WNARRates[CustClass]=$D23)*WNARRates[ARR]) -> 0.00163 | G31: =SUMPRODUCT((WNARRates[BeginDate]<=G25)*(WNARRates[EndDate]>G25)*(WNARRates[CustClass]=$D23)*WNARRates[ARR]) -> 0.00163 | H31: =SUMPRODUCT((WNARRates[BeginDate]<=H25)*(WNARRates[EndDate]>H25)*(WNARRates[CustClass]=$D23)*WNARRates[ARR]) -> 0.00163 | I31: =SUMPRODUCT((WNARRates[BeginDate]<=I25)*(WNARRates[EndDate]>I25)*(WNARRates[CustClass]=$D23)*WNARRates[ARR]) -> 0.00163 | J31: =SUMPRODUCT((WNARRates[BeginDate]<=J25)*(WNARRates[EndDate]>J25)*(WNARRates[CustClass]=$D23)*WNARRates[ARR]) -> 0.00163 | K31: =SUMPRODUCT((WNARRates[BeginDate]<=K25)*(WNARRates[EndDate]>K25)*(WNARRates[CustClass]=$D23)*WNARRates[ARR]) -> 0.00163 | L31: =SUMPRODUCT((WNARRates[BeginDate]<=L25)*(WNARRates[EndDate]>L25)*(WNARRates[CustClass]=$D23)*WNARRates[ARR]) -> 0.00163 | M31: =SUMPRODUCT((WNARRates[BeginDate]<=M25)*(WNARRates[EndDate]>M25)*(WNARRates[CustClass]=$D23)*WNARRates[ARR]) -> 0.00163 | N31: =SUMPRODUCT((WNARRates[BeginDate]<=N25)*(WNARRates[EndDate]>N25)*(WNARRates[CustClass]=$D23)*WNARRates[ARR]) -> 0.00163 | O31: =SUMPRODUCT((WNARRates[BeginDate]<=O25)*(WNARRates[EndDate]>O25)*(WNARRates[CustClass]=$D23)*WNARRates[ARR]) -> 0.00163 | P31: =SUMPRODUCT((WNARRates[BeginDate]<=P25)*(WNARRates[EndDate]>P25)*(WNARRates[CustClass]=$D23)*WNARRates[ARR]) -> 0.00163 | Q31: =SUMPRODUCT((WNARRates[BeginDate]<=Q25)*(WNARRates[EndDate]>Q25)*(WNARRates[CustClass]=$D23)*WNARRates[ARR]) -> 0.00163
B32: Total | C32: =C30+C31 -> 0.03099 | D32: =D30+D31 -> 0.03099 | E32: 0.03099 | F32: 0.01756 | G32: 0.01756 | H32: 0.01756 | I32: 0.01756 | J32: 0.01756 | K32: 0.01756 | L32: 0.01756 | M32: 0.01756 | N32: 0.01756 | O32: 0.01756 | P32: 0.01756 | Q32: 0.01756
B33: CAWNA and ARR Revenue for Period
B34: CAWNA $ | F34: =SUMPRODUCT((WNARevAlloc[MonthFlow]=F25)*(WNARevAlloc[RateSched]=$C23)*WNARevAlloc[AdjCAWNARev]) -> 1433.510493 | G34: =SUMPRODUCT((WNARevAlloc[MonthFlow]=G25)*(WNARevAlloc[RateSched]=$C23)*WNARevAlloc[AdjCAWNARev]) -> 3334.052014 | H34: =SUMPRODUCT((WNARevAlloc[MonthFlow]=H25)*(WNARevAlloc[RateSched]=$C23)*WNARevAlloc[AdjCAWNARev]) -> 4363.99447 | I34: =SUMPRODUCT((WNARevAlloc[MonthFlow]=I25)*(WNARevAlloc[RateSched]=$C23)*WNARevAlloc[AdjCAWNARev]) -> 6376.064146 | J34: =SUMPRODUCT((WNARevAlloc[MonthFlow]=J25)*(WNARevAlloc[RateSched]=$C23)*WNARevAlloc[AdjCAWNARev]) -> 2864.741976 | K34: =SUMPRODUCT((WNARevAlloc[MonthFlow]=K25)*(WNARevAlloc[RateSched]=$C23)*WNARevAlloc[AdjCAWNARev]) -> 1803.909208 | L34: =SUMPRODUCT((WNARevAlloc[MonthFlow]=L25)*(WNARevAlloc[RateSched]=$C23)*WNARevAlloc[AdjCAWNARev]) -> 613.5771526 | M34: =SUMPRODUCT((WNARevAlloc[MonthFlow]=M25)*(WNARevAlloc[RateSched]=$C23)*WNARevAlloc[AdjCAWNARev]) -> 352.3299134 | N34: =SUMPRODUCT((WNARevAlloc[MonthFlow]=N25)*(WNARevAlloc[RateSched]=$C23)*WNARevAlloc[AdjCAWNARev]) -> 288.0281891 | O34: =ROUND(O26*O30,2) -> 239.28 | P34: =ROUND(P26*P30,2) -> 524.45 | Q34: 786.73
B35: ARR $ | C35: =ROUND(C28*C32,2) -> -1146.78 | D35: =ROUND(D28*D32,2) -> -366.39 | E35: 524.61 | F35: =SUMPRODUCT((WNARevAlloc[MonthFlow]=F25)*(WNARevAlloc[RateSched]=$C23)*WNARevAlloc[AdjARRRev]) -> 143.3595074 | G35: =SUMPRODUCT((WNARevAlloc[MonthFlow]=G25)*(WNARevAlloc[RateSched]=$C23)*WNARevAlloc[AdjARRRev]) -> 341.0879857 | H35: =SUMPRODUCT((WNARevAlloc[MonthFlow]=H25)*(WNARevAlloc[RateSched]=$C23)*WNARevAlloc[AdjARRRev]) -> 446.5355296 | I35: =SUMPRODUCT((WNARevAlloc[MonthFlow]=I25)*(WNARevAlloc[RateSched]=$C23)*WNARevAlloc[AdjARRRev]) -> 652.4158542 | J35: =SUMPRODUCT((WNARevAlloc[MonthFlow]=J25)*(WNARevAlloc[RateSched]=$C23)*WNARevAlloc[AdjARRRev]) -> 293.1280239 | K35: =SUMPRODUCT((WNARevAlloc[MonthFlow]=K25)*(WNARevAlloc[RateSched]=$C23)*WNARevAlloc[AdjARRRev]) -> 184.5807916 | L35: =SUMPRODUCT((WNARevAlloc[MonthFlow]=L25)*(WNARevAlloc[RateSched]=$C23)*WNARevAlloc[AdjARRRev]) -> 62.78284738 | M35: =SUMPRODUCT((WNARevAlloc[MonthFlow]=M25)*(WNARevAlloc[RateSched]=$C23)*WNARevAlloc[AdjARRRev]) -> 29.87008663 | N35: =SUMPRODUCT((WNARevAlloc[MonthFlow]=N25)*(WNARevAlloc[RateSched]=$C23)*WNARevAlloc[AdjARRRev]) -> 29.47181093 | O35: =ROUND(O26*O31,2) -> 24.48 | P35: =ROUND(P26*P31,2) -> 53.66 | Q35: 80.5
B36: Total True-Up | C36: =SUM(C35:E35) -> -988.56 | D36: Enter in VolTrueUp Table
B38: * Actual Period revenues were calculated using actual rates, and then adjusted for actual revenues billed.
B39: (See worksheet WNARRevAlloc)

Sheet ARR NW
B2: Empire District Gas Company | F2: Filing Year
B3: Annual Reconciliation Rate
B4: Territory | C4: NW
B5: Year | C5: =DateSet!C2 -> 2026
B6: Analysis Start | C6: =DATE(C5-1,7,1) -> 2025-07-01
B8: Rate Category | C8: EGGR_RS | D8: Res
B9: Residential | C9: True-Up Period | F9: Actual Period* | O9: Projected Period
B10: Month | C10: =C6 -> 45839 | D10: =EDATE(C10,1) -> 45870 | E10: =EDATE(D10,1) -> 45901 | F10: 45931 | G10: 45962 | H10: 45992 | I10: 46023 | J10: 46054 | K10: 46082 | L10: 46113 | M10: 46143 | N10: 46174 | O10: 46204 | P10: 46235 | Q10: 46266
B11: Est. Volume | C11: =SUMPRODUCT((CustEstVol[MonthFlow]=C10)*(CustEstVol[RateCategory]=$C8)*CustEstVol[NormVol]) -> 30521 | D11: =SUMPRODUCT((CustEstVol[MonthFlow]=D10)*(CustEstVol[RateCategory]=$C8)*CustEstVol[NormVol]) -> 33096 | E11: =SUMPRODUCT((CustEstVol[MonthFlow]=E10)*(CustEstVol[RateCategory]=$C8)*CustEstVol[NormVol]) -> 40094 | O11: =SUMPRODUCT((CustEstVol[MonthFlow]=O10)*(CustEstVol[RateCategory]=$C8)*CustEstVol[NormVol]) -> 27333 | P11: =SUMPRODUCT((CustEstVol[MonthFlow]=P10)*(CustEstVol[RateCategory]=$C8)*CustEstVol[NormVol]) -> 34734 | Q11: =SUMPRODUCT((CustEstVol[MonthFlow]=Q10)*(CustEstVol[RateCategory]=$C8)*CustEstVol[NormVol]) -> 33129
B12: Actual Volume | C12: =SUMPRODUCT((WNARevAlloc[MonthFlow]=C10)*(WNARevAlloc[RateSched]=$C8)*WNARevAlloc[Consumption]) -> 27332.995 | D12: =SUMPRODUCT((WNARevAlloc[MonthFlow]=D10)*(WNARevAlloc[RateSched]=$C8)*WNARevAlloc[Consumption]) -> 34734.073 | E12: =SUMPRODUCT((WNARevAlloc[MonthFlow]=E10)*(WNARevAlloc[RateSched]=$C8)*WNARevAlloc[Consumption]) -> 33129.134 | F12: =SUMPRODUCT((WNARevAlloc[MonthFlow]=F10)*(WNARevAlloc[RateSched]=$C8)*WNARevAlloc[Consumption]) -> 214997.837 | G12: =SUMPRODUCT((WNARevAlloc[MonthFlow]=G10)*(WNARevAlloc[RateSched]=$C8)*WNARevAlloc[Consumption]) -> 422496.255 | H12: =SUMPRODUCT((WNARevAlloc[MonthFlow]=H10)*(WNARevAlloc[RateSched]=$C8)*WNARevAlloc[Consumption]) -> 530441.36 | I12: =SUMPRODUCT((WNARevAlloc[MonthFlow]=I10)*(WNARevAlloc[RateSched]=$C8)*WNARevAlloc[Consumption]) -> 659466.767 | J12: =SUMPRODUCT((WNARevAlloc[MonthFlow]=J10)*(WNARevAlloc[RateSched]=$C8)*WNARevAlloc[Consumption]) -> 339027.352 | K12: =SUMPRODUCT((WNARevAlloc[MonthFlow]=K10)*(WNARevAlloc[RateSched]=$C8)*WNARevAlloc[Consumption]) -> 248457.405 | L12: =SUMPRODUCT((WNARevAlloc[MonthFlow]=L10)*(WNARevAlloc[RateSched]=$C8)*WNARevAlloc[Consumption]) -> 80182.259 | M12: =SUMPRODUCT((WNARevAlloc[MonthFlow]=M10)*(WNARevAlloc[RateSched]=$C8)*WNARevAlloc[Consumption]) -> 35338.063 | N12: =SUMPRODUCT((WNARevAlloc[MonthFlow]=N10)*(WNARevAlloc[RateSched]=$C8)*WNARevAlloc[Consumption]) -> 31529.811
B13: Vol True-Up | C13: =C12-C11 -> -3188.005 | D13: =D12-D11 -> 1638.073 | E13: -6964.866
B14: WNAR Rates in Effect
B15: CAWNA | C15: =SUMPRODUCT((WNARRates[BeginDate]<=C10)*(WNARRates[EndDate]>C10)*(WNARRates[CustClass]=$D8)*WNARRates[CAWNAR]) -> 0.03082 | D15: =SUMPRODUCT((WNARRates[BeginDate]<=D10)*(WNARRates[EndDate]>D10)*(WNARRates[CustClass]=$D8)*WNARRates[CAWNAR]) -> 0.03082 | E15: =SUMPRODUCT((WNARRates[BeginDate]<=E10)*(WNARRates[EndDate]>E10)*(WNARRates[CustClass]=$D8)*WNARRates[CAWNAR]) -> 0.03082 | F15: =SUMPRODUCT((WNARRates[BeginDate]<=F10)*(WNARRates[EndDate]>F10)*(WNARRates[CustClass]=$D8)*WNARRates[CAWNAR]) -> 0.0133 | G15: =SUMPRODUCT((WNARRates[BeginDate]<=G10)*(WNARRates[EndDate]>G10)*(WNARRates[CustClass]=$D8)*WNARRates[CAWNAR]) -> 0.0133 | H15: =SUMPRODUCT((WNARRates[BeginDate]<=H10)*(WNARRates[EndDate]>H10)*(WNARRates[CustClass]=$D8)*WNARRates[CAWNAR]) -> 0.0133 | I15: =SUMPRODUCT((WNARRates[BeginDate]<=I10)*(WNARRates[EndDate]>I10)*(WNARRates[CustClass]=$D8)*WNARRates[CAWNAR]) -> 0.0133 | J15: =SUMPRODUCT((WNARRates[BeginDate]<=J10)*(WNARRates[EndDate]>J10)*(WNARRates[CustClass]=$D8)*WNARRates[CAWNAR]) -> 0.0133 | K15: =SUMPRODUCT((WNARRates[BeginDate]<=K10)*(WNARRates[EndDate]>K10)*(WNARRates[CustClass]=$D8)*WNARRates[CAWNAR]) -> 0.0133 | L15: =SUMPRODUCT((WNARRates[BeginDate]<=L10)*(WNARRates[EndDate]>L10)*(WNARRates[CustClass]=$D8)*WNARRates[CAWNAR]) -> 0.0133 | M15: =SUMPRODUCT((WNARRates[BeginDate]<=M10)*(WNARRates[EndDate]>M10)*(WNARRates[CustClass]=$D8)*WNARRates[CAWNAR]) -> 0.0133 | N15: =SUMPRODUCT((WNARRates[BeginDate]<=N10)*(WNARRates[EndDate]>N10)*(WNARRates[CustClass]=$D8)*WNARRates[CAWNAR]) -> 0.0133 | O15: =SUMPRODUCT((WNARRates[BeginDate]<=O10)*(WNARRates[EndDate]>O10)*(WNARRates[CustClass]=$D8)*WNARRates[CAWNAR]) -> 0.0133 | P15: =SUMPRODUCT((WNARRates[BeginDate]<=P10)*(WNARRates[EndDate]>P10)*(WNARRates[CustClass]=$D8)*WNARRates[CAWNAR]) -> 0.0133 | Q15: =SUMPRODUCT((WNARRates[BeginDate]<=Q10)*(WNARRates[EndDate]>Q10)*(WNARRates[CustClass]=$D8)*WNARRates[CAWNAR]) -> 0.0133
B16: ARR | C16: =SUMPRODUCT((WNARRates[BeginDate]<=C10)*(WNARRates[EndDate]>C10)*(WNARRates[CustClass]=$D8)*WNARRates[ARR]) -> 0.00424 | D16: =SUMPRODUCT((WNARRates[BeginDate]<=D10)*(WNARRates[EndDate]>D10)*(WNARRates[CustClass]=$D8)*WNARRates[ARR]) -> 0.00424 | E16: =SUMPRODUCT((WNARRates[BeginDate]<=E10)*(WNARRates[EndDate]>E10)*(WNARRates[CustClass]=$D8)*WNARRates[ARR]) -> 0.00424 | F16: =SUMPRODUCT((WNARRates[BeginDate]<=F10)*(WNARRates[EndDate]>F10)*(WNARRates[CustClass]=$D8)*WNARRates[ARR]) -> 0.00522 | G16: =SUMPRODUCT((WNARRates[BeginDate]<=G10)*(WNARRates[EndDate]>G10)*(WNARRates[CustClass]=$D8)*WNARRates[ARR]) -> 0.00522 | H16: =SUMPRODUCT((WNARRates[BeginDate]<=H10)*(WNARRates[EndDate]>H10)*(WNARRates[CustClass]=$D8)*WNARRates[ARR]) -> 0.00522 | I16: =SUMPRODUCT((WNARRates[BeginDate]<=I10)*(WNARRates[EndDate]>I10)*(WNARRates[CustClass]=$D8)*WNARRates[ARR]) -> 0.00522 | J16: =SUMPRODUCT((WNARRates[BeginDate]<=J10)*(WNARRates[EndDate]>J10)*(WNARRates[CustClass]=$D8)*WNARRates[ARR]) -> 0.00522 | K16: =SUMPRODUCT((WNARRates[BeginDate]<=K10)*(WNARRates[EndDate]>K10)*(WNARRates[CustClass]=$D8)*WNARRates[ARR]) -> 0.00522 | L16: =SUMPRODUCT((WNARRates[BeginDate]<=L10)*(WNARRates[EndDate]>L10)*(WNARRates[CustClass]=$D8)*WNARRates[ARR]) -> 0.00522 | M16: =SUMPRODUCT((WNARRates[BeginDate]<=M10)*(WNARRates[EndDate]>M10)*(WNARRates[CustClass]=$D8)*WNARRates[ARR]) -> 0.00522 | N16: =SUMPRODUCT((WNARRates[BeginDate]<=N10)*(WNARRates[EndDate]>N10)*(WNARRates[CustClass]=$D8)*WNARRates[ARR]) -> 0.00522 | O16: =SUMPRODUCT((WNARRates[BeginDate]<=O10)*(WNARRates[EndDate]>O10)*(WNARRates[CustClass]=$D8)*WNARRates[ARR]) -> 0.00522 | P16: =SUMPRODUCT((WNARRates[BeginDate]<=P10)*(WNARRates[EndDate]>P10)*(WNARRates[CustClass]=$D8)*WNARRates[ARR]) -> 0.00522 | Q16: =SUMPRODUCT((WNARRates[BeginDate]<=Q10)*(WNARRates[EndDate]>Q10)*(WNARRates[CustClass]=$D8)*WNARRates[ARR]) -> 0.00522
B17: Total | C17: =C15+C16 -> 0.03506 | D17: =D15+D16 -> 0.03506 | E17: 0.03506 | F17: 0.01852 | G17: 0.01852 | H17: 0.01852 | I17: 0.01852 | J17: 0.01852 | K17: 0.01852 | L17: 0.01852 | M17: 0.01852 | N17: 0.01852 | O17: 0.01852 | P17: 0.01852 | Q17: 0.01852
B18: CAWNA and ARR Revenue for Period
B19: CAWNA $ | F19: =SUMPRODUCT((WNARevAlloc[MonthFlow]=F10)*(WNARevAlloc[RateSched]=$C$8)*WNARevAlloc[AdjCAWNARev]) -> 2929.167104 | G19: =SUMPRODUCT((WNARevAlloc[MonthFlow]=G10)*(WNARevAlloc[RateSched]=$C$8)*WNARevAlloc[AdjCAWNARev]) -> 5620.145613 | H19: =SUMPRODUCT((WNARevAlloc[MonthFlow]=H10)*(WNARevAlloc[RateSched]=$C$8)*WNARevAlloc[AdjCAWNARev]) -> 7056.499883 | I19: =SUMPRODUCT((WNARevAlloc[MonthFlow]=I10)*(WNARevAlloc[RateSched]=$C$8)*WNARevAlloc[AdjCAWNARev]) -> 8776.33557 | J19: =SUMPRODUCT((WNARevAlloc[MonthFlow]=J10)*(WNARevAlloc[RateSched]=$C$8)*WNARevAlloc[AdjCAWNARev]) -> 4509.059071 | K19: =SUMPRODUCT((WNARevAlloc[MonthFlow]=K10)*(WNARevAlloc[RateSched]=$C$8)*WNARevAlloc[AdjCAWNARev]) -> 3304.633477 | L19: =SUMPRODUCT((WNARevAlloc[MonthFlow]=L10)*(WNARevAlloc[RateSched]=$C$8)*WNARevAlloc[AdjCAWNARev]) -> 1066.886933 | M19: =SUMPRODUCT((WNARevAlloc[MonthFlow]=M10)*(WNARevAlloc[RateSched]=$C$8)*WNARevAlloc[AdjCAWNARev]) -> 471.0943305 | N19: =SUMPRODUCT((WNARevAlloc[MonthFlow]=N10)*(WNARevAlloc[RateSched]=$C$8)*WNARevAlloc[AdjCAWNARev]) -> 420.0703024 | O19: =ROUND(O11*O15,2) -> 363.53 | P19: =ROUND(P11*P15,2) -> 461.96 | Q19: 440.62
B20: ARR $ | C20: =ROUND(C13*C17,2) -> -111.77 | D20: =ROUND(D13*D17,2) -> 57.43 | E20: -244.19 | F20: =SUMPRODUCT((WNARevAlloc[MonthFlow]=F10)*(WNARevAlloc[RateSched]=$C$8)*WNARevAlloc[AdjARRRev]) -> 1118.412896 | G20: =SUMPRODUCT((WNARevAlloc[MonthFlow]=G10)*(WNARevAlloc[RateSched]=$C$8)*WNARevAlloc[AdjARRRev]) -> 2205.344387 | H20: =SUMPRODUCT((WNARevAlloc[MonthFlow]=H10)*(WNARevAlloc[RateSched]=$C$8)*WNARevAlloc[AdjARRRev]) -> 2768.860117 | I20: =SUMPRODUCT((WNARevAlloc[MonthFlow]=I10)*(WNARevAlloc[RateSched]=$C$8)*WNARevAlloc[AdjARRRev]) -> 3442.12443 | J20: =SUMPRODUCT((WNARevAlloc[MonthFlow]=J10)*(WNARevAlloc[RateSched]=$C$8)*WNARevAlloc[AdjARRRev]) -> 1769.720929 | K20: =SUMPRODUCT((WNARevAlloc[MonthFlow]=K10)*(WNARevAlloc[RateSched]=$C$8)*WNARevAlloc[AdjARRRev]) -> 1297.006523 | L20: =SUMPRODUCT((WNARevAlloc[MonthFlow]=L10)*(WNARevAlloc[RateSched]=$C$8)*WNARevAlloc[AdjARRRev]) -> 418.733067 | M20: =SUMPRODUCT((WNARevAlloc[MonthFlow]=M10)*(WNARevAlloc[RateSched]=$C$8)*WNARevAlloc[AdjARRRev]) -> 184.8956695 | N20: =SUMPRODUCT((WNARevAlloc[MonthFlow]=N10)*(WNARevAlloc[RateSched]=$C$8)*WNARevAlloc[AdjARRRev]) -> 164.8696976 | O20: =ROUND(O11*O16,2) -> 142.68 | P20: =ROUND(P11*P16,2) -> 181.31 | Q20: 172.93
B21: Total True-Up | C21: =SUM(C20:E20) -> -298.53 | D21: Enter in VolTrueUp Table
B23: Rate Category | C23: EGGC_SGS | D23: SGS
B24: Commercial | C24: True-Up Period | F24: Actual Period* | O24: Projected Period
B25: Month | C25: =C6 -> 45839 | D25: =EDATE(C25,1) -> 45870 | E25: =EDATE(D25,1) -> 45901 | F25: 45931 | G25: 45962 | H25: 45992 | I25: 46023 | J25: 46054 | K25: 46082 | L25: 46113 | M25: 46143 | N25: 46174 | O25: 46204 | P25: 46235 | Q25: 46266
B26: Est. Volume | C26: =SUMPRODUCT((CustEstVol[MonthFlow]=C25)*(CustEstVol[RateCategory]=$C23)*CustEstVol[NormVol]) -> 17378 | D26: =SUMPRODUCT((CustEstVol[MonthFlow]=D25)*(CustEstVol[RateCategory]=$C23)*CustEstVol[NormVol]) -> 47103 | E26: =SUMPRODUCT((CustEstVol[MonthFlow]=E25)*(CustEstVol[RateCategory]=$C23)*CustEstVol[NormVol]) -> 48614 | O26: =SUMPRODUCT((CustEstVol[MonthFlow]=O25)*(CustEstVol[RateCategory]=$C$23)*CustEstVol[NormVol]) -> 9101 | P26: =SUMPRODUCT((CustEstVol[MonthFlow]=P25)*(CustEstVol[RateCategory]=$C$23)*CustEstVol[NormVol]) -> 39766 | Q26: =SUMPRODUCT((CustEstVol[MonthFlow]=Q25)*(CustEstVol[RateCategory]=$C$23)*CustEstVol[NormVol]) -> 67342
B27: Actual Volume | C27: =SUMPRODUCT((WNARevAlloc[MonthFlow]=C25)*(WNARevAlloc[RateSched]=$C23)*WNARevAlloc[Consumption]) -> 9101.482 | D27: =SUMPRODUCT((WNARevAlloc[MonthFlow]=D25)*(WNARevAlloc[RateSched]=$C23)*WNARevAlloc[Consumption]) -> 39765.706 | E27: =SUMPRODUCT((WNARevAlloc[MonthFlow]=E25)*(WNARevAlloc[RateSched]=$C23)*WNARevAlloc[Consumption]) -> 67342.033 | F27: =SUMPRODUCT((WNARevAlloc[MonthFlow]=F25)*(WNARevAlloc[RateSched]=$C23)*WNARevAlloc[Consumption]) -> 56041.244 | G27: =SUMPRODUCT((WNARevAlloc[MonthFlow]=G25)*(WNARevAlloc[RateSched]=$C23)*WNARevAlloc[Consumption]) -> 146288.818 | H27: =SUMPRODUCT((WNARevAlloc[MonthFlow]=H25)*(WNARevAlloc[RateSched]=$C23)*WNARevAlloc[Consumption]) -> 179076.289 | I27: =SUMPRODUCT((WNARevAlloc[MonthFlow]=I25)*(WNARevAlloc[RateSched]=$C23)*WNARevAlloc[Consumption]) -> 245467.84 | J27: =SUMPRODUCT((WNARevAlloc[MonthFlow]=J25)*(WNARevAlloc[RateSched]=$C23)*WNARevAlloc[Consumption]) -> 127272.071 | K27: =SUMPRODUCT((WNARevAlloc[MonthFlow]=K25)*(WNARevAlloc[RateSched]=$C23)*WNARevAlloc[Consumption]) -> 80503.434 | L27: =SUMPRODUCT((WNARevAlloc[MonthFlow]=L25)*(WNARevAlloc[RateSched]=$C23)*WNARevAlloc[Consumption]) -> 25244.498 | M27: =SUMPRODUCT((WNARevAlloc[MonthFlow]=M25)*(WNARevAlloc[RateSched]=$C23)*WNARevAlloc[Consumption]) -> 11587.356 | N27: =SUMPRODUCT((WNARevAlloc[MonthFlow]=N25)*(WNARevAlloc[RateSched]=$C23)*WNARevAlloc[Consumption]) -> 17801.53
B28: Vol True-Up | C28: =C27-C26 -> -8276.518 | D28: =D27-D26 -> -7337.294 | E28: 18728.033
B29: WNAR Rates in Effect
B30: CAWNA | C30: =SUMPRODUCT((WNARRates[BeginDate]<=C25)*(WNARRates[EndDate]>C25)*(WNARRates[CustClass]=$D23)*WNARRates[CAWNAR]) -> 0.03592 | D30: =SUMPRODUCT((WNARRates[BeginDate]<=D25)*(WNARRates[EndDate]>D25)*(WNARRates[CustClass]=$D23)*WNARRates[CAWNAR]) -> 0.03592 | E30: =SUMPRODUCT((WNARRates[BeginDate]<=E25)*(WNARRates[EndDate]>E25)*(WNARRates[CustClass]=$D23)*WNARRates[CAWNAR]) -> 0.03592 | F30: =SUMPRODUCT((WNARRates[BeginDate]<=F25)*(WNARRates[EndDate]>F25)*(WNARRates[CustClass]=$D23)*WNARRates[CAWNAR]) -> 0.01593 | G30: =SUMPRODUCT((WNARRates[BeginDate]<=G25)*(WNARRates[EndDate]>G25)*(WNARRates[CustClass]=$D23)*WNARRates[CAWNAR]) -> 0.01593 | H30: =SUMPRODUCT((WNARRates[BeginDate]<=H25)*(WNARRates[EndDate]>H25)*(WNARRates[CustClass]=$D23)*WNARRates[CAWNAR]) -> 0.01593 | I30: =SUMPRODUCT((WNARRates[BeginDate]<=I25)*(WNARRates[EndDate]>I25)*(WNARRates[CustClass]=$D23)*WNARRates[CAWNAR]) -> 0.01593 | J30: =SUMPRODUCT((WNARRates[BeginDate]<=J25)*(WNARRates[EndDate]>J25)*(WNARRates[CustClass]=$D23)*WNARRates[CAWNAR]) -> 0.01593 | K30: =SUMPRODUCT((WNARRates[BeginDate]<=K25)*(WNARRates[EndDate]>K25)*(WNARRates[CustClass]=$D23)*WNARRates[CAWNAR]) -> 0.01593 | L30: =SUMPRODUCT((WNARRates[BeginDate]<=L25)*(WNARRates[EndDate]>L25)*(WNARRates[CustClass]=$D23)*WNARRates[CAWNAR]) -> 0.01593 | M30: =SUMPRODUCT((WNARRates[BeginDate]<=M25)*(WNARRates[EndDate]>M25)*(WNARRates[CustClass]=$D23)*WNARRates[CAWNAR]) -> 0.01593 | N30: =SUMPRODUCT((WNARRates[BeginDate]<=N25)*(WNARRates[EndDate]>N25)*(WNARRates[CustClass]=$D23)*WNARRates[CAWNAR]) -> 0.01593 | O30: =SUMPRODUCT((WNARRates[BeginDate]<=O25)*(WNARRates[EndDate]>O25)*(WNARRates[CustClass]=$D23)*WNARRates[CAWNAR]) -> 0.01593 | P30: =SUMPRODUCT((WNARRates[BeginDate]<=P25)*(WNARRates[EndDate]>P25)*(WNARRates[CustClass]=$D23)*WNARRates[CAWNAR]) -> 0.01593 | Q30: =SUMPRODUCT((WNARRates[BeginDate]<=Q25)*(WNARRates[EndDate]>Q25)*(WNARRates[CustClass]=$D23)*WNARRates[CAWNAR]) -> 0.01593
B31: ARR | C31: =SUMPRODUCT((WNARRates[BeginDate]<=C25)*(WNARRates[EndDate]>C25)*(WNARRates[CustClass]=$D23)*WNARRates[ARR]) -> -0.00493 | D31: =SUMPRODUCT((WNARRates[BeginDate]<=D25)*(WNARRates[EndDate]>D25)*(WNARRates[CustClass]=$D23)*WNARRates[ARR]) -> -0.00493 | E31: =SUMPRODUCT((WNARRates[BeginDate]<=E25)*(WNARRates[EndDate]>E25)*(WNARRates[CustClass]=$D23)*WNARRates[ARR]) -> -0.00493 | F31: =SUMPRODUCT((WNARRates[BeginDate]<=F25)*(WNARRates[EndDate]>F25)*(WNARRates[CustClass]=$D23)*WNARRates[ARR]) -> 0.00163 | G31: =SUMPRODUCT((WNARRates[BeginDate]<=G25)*(WNARRates[EndDate]>G25)*(WNARRates[CustClass]=$D23)*WNARRates[ARR]) -> 0.00163 | H31: =SUMPRODUCT((WNARRates[BeginDate]<=H25)*(WNARRates[EndDate]>H25)*(WNARRates[CustClass]=$D23)*WNARRates[ARR]) -> 0.00163 | I31: =SUMPRODUCT((WNARRates[BeginDate]<=I25)*(WNARRates[EndDate]>I25)*(WNARRates[CustClass]=$D23)*WNARRates[ARR]) -> 0.00163 | J31: =SUMPRODUCT((WNARRates[BeginDate]<=J25)*(WNARRates[EndDate]>J25)*(WNARRates[CustClass]=$D23)*WNARRates[ARR]) -> 0.00163 | K31: =SUMPRODUCT((WNARRates[BeginDate]<=K25)*(WNARRates[EndDate]>K25)*(WNARRates[CustClass]=$D23)*WNARRates[ARR]) -> 0.00163 | L31: =SUMPRODUCT((WNARRates[BeginDate]<=L25)*(WNARRates[EndDate]>L25)*(WNARRates[CustClass]=$D23)*WNARRates[ARR]) -> 0.00163 | M31: =SUMPRODUCT((WNARRates[BeginDate]<=M25)*(WNARRates[EndDate]>M25)*(WNARRates[CustClass]=$D23)*WNARRates[ARR]) -> 0.00163 | N31: =SUMPRODUCT((WNARRates[BeginDate]<=N25)*(WNARRates[EndDate]>N25)*(WNARRates[CustClass]=$D23)*WNARRates[ARR]) -> 0.00163 | O31: =SUMPRODUCT((WNARRates[BeginDate]<=O25)*(WNARRates[EndDate]>O25)*(WNARRates[CustClass]=$D23)*WNARRates[ARR]) -> 0.00163 | P31: =SUMPRODUCT((WNARRates[BeginDate]<=P25)*(WNARRates[EndDate]>P25)*(WNARRates[CustClass]=$D23)*WNARRates[ARR]) -> 0.00163 | Q31: =SUMPRODUCT((WNARRates[BeginDate]<=Q25)*(WNARRates[EndDate]>Q25)*(WNARRates[CustClass]=$D23)*WNARRates[ARR]) -> 0.00163
B32: Total | C32: =C30+C31 -> 0.03099 | D32: =D30+D31 -> 0.03099 | E32: 0.03099 | F32: 0.01756 | G32: 0.01756 | H32: 0.01756 | I32: 0.01756 | J32: 0.01756 | K32: 0.01756 | L32: 0.01756 | M32: 0.01756 | N32: 0.01756 | O32: 0.01756 | P32: 0.01756 | Q32: 0.01756
B33: CAWNA and ARR Revenue for Period
B34: CAWNA $ | F34: =SUMPRODUCT((WNARevAlloc[MonthFlow]=F25)*(WNARevAlloc[RateSched]=$C23)*WNARevAlloc[AdjCAWNARev]) -> 839.6139417 | G34: =SUMPRODUCT((WNARevAlloc[MonthFlow]=G25)*(WNARevAlloc[RateSched]=$C23)*WNARevAlloc[AdjCAWNARev]) -> 2330.408109 | H34: =SUMPRODUCT((WNARevAlloc[MonthFlow]=H25)*(WNARevAlloc[RateSched]=$C23)*WNARevAlloc[AdjCAWNARev]) -> 2852.6584 | I34: =SUMPRODUCT((WNARevAlloc[MonthFlow]=I25)*(WNARevAlloc[RateSched]=$C23)*WNARevAlloc[AdjCAWNARev]) -> 3910.225336 | J34: =SUMPRODUCT((WNARevAlloc[MonthFlow]=J25)*(WNARevAlloc[RateSched]=$C23)*WNARevAlloc[AdjCAWNARev]) -> 2027.546088 | K34: =SUMPRODUCT((WNARevAlloc[MonthFlow]=K25)*(WNARevAlloc[RateSched]=$C23)*WNARevAlloc[AdjCAWNARev]) -> 1282.437574 | L34: =SUMPRODUCT((WNARevAlloc[MonthFlow]=L25)*(WNARevAlloc[RateSched]=$C23)*WNARevAlloc[AdjCAWNARev]) -> 402.3776481 | M34: =SUMPRODUCT((WNARevAlloc[MonthFlow]=M25)*(WNARevAlloc[RateSched]=$C23)*WNARevAlloc[AdjCAWNARev]) -> 184.8369875 | N34: =SUMPRODUCT((WNARevAlloc[MonthFlow]=N25)*(WNARevAlloc[RateSched]=$C23)*WNARevAlloc[AdjCAWNARev]) -> 283.7463212 | O34: =ROUND(O26*O30,2) -> 144.98 | P34: =ROUND(P26*P30,2) -> 633.47 | Q34: 1072.76
B35: ARR $ | C35: =ROUND(C28*C32,2) -> -256.49 | D35: =ROUND(D28*D32,2) -> -227.38 | E35: 580.38 | F35: =SUMPRODUCT((WNARevAlloc[MonthFlow]=F25)*(WNARevAlloc[RateSched]=$C23)*WNARevAlloc[AdjARRRev]) -> 108.7260583 | G35: =SUMPRODUCT((WNARevAlloc[MonthFlow]=G25)*(WNARevAlloc[RateSched]=$C23)*WNARevAlloc[AdjARRRev]) -> 238.461891 | H35: =SUMPRODUCT((WNARevAlloc[MonthFlow]=H25)*(WNARevAlloc[RateSched]=$C23)*WNARevAlloc[AdjARRRev]) -> 291.8916002 | I35: =SUMPRODUCT((WNARevAlloc[MonthFlow]=I25)*(WNARevAlloc[RateSched]=$C23)*WNARevAlloc[AdjARRRev]) -> 400.104664 | J35: =SUMPRODUCT((WNARevAlloc[MonthFlow]=J25)*(WNARevAlloc[RateSched]=$C23)*WNARevAlloc[AdjARRRev]) -> 207.4639123 | K35: =SUMPRODUCT((WNARevAlloc[MonthFlow]=K25)*(WNARevAlloc[RateSched]=$C23)*WNARevAlloc[AdjARRRev]) -> 131.222426 | L35: =SUMPRODUCT((WNARevAlloc[MonthFlow]=L25)*(WNARevAlloc[RateSched]=$C23)*WNARevAlloc[AdjARRRev]) -> 41.17235194 | M35: =SUMPRODUCT((WNARevAlloc[MonthFlow]=M25)*(WNARevAlloc[RateSched]=$C23)*WNARevAlloc[AdjARRRev]) -> 18.91301253 | N35: =SUMPRODUCT((WNARevAlloc[MonthFlow]=N25)*(WNARevAlloc[RateSched]=$C23)*WNARevAlloc[AdjARRRev]) -> 29.03367882 | O35: =ROUND(O26*O31,2) -> 14.83 | P35: =ROUND(P26*P31,2) -> 64.82 | Q35: 109.77
B36: Total True-Up | C36: =SUM(C35:E35) -> 96.51 | D36: Enter in VolTrueUp Table
B38: * Actual Period revenues were calculated using actual rates, and then adjusted for actual revenues billed.
B39: (See worksheet WNARRevAlloc)

Sheet ARR South
B2: Empire District Gas Company | F2: Filing Year
B3: Annual Reconciliation Rate
B4: Territory | C4: South
B5: Year | C5: =DateSet!C2 -> 2026
B6: Analysis Start | C6: =DATE(C5-1,7,1) -> 2025-07-01
B8: Rate Category | C8: ESGR_RS | D8: Res
B9: Residential | C9: True-Up Period | F9: Actual Period* | O9: Projected Period
B10: Month | C10: =C6 -> 45839 | D10: =EDATE(C10,1) -> 45870 | E10: =EDATE(D10,1) -> 45901 | F10: 45931 | G10: 45962 | H10: 45992 | I10: 46023 | J10: 46054 | K10: 46082 | L10: 46113 | M10: 46143 | N10: 46174 | O10: 46204 | P10: 46235 | Q10: 46266
B11: Est. Volume | C11: =SUMPRODUCT((CustEstVol[MonthFlow]=C10)*(CustEstVol[RateCategory]=$C8)*CustEstVol[NormVol]) -> 232031 | D11: =SUMPRODUCT((CustEstVol[MonthFlow]=D10)*(CustEstVol[RateCategory]=$C8)*CustEstVol[NormVol]) -> 217511 | E11: =SUMPRODUCT((CustEstVol[MonthFlow]=E10)*(CustEstVol[RateCategory]=$C8)*CustEstVol[NormVol]) -> 222653 | O11: =SUMPRODUCT((CustEstVol[MonthFlow]=O10)*(CustEstVol[RateCategory]=$C8)*CustEstVol[NormVol]) -> 211895 | P11: =SUMPRODUCT((CustEstVol[MonthFlow]=P10)*(CustEstVol[RateCategory]=$C8)*CustEstVol[NormVol]) -> 233553 | Q11: =SUMPRODUCT((CustEstVol[MonthFlow]=Q10)*(CustEstVol[RateCategory]=$C8)*CustEstVol[NormVol]) -> 219923
B12: Actual Volume | C12: =SUMPRODUCT((WNARevAlloc[MonthFlow]=C10)*(WNARevAlloc[RateSched]=$C8)*WNARevAlloc[Consumption]) -> 211894.515 | D12: =SUMPRODUCT((WNARevAlloc[MonthFlow]=D10)*(WNARevAlloc[RateSched]=$C8)*WNARevAlloc[Consumption]) -> 233553.018 | E12: =SUMPRODUCT((WNARevAlloc[MonthFlow]=E10)*(WNARevAlloc[RateSched]=$C8)*WNARevAlloc[Consumption]) -> 219923.009 | F12: =SUMPRODUCT((WNARevAlloc[MonthFlow]=F10)*(WNARevAlloc[RateSched]=$C8)*WNARevAlloc[Consumption]) -> 818713.794 | G12: =SUMPRODUCT((WNARevAlloc[MonthFlow]=G10)*(WNARevAlloc[RateSched]=$C8)*WNARevAlloc[Consumption]) -> 1897580.149 | H12: =SUMPRODUCT((WNARevAlloc[MonthFlow]=H10)*(WNARevAlloc[RateSched]=$C8)*WNARevAlloc[Consumption]) -> 2311637.624 | I12: =SUMPRODUCT((WNARevAlloc[MonthFlow]=I10)*(WNARevAlloc[RateSched]=$C8)*WNARevAlloc[Consumption]) -> 3459340.433 | J12: =SUMPRODUCT((WNARevAlloc[MonthFlow]=J10)*(WNARevAlloc[RateSched]=$C8)*WNARevAlloc[Consumption]) -> 1613870.59 | K12: =SUMPRODUCT((WNARevAlloc[MonthFlow]=K10)*(WNARevAlloc[RateSched]=$C8)*WNARevAlloc[Consumption]) -> 1110003.429 | L12: =SUMPRODUCT((WNARevAlloc[MonthFlow]=L10)*(WNARevAlloc[RateSched]=$C8)*WNARevAlloc[Consumption]) -> 449378.497 | M12: =SUMPRODUCT((WNARevAlloc[MonthFlow]=M10)*(WNARevAlloc[RateSched]=$C8)*WNARevAlloc[Consumption]) -> 271797.531 | N12: =SUMPRODUCT((WNARevAlloc[MonthFlow]=N10)*(WNARevAlloc[RateSched]=$C8)*WNARevAlloc[Consumption]) -> 233339.93
B13: Vol True-Up | C13: =C12-C11 -> -20136.485 | D13: =D12-D11 -> 16042.018 | E13: -2729.991
B14: WNAR Rates in Effect
B15: CAWNA | C15: =SUMPRODUCT((WNARRates[BeginDate]<=C10)*(WNARRates[EndDate]>C10)*(WNARRates[CustClass]=$D8)*WNARRates[CAWNAR]) -> 0.03082 | D15: =SUMPRODUCT((WNARRates[BeginDate]<=D10)*(WNARRates[EndDate]>D10)*(WNARRates[CustClass]=$D8)*WNARRates[CAWNAR]) -> 0.03082 | E15: =SUMPRODUCT((WNARRates[BeginDate]<=E10)*(WNARRates[EndDate]>E10)*(WNARRates[CustClass]=$D8)*WNARRates[CAWNAR]) -> 0.03082 | F15: =SUMPRODUCT((WNARRates[BeginDate]<=F10)*(WNARRates[EndDate]>F10)*(WNARRates[CustClass]=$D8)*WNARRates[CAWNAR]) -> 0.0133 | G15: =SUMPRODUCT((WNARRates[BeginDate]<=G10)*(WNARRates[EndDate]>G10)*(WNARRates[CustClass]=$D8)*WNARRates[CAWNAR]) -> 0.0133 | H15: =SUMPRODUCT((WNARRates[BeginDate]<=H10)*(WNARRates[EndDate]>H10)*(WNARRates[CustClass]=$D8)*WNARRates[CAWNAR]) -> 0.0133 | I15: =SUMPRODUCT((WNARRates[BeginDate]<=I10)*(WNARRates[EndDate]>I10)*(WNARRates[CustClass]=$D8)*WNARRates[CAWNAR]) -> 0.0133 | J15: =SUMPRODUCT((WNARRates[BeginDate]<=J10)*(WNARRates[EndDate]>J10)*(WNARRates[CustClass]=$D8)*WNARRates[CAWNAR]) -> 0.0133 | K15: =SUMPRODUCT((WNARRates[BeginDate]<=K10)*(WNARRates[EndDate]>K10)*(WNARRates[CustClass]=$D8)*WNARRates[CAWNAR]) -> 0.0133 | L15: =SUMPRODUCT((WNARRates[BeginDate]<=L10)*(WNARRates[EndDate]>L10)*(WNARRates[CustClass]=$D8)*WNARRates[CAWNAR]) -> 0.0133 | M15: =SUMPRODUCT((WNARRates[BeginDate]<=M10)*(WNARRates[EndDate]>M10)*(WNARRates[CustClass]=$D8)*WNARRates[CAWNAR]) -> 0.0133 | N15: =SUMPRODUCT((WNARRates[BeginDate]<=N10)*(WNARRates[EndDate]>N10)*(WNARRates[CustClass]=$D8)*WNARRates[CAWNAR]) -> 0.0133 | O15: =SUMPRODUCT((WNARRates[BeginDate]<=O10)*(WNARRates[EndDate]>O10)*(WNARRates[CustClass]=$D8)*WNARRates[CAWNAR]) -> 0.0133 | P15: =SUMPRODUCT((WNARRates[BeginDate]<=P10)*(WNARRates[EndDate]>P10)*(WNARRates[CustClass]=$D8)*WNARRates[CAWNAR]) -> 0.0133 | Q15: =SUMPRODUCT((WNARRates[BeginDate]<=Q10)*(WNARRates[EndDate]>Q10)*(WNARRates[CustClass]=$D8)*WNARRates[CAWNAR]) -> 0.0133
B16: ARR | C16: =SUMPRODUCT((WNARRates[BeginDate]<=C10)*(WNARRates[EndDate]>C10)*(WNARRates[CustClass]=$D8)*WNARRates[ARR]) -> 0.00424 | D16: =SUMPRODUCT((WNARRates[BeginDate]<=D10)*(WNARRates[EndDate]>D10)*(WNARRates[CustClass]=$D8)*WNARRates[ARR]) -> 0.00424 | E16: =SUMPRODUCT((WNARRates[BeginDate]<=E10)*(WNARRates[EndDate]>E10)*(WNARRates[CustClass]=$D8)*WNARRates[ARR]) -> 0.00424 | F16: =SUMPRODUCT((WNARRates[BeginDate]<=F10)*(WNARRates[EndDate]>F10)*(WNARRates[CustClass]=$D8)*WNARRates[ARR]) -> 0.00522 | G16: =SUMPRODUCT((WNARRates[BeginDate]<=G10)*(WNARRates[EndDate]>G10)*(WNARRates[CustClass]=$D8)*WNARRates[ARR]) -> 0.00522 | H16: =SUMPRODUCT((WNARRates[BeginDate]<=H10)*(WNARRates[EndDate]>H10)*(WNARRates[CustClass]=$D8)*WNARRates[ARR]) -> 0.00522 | I16: =SUMPRODUCT((WNARRates[BeginDate]<=I10)*(WNARRates[EndDate]>I10)*(WNARRates[CustClass]=$D8)*WNARRates[ARR]) -> 0.00522 | J16: =SUMPRODUCT((WNARRates[BeginDate]<=J10)*(WNARRates[EndDate]>J10)*(WNARRates[CustClass]=$D8)*WNARRates[ARR]) -> 0.00522 | K16: =SUMPRODUCT((WNARRates[BeginDate]<=K10)*(WNARRates[EndDate]>K10)*(WNARRates[CustClass]=$D8)*WNARRates[ARR]) -> 0.00522 | L16: =SUMPRODUCT((WNARRates[BeginDate]<=L10)*(WNARRates[EndDate]>L10)*(WNARRates[CustClass]=$D8)*WNARRates[ARR]) -> 0.00522 | M16: =SUMPRODUCT((WNARRates[BeginDate]<=M10)*(WNARRates[EndDate]>M10)*(WNARRates[CustClass]=$D8)*WNARRates[ARR]) -> 0.00522 | N16: =SUMPRODUCT((WNARRates[BeginDate]<=N10)*(WNARRates[EndDate]>N10)*(WNARRates[CustClass]=$D8)*WNARRates[ARR]) -> 0.00522 | O16: =SUMPRODUCT((WNARRates[BeginDate]<=O10)*(WNARRates[EndDate]>O10)*(WNARRates[CustClass]=$D8)*WNARRates[ARR]) -> 0.00522 | P16: =SUMPRODUCT((WNARRates[BeginDate]<=P10)*(WNARRates[EndDate]>P10)*(WNARRates[CustClass]=$D8)*WNARRates[ARR]) -> 0.00522 | Q16: =SUMPRODUCT((WNARRates[BeginDate]<=Q10)*(WNARRates[EndDate]>Q10)*(WNARRates[CustClass]=$D8)*WNARRates[ARR]) -> 0.00522
B17: Total | C17: =C15+C16 -> 0.03506 | D17: =D15+D16 -> 0.03506 | E17: 0.03506 | F17: 0.01852 | G17: 0.01852 | H17: 0.01852 | I17: 0.01852 | J17: 0.01852 | K17: 0.01852 | L17: 0.01852 | M17: 0.01852 | N17: 0.01852 | O17: 0.01852 | P17: 0.01852 | Q17: 0.01852
B18: CAWNA and ARR Revenue for Period
B19: CAWNA $ | F19: =SUMPRODUCT((WNARevAlloc[MonthFlow]=F10)*(WNARevAlloc[RateSched]=$C$8)*WNARevAlloc[AdjCAWNARev]) -> 10901.5138 | G19: =SUMPRODUCT((WNARevAlloc[MonthFlow]=G10)*(WNARevAlloc[RateSched]=$C$8)*WNARevAlloc[AdjCAWNARev]) -> 25236.32997 | H19: =SUMPRODUCT((WNARevAlloc[MonthFlow]=H10)*(WNARevAlloc[RateSched]=$C$8)*WNARevAlloc[AdjCAWNARev]) -> 30756.50359 | I19: =SUMPRODUCT((WNARevAlloc[MonthFlow]=I10)*(WNARevAlloc[RateSched]=$C$8)*WNARevAlloc[AdjCAWNARev]) -> 46010.08631 | J19: =SUMPRODUCT((WNARevAlloc[MonthFlow]=J10)*(WNARevAlloc[RateSched]=$C$8)*WNARevAlloc[AdjCAWNARev]) -> 21463.94503 | K19: =SUMPRODUCT((WNARevAlloc[MonthFlow]=K10)*(WNARevAlloc[RateSched]=$C$8)*WNARevAlloc[AdjCAWNARev]) -> 14762.40469 | L19: =SUMPRODUCT((WNARevAlloc[MonthFlow]=L10)*(WNARevAlloc[RateSched]=$C$8)*WNARevAlloc[AdjCAWNARev]) -> 5978.285367 | M19: =SUMPRODUCT((WNARevAlloc[MonthFlow]=M10)*(WNARevAlloc[RateSched]=$C$8)*WNARevAlloc[AdjCAWNARev]) -> 3619.340355 | N19: =SUMPRODUCT((WNARevAlloc[MonthFlow]=N10)*(WNARevAlloc[RateSched]=$C$8)*WNARevAlloc[AdjCAWNARev]) -> 3103.481724 | O19: =ROUND(O11*O15,2) -> 2818.2 | P19: =ROUND(P11*P15,2) -> 3106.25 | Q19: 2924.98
B20: ARR $ | C20: =ROUND(C13*C17,2) -> -705.99 | D20: =ROUND(D13*D17,2) -> 562.43 | E20: -95.71 | F20: =SUMPRODUCT((WNARevAlloc[MonthFlow]=F10)*(WNARevAlloc[RateSched]=$C$8)*WNARevAlloc[AdjARRRev]) -> 4273.046197 | G20: =SUMPRODUCT((WNARevAlloc[MonthFlow]=G10)*(WNARevAlloc[RateSched]=$C$8)*WNARevAlloc[AdjARRRev]) -> 9905.24003 | H20: =SUMPRODUCT((WNARevAlloc[MonthFlow]=H10)*(WNARevAlloc[RateSched]=$C$8)*WNARevAlloc[AdjARRRev]) -> 12066.01641 | I20: =SUMPRODUCT((WNARevAlloc[MonthFlow]=I10)*(WNARevAlloc[RateSched]=$C$8)*WNARevAlloc[AdjARRRev]) -> 18058.05369 | J20: =SUMPRODUCT((WNARevAlloc[MonthFlow]=J10)*(WNARevAlloc[RateSched]=$C$8)*WNARevAlloc[AdjARRRev]) -> 8424.194968 | K20: =SUMPRODUCT((WNARevAlloc[MonthFlow]=K10)*(WNARevAlloc[RateSched]=$C$8)*WNARevAlloc[AdjARRRev]) -> 5793.975314 | L20: =SUMPRODUCT((WNARevAlloc[MonthFlow]=L10)*(WNARevAlloc[RateSched]=$C$8)*WNARevAlloc[AdjARRRev]) -> 2346.364633 | M20: =SUMPRODUCT((WNARevAlloc[MonthFlow]=M10)*(WNARevAlloc[RateSched]=$C$8)*WNARevAlloc[AdjARRRev]) -> 1420.379645 | N20: =SUMPRODUCT((WNARevAlloc[MonthFlow]=N10)*(WNARevAlloc[RateSched]=$C$8)*WNARevAlloc[AdjARRRev]) -> 1219.268276 | O20: =ROUND(O11*O16,2) -> 1106.09 | P20: =ROUND(P11*P16,2) -> 1219.15 | Q20: 1148
B21: Total True-Up | C21: =SUM(C20:E20) -> -239.27 | D21: Enter in VolTrueUp Table
B23: Rate Category | C23: ESGC_SGS | D23: SGS
B24: Commercial | C24: True-Up Period | F24: Actual Period* | O24: Projected Period
B25: Month | C25: =C6 -> 45839 | D25: =EDATE(C25,1) -> 45870 | E25: =EDATE(D25,1) -> 45901 | F25: =EDATE(E25,1) -> 45931 | G25: =EDATE(F25,1) -> 45962 | H25: =EDATE(G25,1) -> 45992 | I25: =EDATE(H25,1) -> 46023 | J25: =EDATE(I25,1) -> 46054 | K25: =EDATE(J25,1) -> 46082 | L25: =EDATE(K25,1) -> 46113 | M25: =EDATE(L25,1) -> 46143 | N25: =EDATE(M25,1) -> 46174 | O25: =EDATE(N25,1) -> 46204 | P25: =EDATE(O25,1) -> 46235 | Q25: =EDATE(P25,1) -> 46266
B26: Est. Volume | C26: =SUMPRODUCT((CustEstVol[MonthFlow]=C25)*(CustEstVol[RateCategory]=$C23)*CustEstVol[NormVol]) -> 73341 | D26: =SUMPRODUCT((CustEstVol[MonthFlow]=D25)*(CustEstVol[RateCategory]=$C23)*CustEstVol[NormVol]) -> 62130 | E26: =SUMPRODUCT((CustEstVol[MonthFlow]=E25)*(CustEstVol[RateCategory]=$C23)*CustEstVol[NormVol]) -> 83623 | O26: =SUMPRODUCT((CustEstVol[MonthFlow]=O25)*(CustEstVol[RateCategory]=$C$23)*CustEstVol[NormVol]) -> 51065 | P26: =SUMPRODUCT((CustEstVol[MonthFlow]=P25)*(CustEstVol[RateCategory]=$C$23)*CustEstVol[NormVol]) -> 73377 | Q26: =SUMPRODUCT((CustEstVol[MonthFlow]=Q25)*(CustEstVol[RateCategory]=$C$23)*CustEstVol[NormVol]) -> 75581
B27: Actual Volume | C27: =SUMPRODUCT((WNARevAlloc[MonthFlow]=C25)*(WNARevAlloc[RateSched]=$C23)*WNARevAlloc[Consumption]) -> 51065.183 | D27: =SUMPRODUCT((WNARevAlloc[MonthFlow]=D25)*(WNARevAlloc[RateSched]=$C23)*WNARevAlloc[Consumption]) -> 73377.031 | E27: =SUMPRODUCT((WNARevAlloc[MonthFlow]=E25)*(WNARevAlloc[RateSched]=$C23)*WNARevAlloc[Consumption]) -> 75580.985 | F27: =SUMPRODUCT((WNARevAlloc[MonthFlow]=F25)*(WNARevAlloc[RateSched]=$C23)*WNARevAlloc[Consumption]) -> 233712.818 | G27: =SUMPRODUCT((WNARevAlloc[MonthFlow]=G25)*(WNARevAlloc[RateSched]=$C23)*WNARevAlloc[Consumption]) -> 496605.67 | H27: =SUMPRODUCT((WNARevAlloc[MonthFlow]=H25)*(WNARevAlloc[RateSched]=$C23)*WNARevAlloc[Consumption]) -> 614131.37 | I27: =SUMPRODUCT((WNARevAlloc[MonthFlow]=I25)*(WNARevAlloc[RateSched]=$C23)*WNARevAlloc[Consumption]) -> 1004856.681 | J27: =SUMPRODUCT((WNARevAlloc[MonthFlow]=J25)*(WNARevAlloc[RateSched]=$C23)*WNARevAlloc[Consumption]) -> 443544.6 | K27: =SUMPRODUCT((WNARevAlloc[MonthFlow]=K25)*(WNARevAlloc[RateSched]=$C23)*WNARevAlloc[Consumption]) -> 285149.088 | L27: =SUMPRODUCT((WNARevAlloc[MonthFlow]=L25)*(WNARevAlloc[RateSched]=$C23)*WNARevAlloc[Consumption]) -> 113388.678 | M27: =SUMPRODUCT((WNARevAlloc[MonthFlow]=M25)*(WNARevAlloc[RateSched]=$C23)*WNARevAlloc[Consumption]) -> 75627.665 | N27: =SUMPRODUCT((WNARevAlloc[MonthFlow]=N25)*(WNARevAlloc[RateSched]=$C23)*WNARevAlloc[Consumption]) -> 68214.205
B28: Vol True-Up | C28: =C27-C26 -> -22275.817 | D28: =D27-D26 -> 11247.031 | E28: =E27-E26 -> -8042.015
B29: WNAR Rates in Effect
B30: CAWNA | C30: =SUMPRODUCT((WNARRates[BeginDate]<=C25)*(WNARRates[EndDate]>C25)*(WNARRates[CustClass]=$D23)*WNARRates[CAWNAR]) -> 0.03592 | D30: =SUMPRODUCT((WNARRates[BeginDate]<=D25)*(WNARRates[EndDate]>D25)*(WNARRates[CustClass]=$D23)*WNARRates[CAWNAR]) -> 0.03592 | E30: =SUMPRODUCT((WNARRates[BeginDate]<=E25)*(WNARRates[EndDate]>E25)*(WNARRates[CustClass]=$D23)*WNARRates[CAWNAR]) -> 0.03592 | F30: =SUMPRODUCT((WNARRates[BeginDate]<=F25)*(WNARRates[EndDate]>F25)*(WNARRates[CustClass]=$D23)*WNARRates[CAWNAR]) -> 0.01593 | G30: =SUMPRODUCT((WNARRates[BeginDate]<=G25)*(WNARRates[EndDate]>G25)*(WNARRates[CustClass]=$D23)*WNARRates[CAWNAR]) -> 0.01593 | H30: =SUMPRODUCT((WNARRates[BeginDate]<=H25)*(WNARRates[EndDate]>H25)*(WNARRates[CustClass]=$D23)*WNARRates[CAWNAR]) -> 0.01593 | I30: =SUMPRODUCT((WNARRates[BeginDate]<=I25)*(WNARRates[EndDate]>I25)*(WNARRates[CustClass]=$D23)*WNARRates[CAWNAR]) -> 0.01593 | J30: =SUMPRODUCT((WNARRates[BeginDate]<=J25)*(WNARRates[EndDate]>J25)*(WNARRates[CustClass]=$D23)*WNARRates[CAWNAR]) -> 0.01593 | K30: =SUMPRODUCT((WNARRates[BeginDate]<=K25)*(WNARRates[EndDate]>K25)*(WNARRates[CustClass]=$D23)*WNARRates[CAWNAR]) -> 0.01593 | L30: =SUMPRODUCT((WNARRates[BeginDate]<=L25)*(WNARRates[EndDate]>L25)*(WNARRates[CustClass]=$D23)*WNARRates[CAWNAR]) -> 0.01593 | M30: =SUMPRODUCT((WNARRates[BeginDate]<=M25)*(WNARRates[EndDate]>M25)*(WNARRates[CustClass]=$D23)*WNARRates[CAWNAR]) -> 0.01593 | N30: =SUMPRODUCT((WNARRates[BeginDate]<=N25)*(WNARRates[EndDate]>N25)*(WNARRates[CustClass]=$D23)*WNARRates[CAWNAR]) -> 0.01593 | O30: =SUMPRODUCT((WNARRates[BeginDate]<=O25)*(WNARRates[EndDate]>O25)*(WNARRates[CustClass]=$D23)*WNARRates[CAWNAR]) -> 0.01593 | P30: =SUMPRODUCT((WNARRates[BeginDate]<=P25)*(WNARRates[EndDate]>P25)*(WNARRates[CustClass]=$D23)*WNARRates[CAWNAR]) -> 0.01593 | Q30: =SUMPRODUCT((WNARRates[BeginDate]<=Q25)*(WNARRates[EndDate]>Q25)*(WNARRates[CustClass]=$D23)*WNARRates[CAWNAR]) -> 0.01593
B31: ARR | C31: =SUMPRODUCT((WNARRates[BeginDate]<=C25)*(WNARRates[EndDate]>C25)*(WNARRates[CustClass]=$D23)*WNARRates[ARR]) -> -0.00493 | D31: =SUMPRODUCT((WNARRates[BeginDate]<=D25)*(WNARRates[EndDate]>D25)*(WNARRates[CustClass]=$D23)*WNARRates[ARR]) -> -0.00493 | E31: =SUMPRODUCT((WNARRates[BeginDate]<=E25)*(WNARRates[EndDate]>E25)*(WNARRates[CustClass]=$D23)*WNARRates[ARR]) -> -0.00493 | F31: =SUMPRODUCT((WNARRates[BeginDate]<=F25)*(WNARRates[EndDate]>F25)*(WNARRates[CustClass]=$D23)*WNARRates[ARR]) -> 0.00163 | G31: =SUMPRODUCT((WNARRates[BeginDate]<=G25)*(WNARRates[EndDate]>G25)*(WNARRates[CustClass]=$D23)*WNARRates[ARR]) -> 0.00163 | H31: =SUMPRODUCT((WNARRates[BeginDate]<=H25)*(WNARRates[EndDate]>H25)*(WNARRates[CustClass]=$D23)*WNARRates[ARR]) -> 0.00163 | I31: =SUMPRODUCT((WNARRates[BeginDate]<=I25)*(WNARRates[EndDate]>I25)*(WNARRates[CustClass]=$D23)*WNARRates[ARR]) -> 0.00163 | J31: =SUMPRODUCT((WNARRates[BeginDate]<=J25)*(WNARRates[EndDate]>J25)*(WNARRates[CustClass]=$D23)*WNARRates[ARR]) -> 0.00163 | K31: =SUMPRODUCT((WNARRates[BeginDate]<=K25)*(WNARRates[EndDate]>K25)*(WNARRates[CustClass]=$D23)*WNARRates[ARR]) -> 0.00163 | L31: =SUMPRODUCT((WNARRates[BeginDate]<=L25)*(WNARRates[EndDate]>L25)*(WNARRates[CustClass]=$D23)*WNARRates[ARR]) -> 0.00163 | M31: =SUMPRODUCT((WNARRates[BeginDate]<=M25)*(WNARRates[EndDate]>M25)*(WNARRates[CustClass]=$D23)*WNARRates[ARR]) -> 0.00163 | N31: =SUMPRODUCT((WNARRates[BeginDate]<=N25)*(WNARRates[EndDate]>N25)*(WNARRates[CustClass]=$D23)*WNARRates[ARR]) -> 0.00163 | O31: =SUMPRODUCT((WNARRates[BeginDate]<=O25)*(WNARRates[EndDate]>O25)*(WNARRates[CustClass]=$D23)*WNARRates[ARR]) -> 0.00163 | P31: =SUMPRODUCT((WNARRates[BeginDate]<=P25)*(WNARRates[EndDate]>P25)*(WNARRates[CustClass]=$D23)*WNARRates[ARR]) -> 0.00163 | Q31: =SUMPRODUCT((WNARRates[BeginDate]<=Q25)*(WNARRates[EndDate]>Q25)*(WNARRates[CustClass]=$D23)*WNARRates[ARR]) -> 0.00163
B32: Total | C32: =C30+C31 -> 0.03099 | D32: =D30+D31 -> 0.03099 | E32: 0.03099 | F32: 0.01756 | G32: 0.01756 | H32: 0.01756 | I32: 0.01756 | J32: 0.01756 | K32: 0.01756 | L32: 0.01756 | M32: 0.01756 | N32: 0.01756 | O32: 0.01756 | P32: 0.01756 | Q32: 0.01756
B33: CAWNA and ARR Revenue for Period
B34: CAWNA $ | F34: =SUMPRODUCT((WNARevAlloc[MonthFlow]=F25)*(WNARevAlloc[RateSched]=$C23)*WNARevAlloc[AdjCAWNARev]) -> 3602.148453 | G34: =SUMPRODUCT((WNARevAlloc[MonthFlow]=G25)*(WNARevAlloc[RateSched]=$C23)*WNARevAlloc[AdjCAWNARev]) -> 7913.038773 | H34: =SUMPRODUCT((WNARevAlloc[MonthFlow]=H25)*(WNARevAlloc[RateSched]=$C23)*WNARevAlloc[AdjCAWNARev]) -> 9796.512827 | I34: =SUMPRODUCT((WNARevAlloc[MonthFlow]=I25)*(WNARevAlloc[RateSched]=$C23)*WNARevAlloc[AdjCAWNARev]) -> 16007.43649 | J34: =SUMPRODUCT((WNARevAlloc[MonthFlow]=J25)*(WNARevAlloc[RateSched]=$C23)*WNARevAlloc[AdjCAWNARev]) -> 7065.662597 | K34: =SUMPRODUCT((WNARevAlloc[MonthFlow]=K25)*(WNARevAlloc[RateSched]=$C23)*WNARevAlloc[AdjCAWNARev]) -> 4545.910929 | L34: =SUMPRODUCT((WNARevAlloc[MonthFlow]=L25)*(WNARevAlloc[RateSched]=$C23)*WNARevAlloc[AdjCAWNARev]) -> 1807.592341 | M34: =SUMPRODUCT((WNARevAlloc[MonthFlow]=M25)*(WNARevAlloc[RateSched]=$C23)*WNARevAlloc[AdjCAWNARev]) -> 1195.250384 | N34: =SUMPRODUCT((WNARevAlloc[MonthFlow]=N25)*(WNARevAlloc[RateSched]=$C23)*WNARevAlloc[AdjCAWNARev]) -> 1087.273917 | O34: =ROUND(O26*O30,2) -> 813.47 | P34: =ROUND(P26*P30,2) -> 1168.9 | Q34: 1204.01
B35: ARR $ | C35: =ROUND(C28*C32,2) -> -690.33 | D35: =ROUND(D28*D32,2) -> 348.55 | E35: -249.22 | F35: =SUMPRODUCT((WNARevAlloc[MonthFlow]=F25)*(WNARevAlloc[RateSched]=$C23)*WNARevAlloc[AdjARRRev]) -> 420.8915466 | G35: =SUMPRODUCT((WNARevAlloc[MonthFlow]=G25)*(WNARevAlloc[RateSched]=$C23)*WNARevAlloc[AdjARRRev]) -> 808.9112272 | H35: =SUMPRODUCT((WNARevAlloc[MonthFlow]=H25)*(WNARevAlloc[RateSched]=$C23)*WNARevAlloc[AdjARRRev]) -> 996.7571729 | I35: =SUMPRODUCT((WNARevAlloc[MonthFlow]=I25)*(WNARevAlloc[RateSched]=$C23)*WNARevAlloc[AdjARRRev]) -> 1637.923508 | J35: =SUMPRODUCT((WNARevAlloc[MonthFlow]=J25)*(WNARevAlloc[RateSched]=$C23)*WNARevAlloc[AdjARRRev]) -> 722.9774032 | K35: =SUMPRODUCT((WNARevAlloc[MonthFlow]=K25)*(WNARevAlloc[RateSched]=$C23)*WNARevAlloc[AdjARRRev]) -> 463.7390707 | L35: =SUMPRODUCT((WNARevAlloc[MonthFlow]=L25)*(WNARevAlloc[RateSched]=$C23)*WNARevAlloc[AdjARRRev]) -> 184.9576595 | M35: =SUMPRODUCT((WNARevAlloc[MonthFlow]=M25)*(WNARevAlloc[RateSched]=$C23)*WNARevAlloc[AdjARRRev]) -> 126.9996155 | N35: =SUMPRODUCT((WNARevAlloc[MonthFlow]=N25)*(WNARevAlloc[RateSched]=$C23)*WNARevAlloc[AdjARRRev]) -> 111.2860832 | O35: =ROUND(O26*O31,2) -> 83.24 | P35: =ROUND(P26*P31,2) -> 119.6 | Q35: 123.2
B36: Total True-Up | C36: =SUM(C35:E35) -> -591 | D36: Enter in VolTrueUp Table
B38: * Actual Period revenues were calculated using actual rates, and then adjusted for actual revenues billed.
B39: (See worksheet WNARRevAlloc)

Sheet CAWNA North
B2: Empire District Gas Company | E2: Filing Year
B3: Billing Cycle and HDD Data Summary
B4: Territory | C4: North
B5: Year | C5: =DateSet!C2 -> 2026
B6: Analysis Start | C6: =DateSet!C3 -> 2025-09-01
B8: Rate Category | C8: ENGR_RS | D8: Cust Class | E8: =INDEX(RateCat[CustClass],MATCH(C8,RateCat[RateCategory],0)) -> Res
B9: WNA factor = HDD Diff * No. of Bills * Beta Coefficient (See North Cycles)
B10: Month | C10: WNA Factor | D10: Vol. Rate | E10: WNAi
B11: =$C$6 -> 45901 | C11: =SUMPRODUCT((NorthCycles[MonthBill]=B11)*(NorthCycles[CustClass]=$E$8)*NorthCycles[WNAFactor]) -> 33584.29639 | D11: =IFERROR(E11/C11,0) -> 0.217480215 | E11: =SUMPRODUCT((NorthCycles[MonthBill]=B11)*(NorthCycles[CustClass]=$E$8)*NorthCycles[WNA]) -> 7303.92
B12: =EDATE(B11,1) -> 45931 | C12: =SUMPRODUCT((NorthCycles[MonthBill]=B12)*(NorthCycles[CustClass]=$E$8)*NorthCycles[WNAFactor]) -> 31372.25729 | D12: =IFERROR(E12/C12,0) -> 0.2174797286 | E12: =SUMPRODUCT((NorthCycles[MonthBill]=B12)*(NorthCycles[CustClass]=$E$8)*NorthCycles[WNA]) -> 6822.83
B13: =EDATE(B12,1) -> 45962 | C13: =SUMPRODUCT((NorthCycles[MonthBill]=B13)*(NorthCycles[CustClass]=$E$8)*NorthCycles[WNAFactor]) -> 117681.5634 | D13: 0.2174800305 | E13: =SUMPRODUCT((NorthCycles[MonthBill]=B13)*(NorthCycles[CustClass]=$E$8)*NorthCycles[WNA]) -> 25593.39
B14: =EDATE(B13,1) -> 45992 | C14: =SUMPRODUCT((NorthCycles[MonthBill]=B14)*(NorthCycles[CustClass]=$E$8)*NorthCycles[WNAFactor]) -> 55416.94494 | D14: 0.2174798703 | E14: =SUMPRODUCT((NorthCycles[MonthBill]=B14)*(NorthCycles[CustClass]=$E$8)*NorthCycles[WNA]) -> 12052.07
B15: =EDATE(B14,1) -> 46023 | C15: =SUMPRODUCT((NorthCycles[MonthBill]=B15)*(NorthCycles[CustClass]=$E$8)*NorthCycles[WNAFactor]) -> 78404.71334 | D15: 0.2174800375 | E15: =SUMPRODUCT((NorthCycles[MonthBill]=B15)*(NorthCycles[CustClass]=$E$8)*NorthCycles[WNA]) -> 17051.46
B16: =EDATE(B15,1) -> 46054 | C16: =SUMPRODUCT((NorthCycles[MonthBill]=B16)*(NorthCycles[CustClass]=$E$8)*NorthCycles[WNAFactor]) -> 40321.13878 | D16: 0.2174802167 | E16: =SUMPRODUCT((NorthCycles[MonthBill]=B16)*(NorthCycles[CustClass]=$E$8)*NorthCycles[WNA]) -> 8769.05
B17: =EDATE(B16,1) -> 46082 | C17: =SUMPRODUCT((NorthCycles[MonthBill]=B17)*(NorthCycles[CustClass]=$E$8)*NorthCycles[WNAFactor]) -> 256072.8235 | D17: 0.2174800092 | E17: =SUMPRODUCT((NorthCycles[MonthBill]=B17)*(NorthCycles[CustClass]=$E$8)*NorthCycles[WNA]) -> 55690.72
B18: 46113 | C18: =SUMPRODUCT((NorthCycles[MonthBill]=B18)*(NorthCycles[CustClass]=$E$8)*NorthCycles[WNAFactor]) -> 189450.7427 | D18: 0.2174800131 | E18: =SUMPRODUCT((NorthCycles[MonthBill]=B18)*(NorthCycles[CustClass]=$E$8)*NorthCycles[WNA]) -> 41201.75
B19: 46143 | C19: =SUMPRODUCT((NorthCycles[MonthBill]=B19)*(NorthCycles[CustClass]=$E$8)*NorthCycles[WNAFactor]) -> 73972.31056 | D19: 0.2174800257 | E19: =SUMPRODUCT((NorthCycles[MonthBill]=B19)*(NorthCycles[CustClass]=$E$8)*NorthCycles[WNA]) -> 16087.5
B20: 46174 | C20: =SUMPRODUCT((NorthCycles[MonthBill]=B20)*(NorthCycles[CustClass]=$E$8)*NorthCycles[WNAFactor]) -> -2181.618772 | D20: 0.2174807103 | E20: =SUMPRODUCT((NorthCycles[MonthBill]=B20)*(NorthCycles[CustClass]=$E$8)*NorthCycles[WNA]) -> -474.46
B21: 46204 | C21: =SUMPRODUCT((NorthCycles[MonthBill]=B21)*(NorthCycles[CustClass]=$E$8)*NorthCycles[WNAFactor]) -> 6821.277641 | D21: 0.2174797858 | E21: =SUMPRODUCT((NorthCycles[MonthBill]=B21)*(NorthCycles[CustClass]=$E$8)*NorthCycles[WNA]) -> 1483.49
B22: =EDATE(B21,1) -> 46235 | C22: =SUMPRODUCT((NorthCycles[MonthBill]=B22)*(NorthCycles[CustClass]=$E$8)*NorthCycles[WNAFactor]) -> 0 | D22: 0 | E22: =SUMPRODUCT((NorthCycles[MonthBill]=B22)*(NorthCycles[CustClass]=$E$8)*NorthCycles[WNA]) -> 0
B23: Totals | C23: =SUM(C11:C22) -> 880916.4498 | D23: =ROUND(E23/C23,5) -> 0.21748 | E23: =SUM(E11:E22) -> 191581.72
B24: Recon Period Adj. | C24: =E23 -> 191581.72
B25: Enter in Reconciling Period Adjustment Table (ReconPerAdj)
B26: Enter WNA Amounts in CAWNA Amounts Table
B28: Rate Category | C28: ENGC_SGS | D28: Cust Class | E28: =INDEX(RateCat[CustClass],MATCH(C28,RateCat[RateCategory],0)) -> SGS
B29: WNA factor = HDD Diff * No. of Bills * Beta Coefficient (See North Cycles)
B30: Month | C30: WNA Factor | D30: Vol. Rate | E30: WNAi
B31: =$C$6 -> 45901 | C31: =SUMPRODUCT((NorthCycles[MonthBill]=B31)*(NorthCycles[CustClass]=$E$28)*NorthCycles[WNAFactor]) -> 12186.85592 | D31: =IFERROR(E31/C31,0) -> 0.2603304758 | E31: =SUMPRODUCT((NorthCycles[MonthBill]=B31)*(NorthCycles[CustClass]=$E$28)*NorthCycles[WNA]) -> 3172.61
B32: =EDATE(B31,1) -> 45931 | C32: =SUMPRODUCT((NorthCycles[MonthBill]=B32)*(NorthCycles[CustClass]=$E$28)*NorthCycles[WNAFactor]) -> 10342.16677 | D32: =IFERROR(E32/C32,0) -> 0.2603303602 | E32: =SUMPRODUCT((NorthCycles[MonthBill]=B32)*(NorthCycles[CustClass]=$E$28)*NorthCycles[WNA]) -> 2692.38
B33: =EDATE(B32,1) -> 45962 | C33: =SUMPRODUCT((NorthCycles[MonthBill]=B33)*(NorthCycles[CustClass]=$E$28)*NorthCycles[WNAFactor]) -> 38920.17809 | D33: 0.2603302579 | E33: =SUMPRODUCT((NorthCycles[MonthBill]=B33)*(NorthCycles[CustClass]=$E$28)*NorthCycles[WNA]) -> 10132.1
B34: =EDATE(B33,1) -> 45992 | C34: =SUMPRODUCT((NorthCycles[MonthBill]=B34)*(NorthCycles[CustClass]=$E$28)*NorthCycles[WNAFactor]) -> 17942.62294 | D34: 0.2603298312 | E34: =SUMPRODUCT((NorthCycles[MonthBill]=B34)*(NorthCycles[CustClass]=$E$28)*NorthCycles[WNA]) -> 4671
B35: =EDATE(B34,1) -> 46023 | C35: =SUMPRODUCT((NorthCycles[MonthBill]=B35)*(NorthCycles[CustClass]=$E$28)*NorthCycles[WNAFactor]) -> 24358.83695 | D35: 0.2603301633 | E35: =SUMPRODUCT((NorthCycles[MonthBill]=B35)*(NorthCycles[CustClass]=$E$28)*NorthCycles[WNA]) -> 6341.34
B36: =EDATE(B35,1) -> 46054 | C36: =SUMPRODUCT((NorthCycles[MonthBill]=B36)*(NorthCycles[CustClass]=$E$28)*NorthCycles[WNAFactor]) -> 13351.61679 | D36: 0.2603302697 | E36: =SUMPRODUCT((NorthCycles[MonthBill]=B36)*(NorthCycles[CustClass]=$E$28)*NorthCycles[WNA]) -> 3475.83
B37: =EDATE(B36,1) -> 46082 | C37: =SUMPRODUCT((NorthCycles[MonthBill]=B37)*(NorthCycles[CustClass]=$E$28)*NorthCycles[WNAFactor]) -> 82606.94258 | D37: 0.2603301772 | E37: =SUMPRODUCT((NorthCycles[MonthBill]=B37)*(NorthCycles[CustClass]=$E$28)*NorthCycles[WNA]) -> 21505.08
B38: 46113 | C38: =SUMPRODUCT((NorthCycles[MonthBill]=B38)*(NorthCycles[CustClass]=$E$28)*NorthCycles[WNAFactor]) -> 60665.00296 | D38: 0.2603301612 | E38: =SUMPRODUCT((NorthCycles[MonthBill]=B38)*(NorthCycles[CustClass]=$E$28)*NorthCycles[WNA]) -> 15792.93
B39: 46143 | C39: =SUMPRODUCT((NorthCycles[MonthBill]=B39)*(NorthCycles[CustClass]=$E$28)*NorthCycles[WNAFactor]) -> 23859.2891 | D39: 0.2603300532 | E39: =SUMPRODUCT((NorthCycles[MonthBill]=B39)*(NorthCycles[CustClass]=$E$28)*NorthCycles[WNA]) -> 6211.29
B40: 46174 | C40: =SUMPRODUCT((NorthCycles[MonthBill]=B40)*(NorthCycles[CustClass]=$E$28)*NorthCycles[WNAFactor]) -> -719.3099752 | D40: 0.2603328279 | E40: =SUMPRODUCT((NorthCycles[MonthBill]=B40)*(NorthCycles[CustClass]=$E$28)*NorthCycles[WNA]) -> -187.26
B41: 46204 | C41: =SUMPRODUCT((NorthCycles[MonthBill]=B41)*(NorthCycles[CustClass]=$E$28)*NorthCycles[WNAFactor]) -> 2189.740172 | D41: 0.2603276897 | E41: =SUMPRODUCT((NorthCycles[MonthBill]=B41)*(NorthCycles[CustClass]=$E$28)*NorthCycles[WNA]) -> 570.05
B42: =EDATE(B41,1) -> 46235 | C42: =SUMPRODUCT((NorthCycles[MonthBill]=B42)*(NorthCycles[CustClass]=$E$28)*NorthCycles[WNAFactor]) -> 0 | D42: 0 | E42: =SUMPRODUCT((NorthCycles[MonthBill]=B42)*(NorthCycles[CustClass]=$E$28)*NorthCycles[WNA]) -> 0
B43: Totals | C43: =SUM(C31:C42) -> 285703.9423 | D43: =ROUND(E43/C43,5) -> 0.26033 | E43: =SUM(E31:E42) -> 74377.35
B44: Recon Period Adj. | C44: =E43 -> 74377.35
B45: Enter in Reconciling Period Adjustment Table (ReconPerAdj)
B46: Enter WNA Amounts in CAWNA Amounts Table

Sheet CAWNA NW
B2: Empire District Gas Company | E2: Filing Year
B3: Billing Cycle and HDD Data Summary
B4: Territory | C4: NW
B5: Year | C5: =DateSet!C2 -> 2026
B6: Analysis Start | C6: =DateSet!C3 -> 2025-09-01
B8: Rate Category | C8: EGGR_RS | D8: Cust Class | E8: =INDEX(RateCat[CustClass],MATCH(C8,RateCat[RateCategory],0)) -> Res
B9: WNA factor = HDD Diff * No. of Bills * Beta Coefficient (See NW Cycles)
B10: Month | C10: WNA Factor | D10: Vol. Rate | E10: WNAi
B11: =$C$6 -> 45901 | C11: =SUMPRODUCT((NWCycles[MonthBill]=B11)*(NWCycles[CustClass]=$E$8)*NWCycles[WNAFactor]) -> 20314.48244 | D11: =IFERROR(E11/C11,0) -> 0.217480313 | E11: =SUMPRODUCT((NWCycles[MonthBill]=B11)*(NWCycles[CustClass]=$E$8)*NWCycles[WNA]) -> 4418
B12: =EDATE(B11,1) -> 45931 | C12: =SUMPRODUCT((NWCycles[MonthBill]=B12)*(NWCycles[CustClass]=$E$8)*NWCycles[WNAFactor]) -> 31133.46609 | D12: =IFERROR(E12/C12,0) -> 0.2174801219 | E12: =SUMPRODUCT((NWCycles[MonthBill]=B12)*(NWCycles[CustClass]=$E$8)*NWCycles[WNA]) -> 6770.91
B13: =EDATE(B12,1) -> 45962 | C13: =SUMPRODUCT((NWCycles[MonthBill]=B13)*(NWCycles[CustClass]=$E$8)*NWCycles[WNAFactor]) -> 63461.94335 | D13: 0.2174801034 | E13: =SUMPRODUCT((NWCycles[MonthBill]=B13)*(NWCycles[CustClass]=$E$8)*NWCycles[WNA]) -> 13801.71
B14: =EDATE(B13,1) -> 45992 | C14: =SUMPRODUCT((NWCycles[MonthBill]=B14)*(NWCycles[CustClass]=$E$8)*NWCycles[WNAFactor]) -> 29870.0853 | D14: 0.2174801288 | E14: =SUMPRODUCT((NWCycles[MonthBill]=B14)*(NWCycles[CustClass]=$E$8)*NWCycles[WNA]) -> 6496.15
B15: =EDATE(B14,1) -> 46023 | C15: =SUMPRODUCT((NWCycles[MonthBill]=B15)*(NWCycles[CustClass]=$E$8)*NWCycles[WNAFactor]) -> 46191.93552 | D15: 0.2174801702 | E15: =SUMPRODUCT((NWCycles[MonthBill]=B15)*(NWCycles[CustClass]=$E$8)*NWCycles[WNA]) -> 10045.83
B16: =EDATE(B15,1) -> 46054 | C16: =SUMPRODUCT((NWCycles[MonthBill]=B16)*(NWCycles[CustClass]=$E$8)*NWCycles[WNAFactor]) -> 45212.31494 | D16: 0.2174801271 | E16: =SUMPRODUCT((NWCycles[MonthBill]=B16)*(NWCycles[CustClass]=$E$8)*NWCycles[WNA]) -> 9832.78
B17: =EDATE(B16,1) -> 46082 | C17: =SUMPRODUCT((NWCycles[MonthBill]=B17)*(NWCycles[CustClass]=$E$8)*NWCycles[WNAFactor]) -> 140136.5391 | D17: 0.2174800391 | E17: =SUMPRODUCT((NWCycles[MonthBill]=B17)*(NWCycles[CustClass]=$E$8)*NWCycles[WNA]) -> 30476.9
B18: 46113 | C18: =SUMPRODUCT((NWCycles[MonthBill]=B18)*(NWCycles[CustClass]=$E$8)*NWCycles[WNAFactor]) -> 106511.4292 | D18: 0.2174799473 | E18: =SUMPRODUCT((NWCycles[MonthBill]=B18)*(NWCycles[CustClass]=$E$8)*NWCycles[WNA]) -> 23164.1
B19: 46143 | C19: =SUMPRODUCT((NWCycles[MonthBill]=B19)*(NWCycles[CustClass]=$E$8)*NWCycles[WNAFactor]) -> 39747.2304 | D19: 0.2174800587 | E19: =SUMPRODUCT((NWCycles[MonthBill]=B19)*(NWCycles[CustClass]=$E$8)*NWCycles[WNA]) -> 8644.23
B20: 46174 | C20: =SUMPRODUCT((NWCycles[MonthBill]=B20)*(NWCycles[CustClass]=$E$8)*NWCycles[WNAFactor]) -> -1578.635657 | D20: 0.2174852687 | E20: =SUMPRODUCT((NWCycles[MonthBill]=B20)*(NWCycles[CustClass]=$E$8)*NWCycles[WNA]) -> -343.33
B21: 46204 | C21: =SUMPRODUCT((NWCycles[MonthBill]=B21)*(NWCycles[CustClass]=$E$8)*NWCycles[WNAFactor]) -> 4049.61088 | D21: 0.2174776852 | E21: =SUMPRODUCT((NWCycles[MonthBill]=B21)*(NWCycles[CustClass]=$E$8)*NWCycles[WNA]) -> 880.7
B22: =EDATE(B21,1) -> 46235 | C22: =SUMPRODUCT((NWCycles[MonthBill]=B22)*(NWCycles[CustClass]=$E$8)*NWCycles[WNAFactor]) -> 0 | D22: 0 | E22: =SUMPRODUCT((NWCycles[MonthBill]=B22)*(NWCycles[CustClass]=$E$8)*NWCycles[WNA]) -> 0
B23: Totals | C23: =SUM(C11:C22) -> 525050.4015 | D23: =ROUND(E23/C23,5) -> 0.21748 | E23: =SUM(E11:E22) -> 114187.98
B24: Recon Period Adj. | C24: =E23 -> 114187.98
B25: Enter in Reconciling Period Adjustment Table (ReconPerAdj)
B26: Enter WNA Amounts in CAWNA Amounts Table
B28: Rate Category | C28: EGGC_SGS | D28: Cust Class | E28: =INDEX(RateCat[CustClass],MATCH(C28,RateCat[RateCategory],0)) -> SGS
B29: WNA factor = HDD Diff * No. of Bills * Beta Coefficient (See NW Cycles)
B30: Month | C30: WNA Factor | D30: Vol. Rate | E30: WNAi
B31: =$C$6 -> 45901 | C31: =SUMPRODUCT((NWCycles[MonthBill]=B31)*(NWCycles[CustClass]=$E$28)*NWCycles[WNAFactor]) -> 7198.832432 | D31: =IFERROR(E31/C31,0) -> 0.2603311048 | E31: =SUMPRODUCT((NWCycles[MonthBill]=B31)*(NWCycles[CustClass]=$E$28)*NWCycles[WNA]) -> 1874.08
B32: =EDATE(B31,1) -> 45931 | C32: =SUMPRODUCT((NWCycles[MonthBill]=B32)*(NWCycles[CustClass]=$E$28)*NWCycles[WNAFactor]) -> 10397.7825 | D32: =IFERROR(E32/C32,0) -> 0.260330508 | E32: =SUMPRODUCT((NWCycles[MonthBill]=B32)*(NWCycles[CustClass]=$E$28)*NWCycles[WNA]) -> 2706.86
B33: =EDATE(B32,1) -> 45962 | C33: =SUMPRODUCT((NWCycles[MonthBill]=B33)*(NWCycles[CustClass]=$E$28)*NWCycles[WNAFactor]) -> 21075.62118 | D33: 0.2603301679 | E33: =SUMPRODUCT((NWCycles[MonthBill]=B33)*(NWCycles[CustClass]=$E$28)*NWCycles[WNA]) -> 5486.62
B34: =EDATE(B33,1) -> 45992 | C34: =SUMPRODUCT((NWCycles[MonthBill]=B34)*(NWCycles[CustClass]=$E$28)*NWCycles[WNAFactor]) -> 9698.562262 | D34: 0.2603293078 | E34: =SUMPRODUCT((NWCycles[MonthBill]=B34)*(NWCycles[CustClass]=$E$28)*NWCycles[WNA]) -> 2524.82
B35: =EDATE(B34,1) -> 46023 | C35: =SUMPRODUCT((NWCycles[MonthBill]=B35)*(NWCycles[CustClass]=$E$28)*NWCycles[WNAFactor]) -> 14331.35836 | D35: 0.2603305218 | E35: =SUMPRODUCT((NWCycles[MonthBill]=B35)*(NWCycles[CustClass]=$E$28)*NWCycles[WNA]) -> 3730.89
B36: =EDATE(B35,1) -> 46054 | C36: =SUMPRODUCT((NWCycles[MonthBill]=B36)*(NWCycles[CustClass]=$E$28)*NWCycles[WNAFactor]) -> 14721.82177 | D36: 0.2603298736 | E36: =SUMPRODUCT((NWCycles[MonthBill]=B36)*(NWCycles[CustClass]=$E$28)*NWCycles[WNA]) -> 3832.53
B37: =EDATE(B36,1) -> 46082 | C37: =SUMPRODUCT((NWCycles[MonthBill]=B37)*(NWCycles[CustClass]=$E$28)*NWCycles[WNAFactor]) -> 45644.40435 | D37: 0.2603298294 | E37: =SUMPRODUCT((NWCycles[MonthBill]=B37)*(NWCycles[CustClass]=$E$28)*NWCycles[WNA]) -> 11882.6
B38: 46113 | C38: =SUMPRODUCT((NWCycles[MonthBill]=B38)*(NWCycles[CustClass]=$E$28)*NWCycles[WNAFactor]) -> 34230.62576 | D38: 0.2603297428 | E38: =SUMPRODUCT((NWCycles[MonthBill]=B38)*(NWCycles[CustClass]=$E$28)*NWCycles[WNA]) -> 8911.25
B39: 46143 | C39: =SUMPRODUCT((NWCycles[MonthBill]=B39)*(NWCycles[CustClass]=$E$28)*NWCycles[WNAFactor]) -> 13180.97506 | D39: 0.2603312716 | E39: =SUMPRODUCT((NWCycles[MonthBill]=B39)*(NWCycles[CustClass]=$E$28)*NWCycles[WNA]) -> 3431.42
B40: 46174 | C40: =SUMPRODUCT((NWCycles[MonthBill]=B40)*(NWCycles[CustClass]=$E$28)*NWCycles[WNAFactor]) -> -518.5694981 | D40: 0.2603122638 | E40: =SUMPRODUCT((NWCycles[MonthBill]=B40)*(NWCycles[CustClass]=$E$28)*NWCycles[WNA]) -> -134.99
B41: 46204 | C41: =SUMPRODUCT((NWCycles[MonthBill]=B41)*(NWCycles[CustClass]=$E$28)*NWCycles[WNAFactor]) -> 1326.713795 | D41: 0.2603274356 | E41: =SUMPRODUCT((NWCycles[MonthBill]=B41)*(NWCycles[CustClass]=$E$28)*NWCycles[WNA]) -> 345.38
B42: =EDATE(B41,1) -> 46235 | C42: =SUMPRODUCT((NWCycles[MonthBill]=B42)*(NWCycles[CustClass]=$E$28)*NWCycles[WNAFactor]) -> 0 | D42: 0 | E42: =SUMPRODUCT((NWCycles[MonthBill]=B42)*(NWCycles[CustClass]=$E$28)*NWCycles[WNA]) -> 0
B43: Totals | C43: =SUM(C31:C42) -> 171288.128 | D43: =ROUND(E43/C43,5) -> 0.26033 | E43: =SUM(E31:E42) -> 44591.46
B44: Recon Period Adj. | C44: =E43 -> 44591.46
B45: Enter in Reconciling Period Adjustment Table (ReconPerAdj)
B46: Enter WNA Amounts in CAWNA Amounts Table

Sheet CAWNA South
B2: Empire District Gas Company | E2: Filing Year
B3: Billing Cycle and HDD Data Summary
B4: Territory | C4: South
B5: Year | C5: =DateSet!C2 -> 2026
B6: Analysis Start | C6: =DateSet!C3 -> 2025-09-01
B8: Rate Category | C8: ESGR_RS | D8: Cust Class | E8: =INDEX(RateCat[CustClass],MATCH(C8,RateCat[RateCategory],0)) -> Res
B9: WNA factor = HDD Diff * No. of Bills * Beta Coefficient (See South Cycles)
B10: Month | C10: WNA Factor | D10: Vol. Rate | E10: WNAi
B11: =$C$6 -> 45901 | C11: =SUMPRODUCT((SouthCycles[MonthBill]=B11)*(SouthCycles[CustClass]=$E$8)*SouthCycles[WNAFactor]) -> 102227.8999 | D11: =IFERROR(E11/C11,0) -> 0.2174799642 | E11: =SUMPRODUCT((SouthCycles[MonthBill]=B11)*(SouthCycles[CustClass]=$E$8)*SouthCycles[WNA]) -> 22232.52
B12: =EDATE(B11,1) -> 45931 | C12: =SUMPRODUCT((SouthCycles[MonthBill]=B12)*(SouthCycles[CustClass]=$E$8)*SouthCycles[WNAFactor]) -> 93769.90356 | D12: =IFERROR(E12/C12,0) -> 0.217479908 | E12: =SUMPRODUCT((SouthCycles[MonthBill]=B12)*(SouthCycles[CustClass]=$E$8)*SouthCycles[WNA]) -> 20393.07
B13: =EDATE(B12,1) -> 45962 | C13: =SUMPRODUCT((SouthCycles[MonthBill]=B13)*(SouthCycles[CustClass]=$E$8)*SouthCycles[WNAFactor]) -> 357467.8394 | D13: 0.217479984 | E13: =SUMPRODUCT((SouthCycles[MonthBill]=B13)*(SouthCycles[CustClass]=$E$8)*SouthCycles[WNA]) -> 77742.1
B14: =EDATE(B13,1) -> 45992 | C14: =SUMPRODUCT((SouthCycles[MonthBill]=B14)*(SouthCycles[CustClass]=$E$8)*SouthCycles[WNAFactor]) -> 179860.1163 | D14: 0.2174800105 | E14: =SUMPRODUCT((SouthCycles[MonthBill]=B14)*(SouthCycles[CustClass]=$E$8)*SouthCycles[WNA]) -> 39115.98
B15: =EDATE(B14,1) -> 46023 | C15: =SUMPRODUCT((SouthCycles[MonthBill]=B15)*(SouthCycles[CustClass]=$E$8)*SouthCycles[WNAFactor]) -> 248042.533 | D15: 0.2174799997 | E15: =SUMPRODUCT((SouthCycles[MonthBill]=B15)*(SouthCycles[CustClass]=$E$8)*SouthCycles[WNA]) -> 53944.29
B16: =EDATE(B15,1) -> 46054 | C16: =SUMPRODUCT((SouthCycles[MonthBill]=B16)*(SouthCycles[CustClass]=$E$8)*SouthCycles[WNAFactor]) -> 81264.11582 | D16: 0.2174800011 | E16: =SUMPRODUCT((SouthCycles[MonthBill]=B16)*(SouthCycles[CustClass]=$E$8)*SouthCycles[WNA]) -> 17673.32
B17: =EDATE(B16,1) -> 46082 | C17: =SUMPRODUCT((SouthCycles[MonthBill]=B17)*(SouthCycles[CustClass]=$E$8)*SouthCycles[WNAFactor]) -> 780372.7374 | D17: 0.2174799962 | E17: =SUMPRODUCT((SouthCycles[MonthBill]=B17)*(SouthCycles[CustClass]=$E$8)*SouthCycles[WNA]) -> 169715.46
B18: 46113 | C18: =SUMPRODUCT((SouthCycles[MonthBill]=B18)*(SouthCycles[CustClass]=$E$8)*SouthCycles[WNAFactor]) -> 623131.9732 | D18: 0.2174799976 | E18: =SUMPRODUCT((SouthCycles[MonthBill]=B18)*(SouthCycles[CustClass]=$E$8)*SouthCycles[WNA]) -> 135518.74
B19: 46143 | C19: =SUMPRODUCT((SouthCycles[MonthBill]=B19)*(SouthCycles[CustClass]=$E$8)*SouthCycles[WNAFactor]) -> 246803.2453 | D19: 0.2174800008 | E19: =SUMPRODUCT((SouthCycles[MonthBill]=B19)*(SouthCycles[CustClass]=$E$8)*SouthCycles[WNA]) -> 53674.77
B20: 46174 | C20: =SUMPRODUCT((SouthCycles[MonthBill]=B20)*(SouthCycles[CustClass]=$E$8)*SouthCycles[WNAFactor]) -> -9481.426378 | D20: 0.2174788811 | E20: =SUMPRODUCT((SouthCycles[MonthBill]=B20)*(SouthCycles[CustClass]=$E$8)*SouthCycles[WNA]) -> -2062.01
B21: 46204 | C21: =SUMPRODUCT((SouthCycles[MonthBill]=B21)*(SouthCycles[CustClass]=$E$8)*SouthCycles[WNAFactor]) -> 21179.74926 | D21: 0.2174799117 | E21: =SUMPRODUCT((SouthCycles[MonthBill]=B21)*(SouthCycles[CustClass]=$E$8)*SouthCycles[WNA]) -> 4606.17
B22: =EDATE(B21,1) -> 46235 | C22: =SUMPRODUCT((SouthCycles[MonthBill]=B22)*(SouthCycles[CustClass]=$E$8)*SouthCycles[WNAFactor]) -> 0 | D22: 0 | E22: =SUMPRODUCT((SouthCycles[MonthBill]=B22)*(SouthCycles[CustClass]=$E$8)*SouthCycles[WNA]) -> 0
B23: Totals | C23: =SUM(C11:C22) -> 2724638.687 | D23: =ROUND(E23/C23,5) -> 0.21748 | E23: =SUM(E11:E22) -> 592554.41
B24: Recon Period Adj. | C24: =E23 -> 592554.41
B25: Enter in Reconciling Period Adjustment Table (ReconPerAdj)
B26: Enter WNA Amounts in CAWNA Amounts Table
B28: Rate Category | C28: ESGC_SGS | D28: Cust Class | E28: =INDEX(RateCat[CustClass],MATCH(C28,RateCat[RateCategory],0)) -> SGS
B29: WNA factor = HDD Diff * No. of Bills * Beta Coefficient (See South Cycles)
B30: Month | C30: WNA Factor | D30: Vol. Rate | E30: WNAi
B31: =$C$6 -> 45901 | C31: =SUMPRODUCT((SouthCycles[MonthBill]=B31)*(SouthCycles[CustClass]=$E$28)*SouthCycles[WNAFactor]) -> 28607.57063 | D31: =IFERROR(E31/C31,0) -> 0.2603303893 | E31: =SUMPRODUCT((SouthCycles[MonthBill]=B31)*(SouthCycles[CustClass]=$E$28)*SouthCycles[WNA]) -> 7447.42
B32: =EDATE(B31,1) -> 45931 | C32: =SUMPRODUCT((SouthCycles[MonthBill]=B32)*(SouthCycles[CustClass]=$E$28)*SouthCycles[WNAFactor]) -> 23953.41017 | D32: =IFERROR(E32/C32,0) -> 0.260329947 | E32: =SUMPRODUCT((SouthCycles[MonthBill]=B32)*(SouthCycles[CustClass]=$E$28)*SouthCycles[WNA]) -> 6235.79
B33: =EDATE(B32,1) -> 45962 | C33: =SUMPRODUCT((SouthCycles[MonthBill]=B33)*(SouthCycles[CustClass]=$E$28)*SouthCycles[WNAFactor]) -> 95725.95886 | D33: 0.2603299073 | E33: =SUMPRODUCT((SouthCycles[MonthBill]=B33)*(SouthCycles[CustClass]=$E$28)*SouthCycles[WNA]) -> 24920.33
B34: =EDATE(B33,1) -> 45992 | C34: =SUMPRODUCT((SouthCycles[MonthBill]=B34)*(SouthCycles[CustClass]=$E$28)*SouthCycles[WNAFactor]) -> 45859.03808 | D34: 0.2603299262 | E34: =SUMPRODUCT((SouthCycles[MonthBill]=B34)*(SouthCycles[CustClass]=$E$28)*SouthCycles[WNA]) -> 11938.48
B35: =EDATE(B34,1) -> 46023 | C35: =SUMPRODUCT((SouthCycles[MonthBill]=B35)*(SouthCycles[CustClass]=$E$28)*SouthCycles[WNAFactor]) -> 60728.72648 | D35: 0.2603300105 | E35: =SUMPRODUCT((SouthCycles[MonthBill]=B35)*(SouthCycles[CustClass]=$E$28)*SouthCycles[WNA]) -> 15809.51
B36: =EDATE(B35,1) -> 46054 | C36: =SUMPRODUCT((SouthCycles[MonthBill]=B36)*(SouthCycles[CustClass]=$E$28)*SouthCycles[WNAFactor]) -> 20481.39648 | D36: 0.2603303932 | E36: =SUMPRODUCT((SouthCycles[MonthBill]=B36)*(SouthCycles[CustClass]=$E$28)*SouthCycles[WNA]) -> 5331.93
B37: =EDATE(B36,1) -> 46082 | C37: =SUMPRODUCT((SouthCycles[MonthBill]=B37)*(SouthCycles[CustClass]=$E$28)*SouthCycles[WNAFactor]) -> 198267.906 | D37: 0.2603300305 | E37: =SUMPRODUCT((SouthCycles[MonthBill]=B37)*(SouthCycles[CustClass]=$E$28)*SouthCycles[WNA]) -> 51615.09
B38: 46113 | C38: =SUMPRODUCT((SouthCycles[MonthBill]=B38)*(SouthCycles[CustClass]=$E$28)*SouthCycles[WNAFactor]) -> 160420.0771 | D38: 0.2603300083 | E38: =SUMPRODUCT((SouthCycles[MonthBill]=B38)*(SouthCycles[CustClass]=$E$28)*SouthCycles[WNA]) -> 41762.16
B39: 46143 | C39: =SUMPRODUCT((SouthCycles[MonthBill]=B39)*(SouthCycles[CustClass]=$E$28)*SouthCycles[WNAFactor]) -> 63109.69465 | D39: 0.260330209 | E39: =SUMPRODUCT((SouthCycles[MonthBill]=B39)*(SouthCycles[CustClass]=$E$28)*SouthCycles[WNA]) -> 16429.36
B40: 46174 | C40: =SUMPRODUCT((SouthCycles[MonthBill]=B40)*(SouthCycles[CustClass]=$E$28)*SouthCycles[WNAFactor]) -> -2398.599966 | D40: 0.260322692 | E40: =SUMPRODUCT((SouthCycles[MonthBill]=B40)*(SouthCycles[CustClass]=$E$28)*SouthCycles[WNA]) -> -624.41
B41: 46204 | C41: =SUMPRODUCT((SouthCycles[MonthBill]=B41)*(SouthCycles[CustClass]=$E$28)*SouthCycles[WNAFactor]) -> 5299.284773 | D41: 0.2603313577 | E41: =SUMPRODUCT((SouthCycles[MonthBill]=B41)*(SouthCycles[CustClass]=$E$28)*SouthCycles[WNA]) -> 1379.57
B42: =EDATE(B41,1) -> 46235 | C42: =SUMPRODUCT((SouthCycles[MonthBill]=B42)*(SouthCycles[CustClass]=$E$28)*SouthCycles[WNAFactor]) -> 0 | D42: 0 | E42: =SUMPRODUCT((SouthCycles[MonthBill]=B42)*(SouthCycles[CustClass]=$E$28)*SouthCycles[WNA]) -> 0
B43: Totals | C43: =SUM(C31:C42) -> 700054.4632 | D43: =ROUND(E43/C43,5) -> 0.26033 | E43: =SUM(E31:E42) -> 182245.23
B44: Recon Period Adj. | C44: =E43 -> 182245.23
B45: Enter in Reconciling Period Adjustment Table (ReconPerAdj)
B46: Enter WNA Amounts in CAWNA Amounts Table

Sheet North Cycles
A1: MonthBill | B1: RateCategory | C1: Cycle | D1: NoOfBills | E1: BegRdDate | F1: EndRdDate | G1: NHDD | H1: AHDD | I1: HDDDiff | J1: Diff*NoOfBills | K1: BetaCoeff | L1: WNAFactor | M1: VolRate | N1: WNA | O1: CustClass | P1: Preparer's Notes | Q1: Reviewer's Notes
A2: 45505 | B2: ENGC_SGS | C2: 8 | D2: 241 | E2: =SUMPRODUCT((MeterReadSch[MonthBill]=NorthCycles[[#This Row],[MonthBill]])*(MeterReadSch[Cycle]=NorthCycles[[#This Row],[Cycle]])*MeterReadSch[Begin Bill Period]) -> 45483 | F2: =SUMPRODUCT((MeterReadSch[MonthBill]=NorthCycles[[#This Row],[MonthBill]])*(MeterReadSch[Cycle]=NorthCycles[[#This Row],[Cycle]])*MeterReadSch[End Bill Period]) -> 45513 | G2: =SUMPRODUCT((KCITempAct[Date]>=NorthCycles[[#This Row],[BegRdDate]])*(KCITempAct[Date]<=NorthCycles[[#This Row],[EndRdDate]])*KCITempAct[KCINHDDAdj]) -> 0 | H2: =SUMPRODUCT((KCITempAct[Date]>=NorthCycles[[#This Row],[BegRdDate]])*(KCITempAct[Date]<=NorthCycles[[#This Row],[EndRdDate]])*KCITempAct[KCIHDDAdj]) -> 0 | I2: =NorthCycles[[#This Row],[NHDD]]-NorthCycles[[#This Row],[AHDD]] -> 0 | J2: =NorthCycles[[#This Row],[HDDDiff]]*NorthCycles[[#This Row],[NoOfBills]] -> 0 | K2: =SUMPRODUCT((BetaCoeff[BeginDate]<=NorthCycles[[#This Row],[BegRdDate]])*(BetaCoeff[EndDate]>=NorthCycles[[#This Row],[EndRdDate]])*(BetaCoeff[CustClass]=NorthCycles[[#This Row],[CustClass]])*BetaCoeff[BetaCoeff]) -> 0.2793279 | L2: =NorthCycles[[#This Row],[Diff*NoOfBills]]*NorthCycles[[#This Row],[BetaCoeff]] -> 0 | M2: =SUMPRODUCT((NorthCycles[[#This Row],[BegRdDate]]>=VolRates[BeginDate])*(NorthCycles[[#This Row],[EndRdDate]]<=VolRates[EndDate])*(VolRates[CustClass]=NorthCycles[[#This Row],[CustClass]])*VolRates[VolRate]) -> 0.26033 | N2: =ROUND(NorthCycles[[#This Row],[WNAFactor]]*NorthCycles[[#This Row],[VolRate]],2) -> 0 | O2: =INDEX(RateCat[CustClass],MATCH(NorthCycles[[#This Row],[RateCategory]],RateCat[RateCategory],0)) -> SGS | P2: Customer Charge Counts from Revenue Reports
A3: 45505 | B3: ENGC_SGS | C3: 9 | D3: 374 | E3: =SUMPRODUCT((MeterReadSch[MonthBill]=NorthCycles[[#This Row],[MonthBill]])*(MeterReadSch[Cycle]=NorthCycles[[#This Row],[Cycle]])*MeterReadSch[Begin Bill Period]) -> 45484 | F3: =SUMPRODUCT((MeterReadSch[MonthBill]=NorthCycles[[#This Row],[MonthBill]])*(MeterReadSch[Cycle]=NorthCycles[[#This Row],[Cycle]])*MeterReadSch[End Bill Period]) -> 45516 | G3: =SUMPRODUCT((KCITempAct[Date]>=NorthCycles[[#This Row],[BegRdDate]])*(KCITempAct[Date]<=NorthCycles[[#This Row],[EndRdDate]])*KCITempAct[KCINHDDAdj]) -> 0 | H3: =SUMPRODUCT((KCITempAct[Date]>=NorthCycles[[#This Row],[BegRdDate]])*(KCITempAct[Date]<=NorthCycles[[#This Row],[EndRdDate]])*KCITempAct[KCIHDDAdj]) -> 0 | I3: =NorthCycles[[#This Row],[NHDD]]-NorthCycles[[#This Row],[AHDD]] -> 0 | J3: =NorthCycles[[#This Row],[HDDDiff]]*NorthCycles[[#This Row],[NoOfBills]] -> 0 | K3: =SUMPRODUCT((BetaCoeff[BeginDate]<=NorthCycles[[#This Row],[BegRdDate]])*(BetaCoeff[EndDate]>=NorthCycles[[#This Row],[EndRdDate]])*(BetaCoeff[CustClass]=NorthCycles[[#This Row],[CustClass]])*BetaCoeff[BetaCoeff]) -> 0.2793279 | L3: =NorthCycles[[#This Row],[Diff*NoOfBills]]*NorthCycles[[#This Row],[BetaCoeff]] -> 0 | M3: =SUMPRODUCT((NorthCycles[[#This Row],[BegRdDate]]>=VolRates[BeginDate])*(NorthCycles[[#This Row],[EndRdDate]]<=VolRates[EndDate])*(VolRates[CustClass]=NorthCycles[[#This Row],[CustClass]])*VolRates[VolRate]) -> 0.26033 | N3: =ROUND(NorthCycles[[#This Row],[WNAFactor]]*NorthCycles[[#This Row],[VolRate]],2) -> 0 | O3: =INDEX(RateCat[CustClass],MATCH(NorthCycles[[#This Row],[RateCategory]],RateCat[RateCategory],0)) -> SGS | P3: Customer Charge Counts from Revenue Reports
A4: 45505 | B4: ENGC_SGS | C4: 10 | D4: 803 | E4: =SUMPRODUCT((MeterReadSch[MonthBill]=NorthCycles[[#This Row],[MonthBill]])*(MeterReadSch[Cycle]=NorthCycles[[#This Row],[Cycle]])*MeterReadSch[Begin Bill Period]) -> 45484 | F4: =SUMPRODUCT((MeterReadSch[MonthBill]=NorthCycles[[#This Row],[MonthBill]])*(MeterReadSch[Cycle]=NorthCycles[[#This Row],[Cycle]])*MeterReadSch[End Bill Period]) -> 45516 | G4: =SUMPRODUCT((KCITempAct[Date]>=NorthCycles[[#This Row],[BegRdDate]])*(KCITempAct[Date]<=NorthCycles[[#This Row],[EndRdDate]])*KCITempAct[KCINHDDAdj]) -> 0 | H4: =SUMPRODUCT((KCITempAct[Date]>=NorthCycles[[#This Row],[BegRdDate]])*(KCITempAct[Date]<=NorthCycles[[#This Row],[EndRdDate]])*KCITempAct[KCIHDDAdj]) -> 0 | I4: =NorthCycles[[#This Row],[NHDD]]-NorthCycles[[#This Row],[AHDD]] -> 0 | J4: =NorthCycles[[#This Row],[HDDDiff]]*NorthCycles[[#This Row],[NoOfBills]] -> 0 | K4: =SUMPRODUCT((BetaCoeff[BeginDate]<=NorthCycles[[#This Row],[BegRdDate]])*(BetaCoeff[EndDate]>=NorthCycles[[#This Row],[EndRdDate]])*(BetaCoeff[CustClass]=NorthCycles[[#This Row],[CustClass]])*BetaCoeff[BetaCoeff]) -> 0.2793279 | L4: =NorthCycles[[#This Row],[Diff*NoOfBills]]*NorthCycles[[#This Row],[BetaCoeff]] -> 0 | M4: =SUMPRODUCT((NorthCycles[[#This Row],[BegRdDate]]>=VolRates[BeginDate])*(NorthCycles[[#This Row],[EndRdDate]]<=VolRates[EndDate])*(VolRates[CustClass]=NorthCycles[[#This Row],[CustClass]])*VolRates[VolRate]) -> 0.26033 | N4: =ROUND(NorthCycles[[#This Row],[WNAFactor]]*NorthCycles[[#This Row],[VolRate]],2) -> 0 | O4: =INDEX(RateCat[CustClass],MATCH(NorthCycles[[#This Row],[RateCategory]],RateCat[RateCategory],0)) -> SGS | P4: Customer Charge Counts from Revenue Reports
A5: 45505 | B5: ENGR_RS | C5: 8 | D5: 1220 | E5: =SUMPRODUCT((MeterReadSch[MonthBill]=NorthCycles[[#This Row],[MonthBill]])*(MeterReadSch[Cycle]=NorthCycles[[#This Row],[Cycle]])*MeterReadSch[Begin Bill Period]) -> 45483 | F5: =SUMPRODUCT((MeterReadSch[MonthBill]=NorthCycles[[#This Row],[MonthBill]])*(MeterReadSch[Cycle]=NorthCycles[[#This Row],[Cycle]])*MeterReadSch[End Bill Period]) -> 45513 | G5: =SUMPRODUCT((KCITempAct[Date]>=NorthCycles[[#This Row],[BegRdDate]])*(KCITempAct[Date]<=NorthCycles[[#This Row],[EndRdDate]])*KCITempAct[KCINHDDAdj]) -> 0 | H5: =SUMPRODUCT((KCITempAct[Date]>=NorthCycles[[#This Row],[BegRdDate]])*(KCITempAct[Date]<=NorthCycles[[#This Row],[EndRdDate]])*KCITempAct[KCIHDDAdj]) -> 0 | I5: =NorthCycles[[#This Row],[NHDD]]-NorthCycles[[#This Row],[AHDD]] -> 0 | J5: =NorthCycles[[#This Row],[HDDDiff]]*NorthCycles[[#This Row],[NoOfBills]] -> 0 | K5: =SUMPRODUCT((BetaCoeff[BeginDate]<=NorthCycles[[#This Row],[BegRdDate]])*(BetaCoeff[EndDate]>=NorthCycles[[#This Row],[EndRdDate]])*(BetaCoeff[CustClass]=NorthCycles[[#This Row],[CustClass]])*BetaCoeff[BetaCoeff]) -> 0.1234365 | L5: =NorthCycles[[#This Row],[Diff*NoOfBills]]*NorthCycles[[#This Row],[BetaCoeff]] -> 0 | M5: =SUMPRODUCT((NorthCycles[[#This Row],[BegRdDate]]>=VolRates[BeginDate])*(NorthCycles[[#This Row],[EndRdDate]]<=VolRates[EndDate])*(VolRates[CustClass]=NorthCycles[[#This Row],[CustClass]])*VolRates[VolRate]) -> 0.21748 | N5: =ROUND(NorthCycles[[#This Row],[WNAFactor]]*NorthCycles[[#This Row],[VolRate]],2) -> 0 | O5: =INDEX(RateCat[CustClass],MATCH(NorthCycles[[#This Row],[RateCategory]],RateCat[RateCategory],0)) -> Res | P5: Customer Charge Counts from Revenue Reports
A6: 45505 | B6: ENGR_RS | C6: 9 | D6: 2612 | E6: =SUMPRODUCT((MeterReadSch[MonthBill]=NorthCycles[[#This Row],[MonthBill]])*(MeterReadSch[Cycle]=NorthCycles[[#This Row],[Cycle]])*MeterReadSch[Begin Bill Period]) -> 45484 | F6: =SUMPRODUCT((MeterReadSch[MonthBill]=NorthCycles[[#This Row],[MonthBill]])*(MeterReadSch[Cycle]=NorthCycles[[#This Row],[Cycle]])*MeterReadSch[End Bill Period]) -> 45516 | G6: =SUMPRODUCT((KCITempAct[Date]>=NorthCycles[[#This Row],[BegRdDate]])*(KCITempAct[Date]<=NorthCycles[[#This Row],[EndRdDate]])*KCITempAct[KCINHDDAdj]) -> 0 | H6: =SUMPRODUCT((KCITempAct[Date]>=NorthCycles[[#This Row],[BegRdDate]])*(KCITempAct[Date]<=NorthCycles[[#This Row],[EndRdDate]])*KCITempAct[KCIHDDAdj]) -> 0 | I6: =NorthCycles[[#This Row],[NHDD]]-NorthCycles[[#This Row],[AHDD]] -> 0 | J6: =NorthCycles[[#This Row],[HDDDiff]]*NorthCycles[[#This Row],[NoOfBills]] -> 0 | K6: =SUMPRODUCT((BetaCoeff[BeginDate]<=NorthCycles[[#This Row],[BegRdDate]])*(BetaCoeff[EndDate]>=NorthCycles[[#This Row],[EndRdDate]])*(BetaCoeff[CustClass]=NorthCycles[[#This Row],[CustClass]])*BetaCoeff[BetaCoeff]) -> 0.1234365 | L6: =NorthCycles[[#This Row],[Diff*NoOfBills]]*NorthCycles[[#This Row],[BetaCoeff]] -> 0 | M6: =SUMPRODUCT((NorthCycles[[#This Row],[BegRdDate]]>=VolRates[BeginDate])*(NorthCycles[[#This Row],[EndRdDate]]<=VolRates[EndDate])*(VolRates[CustClass]=NorthCycles[[#This Row],[CustClass]])*VolRates[VolRate]) -> 0.21748 | N6: =ROUND(NorthCycles[[#This Row],[WNAFactor]]*NorthCycles[[#This Row],[VolRate]],2) -> 0 | O6: =INDEX(RateCat[CustClass],MATCH(NorthCycles[[#This Row],[RateCategory]],RateCat[RateCategory],0)) -> Res | P6: Customer Charge Counts from Revenue Reports
A7: 45505 | B7: ENGR_RS | C7: 10 | D7: 4581 | E7: =SUMPRODUCT((MeterReadSch[MonthBill]=NorthCycles[[#This Row],[MonthBill]])*(MeterReadSch[Cycle]=NorthCycles[[#This Row],[Cycle]])*MeterReadSch[Begin Bill Period]) -> 45484 | F7: =SUMPRODUCT((MeterReadSch[MonthBill]=NorthCycles[[#This Row],[MonthBill]])*(MeterReadSch[Cycle]=NorthCycles[[#This Row],[Cycle]])*MeterReadSch[End Bill Period]) -> 45516 | G7: =SUMPRODUCT((KCITempAct[Date]>=NorthCycles[[#This Row],[BegRdDate]])*(KCITempAct[Date]<=NorthCycles[[#This Row],[EndRdDate]])*KCITempAct[KCINHDDAdj]) -> 0 | H7: =SUMPRODUCT((KCITempAct[Date]>=NorthCycles[[#This Row],[BegRdDate]])*(KCITempAct[Date]<=NorthCycles[[#This Row],[EndRdDate]])*KCITempAct[KCIHDDAdj]) -> 0 | I7: =NorthCycles[[#This Row],[NHDD]]-NorthCycles[[#This Row],[AHDD]] -> 0 | J7: =NorthCycles[[#This Row],[HDDDiff]]*NorthCycles[[#This Row],[NoOfBills]] -> 0 | K7: =SUMPRODUCT((BetaCoeff[BeginDate]<=NorthCycles[[#This Row],[BegRdDate]])*(BetaCoeff[EndDate]>=NorthCycles[[#This Row],[EndRdDate]])*(BetaCoeff[CustClass]=NorthCycles[[#This Row],[CustClass]])*BetaCoeff[BetaCoeff]) -> 0.1234365 | L7: =NorthCycles[[#This Row],[Diff*NoOfBills]]*NorthCycles[[#This Row],[BetaCoeff]] -> 0 | M7: =SUMPRODUCT((NorthCycles[[#This Row],[BegRdDate]]>=VolRates[BeginDate])*(NorthCycles[[#This Row],[EndRdDate]]<=VolRates[EndDate])*(VolRates[CustClass]=NorthCycles[[#This Row],[CustClass]])*VolRates[VolRate]) -> 0.21748 | N7: =ROUND(NorthCycles[[#This Row],[WNAFactor]]*NorthCycles[[#This Row],[VolRate]],2) -> 0 | O7: =INDEX(RateCat[CustClass],MATCH(NorthCycles[[#This Row],[RateCategory]],RateCat[RateCategory],0)) -> Res | P7: Customer Charge Counts from Revenue Reports
A8: 45536 | B8: ENGC_SGS | C8: 8 | D8: 214 | E8: =SUMPRODUCT((MeterReadSch[MonthBill]=NorthCycles[[#This Row],[MonthBill]])*(MeterReadSch[Cycle]=NorthCycles[[#This Row],[Cycle]])*MeterReadSch[Begin Bill Period]) -> 45514 | F8: =SUMPRODUCT((MeterReadSch[MonthBill]=NorthCycles[[#This Row],[MonthBill]])*(MeterReadSch[Cycle]=NorthCycles[[#This Row],[Cycle]])*MeterReadSch[End Bill Period]) -> 45545 | G8: =SUMPRODUCT((KCITempAct[Date]>=NorthCycles[[#This Row],[BegRdDate]])*(KCITempAct[Date]<=NorthCycles[[#This Row],[EndRdDate]])*KCITempAct[KCINHDDAdj]) -> 22.1 | H8: =SUMPRODUCT((KCITempAct[Date]>=NorthCycles[[#This Row],[BegRdDate]])*(KCITempAct[Date]<=NorthCycles[[#This Row],[EndRdDate]])*KCITempAct[KCIHDDAdj]) -> 6.5 | I8: =NorthCycles[[#This Row],[NHDD]]-NorthCycles[[#This Row],[AHDD]] -> 15.6 | J8: =NorthCycles[[#This Row],[HDDDiff]]*NorthCycles[[#This Row],[NoOfBills]] -> 3338.4 | K8: =SUMPRODUCT((BetaCoeff[BeginDate]<=NorthCycles[[#This Row],[BegRdDate]])*(BetaCoeff[EndDate]>=NorthCycles[[#This Row],[EndRdDate]])*(BetaCoeff[CustClass]=NorthCycles[[#This Row],[CustClass]])*BetaCoeff[BetaCoeff]) -> 0.2793279 | L8: =NorthCycles[[#This Row],[Diff*NoOfBills]]*NorthCycles[[#This Row],[BetaCoeff]] -> 932.5082614 | M8: =SUMPRODUCT((NorthCycles[[#This Row],[BegRdDate]]>=VolRates[BeginDate])*(NorthCycles[[#This Row],[EndRdDate]]<=VolRates[EndDate])*(VolRates[CustClass]=NorthCycles[[#This Row],[CustClass]])*VolRates[VolRate]) -> 0.26033 | N8: =ROUND(NorthCycles[[#This Row],[WNAFactor]]*NorthCycles[[#This Row],[VolRate]],2) -> 242.76 | O8: =INDEX(RateCat[CustClass],MATCH(NorthCycles[[#This Row],[RateCategory]],RateCat[RateCategory],0)) -> SGS | P8: Customer Charge Counts from Revenue Reports
A9: 45536 | B9: ENGC_SGS | C9: 9 | D9: 314 | E9: =SUMPRODUCT((MeterReadSch[MonthBill]=NorthCycles[[#This Row],[MonthBill]])*(MeterReadSch[Cycle]=NorthCycles[[#This Row],[Cycle]])*MeterReadSch[Begin Bill Period]) -> 45517 | F9: =SUMPRODUCT((MeterReadSch[MonthBill]=NorthCycles[[#This Row],[MonthBill]])*(MeterReadSch[Cycle]=NorthCycles[[#This Row],[Cycle]])*MeterReadSch[End Bill Period]) -> 45546 | G9: =SUMPRODUCT((KCITempAct[Date]>=NorthCycles[[#This Row],[BegRdDate]])*(KCITempAct[Date]<=NorthCycles[[#This Row],[EndRdDate]])*KCITempAct[KCINHDDAdj]) -> 22.1 | H9: =SUMPRODUCT((KCITempAct[Date]>=NorthCycles[[#This Row],[BegRdDate]])*(KCITempAct[Date]<=NorthCycles[[#This Row],[EndRdDate]])*KCITempAct[KCIHDDAdj]) -> 6.5 | I9: =NorthCycles[[#This Row],[NHDD]]-NorthCycles[[#This Row],[AHDD]] -> 15.6 | J9: =NorthCycles[[#This Row],[HDDDiff]]*NorthCycles[[#This Row],[NoOfBills]] -> 4898.4 | K9: =SUMPRODUCT((BetaCoeff[BeginDate]<=NorthCycles[[#This Row],[BegRdDate]])*(BetaCoeff[EndDate]>=NorthCycles[[#This Row],[EndRdDate]])*(BetaCoeff[CustClass]=NorthCycles[[#This Row],[CustClass]])*BetaCoeff[BetaCoeff]) -> 0.2793279 | L9: =NorthCycles[[#This Row],[Diff*NoOfBills]]*NorthCycles[[#This Row],[BetaCoeff]] -> 1368.259785 | M9: =SUMPRODUCT((NorthCycles[[#This Row],[BegRdDate]]>=VolRates[BeginDate])*(NorthCycles[[#This Row],[EndRdDate]]<=VolRates[EndDate])*(VolRates[CustClass]=NorthCycles[[#This Row],[CustClass]])*VolRates[VolRate]) -> 0.26033 | N9: =ROUND(NorthCycles[[#This Row],[WNAFactor]]*NorthCycles[[#This Row],[VolRate]],2) -> 356.2 | O9: =INDEX(RateCat[CustClass],MATCH(NorthCycles[[#This Row],[RateCategory]],RateCat[RateCategory],0)) -> SGS | P9: Customer Charge Counts from Revenue Reports
A10: 45536 | B10: ENGC_SGS | C10: 10 | D10: 634 | E10: =SUMPRODUCT((MeterReadSch[MonthBill]=NorthCycles[[#This Row],[MonthBill]])*(MeterReadSch[Cycle]=NorthCycles[[#This Row],[Cycle]])*MeterReadSch[Begin Bill Period]) -> 45517 | F10: =SUMPRODUCT((MeterReadSch[MonthBill]=NorthCycles[[#This Row],[MonthBill]])*(MeterReadSch[Cycle]=NorthCycles[[#This Row],[Cycle]])*MeterReadSch[End Bill Period]) -> 45546 | G10: =SUMPRODUCT((KCITempAct[Date]>=NorthCycles[[#This Row],[BegRdDate]])*(KCITempAct[Date]<=NorthCycles[[#This Row],[EndRdDate]])*KCITempAct[KCINHDDAdj]) -> 22.1 | H10: =SUMPRODUCT((KCITempAct[Date]>=NorthCycles[[#This Row],[BegRdDate]])*(KCITempAct[Date]<=NorthCycles[[#This Row],[EndRdDate]])*KCITempAct[KCIHDDAdj]) -> 6.5 | I10: =NorthCycles[[#This Row],[NHDD]]-NorthCycles[[#This Row],[AHDD]] -> 15.6 | J10: =NorthCycles[[#This Row],[HDDDiff]]*NorthCycles[[#This Row],[NoOfBills]] -> 9890.4 | K10: =SUMPRODUCT((BetaCoeff[BeginDate]<=NorthCycles[[#This Row],[BegRdDate]])*(BetaCoeff[EndDate]>=NorthCycles[[#This Row],[EndRdDate]])*(BetaCoeff[CustClass]=NorthCycles[[#This Row],[CustClass]])*BetaCoeff[BetaCoeff]) -> 0.2793279 | L10: =NorthCycles[[#This Row],[Diff*NoOfBills]]*NorthCycles[[#This Row],[BetaCoeff]] -> 2762.664662 | M10: =SUMPRODUCT((NorthCycles[[#This Row],[BegRdDate]]>=VolRates[BeginDate])*(NorthCycles[[#This Row],[EndRdDate]]<=VolRates[EndDate])*(VolRates[CustClass]=NorthCycles[[#This Row],[CustClass]])*VolRates[VolRate]) -> 0.26033 | N10: =ROUND(NorthCycles[[#This Row],[WNAFactor]]*NorthCycles[[#This Row],[VolRate]],2) -> 719.2 | O10: =INDEX(RateCat[CustClass],MATCH(NorthCycles[[#This Row],[RateCategory]],RateCat[RateCategory],0)) -> SGS | P10: Customer Charge Counts from Revenue Reports
A11: 45536 | B11: ENGR_RS | C11: 8 | D11: 1155 | E11: =SUMPRODUCT((MeterReadSch[MonthBill]=NorthCycles[[#This Row],[MonthBill]])*(MeterReadSch[Cycle]=NorthCycles[[#This Row],[Cycle]])*MeterReadSch[Begin Bill Period]) -> 45514 | F11: =SUMPRODUCT((MeterReadSch[MonthBill]=NorthCycles[[#This Row],[MonthBill]])*(MeterReadSch[Cycle]=NorthCycles[[#This Row],[Cycle]])*MeterReadSch[End Bill Period]) -> 45545 | G11: =SUMPRODUCT((KCITempAct[Date]>=NorthCycles[[#This Row],[BegRdDate]])*(KCITempAct[Date]<=NorthCycles[[#This Row],[EndRdDate]])*KCITempAct[KCINHDDAdj]) -> 22.1 | H11: =SUMPRODUCT((KCITempAct[Date]>=NorthCycles[[#This Row],[BegRdDate]])*(KCITempAct[Date]<=NorthCycles[[#This Row],[EndRdDate]])*KCITempAct[KCIHDDAdj]) -> 6.5 | I11: =NorthCycles[[#This Row],[NHDD]]-NorthCycles[[#This Row],[AHDD]] -> 15.6 | J11: =NorthCycles[[#This Row],[HDDDiff]]*NorthCycles[[#This Row],[NoOfBills]] -> 18018 | K11: =SUMPRODUCT((BetaCoeff[BeginDate]<=NorthCycles[[#This Row],[BegRdDate]])*(BetaCoeff[EndDate]>=NorthCycles[[#This Row],[EndRdDate]])*(BetaCoeff[CustClass]=NorthCycles[[#This Row],[CustClass]])*BetaCoeff[BetaCoeff]) -> 0.1234365 | L11: =NorthCycles[[#This Row],[Diff*NoOfBills]]*NorthCycles[[#This Row],[BetaCoeff]] -> 2224.078857 | M11: =SUMPRODUCT((NorthCycles[[#This Row],[BegRdDate]]>=VolRates[BeginDate])*(NorthCycles[[#This Row],[EndRdDate]]<=VolRates[EndDate])*(VolRates[CustClass]=NorthCycles[[#This Row],[CustClass]])*VolRates[VolRate]) -> 0.21748 | N11: =ROUND(NorthCycles[[#This Row],[WNAFactor]]*NorthCycles[[#This Row],[VolRate]],2) -> 483.69 | O11: =INDEX(RateCat[CustClass],MATCH(NorthCycles[[#This Row],[RateCategory]],RateCat[RateCategory],0)) -> Res | P11: Customer Charge Counts from Revenue Reports
A12: 45536 | B12: ENGR_RS | C12: 9 | D12: 2502 | E12: =SUMPRODUCT((MeterReadSch[MonthBill]=NorthCycles[[#This Row],[MonthBill]])*(MeterReadSch[Cycle]=NorthCycles[[#This Row],[Cycle]])*MeterReadSch[Begin Bill Period]) -> 45517 | F12: =SUMPRODUCT((MeterReadSch[MonthBill]=NorthCycles[[#This Row],[MonthBill]])*(MeterReadSch[Cycle]=NorthCycles[[#This Row],[Cycle]])*MeterReadSch[End Bill Period]) -> 45546 | G12: =SUMPRODUCT((KCITempAct[Date]>=NorthCycles[[#This Row],[BegRdDate]])*(KCITempAct[Date]<=NorthCycles[[#This Row],[EndRdDate]])*KCITempAct[KCINHDDAdj]) -> 22.1 | H12: =SUMPRODUCT((KCITempAct[Date]>=NorthCycles[[#This Row],[BegRdDate]])*(KCITempAct[Date]<=NorthCycles[[#This Row],[EndRdDate]])*KCITempAct[KCIHDDAdj]) -> 6.5 | I12: =NorthCycles[[#This Row],[NHDD]]-NorthCycles[[#This Row],[AHDD]] -> 15.6 | J12: =NorthCycles[[#This Row],[HDDDiff]]*NorthCycles[[#This Row],[NoOfBills]] -> 39031.2 | K12: =SUMPRODUCT((BetaCoeff[BeginDate]<=NorthCycles[[#This Row],[BegRdDate]])*(BetaCoeff[EndDate]>=NorthCycles[[#This Row],[EndRdDate]])*(BetaCoeff[CustClass]=NorthCycles[[#This Row],[CustClass]])*BetaCoeff[BetaCoeff]) -> 0.1234365 | L12: =NorthCycles[[#This Row],[Diff*NoOfBills]]*NorthCycles[[#This Row],[BetaCoeff]] -> 4817.874719 | M12: =SUMPRODUCT((NorthCycles[[#This Row],[BegRdDate]]>=VolRates[BeginDate])*(NorthCycles[[#This Row],[EndRdDate]]<=VolRates[EndDate])*(VolRates[CustClass]=NorthCycles[[#This Row],[CustClass]])*VolRates[VolRate]) -> 0.21748 | N12: =ROUND(NorthCycles[[#This Row],[WNAFactor]]*NorthCycles[[#This Row],[VolRate]],2) -> 1047.79 | O12: =INDEX(RateCat[CustClass],MATCH(NorthCycles[[#This Row],[RateCategory]],RateCat[RateCategory],0)) -> Res | P12: Customer Charge Counts from Revenue Reports
A13: 45536 | B13: ENGR_RS | C13: 10 | D13: 4340 | E13: =SUMPRODUCT((MeterReadSch[MonthBill]=NorthCycles[[#This Row],[MonthBill]])*(MeterReadSch[Cycle]=NorthCycles[[#This Row],[Cycle]])*MeterReadSch[Begin Bill Period]) -> 45517 | F13: =SUMPRODUCT((MeterReadSch[MonthBill]=NorthCycles[[#This Row],[MonthBill]])*(MeterReadSch[Cycle]=NorthCycles[[#This Row],[Cycle]])*MeterReadSch[End Bill Period]) -> 45546 | G13: =SUMPRODUCT((KCITempAct[Date]>=NorthCycles[[#This Row],[BegRdDate]])*(KCITempAct[Date]<=NorthCycles[[#This Row],[EndRdDate]])*KCITempAct[KCINHDDAdj]) -> 22.1 | H13: =SUMPRODUCT((KCITempAct[Date]>=NorthCycles[[#This Row],[BegRdDate]])*(KCITempAct[Date]<=NorthCycles[[#This Row],[EndRdDate]])*KCITempAct[KCIHDDAdj]) -> 6.5 | I13: =NorthCycles[[#This Row],[NHDD]]-NorthCycles[[#This Row],[AHDD]] -> 15.6 | J13: =NorthCycles[[#This Row],[HDDDiff]]*NorthCycles[[#This Row],[NoOfBills]] -> 67704 | K13: =SUMPRODUCT((BetaCoeff[BeginDate]<=NorthCycles[[#This Row],[BegRdDate]])*(BetaCoeff[EndDate]>=NorthCycles[[#This Row],[EndRdDate]])*(BetaCoeff[CustClass]=NorthCycles[[#This Row],[CustClass]])*BetaCoeff[BetaCoeff]) -> 0.1234365 | L13: =NorthCycles[[#This Row],[Diff*NoOfBills]]*NorthCycles[[#This Row],[BetaCoeff]] -> 8357.144796 | M13: =SUMPRODUCT((NorthCycles[[#This Row],[BegRdDate]]>=VolRates[BeginDate])*(NorthCycles[[#This Row],[EndRdDate]]<=VolRates[EndDate])*(VolRates[CustClass]=NorthCycles[[#This Row],[CustClass]])*VolRates[VolRate]) -> 0.21748 | N13: =ROUND(NorthCycles[[#This Row],[WNAFactor]]*NorthCycles[[#This Row],[VolRate]],2) -> 1817.51 | O13: =INDEX(RateCat[CustClass],MATCH(NorthCycles[[#This Row],[RateCategory]],RateCat[RateCategory],0)) -> Res | P13: Customer Charge Counts from Revenue Reports
A14: 45566 | B14: ENGC_SGS | C14: 8 | D14: 209 | E14: =SUMPRODUCT((MeterReadSch[MonthBill]=NorthCycles[[#This Row],[MonthBill]])*(MeterReadSch[Cycle]=NorthCycles[[#This Row],[Cycle]])*MeterReadSch[Begin Bill Period]) -> 45546 | F14: =SUMPRODUCT((MeterReadSch[MonthBill]=NorthCycles[[#This Row],[MonthBill]])*(MeterReadSch[Cycle]=NorthCycles[[#This Row],[Cycle]])*MeterReadSch[End Bill Period]) -> 45573 | G14: =SUMPRODUCT((KCITempAct[Date]>=NorthCycles[[#This Row],[BegRdDate]])*(KCITempAct[Date]<=NorthCycles[[#This Row],[EndRdDate]])*KCITempAct[KCINHDDAdj]) -> 82.91614695 | H14: =SUMPRODUCT((KCITempAct[Date]>=NorthCycles[[#This Row],[BegRdDate]])*(KCITempAct[Date]<=NorthCycles[[#This Row],[EndRdDate]])*KCITempAct[KCIHDDAdj]) -> 29.5 | I14: =NorthCycles[[#This Row],[NHDD]]-NorthCycles[[#This Row],[AHDD]] -> 53.41614695 | J14: =NorthCycles[[#This Row],[HDDDiff]]*NorthCycles[[#This Row],[NoOfBills]] -> 11163.97471 | K14: =SUMPRODUCT((BetaCoeff[BeginDate]<=NorthCycles[[#This Row],[BegRdDate]])*(BetaCoeff[EndDate]>=NorthCycles[[#This Row],[EndRdDate]])*(BetaCoeff[CustClass]=NorthCycles[[#This Row],[CustClass]])*BetaCoeff[BetaCoeff]) -> 0.2793279 | L14: =NorthCycles[[#This Row],[Diff*NoOfBills]]*NorthCycles[[#This Row],[BetaCoeff]] -> 3118.409612 | M14: =SUMPRODUCT((NorthCycles[[#This Row],[BegRdDate]]>=VolRates[BeginDate])*(NorthCycles[[#This Row],[EndRdDate]]<=VolRates[EndDate])*(VolRates[CustClass]=NorthCycles[[#This Row],[CustClass]])*VolRates[VolRate]) -> 0.26033 | N14: =ROUND(NorthCycles[[#This Row],[WNAFactor]]*NorthCycles[[#This Row],[VolRate]],2) -> 811.82 | O14: =INDEX(RateCat[CustClass],MATCH(NorthCycles[[#This Row],[RateCategory]],RateCat[RateCategory],0)) -> SGS | P14: Customer Charge Counts from Revenue Reports
A15: 45566 | B15: ENGC_SGS | C15: 9 | D15: 313 | E15: =SUMPRODUCT((MeterReadSch[MonthBill]=NorthCycles[[#This Row],[MonthBill]])*(MeterReadSch[Cycle]=NorthCycles[[#This Row],[Cycle]])*MeterReadSch[Begin Bill Period]) -> 45547 | F15: =SUMPRODUCT((MeterReadSch[MonthBill]=NorthCycles[[#This Row],[MonthBill]])*(MeterReadSch[Cycle]=NorthCycles[[#This Row],[Cycle]])*MeterReadSch[End Bill Period]) -> 45574 | G15: =SUMPRODUCT((KCITempAct[Date]>=NorthCycles[[#This Row],[BegRdDate]])*(KCITempAct[Date]<=NorthCycles[[#This Row],[EndRdDate]])*KCITempAct[KCINHDDAdj]) -> 87.96410394 | H15: =SUMPRODUCT((KCITempAct[Date]>=NorthCycles[[#This Row],[BegRdDate]])*(KCITempAct[Date]<=NorthCycles[[#This Row],[EndRdDate]])*KCITempAct[KCIHDDAdj]) -> 29.5 | I15: =NorthCycles[[#This Row],[NHDD]]-NorthCycles[[#This Row],[AHDD]] -> 58.46410394 | J15: =NorthCycles[[#This Row],[HDDDiff]]*NorthCycles[[#This Row],[NoOfBills]] -> 18299.26453 | K15: =SUMPRODUCT((BetaCoeff[BeginDate]<=NorthCycles[[#This Row],[BegRdDate]])*(BetaCoeff[EndDate]>=NorthCycles[[#This Row],[EndRdDate]])*(BetaCoeff[CustClass]=NorthCycles[[#This Row],[CustClass]])*BetaCoeff[BetaCoeff]) -> 0.2793279 | L15: =NorthCycles[[#This Row],[Diff*NoOfBills]]*NorthCycles[[#This Row],[BetaCoeff]] -> 5111.495134 | M15: =SUMPRODUCT((NorthCycles[[#This Row],[BegRdDate]]>=VolRates[BeginDate])*(NorthCycles[[#This Row],[EndRdDate]]<=VolRates[EndDate])*(VolRates[CustClass]=NorthCycles[[#This Row],[CustClass]])*VolRates[VolRate]) -> 0.26033 | N15: =ROUND(NorthCycles[[#This Row],[WNAFactor]]*NorthCycles[[#This Row],[VolRate]],2) -> 1330.68 | O15: =INDEX(RateCat[CustClass],MATCH(NorthCycles[[#This Row],[RateCategory]],RateCat[RateCategory],0)) -> SGS | P15: Customer Charge Counts from Revenue Reports
A16: 45566 | B16: ENGC_SGS | C16: 10 | D16: 606 | E16: =SUMPRODUCT((MeterReadSch[MonthBill]=NorthCycles[[#This Row],[MonthBill]])*(MeterReadSch[Cycle]=NorthCycles[[#This Row],[Cycle]])*MeterReadSch[Begin Bill Period]) -> 45547 | F16: =SUMPRODUCT((MeterReadSch[MonthBill]=NorthCycles[[#This Row],[MonthBill]])*(MeterReadSch[Cycle]=NorthCycles[[#This Row],[Cycle]])*MeterReadSch[End Bill Period]) -> 45574 | G16: =SUMPRODUCT((KCITempAct[Date]>=NorthCycles[[#This Row],[BegRdDate]])*(KCITempAct[Date]<=NorthCycles[[#This Row],[EndRdDate]])*KCITempAct[KCINHDDAdj]) -> 87.96410394 | H16: =SUMPRODUCT((KCITempAct[Date]>=NorthCycles[[#This Row],[BegRdDate]])*(KCITempAct[Date]<=NorthCycles[[#This Row],[EndRdDate]])*KCITempAct[KCIHDDAdj]) -> 29.5 | I16: =NorthCycles[[#This Row],[NHDD]]-NorthCycles[[#This Row],[AHDD]] -> 58.46410394 | J16: =NorthCycles[[#This Row],[HDDDiff]]*NorthCycles[[#This Row],[NoOfBills]] -> 35429.24699 | K16: =SUMPRODUCT((BetaCoeff[BeginDate]<=NorthCycles[[#This Row],[BegRdDate]])*(BetaCoeff[EndDate]>=NorthCycles[[#This Row],[EndRdDate]])*(BetaCoeff[CustClass]=NorthCycles[[#This Row],[CustClass]])*BetaCoeff[BetaCoeff]) -> 0.2793279 | L16: =NorthCycles[[#This Row],[Diff*NoOfBills]]*NorthCycles[[#This Row],[BetaCoeff]] -> 9896.37716 | M16: =SUMPRODUCT((NorthCycles[[#This Row],[BegRdDate]]>=VolRates[BeginDate])*(NorthCycles[[#This Row],[EndRdDate]]<=VolRates[EndDate])*(VolRates[CustClass]=NorthCycles[[#This Row],[CustClass]])*VolRates[VolRate]) -> 0.26033 | N16: =ROUND(NorthCycles[[#This Row],[WNAFactor]]*NorthCycles[[#This Row],[VolRate]],2) -> 2576.32 | O16: =INDEX(RateCat[CustClass],MATCH(NorthCycles[[#This Row],[RateCategory]],RateCat[RateCategory],0)) -> SGS | P16: Customer Charge Counts from Revenue Reports
A17: 45566 | B17: ENGR_RS | C17: 8 | D17: 1162 | E17: =SUMPRODUCT((MeterReadSch[MonthBill]=NorthCycles[[#This Row],[MonthBill]])*(MeterReadSch[Cycle]=NorthCycles[[#This Row],[Cycle]])*MeterReadSch[Begin Bill Period]) -> 45546 | F17: =SUMPRODUCT((MeterReadSch[MonthBill]=NorthCycles[[#This Row],[MonthBill]])*(MeterReadSch[Cycle]=NorthCycles[[#This Row],[Cycle]])*MeterReadSch[End Bill Period]) -> 45573 | G17: =SUMPRODUCT((KCITempAct[Date]>=NorthCycles[[#This Row],[BegRdDate]])*(KCITempAct[Date]<=NorthCycles[[#This Row],[EndRdDate]])*KCITempAct[KCINHDDAdj]) -> 82.91614695 | H17: =SUMPRODUCT((KCITempAct[Date]>=NorthCycles[[#This Row],[BegRdDate]])*(KCITempAct[Date]<=NorthCycles[[#This Row],[EndRdDate]])*KCITempAct[KCIHDDAdj]) -> 29.5 | I17: =NorthCycles[[#This Row],[NHDD]]-NorthCycles[[#This Row],[AHDD]] -> 53.41614695 | J17: =NorthCycles[[#This Row],[HDDDiff]]*NorthCycles[[#This Row],[NoOfBills]] -> 62069.56276 | K17: =SUMPRODUCT((BetaCoeff[BeginDate]<=NorthCycles[[#This Row],[BegRdDate]])*(BetaCoeff[EndDate]>=NorthCycles[[#This Row],[EndRdDate]])*(BetaCoeff[CustClass]=NorthCycles[[#This Row],[CustClass]])*BetaCoeff[BetaCoeff]) -> 0.1234365 | L17: =NorthCycles[[#This Row],[Diff*NoOfBills]]*NorthCycles[[#This Row],[BetaCoeff]] -> 7661.649584 | M17: =SUMPRODUCT((NorthCycles[[#This Row],[BegRdDate]]>=VolRates[BeginDate])*(NorthCycles[[#This Row],[EndRdDate]]<=VolRates[EndDate])*(VolRates[CustClass]=NorthCycles[[#This Row],[CustClass]])*VolRates[VolRate]) -> 0.21748 | N17: =ROUND(NorthCycles[[#This Row],[WNAFactor]]*NorthCycles[[#This Row],[VolRate]],2) -> 1666.26 | O17: =INDEX(RateCat[CustClass],MATCH(NorthCycles[[#This Row],[RateCategory]],RateCat[RateCategory],0)) -> Res | P17: Customer Charge Counts from Revenue Reports
A18: 45566 | B18: ENGR_RS | C18: 9 | D18: 2526 | E18: =SUMPRODUCT((MeterReadSch[MonthBill]=NorthCycles[[#This Row],[MonthBill]])*(MeterReadSch[Cycle]=NorthCycles[[#This Row],[Cycle]])*MeterReadSch[Begin Bill Period]) -> 45547 | F18: =SUMPRODUCT((MeterReadSch[MonthBill]=NorthCycles[[#This Row],[MonthBill]])*(MeterReadSch[Cycle]=NorthCycles[[#This Row],[Cycle]])*MeterReadSch[End Bill Period]) -> 45574 | G18: =SUMPRODUCT((KCITempAct[Date]>=NorthCycles[[#This Row],[BegRdDate]])*(KCITempAct[Date]<=NorthCycles[[#This Row],[EndRdDate]])*KCITempAct[KCINHDDAdj]) -> 87.96410394 | H18: =SUMPRODUCT((KCITempAct[Date]>=NorthCycles[[#This Row],[BegRdDate]])*(KCITempAct[Date]<=NorthCycles[[#This Row],[EndRdDate]])*KCITempAct[KCIHDDAdj]) -> 29.5 | I18: =NorthCycles[[#This Row],[NHDD]]-NorthCycles[[#This Row],[AHDD]] -> 58.46410394 | J18: =NorthCycles[[#This Row],[HDDDiff]]*NorthCycles[[#This Row],[NoOfBills]] -> 147680.3266 | K18: =SUMPRODUCT((BetaCoeff[BeginDate]<=NorthCycles[[#This Row],[BegRdDate]])*(BetaCoeff[EndDate]>=NorthCycles[[#This Row],[EndRdDate]])*(BetaCoeff[CustClass]=NorthCycles[[#This Row],[CustClass]])*BetaCoeff[BetaCoeff]) -> 0.1234365 | L18: =NorthCycles[[#This Row],[Diff*NoOfBills]]*NorthCycles[[#This Row],[BetaCoeff]] -> 18229.14263 | M18: =SUMPRODUCT((NorthCycles[[#This Row],[BegRdDate]]>=VolRates[BeginDate])*(NorthCycles[[#This Row],[EndRdDate]]<=VolRates[EndDate])*(VolRates[CustClass]=NorthCycles[[#This Row],[CustClass]])*VolRates[VolRate]) -> 0.21748 | N18: =ROUND(NorthCycles[[#This Row],[WNAFactor]]*NorthCycles[[#This Row],[VolRate]],2) -> 3964.47 | O18: =INDEX(RateCat[CustClass],MATCH(NorthCycles[[#This Row],[RateCategory]],RateCat[RateCategory],0)) -> Res | P18: Customer Charge Counts from Revenue Reports
A19: 45566 | B19: ENGR_RS | C19: 10 | D19: 4350 | E19: =SUMPRODUCT((MeterReadSch[MonthBill]=NorthCycles[[#This Row],[MonthBill]])*(MeterReadSch[Cycle]=NorthCycles[[#This Row],[Cycle]])*MeterReadSch[Begin Bill Period]) -> 45547 | F19: =SUMPRODUCT((MeterReadSch[MonthBill]=NorthCycles[[#This Row],[MonthBill]])*(MeterReadSch[Cycle]=NorthCycles[[#This Row],[Cycle]])*MeterReadSch[End Bill Period]) -> 45574 | G19: =SUMPRODUCT((KCITempAct[Date]>=NorthCycles[[#This Row],[BegRdDate]])*(KCITempAct[Date]<=NorthCycles[[#This Row],[EndRdDate]])*KCITempAct[KCINHDDAdj]) -> 87.96410394 | H19: =SUMPRODUCT((KCITempAct[Date]>=NorthCycles[[#This Row],[BegRdDate]])*(KCITempAct[Date]<=NorthCycles[[#This Row],[EndRdDate]])*KCITempAct[KCIHDDAdj]) -> 29.5 | I19: =NorthCycles[[#This Row],[NHDD]]-NorthCycles[[#This Row],[AHDD]] -> 58.46410394 | J19: =NorthCycles[[#This Row],[HDDDiff]]*NorthCycles[[#This Row],[NoOfBills]] -> 254318.8522 | K19: =SUMPRODUCT((BetaCoeff[BeginDate]<=NorthCycles[[#This Row],[BegRdDate]])*(BetaCoeff[EndDate]>=NorthCycles[[#This Row],[EndRdDate]])*(BetaCoeff[CustClass]=NorthCycles[[#This Row],[CustClass]])*BetaCoeff[BetaCoeff]) -> 0.1234365 | L19: =NorthCycles[[#This Row],[Diff*NoOfBills]]*NorthCycles[[#This Row],[BetaCoeff]] -> 31392.22899 | M19: =SUMPRODUCT((NorthCycles[[#This Row],[BegRdDate]]>=VolRates[BeginDate])*(NorthCycles[[#This Row],[EndRdDate]]<=VolRates[EndDate])*(VolRates[CustClass]=NorthCycles[[#This Row],[CustClass]])*VolRates[VolRate]) -> 0.21748 | N19: =ROUND(NorthCycles[[#This Row],[WNAFactor]]*NorthCycles[[#This Row],[VolRate]],2) -> 6827.18 | O19: =INDEX(RateCat[CustClass],MATCH(NorthCycles[[#This Row],[RateCategory]],RateCat[RateCategory],0)) -> Res | P19: Customer Charge Counts from Revenue Reports
A20: 45597 | B20: ENGC_SGS | C20: 8 | D20: 221 | E20: =SUMPRODUCT((MeterReadSch[MonthBill]=NorthCycles[[#This Row],[MonthBill]])*(MeterReadSch[Cycle]=NorthCycles[[#This Row],[Cycle]])*MeterReadSch[Begin Bill Period]) -> 45574 | F20: =SUMPRODUCT((MeterReadSch[MonthBill]=NorthCycles[[#This Row],[MonthBill]])*(MeterReadSch[Cycle]=NorthCycles[[#This Row],[Cycle]])*MeterReadSch[End Bill Period]) -> 45604 | G20: =SUMPRODUCT((KCITempAct[Date]>=NorthCycles[[#This Row],[BegRdDate]])*(KCITempAct[Date]<=NorthCycles[[#This Row],[EndRdDate]])*KCITempAct[KCINHDDAdj]) -> 360.2294444 | H20: =SUMPRODUCT((KCITempAct[Date]>=NorthCycles[[#This Row],[BegRdDate]])*(KCITempAct[Date]<=NorthCycles[[#This Row],[EndRdDate]])*KCITempAct[KCIHDDAdj]) -> 237.5 | I20: =NorthCycles[[#This Row],[NHDD]]-NorthCycles[[#This Row],[AHDD]] -> 122.7294444 | J20: =NorthCycles[[#This Row],[HDDDiff]]*NorthCycles[[#This Row],[NoOfBills]] -> 27123.20722 | K20: =SUMPRODUCT((BetaCoeff[BeginDate]<=NorthCycles[[#This Row],[BegRdDate]])*(BetaCoeff[EndDate]>=NorthCycles[[#This Row],[EndRdDate]])*(BetaCoeff[CustClass]=NorthCycles[[#This Row],[CustClass]])*BetaCoeff[BetaCoeff]) -> 0.2793279 | L20: =NorthCycles[[#This Row],[Diff*NoOfBills]]*NorthCycles[[#This Row],[BetaCoeff]] -> 7576.268515 | M20: =SUMPRODUCT((NorthCycles[[#This Row],[BegRdDate]]>=VolRates[BeginDate])*(NorthCycles[[#This Row],[EndRdDate]]<=VolRates[EndDate])*(VolRates[CustClass]=NorthCycles[[#This Row],[CustClass]])*VolRates[VolRate]) -> 0.26033 | N20: =ROUND(NorthCycles[[#This Row],[WNAFactor]]*NorthCycles[[#This Row],[VolRate]],2) -> 1972.33 | O20: =INDEX(RateCat[CustClass],MATCH(NorthCycles[[#This Row],[RateCategory]],RateCat[RateCategory],0)) -> SGS | P20: Customer Charge Counts from Revenue Reports
A21: 45597 | B21: ENGC_SGS | C21: 9 | D21: 316 | E21: =SUMPRODUCT((MeterReadSch[MonthBill]=NorthCycles[[#This Row],[MonthBill]])*(MeterReadSch[Cycle]=NorthCycles[[#This Row],[Cycle]])*MeterReadSch[Begin Bill Period]) -> 45575 | F21: =SUMPRODUCT((MeterReadSch[MonthBill]=NorthCycles[[#This Row],[MonthBill]])*(MeterReadSch[Cycle]=NorthCycles[[#This Row],[Cycle]])*MeterReadSch[End Bill Period]) -> 45608 | G21: =SUMPRODUCT((KCITempAct[Date]>=NorthCycles[[#This Row],[BegRdDate]])*(KCITempAct[Date]<=NorthCycles[[#This Row],[EndRdDate]])*KCITempAct[KCINHDDAdj]) -> 422.4642652 | H21: =SUMPRODUCT((KCITempAct[Date]>=NorthCycles[[#This Row],[BegRdDate]])*(KCITempAct[Date]<=NorthCycles[[#This Row],[EndRdDate]])*KCITempAct[KCIHDDAdj]) -> 290 | I21: =NorthCycles[[#This Row],[NHDD]]-NorthCycles[[#This Row],[AHDD]] -> 132.4642652 | J21: =NorthCycles[[#This Row],[HDDDiff]]*NorthCycles[[#This Row],[NoOfBills]] -> 41858.70781 | K21: =SUMPRODUCT((BetaCoeff[BeginDate]<=NorthCycles[[#This Row],[BegRdDate]])*(BetaCoeff[EndDate]>=NorthCycles[[#This Row],[EndRdDate]])*(BetaCoeff[CustClass]=NorthCycles[[#This Row],[CustClass]])*BetaCoeff[BetaCoeff]) -> 0.2793279 | L21: =NorthCycles[[#This Row],[Diff*NoOfBills]]*NorthCycles[[#This Row],[BetaCoeff]] -> 11692.30495 | M21: =SUMPRODUCT((NorthCycles[[#This Row],[BegRdDate]]>=VolRates[BeginDate])*(NorthCycles[[#This Row],[EndRdDate]]<=VolRates[EndDate])*(VolRates[CustClass]=NorthCycles[[#This Row],[CustClass]])*VolRates[VolRate]) -> 0.26033 | N21: =ROUND(NorthCycles[[#This Row],[WNAFactor]]*NorthCycles[[#This Row],[VolRate]],2) -> 3043.86 | O21: =INDEX(RateCat[CustClass],MATCH(NorthCycles[[#This Row],[RateCategory]],RateCat[RateCategory],0)) -> SGS | P21: Customer Charge Counts from Revenue Reports
A22: 45597 | B22: ENGC_SGS | C22: 10 | D22: 631 | E22: =SUMPRODUCT((MeterReadSch[MonthBill]=NorthCycles[[#This Row],[MonthBill]])*(MeterReadSch[Cycle]=NorthCycles[[#This Row],[Cycle]])*MeterReadSch[Begin Bill Period]) -> 45575 | F22: =SUMPRODUCT((MeterReadSch[MonthBill]=NorthCycles[[#This Row],[MonthBill]])*(MeterReadSch[Cycle]=NorthCycles[[#This Row],[Cycle]])*MeterReadSch[End Bill Period]) -> 45608 | G22: =SUMPRODUCT((KCITempAct[Date]>=NorthCycles[[#This Row],[BegRdDate]])*(KCITempAct[Date]<=NorthCycles[[#This Row],[EndRdDate]])*KCITempAct[KCINHDDAdj]) -> 422.4642652 | H22: =SUMPRODUCT((KCITempAct[Date]>=NorthCycles[[#This Row],[BegRdDate]])*(KCITempAct[Date]<=NorthCycles[[#This Row],[EndRdDate]])*KCITempAct[KCIHDDAdj]) -> 290 | I22: =NorthCycles[[#This Row],[NHDD]]-NorthCycles[[#This Row],[AHDD]] -> 132.4642652 | J22: =NorthCycles[[#This Row],[HDDDiff]]*NorthCycles[[#This Row],[NoOfBills]] -> 83584.95136 | K22: =SUMPRODUCT((BetaCoeff[BeginDate]<=NorthCycles[[#This Row],[BegRdDate]])*(BetaCoeff[EndDate]>=NorthCycles[[#This Row],[EndRdDate]])*(BetaCoeff[CustClass]=NorthCycles[[#This Row],[CustClass]])*BetaCoeff[BetaCoeff]) -> 0.2793279 | L22: =NorthCycles[[#This Row],[Diff*NoOfBills]]*NorthCycles[[#This Row],[BetaCoeff]] -> 23347.60894 | M22: =SUMPRODUCT((NorthCycles[[#This Row],[BegRdDate]]>=VolRates[BeginDate])*(NorthCycles[[#This Row],[EndRdDate]]<=VolRates[EndDate])*(VolRates[CustClass]=NorthCycles[[#This Row],[CustClass]])*VolRates[VolRate]) -> 0.26033 | N22: =ROUND(NorthCycles[[#This Row],[WNAFactor]]*NorthCycles[[#This Row],[VolRate]],2) -> 6078.08 | O22: =INDEX(RateCat[CustClass],MATCH(NorthCycles[[#This Row],[RateCategory]],RateCat[RateCategory],0)) -> SGS | P22: Customer Charge Counts from Revenue Reports
A23: 45597 | B23: ENGR_RS | C23: 8 | D23: 1161 | E23: =SUMPRODUCT((MeterReadSch[MonthBill]=NorthCycles[[#This Row],[MonthBill]])*(MeterReadSch[Cycle]=NorthCycles[[#This Row],[Cycle]])*MeterReadSch[Begin Bill Period]) -> 45574 | F23: =SUMPRODUCT((MeterReadSch[MonthBill]=NorthCycles[[#This Row],[MonthBill]])*(MeterReadSch[Cycle]=NorthCycles[[#This Row],[Cycle]])*MeterReadSch[End Bill Period]) -> 45604 | G23: =SUMPRODUCT((KCITempAct[Date]>=NorthCycles[[#This Row],[BegRdDate]])*(KCITempAct[Date]<=NorthCycles[[#This Row],[EndRdDate]])*KCITempAct[KCINHDDAdj]) -> 360.2294444 | H23: =SUMPRODUCT((KCITempAct[Date]>=NorthCycles[[#This Row],[BegRdDate]])*(KCITempAct[Date]<=NorthCycles[[#This Row],[EndRdDate]])*KCITempAct[KCIHDDAdj]) -> 237.5 | I23: =NorthCycles[[#This Row],[NHDD]]-NorthCycles[[#This Row],[AHDD]] -> 122.7294444 | J23: =NorthCycles[[#This Row],[HDDDiff]]*NorthCycles[[#This Row],[NoOfBills]] -> 142488.885 | K23: =SUMPRODUCT((BetaCoeff[BeginDate]<=NorthCycles[[#This Row],[BegRdDate]])*(BetaCoeff[EndDate]>=NorthCycles[[#This Row],[EndRdDate]])*(BetaCoeff[CustClass]=NorthCycles[[#This Row],[CustClass]])*BetaCoeff[BetaCoeff]) -> 0.1234365 | L23: =NorthCycles[[#This Row],[Diff*NoOfBills]]*NorthCycles[[#This Row],[BetaCoeff]] -> 17588.32925 | M23: =SUMPRODUCT((NorthCycles[[#This Row],[BegRdDate]]>=VolRates[BeginDate])*(NorthCycles[[#This Row],[EndRdDate]]<=VolRates[EndDate])*(VolRates[CustClass]=NorthCycles[[#This Row],[CustClass]])*VolRates[VolRate]) -> 0.21748 | N23: =ROUND(NorthCycles[[#This Row],[WNAFactor]]*NorthCycles[[#This Row],[VolRate]],2) -> 3825.11 | O23: =INDEX(RateCat[CustClass],MATCH(NorthCycles[[#This Row],[RateCategory]],RateCat[RateCategory],0)) -> Res | P23: Customer Charge Counts from Revenue Reports
A24: 45597 | B24: ENGR_RS | C24: 9 | D24: 2525 | E24: =SUMPRODUCT((MeterReadSch[MonthBill]=NorthCycles[[#This Row],[MonthBill]])*(MeterReadSch[Cycle]=NorthCycles[[#This Row],[Cycle]])*MeterReadSch[Begin Bill Period]) -> 45575 | F24: =SUMPRODUCT((MeterReadSch[MonthBill]=NorthCycles[[#This Row],[MonthBill]])*(MeterReadSch[Cycle]=NorthCycles[[#This Row],[Cycle]])*MeterReadSch[End Bill Period]) -> 45608 | G24: =SUMPRODUCT((KCITempAct[Date]>=NorthCycles[[#This Row],[BegRdDate]])*(KCITempAct[Date]<=NorthCycles[[#This Row],[EndRdDate]])*KCITempAct[KCINHDDAdj]) -> 422.4642652 | H24: =SUMPRODUCT((KCITempAct[Date]>=NorthCycles[[#This Row],[BegRdDate]])*(KCITempAct[Date]<=NorthCycles[[#This Row],[EndRdDate]])*KCITempAct[KCIHDDAdj]) -> 290 | I24: =NorthCycles[[#This Row],[NHDD]]-NorthCycles[[#This Row],[AHDD]] -> 132.4642652 | J24: =NorthCycles[[#This Row],[HDDDiff]]*NorthCycles[[#This Row],[NoOfBills]] -> 334472.2697 | K24: =SUMPRODUCT((BetaCoeff[BeginDate]<=NorthCycles[[#This Row],[BegRdDate]])*(BetaCoeff[EndDate]>=NorthCycles[[#This Row],[EndRdDate]])*(BetaCoeff[CustClass]=NorthCycles[[#This Row],[CustClass]])*BetaCoeff[BetaCoeff]) -> 0.1234365 | L24: =NorthCycles[[#This Row],[Diff*NoOfBills]]*NorthCycles[[#This Row],[BetaCoeff]] -> 41286.08632 | M24: =SUMPRODUCT((NorthCycles[[#This Row],[BegRdDate]]>=VolRates[BeginDate])*(NorthCycles[[#This Row],[EndRdDate]]<=VolRates[EndDate])*(VolRates[CustClass]=NorthCycles[[#This Row],[CustClass]])*VolRates[VolRate]) -> 0.21748 | N24: =ROUND(NorthCycles[[#This Row],[WNAFactor]]*NorthCycles[[#This Row],[VolRate]],2) -> 8978.9 | O24: =INDEX(RateCat[CustClass],MATCH(NorthCycles[[#This Row],[RateCategory]],RateCat[RateCategory],0)) -> Res | P24: Customer Charge Counts from Revenue Reports
A25: 45597 | B25: ENGR_RS | C25: 10 | D25: 4371 | E25: =SUMPRODUCT((MeterReadSch[MonthBill]=NorthCycles[[#This Row],[MonthBill]])*(MeterReadSch[Cycle]=NorthCycles[[#This Row],[Cycle]])*MeterReadSch[Begin Bill Period]) -> 45575 | F25: =SUMPRODUCT((MeterReadSch[MonthBill]=NorthCycles[[#This Row],[MonthBill]])*(MeterReadSch[Cycle]=NorthCycles[[#This Row],[Cycle]])*MeterReadSch[End Bill Period]) -> 45608 | G25: =SUMPRODUCT((KCITempAct[Date]>=NorthCycles[[#This Row],[BegRdDate]])*(KCITempAct[Date]<=NorthCycles[[#This Row],[EndRdDate]])*KCITempAct[KCINHDDAdj]) -> 422.4642652 | H25: =SUMPRODUCT((KCITempAct[Date]>=NorthCycles[[#This Row],[BegRdDate]])*(KCITempAct[Date]<=NorthCycles[[#This Row],[EndRdDate]])*KCITempAct[KCIHDDAdj]) -> 290 | I25: =NorthCycles[[#This Row],[NHDD]]-NorthCycles[[#This Row],[AHDD]] -> 132.4642652 | J25: =NorthCycles[[#This Row],[HDDDiff]]*NorthCycles[[#This Row],[NoOfBills]] -> 579001.3033 | K25: =SUMPRODUCT((BetaCoeff[BeginDate]<=NorthCycles[[#This Row],[BegRdDate]])*(BetaCoeff[EndDate]>=NorthCycles[[#This Row],[EndRdDate]])*(BetaCoeff[CustClass]=NorthCycles[[#This Row],[CustClass]])*BetaCoeff[BetaCoeff]) -> 0.1234365 | L25: =NorthCycles[[#This Row],[Diff*NoOfBills]]*NorthCycles[[#This Row],[BetaCoeff]] -> 71469.89438 | M25: =SUMPRODUCT((NorthCycles[[#This Row],[BegRdDate]]>=VolRates[BeginDate])*(NorthCycles[[#This Row],[EndRdDate]]<=VolRates[EndDate])*(VolRates[CustClass]=NorthCycles[[#This Row],[CustClass]])*VolRates[VolRate]) -> 0.21748 | N25: =ROUND(NorthCycles[[#This Row],[WNAFactor]]*NorthCycles[[#This Row],[VolRate]],2) -> 15543.27 | O25: =INDEX(RateCat[CustClass],MATCH(NorthCycles[[#This Row],[RateCategory]],RateCat[RateCategory],0)) -> Res | P25: Customer Charge Counts from Revenue Reports
A26: 45627 | B26: ENGC_SGS | C26: 8 | D26: 213 | E26: =SUMPRODUCT((MeterReadSch[MonthBill]=NorthCycles[[#This Row],[MonthBill]])*(MeterReadSch[Cycle]=NorthCycles[[#This Row],[Cycle]])*MeterReadSch[Begin Bill Period]) -> 45605 | F26: =SUMPRODUCT((MeterReadSch[MonthBill]=NorthCycles[[#This Row],[MonthBill]])*(MeterReadSch[Cycle]=NorthCycles[[#This Row],[Cycle]])*MeterReadSch[End Bill Period]) -> 45635 | G26: =SUMPRODUCT((KCITempAct[Date]>=NorthCycles[[#This Row],[BegRdDate]])*(KCITempAct[Date]<=NorthCycles[[#This Row],[EndRdDate]])*KCITempAct[KCINHDDAdj]) -> 831.2794982 | H26: =SUMPRODUCT((KCITempAct[Date]>=NorthCycles[[#This Row],[BegRdDate]])*(KCITempAct[Date]<=NorthCycles[[#This Row],[EndRdDate]])*KCITempAct[KCIHDDAdj]) -> 734 | I26: =NorthCycles[[#This Row],[NHDD]]-NorthCycles[[#This Row],[AHDD]] -> 97.27949821 | J26: =NorthCycles[[#This Row],[HDDDiff]]*NorthCycles[[#This Row],[NoOfBills]] -> 20720.53312 | K26: =SUMPRODUCT((BetaCoeff[BeginDate]<=NorthCycles[[#This Row],[BegRdDate]])*(BetaCoeff[EndDate]>=NorthCycles[[#This Row],[EndRdDate]])*(BetaCoeff[CustClass]=NorthCycles[[#This Row],[CustClass]])*BetaCoeff[BetaCoeff]) -> 0.2793279 | L26: =NorthCycles[[#This Row],[Diff*NoOfBills]]*NorthCycles[[#This Row],[BetaCoeff]] -> 5787.823003 | M26: =SUMPRODUCT((NorthCycles[[#This Row],[BegRdDate]]>=VolRates[BeginDate])*(NorthCycles[[#This Row],[EndRdDate]]<=VolRates[EndDate])*(VolRates[CustClass]=NorthCycles[[#This Row],[CustClass]])*VolRates[VolRate]) -> 0.26033 | N26: =ROUND(NorthCycles[[#This Row],[WNAFactor]]*NorthCycles[[#This Row],[VolRate]],2) -> 1506.74 | O26: =INDEX(RateCat[CustClass],MATCH(NorthCycles[[#This Row],[RateCategory]],RateCat[RateCategory],0)) -> SGS | P26: Customer Charge Counts from Revenue Reports
A27: 45627 | B27: ENGC_SGS | C27: 9 | D27: 314 | E27: =SUMPRODUCT((MeterReadSch[MonthBill]=NorthCycles[[#This Row],[MonthBill]])*(MeterReadSch[Cycle]=NorthCycles[[#This Row],[Cycle]])*MeterReadSch[Begin Bill Period]) -> 45609 | F27: =SUMPRODUCT((MeterReadSch[MonthBill]=NorthCycles[[#This Row],[MonthBill]])*(MeterReadSch[Cycle]=NorthCycles[[#This Row],[Cycle]])*MeterReadSch[End Bill Period]) -> 45636 | G27: =SUMPRODUCT((KCITempAct[Date]>=NorthCycles[[#This Row],[BegRdDate]])*(KCITempAct[Date]<=NorthCycles[[#This Row],[EndRdDate]])*KCITempAct[KCINHDDAdj]) -> 798.9623118 | H27: =SUMPRODUCT((KCITempAct[Date]>=NorthCycles[[#This Row],[BegRdDate]])*(KCITempAct[Date]<=NorthCycles[[#This Row],[EndRdDate]])*KCITempAct[KCIHDDAdj]) -> 713 | I27: =NorthCycles[[#This Row],[NHDD]]-NorthCycles[[#This Row],[AHDD]] -> 85.96231183 | J27: =NorthCycles[[#This Row],[HDDDiff]]*NorthCycles[[#This Row],[NoOfBills]] -> 26992.16591 | K27: =SUMPRODUCT((BetaCoeff[BeginDate]<=NorthCycles[[#This Row],[BegRdDate]])*(BetaCoeff[EndDate]>=NorthCycles[[#This Row],[EndRdDate]])*(BetaCoeff[CustClass]=NorthCycles[[#This Row],[CustClass]])*BetaCoeff[BetaCoeff]) -> 0.2793279 | L27: =NorthCycles[[#This Row],[Diff*NoOfBills]]*NorthCycles[[#This Row],[BetaCoeff]] -> 7539.665021 | M27: =SUMPRODUCT((NorthCycles[[#This Row],[BegRdDate]]>=VolRates[BeginDate])*(NorthCycles[[#This Row],[EndRdDate]]<=VolRates[EndDate])*(VolRates[CustClass]=NorthCycles[[#This Row],[CustClass]])*VolRates[VolRate]) -> 0.26033 | N27: =ROUND(NorthCycles[[#This Row],[WNAFactor]]*NorthCycles[[#This Row],[VolRate]],2) -> 1962.8 | O27: =INDEX(RateCat[CustClass],MATCH(NorthCycles[[#This Row],[RateCategory]],RateCat[RateCategory],0)) -> SGS | P27: Customer Charge Counts from Revenue Reports
A28: 45627 | B28: ENGC_SGS | C28: 10 | D28: 628 | E28: =SUMPRODUCT((MeterReadSch[MonthBill]=NorthCycles[[#This Row],[MonthBill]])*(MeterReadSch[Cycle]=NorthCycles[[#This Row],[Cycle]])*MeterReadSch[Begin Bill Period]) -> 45609 | F28: =SUMPRODUCT((MeterReadSch[MonthBill]=NorthCycles[[#This Row],[MonthBill]])*(MeterReadSch[Cycle]=NorthCycles[[#This Row],[Cycle]])*MeterReadSch[End Bill Period]) -> 45636 | G28: =SUMPRODUCT((KCITempAct[Date]>=NorthCycles[[#This Row],[BegRdDate]])*(KCITempAct[Date]<=NorthCycles[[#This Row],[EndRdDate]])*KCITempAct[KCINHDDAdj]) -> 798.9623118 | H28: =SUMPRODUCT((KCITempAct[Date]>=NorthCycles[[#This Row],[BegRdDate]])*(KCITempAct[Date]<=NorthCycles[[#This Row],[EndRdDate]])*KCITempAct[KCIHDDAdj]) -> 713 | I28: =NorthCycles[[#This Row],[NHDD]]-NorthCycles[[#This Row],[AHDD]] -> 85.96231183 | J28: =NorthCycles[[#This Row],[HDDDiff]]*NorthCycles[[#This Row],[NoOfBills]] -> 53984.33183 | K28: =SUMPRODUCT((BetaCoeff[BeginDate]<=NorthCycles[[#This Row],[BegRdDate]])*(BetaCoeff[EndDate]>=NorthCycles[[#This Row],[EndRdDate]])*(BetaCoeff[CustClass]=NorthCycles[[#This Row],[CustClass]])*BetaCoeff[BetaCoeff]) -> 0.2793279 | L28: =NorthCycles[[#This Row],[Diff*NoOfBills]]*NorthCycles[[#This Row],[BetaCoeff]] -> 15079.33004 | M28: =SUMPRODUCT((NorthCycles[[#This Row],[BegRdDate]]>=VolRates[BeginDate])*(NorthCycles[[#This Row],[EndRdDate]]<=VolRates[EndDate])*(VolRates[CustClass]=NorthCycles[[#This Row],[CustClass]])*VolRates[VolRate]) -> 0.26033 | N28: =ROUND(NorthCycles[[#This Row],[WNAFactor]]*NorthCycles[[#This Row],[VolRate]],2) -> 3925.6 | O28: =INDEX(RateCat[CustClass],MATCH(NorthCycles[[#This Row],[RateCategory]],RateCat[RateCategory],0)) -> SGS | P28: Customer Charge Counts from Revenue Reports
A29: 45627 | B29: ENGR_RS | C29: 8 | D29: 1164 | E29: =SUMPRODUCT((MeterReadSch[MonthBill]=NorthCycles[[#This Row],[MonthBill]])*(MeterReadSch[Cycle]=NorthCycles[[#This Row],[Cycle]])*MeterReadSch[Begin Bill Period]) -> 45605 | F29: =SUMPRODUCT((MeterReadSch[MonthBill]=NorthCycles[[#This Row],[MonthBill]])*(MeterReadSch[Cycle]=NorthCycles[[#This Row],[Cycle]])*MeterReadSch[End Bill Period]) -> 45635 | G29: =SUMPRODUCT((KCITempAct[Date]>=NorthCycles[[#This Row],[BegRdDate]])*(KCITempAct[Date]<=NorthCycles[[#This Row],[EndRdDate]])*KCITempAct[KCINHDDAdj]) -> 831.2794982 | H29: =SUMPRODUCT((KCITempAct[Date]>=NorthCycles[[#This Row],[BegRdDate]])*(KCITempAct[Date]<=NorthCycles[[#This Row],[EndRdDate]])*KCITempAct[KCIHDDAdj]) -> 734 | I29: =NorthCycles[[#This Row],[NHDD]]-NorthCycles[[#This Row],[AHDD]] -> 97.27949821 | J29: =NorthCycles[[#This Row],[HDDDiff]]*NorthCycles[[#This Row],[NoOfBills]] -> 113233.3359 | K29: =SUMPRODUCT((BetaCoeff[BeginDate]<=NorthCycles[[#This Row],[BegRdDate]])*(BetaCoeff[EndDate]>=NorthCycles[[#This Row],[EndRdDate]])*(BetaCoeff[CustClass]=NorthCycles[[#This Row],[CustClass]])*BetaCoeff[BetaCoeff]) -> 0.1234365 | L29: =NorthCycles[[#This Row],[Diff*NoOfBills]]*NorthCycles[[#This Row],[BetaCoeff]] -> 13977.12667 | M29: =SUMPRODUCT((NorthCycles[[#This Row],[BegRdDate]]>=VolRates[BeginDate])*(NorthCycles[[#This Row],[EndRdDate]]<=VolRates[EndDate])*(VolRates[CustClass]=NorthCycles[[#This Row],[CustClass]])*VolRates[VolRate]) -> 0.21748 | N29: =ROUND(NorthCycles[[#This Row],[WNAFactor]]*NorthCycles[[#This Row],[VolRate]],2) -> 3039.75 | O29: =INDEX(RateCat[CustClass],MATCH(NorthCycles[[#This Row],[RateCategory]],RateCat[RateCategory],0)) -> Res | P29: Customer Charge Counts from Revenue Reports
A30: 45627 | B30: ENGR_RS | C30: 9 | D30: 2549 | E30: =SUMPRODUCT((MeterReadSch[MonthBill]=NorthCycles[[#This Row],[MonthBill]])*(MeterReadSch[Cycle]=NorthCycles[[#This Row],[Cycle]])*MeterReadSch[Begin Bill Period]) -> 45609 | F30: =SUMPRODUCT((MeterReadSch[MonthBill]=NorthCycles[[#This Row],[MonthBill]])*(MeterReadSch[Cycle]=NorthCycles[[#This Row],[Cycle]])*MeterReadSch[End Bill Period]) -> 45636 | G30: =SUMPRODUCT((KCITempAct[Date]>=NorthCycles[[#This Row],[BegRdDate]])*(KCITempAct[Date]<=NorthCycles[[#This Row],[EndRdDate]])*KCITempAct[KCINHDDAdj]) -> 798.9623118 | H30: =SUMPRODUCT((KCITempAct[Date]>=NorthCycles[[#This Row],[BegRdDate]])*(KCITempAct[Date]<=NorthCycles[[#This Row],[EndRdDate]])*KCITempAct[KCIHDDAdj]) -> 713 | I30: =NorthCycles[[#This Row],[NHDD]]-NorthCycles[[#This Row],[AHDD]] -> 85.96231183 | J30: =NorthCycles[[#This Row],[HDDDiff]]*NorthCycles[[#This Row],[NoOfBills]] -> 219117.9328 | K30: =SUMPRODUCT((BetaCoeff[BeginDate]<=NorthCycles[[#This Row],[BegRdDate]])*(BetaCoeff[EndDate]>=NorthCycles[[#This Row],[EndRdDate]])*(BetaCoeff[CustClass]=NorthCycles[[#This Row],[CustClass]])*BetaCoeff[BetaCoeff]) -> 0.1234365 | L30: =NorthCycles[[#This Row],[Diff*NoOfBills]]*NorthCycles[[#This Row],[BetaCoeff]] -> 27047.15072 | M30: =SUMPRODUCT((NorthCycles[[#This Row],[BegRdDate]]>=VolRates[BeginDate])*(NorthCycles[[#This Row],[EndRdDate]]<=VolRates[EndDate])*(VolRates[CustClass]=NorthCycles[[#This Row],[CustClass]])*VolRates[VolRate]) -> 0.21748 | N30: =ROUND(NorthCycles[[#This Row],[WNAFactor]]*NorthCycles[[#This Row],[VolRate]],2) -> 5882.21 | O30: =INDEX(RateCat[CustClass],MATCH(NorthCycles[[#This Row],[RateCategory]],RateCat[RateCategory],0)) -> Res | P30: Customer Charge Counts from Revenue Reports
A31: 45627 | B31: ENGR_RS | C31: 10 | D31: 4417 | E31: =SUMPRODUCT((MeterReadSch[MonthBill]=NorthCycles[[#This Row],[MonthBill]])*(MeterReadSch[Cycle]=NorthCycles[[#This Row],[Cycle]])*MeterReadSch[Begin Bill Period]) -> 45609 | F31: =SUMPRODUCT((MeterReadSch[MonthBill]=NorthCycles[[#This Row],[MonthBill]])*(MeterReadSch[Cycle]=NorthCycles[[#This Row],[Cycle]])*MeterReadSch[End Bill Period]) -> 45636 | G31: =SUMPRODUCT((KCITempAct[Date]>=NorthCycles[[#This Row],[BegRdDate]])*(KCITempAct[Date]<=NorthCycles[[#This Row],[EndRdDate]])*KCITempAct[KCINHDDAdj]) -> 798.9623118 | H31: =SUMPRODUCT((KCITempAct[Date]>=NorthCycles[[#This Row],[BegRdDate]])*(KCITempAct[Date]<=NorthCycles[[#This Row],[EndRdDate]])*KCITempAct[KCIHDDAdj]) -> 713 | I31: =NorthCycles[[#This Row],[NHDD]]-NorthCycles[[#This Row],[AHDD]] -> 85.96231183 | J31: =NorthCycles[[#This Row],[HDDDiff]]*NorthCycles[[#This Row],[NoOfBills]] -> 379695.5313 | K31: =SUMPRODUCT((BetaCoeff[BeginDate]<=NorthCycles[[#This Row],[BegRdDate]])*(BetaCoeff[EndDate]>=NorthCycles[[#This Row],[EndRdDate]])*(BetaCoeff[CustClass]=NorthCycles[[#This Row],[CustClass]])*BetaCoeff[BetaCoeff]) -> 0.1234365 | L31: =NorthCycles[[#This Row],[Diff*NoOfBills]]*NorthCycles[[#This Row],[BetaCoeff]] -> 46868.28745 | M31: =SUMPRODUCT((NorthCycles[[#This Row],[BegRdDate]]>=VolRates[BeginDate])*(NorthCycles[[#This Row],[EndRdDate]]<=VolRates[EndDate])*(VolRates[CustClass]=NorthCycles[[#This Row],[CustClass]])*VolRates[VolRate]) -> 0.21748 | N31: =ROUND(NorthCycles[[#This Row],[WNAFactor]]*NorthCycles[[#This Row],[VolRate]],2) -> 10192.92 | O31: =INDEX(RateCat[CustClass],MATCH(NorthCycles[[#This Row],[RateCategory]],RateCat[RateCategory],0)) -> Res | P31: Customer Charge Counts from Revenue Reports
A32: 45658 | B32: ENGC_SGS | C32: 8 | D32: 222 | E32: =SUMPRODUCT((MeterReadSch[MonthBill]=NorthCycles[[#This Row],[MonthBill]])*(MeterReadSch[Cycle]=NorthCycles[[#This Row],[Cycle]])*MeterReadSch[Begin Bill Period]) -> 45636 | F32: =SUMPRODUCT((MeterReadSch[MonthBill]=NorthCycles[[#This Row],[MonthBill]])*(MeterReadSch[Cycle]=NorthCycles[[#This Row],[Cycle]])*MeterReadSch[End Bill Period]) -> 45669 | G32: =SUMPRODUCT((KCITempAct[Date]>=NorthCycles[[#This Row],[BegRdDate]])*(KCITempAct[Date]<=NorthCycles[[#This Row],[EndRdDate]])*KCITempAct[KCINHDDAdj]) -> 1121.525753 | H32: =SUMPRODUCT((KCITempAct[Date]>=NorthCycles[[#This Row],[BegRdDate]])*(KCITempAct[Date]<=NorthCycles[[#This Row],[EndRdDate]])*KCITempAct[KCIHDDAdj]) -> 1137.5 | I32: =NorthCycles[[#This Row],[NHDD]]-NorthCycles[[#This Row],[AHDD]] -> -15.97424731 | J32: =NorthCycles[[#This Row],[HDDDiff]]*NorthCycles[[#This Row],[NoOfBills]] -> -3546.282903 | K32: =SUMPRODUCT((BetaCoeff[BeginDate]<=NorthCycles[[#This Row],[BegRdDate]])*(BetaCoeff[EndDate]>=NorthCycles[[#This Row],[EndRdDate]])*(BetaCoeff[CustClass]=NorthCycles[[#This Row],[CustClass]])*BetaCoeff[BetaCoeff]) -> 0.2793279 | L32: =NorthCycles[[#This Row],[Diff*NoOfBills]]*NorthCycles[[#This Row],[BetaCoeff]] -> -990.5757562 | M32: =SUMPRODUCT((NorthCycles[[#This Row],[BegRdDate]]>=VolRates[BeginDate])*(NorthCycles[[#This Row],[EndRdDate]]<=VolRates[EndDate])*(VolRates[CustClass]=NorthCycles[[#This Row],[CustClass]])*VolRates[VolRate]) -> 0.26033 | N32: =ROUND(NorthCycles[[#This Row],[WNAFactor]]*NorthCycles[[#This Row],[VolRate]],2) -> -257.88 | O32: =INDEX(RateCat[CustClass],MATCH(NorthCycles[[#This Row],[RateCategory]],RateCat[RateCategory],0)) -> SGS | P32: Customer Charge Counts from Revenue Reports
A33: 45658 | B33: ENGC_SGS | C33: 9 | D33: 327 | E33: =SUMPRODUCT((MeterReadSch[MonthBill]=NorthCycles[[#This Row],[MonthBill]])*(MeterReadSch[Cycle]=NorthCycles[[#This Row],[Cycle]])*MeterReadSch[Begin Bill Period]) -> 45637 | F33: =SUMPRODUCT((MeterReadSch[MonthBill]=NorthCycles[[#This Row],[MonthBill]])*(MeterReadSch[Cycle]=NorthCycles[[#This Row],[Cycle]])*MeterReadSch[End Bill Period]) -> 45670 | G33: =SUMPRODUCT((KCITempAct[Date]>=NorthCycles[[#This Row],[BegRdDate]])*(KCITempAct[Date]<=NorthCycles[[#This Row],[EndRdDate]])*KCITempAct[KCINHDDAdj]) -> 1132.139194 | H33: =SUMPRODUCT((KCITempAct[Date]>=NorthCycles[[#This Row],[BegRdDate]])*(KCITempAct[Date]<=NorthCycles[[#This Row],[EndRdDate]])*KCITempAct[KCIHDDAdj]) -> 1156.5 | I33: =NorthCycles[[#This Row],[NHDD]]-NorthCycles[[#This Row],[AHDD]] -> -24.36080645 | J33: =NorthCycles[[#This Row],[HDDDiff]]*NorthCycles[[#This Row],[NoOfBills]] -> -7965.98371 | K33: =SUMPRODUCT((BetaCoeff[BeginDate]<=NorthCycles[[#This Row],[BegRdDate]])*(BetaCoeff[EndDate]>=NorthCycles[[#This Row],[EndRdDate]])*(BetaCoeff[CustClass]=NorthCycles[[#This Row],[CustClass]])*BetaCoeff[BetaCoeff]) -> 0.2793279 | L33: =NorthCycles[[#This Row],[Diff*NoOfBills]]*NorthCycles[[#This Row],[BetaCoeff]] -> -2225.121501 | M33: =SUMPRODUCT((NorthCycles[[#This Row],[BegRdDate]]>=VolRates[BeginDate])*(NorthCycles[[#This Row],[EndRdDate]]<=VolRates[EndDate])*(VolRates[CustClass]=NorthCycles[[#This Row],[CustClass]])*VolRates[VolRate]) -> 0.26033 | N33: =ROUND(NorthCycles[[#This Row],[WNAFactor]]*NorthCycles[[#This Row],[VolRate]],2) -> -579.27 | O33: =INDEX(RateCat[CustClass],MATCH(NorthCycles[[#This Row],[RateCategory]],RateCat[RateCategory],0)) -> SGS | P33: Customer Charge Counts from Revenue Reports
A34: 45658 | B34: ENGC_SGS | C34: 10 | D34: 667 | E34: =SUMPRODUCT((MeterReadSch[MonthBill]=NorthCycles[[#This Row],[MonthBill]])*(MeterReadSch[Cycle]=NorthCycles[[#This Row],[Cycle]])*MeterReadSch[Begin Bill Period]) -> 45637 | F34: =SUMPRODUCT((MeterReadSch[MonthBill]=NorthCycles[[#This Row],[MonthBill]])*(MeterReadSch[Cycle]=NorthCycles[[#This Row],[Cycle]])*MeterReadSch[End Bill Period]) -> 45670 | G34: =SUMPRODUCT((KCITempAct[Date]>=NorthCycles[[#This Row],[BegRdDate]])*(KCITempAct[Date]<=NorthCycles[[#This Row],[EndRdDate]])*KCITempAct[KCINHDDAdj]) -> 1132.139194 | H34: =SUMPRODUCT((KCITempAct[Date]>=NorthCycles[[#This Row],[BegRdDate]])*(KCITempAct[Date]<=NorthCycles[[#This Row],[EndRdDate]])*KCITempAct[KCIHDDAdj]) -> 1156.5 | I34: =NorthCycles[[#This Row],[NHDD]]-NorthCycles[[#This Row],[AHDD]] -> -24.36080645 | J34: =NorthCycles[[#This Row],[HDDDiff]]*NorthCycles[[#This Row],[NoOfBills]] -> -16248.6579 | K34: =SUMPRODUCT((BetaCoeff[BeginDate]<=NorthCycles[[#This Row],[BegRdDate]])*(BetaCoeff[EndDate]>=NorthCycles[[#This Row],[EndRdDate]])*(BetaCoeff[CustClass]=NorthCycles[[#This Row],[CustClass]])*BetaCoeff[BetaCoeff]) -> 0.2793279 | L34: =NorthCycles[[#This Row],[Diff*NoOfBills]]*NorthCycles[[#This Row],[BetaCoeff]] -> -4538.70349 | M34: =SUMPRODUCT((NorthCycles[[#This Row],[BegRdDate]]>=VolRates[BeginDate])*(NorthCycles[[#This Row],[EndRdDate]]<=VolRates[EndDate])*(VolRates[CustClass]=NorthCycles[[#This Row],[CustClass]])*VolRates[VolRate]) -> 0.26033 | N34: =ROUND(NorthCycles[[#This Row],[WNAFactor]]*NorthCycles[[#This Row],[VolRate]],2) -> -1181.56 | O34: =INDEX(RateCat[CustClass],MATCH(NorthCycles[[#This Row],[RateCategory]],RateCat[RateCategory],0)) -> SGS | P34: Customer Charge Counts from Revenue Reports
A35: 45658 | B35: ENGR_RS | C35: 8 | D35: 1174 | E35: =SUMPRODUCT((MeterReadSch[MonthBill]=NorthCycles[[#This Row],[MonthBill]])*(MeterReadSch[Cycle]=NorthCycles[[#This Row],[Cycle]])*MeterReadSch[Begin Bill Period]) -> 45636 | F35: =SUMPRODUCT((MeterReadSch[MonthBill]=NorthCycles[[#This Row],[MonthBill]])*(MeterReadSch[Cycle]=NorthCycles[[#This Row],[Cycle]])*MeterReadSch[End Bill Period]) -> 45669 | G35: =SUMPRODUCT((KCITempAct[Date]>=NorthCycles[[#This Row],[BegRdDate]])*(KCITempAct[Date]<=NorthCycles[[#This Row],[EndRdDate]])*KCITempAct[KCINHDDAdj]) -> 1121.525753 | H35: =SUMPRODUCT((KCITempAct[Date]>=NorthCycles[[#This Row],[BegRdDate]])*(KCITempAct[Date]<=NorthCycles[[#This Row],[EndRdDate]])*KCITempAct[KCIHDDAdj]) -> 1137.5 | I35: =NorthCycles[[#This Row],[NHDD]]-NorthCycles[[#This Row],[AHDD]] -> -15.97424731 | J35: =NorthCycles[[#This Row],[HDDDiff]]*NorthCycles[[#This Row],[NoOfBills]] -> -18753.76634 | K35: =SUMPRODUCT((BetaCoeff[BeginDate]<=NorthCycles[[#This Row],[BegRdDate]])*(BetaCoeff[EndDate]>=NorthCycles[[#This Row],[EndRdDate]])*(BetaCoeff[CustClass]=NorthCycles[[#This Row],[CustClass]])*BetaCoeff[BetaCoeff]) -> 0.1234365 | L35: =NorthCycles[[#This Row],[Diff*NoOfBills]]*NorthCycles[[#This Row],[BetaCoeff]] -> -2314.899279 | M35: =SUMPRODUCT((NorthCycles[[#This Row],[BegRdDate]]>=VolRates[BeginDate])*(NorthCycles[[#This Row],[EndRdDate]]<=VolRates[EndDate])*(VolRates[CustClass]=NorthCycles[[#This Row],[CustClass]])*VolRates[VolRate]) -> 0.21748 | N35: =ROUND(NorthCycles[[#This Row],[WNAFactor]]*NorthCycles[[#This Row],[VolRate]],2) -> -503.44 | O35: =INDEX(RateCat[CustClass],MATCH(NorthCycles[[#This Row],[RateCategory]],RateCat[RateCategory],0)) -> Res | P35: Customer Charge Counts from Revenue Reports
A36: 45658 | B36: ENGR_RS | C36: 9 | D36: 2559 | E36: =SUMPRODUCT((MeterReadSch[MonthBill]=NorthCycles[[#This Row],[MonthBill]])*(MeterReadSch[Cycle]=NorthCycles[[#This Row],[Cycle]])*MeterReadSch[Begin Bill Period]) -> 45637 | F36: =SUMPRODUCT((MeterReadSch[MonthBill]=NorthCycles[[#This Row],[MonthBill]])*(MeterReadSch[Cycle]=NorthCycles[[#This Row],[Cycle]])*MeterReadSch[End Bill Period]) -> 45670 | G36: =SUMPRODUCT((KCITempAct[Date]>=NorthCycles[[#This Row],[BegRdDate]])*(KCITempAct[Date]<=NorthCycles[[#This Row],[EndRdDate]])*KCITempAct[KCINHDDAdj]) -> 1132.139194 | H36: =SUMPRODUCT((KCITempAct[Date]>=NorthCycles[[#This Row],[BegRdDate]])*(KCITempAct[Date]<=NorthCycles[[#This Row],[EndRdDate]])*KCITempAct[KCIHDDAdj]) -> 1156.5 | I36: =NorthCycles[[#This Row],[NHDD]]-NorthCycles[[#This Row],[AHDD]] -> -24.36080645 | J36: =NorthCycles[[#This Row],[HDDDiff]]*NorthCycles[[#This Row],[NoOfBills]] -> -62339.30371 | K36: =SUMPRODUCT((BetaCoeff[BeginDate]<=NorthCycles[[#This Row],[BegRdDate]])*(BetaCoeff[EndDate]>=NorthCycles[[#This Row],[EndRdDate]])*(BetaCoeff[CustClass]=NorthCycles[[#This Row],[CustClass]])*BetaCoeff[BetaCoeff]) -> 0.1234365 | L36: =NorthCycles[[#This Row],[Diff*NoOfBills]]*NorthCycles[[#This Row],[BetaCoeff]] -> -7694.945462 | M36: =SUMPRODUCT((NorthCycles[[#This Row],[BegRdDate]]>=VolRates[BeginDate])*(NorthCycles[[#This Row],[EndRdDate]]<=VolRates[EndDate])*(VolRates[CustClass]=NorthCycles[[#This Row],[CustClass]])*VolRates[VolRate]) -> 0.21748 | N36: =ROUND(NorthCycles[[#This Row],[WNAFactor]]*NorthCycles[[#This Row],[VolRate]],2) -> -1673.5 | O36: =INDEX(RateCat[CustClass],MATCH(NorthCycles[[#This Row],[RateCategory]],RateCat[RateCategory],0)) -> Res | P36: Customer Charge Counts from Revenue Reports
A37: 45658 | B37: ENGR_RS | C37: 10 | D37: 4461 | E37: =SUMPRODUCT((MeterReadSch[MonthBill]=NorthCycles[[#This Row],[MonthBill]])*(MeterReadSch[Cycle]=NorthCycles[[#This Row],[Cycle]])*MeterReadSch[Begin Bill Period]) -> 45637 | F37: =SUMPRODUCT((MeterReadSch[MonthBill]=NorthCycles[[#This Row],[MonthBill]])*(MeterReadSch[Cycle]=NorthCycles[[#This Row],[Cycle]])*MeterReadSch[End Bill Period]) -> 45670 | G37: =SUMPRODUCT((KCITempAct[Date]>=NorthCycles[[#This Row],[BegRdDate]])*(KCITempAct[Date]<=NorthCycles[[#This Row],[EndRdDate]])*KCITempAct[KCINHDDAdj]) -> 1132.139194 | H37: =SUMPRODUCT((KCITempAct[Date]>=NorthCycles[[#This Row],[BegRdDate]])*(KCITempAct[Date]<=NorthCycles[[#This Row],[EndRdDate]])*KCITempAct[KCIHDDAdj]) -> 1156.5 | I37: =NorthCycles[[#This Row],[NHDD]]-NorthCycles[[#This Row],[AHDD]] -> -24.36080645 | J37: =NorthCycles[[#This Row],[HDDDiff]]*NorthCycles[[#This Row],[NoOfBills]] -> -108673.5576 | K37: =SUMPRODUCT((BetaCoeff[BeginDate]<=NorthCycles[[#This Row],[BegRdDate]])*(BetaCoeff[EndDate]>=NorthCycles[[#This Row],[EndRdDate]])*(BetaCoeff[CustClass]=NorthCycles[[#This Row],[CustClass]])*BetaCoeff[BetaCoeff]) -> 0.1234365 | L37: =NorthCycles[[#This Row],[Diff*NoOfBills]]*NorthCycles[[#This Row],[BetaCoeff]] -> -13414.28359 | M37: =SUMPRODUCT((NorthCycles[[#This Row],[BegRdDate]]>=VolRates[BeginDate])*(NorthCycles[[#This Row],[EndRdDate]]<=VolRates[EndDate])*(VolRates[CustClass]=NorthCycles[[#This Row],[CustClass]])*VolRates[VolRate]) -> 0.21748 | N37: =ROUND(NorthCycles[[#This Row],[WNAFactor]]*NorthCycles[[#This Row],[VolRate]],2) -> -2917.34 | O37: =INDEX(RateCat[CustClass],MATCH(NorthCycles[[#This Row],[RateCategory]],RateCat[RateCategory],0)) -> Res | P37: Customer Charge Counts from Revenue Reports
A38: 45689 | B38: ENGC_SGS | C38: 8 | D38: 212 | E38: =SUMPRODUCT((MeterReadSch[MonthBill]=NorthCycles[[#This Row],[MonthBill]])*(MeterReadSch[Cycle]=NorthCycles[[#This Row],[Cycle]])*MeterReadSch[Begin Bill Period]) -> 45670 | F38: =SUMPRODUCT((MeterReadSch[MonthBill]=NorthCycles[[#This Row],[MonthBill]])*(MeterReadSch[Cycle]=NorthCycles[[#This Row],[Cycle]])*MeterReadSch[End Bill Period]) -> 45699 | G38: =SUMPRODUCT((KCITempAct[Date]>=NorthCycles[[#This Row],[BegRdDate]])*(KCITempAct[Date]<=NorthCycles[[#This Row],[EndRdDate]])*KCITempAct[KCINHDDAdj]) -> 965.8693208 | H38: =SUMPRODUCT((KCITempAct[Date]>=NorthCycles[[#This Row],[BegRdDate]])*(KCITempAct[Date]<=NorthCycles[[#This Row],[EndRdDate]])*KCITempAct[KCIHDDAdj]) -> 1079 | I38: =NorthCycles[[#This Row],[NHDD]]-NorthCycles[[#This Row],[AHDD]] -> -113.1306792 | J38: =NorthCycles[[#This Row],[HDDDiff]]*NorthCycles[[#This Row],[NoOfBills]] -> -23983.70399 | K38: =SUMPRODUCT((BetaCoeff[BeginDate]<=NorthCycles[[#This Row],[BegRdDate]])*(BetaCoeff[EndDate]>=NorthCycles[[#This Row],[EndRdDate]])*(BetaCoeff[CustClass]=NorthCycles[[#This Row],[CustClass]])*BetaCoeff[BetaCoeff]) -> 0.2793279 | L38: =NorthCycles[[#This Row],[Diff*NoOfBills]]*NorthCycles[[#This Row],[BetaCoeff]] -> -6699.317669 | M38: =SUMPRODUCT((NorthCycles[[#This Row],[BegRdDate]]>=VolRates[BeginDate])*(NorthCycles[[#This Row],[EndRdDate]]<=VolRates[EndDate])*(VolRates[CustClass]=NorthCycles[[#This Row],[CustClass]])*VolRates[VolRate]) -> 0.26033 | N38: =ROUND(NorthCycles[[#This Row],[WNAFactor]]*NorthCycles[[#This Row],[VolRate]],2) -> -1744.03 | O38: =INDEX(RateCat[CustClass],MATCH(NorthCycles[[#This Row],[RateCategory]],RateCat[RateCategory],0)) -> SGS | P38: Customer Charge Counts from Revenue Reports
A39: 45689 | B39: ENGC_SGS | C39: 9 | D39: 315 | E39: =SUMPRODUCT((MeterReadSch[MonthBill]=NorthCycles[[#This Row],[MonthBill]])*(MeterReadSch[Cycle]=NorthCycles[[#This Row],[Cycle]])*MeterReadSch[Begin Bill Period]) -> 45671 | F39: =SUMPRODUCT((MeterReadSch[MonthBill]=NorthCycles[[#This Row],[MonthBill]])*(MeterReadSch[Cycle]=NorthCycles[[#This Row],[Cycle]])*MeterReadSch[End Bill Period]) -> 45701 | G39: =SUMPRODUCT((KCITempAct[Date]>=NorthCycles[[#This Row],[BegRdDate]])*(KCITempAct[Date]<=NorthCycles[[#This Row],[EndRdDate]])*KCITempAct[KCINHDDAdj]) -> 1005.775506 | H39: =SUMPRODUCT((KCITempAct[Date]>=NorthCycles[[#This Row],[BegRdDate]])*(KCITempAct[Date]<=NorthCycles[[#This Row],[EndRdDate]])*KCITempAct[KCIHDDAdj]) -> 1136 | I39: =NorthCycles[[#This Row],[NHDD]]-NorthCycles[[#This Row],[AHDD]] -> -130.2244939 | J39: =NorthCycles[[#This Row],[HDDDiff]]*NorthCycles[[#This Row],[NoOfBills]] -> -41020.71557 | K39: =SUMPRODUCT((BetaCoeff[BeginDate]<=NorthCycles[[#This Row],[BegRdDate]])*(BetaCoeff[EndDate]>=NorthCycles[[#This Row],[EndRdDate]])*(BetaCoeff[CustClass]=NorthCycles[[#This Row],[CustClass]])*BetaCoeff[BetaCoeff]) -> 0.2793279 | L39: =NorthCycles[[#This Row],[Diff*NoOfBills]]*NorthCycles[[#This Row],[BetaCoeff]] -> -11458.23034 | M39: =SUMPRODUCT((NorthCycles[[#This Row],[BegRdDate]]>=VolRates[BeginDate])*(NorthCycles[[#This Row],[EndRdDate]]<=VolRates[EndDate])*(VolRates[CustClass]=NorthCycles[[#This Row],[CustClass]])*VolRates[VolRate]) -> 0.26033 | N39: =ROUND(NorthCycles[[#This Row],[WNAFactor]]*NorthCycles[[#This Row],[VolRate]],2) -> -2982.92 | O39: =INDEX(RateCat[CustClass],MATCH(NorthCycles[[#This Row],[RateCategory]],RateCat[RateCategory],0)) -> SGS | P39: Customer Charge Counts from Revenue Reports
A40: 45689 | B40: ENGC_SGS | C40: 10 | D40: 638 | E40: =SUMPRODUCT((MeterReadSch[MonthBill]=NorthCycles[[#This Row],[MonthBill]])*(MeterReadSch[Cycle]=NorthCycles[[#This Row],[Cycle]])*MeterReadSch[Begin Bill Period]) -> 45671 | F40: =SUMPRODUCT((MeterReadSch[MonthBill]=NorthCycles[[#This Row],[MonthBill]])*(MeterReadSch[Cycle]=NorthCycles[[#This Row],[Cycle]])*MeterReadSch[End Bill Period]) -> 45701 | G40: =SUMPRODUCT((KCITempAct[Date]>=NorthCycles[[#This Row],[BegRdDate]])*(KCITempAct[Date]<=NorthCycles[[#This Row],[EndRdDate]])*KCITempAct[KCINHDDAdj]) -> 1005.775506 | H40: =SUMPRODUCT((KCITempAct[Date]>=NorthCycles[[#This Row],[BegRdDate]])*(KCITempAct[Date]<=NorthCycles[[#This Row],[EndRdDate]])*KCITempAct[KCIHDDAdj]) -> 1136 | I40: =NorthCycles[[#This Row],[NHDD]]-NorthCycles[[#This Row],[AHDD]] -> -130.2244939 | J40: =NorthCycles[[#This Row],[HDDDiff]]*NorthCycles[[#This Row],[NoOfBills]] -> -83083.2271 | K40: =SUMPRODUCT((BetaCoeff[BeginDate]<=NorthCycles[[#This Row],[BegRdDate]])*(BetaCoeff[EndDate]>=NorthCycles[[#This Row],[EndRdDate]])*(BetaCoeff[CustClass]=NorthCycles[[#This Row],[CustClass]])*BetaCoeff[BetaCoeff]) -> 0.2793279 | L40: =NorthCycles[[#This Row],[Diff*NoOfBills]]*NorthCycles[[#This Row],[BetaCoeff]] -> -23207.46335 | M40: =SUMPRODUCT((NorthCycles[[#This Row],[BegRdDate]]>=VolRates[BeginDate])*(NorthCycles[[#This Row],[EndRdDate]]<=VolRates[EndDate])*(VolRates[CustClass]=NorthCycles[[#This Row],[CustClass]])*VolRates[VolRate]) -> 0.26033 | N40: =ROUND(NorthCycles[[#This Row],[WNAFactor]]*NorthCycles[[#This Row],[VolRate]],2) -> -6041.6 | O40: =INDEX(RateCat[CustClass],MATCH(NorthCycles[[#This Row],[RateCategory]],RateCat[RateCategory],0)) -> SGS | P40: Customer Charge Counts from Revenue Reports
A41: 45689 | B41: ENGR_RS | C41: 8 | D41: 1178 | E41: =SUMPRODUCT((MeterReadSch[MonthBill]=NorthCycles[[#This Row],[MonthBill]])*(MeterReadSch[Cycle]=NorthCycles[[#This Row],[Cycle]])*MeterReadSch[Begin Bill Period]) -> 45670 | F41: =SUMPRODUCT((MeterReadSch[MonthBill]=NorthCycles[[#This Row],[MonthBill]])*(MeterReadSch[Cycle]=NorthCycles[[#This Row],[Cycle]])*MeterReadSch[End Bill Period]) -> 45699 | G41: =SUMPRODUCT((KCITempAct[Date]>=NorthCycles[[#This Row],[BegRdDate]])*(KCITempAct[Date]<=NorthCycles[[#This Row],[EndRdDate]])*KCITempAct[KCINHDDAdj]) -> 965.8693208 | H41: =SUMPRODUCT((KCITempAct[Date]>=NorthCycles[[#This Row],[BegRdDate]])*(KCITempAct[Date]<=NorthCycles[[#This Row],[EndRdDate]])*KCITempAct[KCIHDDAdj]) -> 1079 | I41: =NorthCycles[[#This Row],[NHDD]]-NorthCycles[[#This Row],[AHDD]] -> -113.1306792 | J41: =NorthCycles[[#This Row],[HDDDiff]]*NorthCycles[[#This Row],[NoOfBills]] -> -133267.9401 | K41: =SUMPRODUCT((BetaCoeff[BeginDate]<=NorthCycles[[#This Row],[BegRdDate]])*(BetaCoeff[EndDate]>=NorthCycles[[#This Row],[EndRdDate]])*(BetaCoeff[CustClass]=NorthCycles[[#This Row],[CustClass]])*BetaCoeff[BetaCoeff]) -> 0.1234365 | L41: =NorthCycles[[#This Row],[Diff*NoOfBills]]*NorthCycles[[#This Row],[BetaCoeff]] -> -16450.12809 | M41: =SUMPRODUCT((NorthCycles[[#This Row],[BegRdDate]]>=VolRates[BeginDate])*(NorthCycles[[#This Row],[EndRdDate]]<=VolRates[EndDate])*(VolRates[CustClass]=NorthCycles[[#This Row],[CustClass]])*VolRates[VolRate]) -> 0.21748 | N41: =ROUND(NorthCycles[[#This Row],[WNAFactor]]*NorthCycles[[#This Row],[VolRate]],2) -> -3577.57 | O41: =INDEX(RateCat[CustClass],MATCH(NorthCycles[[#This Row],[RateCategory]],RateCat[RateCategory],0)) -> Res | P41: Customer Charge Counts from Revenue Reports
A42: 45689 | B42: ENGR_RS | C42: 9 | D42: 2590 | E42: =SUMPRODUCT((MeterReadSch[MonthBill]=NorthCycles[[#This Row],[MonthBill]])*(MeterReadSch[Cycle]=NorthCycles[[#This Row],[Cycle]])*MeterReadSch[Begin Bill Period]) -> 45671 | F42: =SUMPRODUCT((MeterReadSch[MonthBill]=NorthCycles[[#This Row],[MonthBill]])*(MeterReadSch[Cycle]=NorthCycles[[#This Row],[Cycle]])*MeterReadSch[End Bill Period]) -> 45701 | G42: =SUMPRODUCT((KCITempAct[Date]>=NorthCycles[[#This Row],[BegRdDate]])*(KCITempAct[Date]<=NorthCycles[[#This Row],[EndRdDate]])*KCITempAct[KCINHDDAdj]) -> 1005.775506 | H42: =SUMPRODUCT((KCITempAct[Date]>=NorthCycles[[#This Row],[BegRdDate]])*(KCITempAct[Date]<=NorthCycles[[#This Row],[EndRdDate]])*KCITempAct[KCIHDDAdj]) -> 1136 | I42: =NorthCycles[[#This Row],[NHDD]]-NorthCycles[[#This Row],[AHDD]] -> -130.2244939 | J42: =NorthCycles[[#This Row],[HDDDiff]]*NorthCycles[[#This Row],[NoOfBills]] -> -337281.4392 | K42: =SUMPRODUCT((BetaCoeff[BeginDate]<=NorthCycles[[#This Row],[BegRdDate]])*(BetaCoeff[EndDate]>=NorthCycles[[#This Row],[EndRdDate]])*(BetaCoeff[CustClass]=NorthCycles[[#This Row],[CustClass]])*BetaCoeff[BetaCoeff]) -> 0.1234365 | L42: =NorthCycles[[#This Row],[Diff*NoOfBills]]*NorthCycles[[#This Row],[BetaCoeff]] -> -41632.84036 | M42: =SUMPRODUCT((NorthCycles[[#This Row],[BegRdDate]]>=VolRates[BeginDate])*(NorthCycles[[#This Row],[EndRdDate]]<=VolRates[EndDate])*(VolRates[CustClass]=NorthCycles[[#This Row],[CustClass]])*VolRates[VolRate]) -> 0.21748 | N42: =ROUND(NorthCycles[[#This Row],[WNAFactor]]*NorthCycles[[#This Row],[VolRate]],2) -> -9054.31 | O42: =INDEX(RateCat[CustClass],MATCH(NorthCycles[[#This Row],[RateCategory]],RateCat[RateCategory],0)) -> Res | P42: Customer Charge Counts from Revenue Reports
A43: 45689 | B43: ENGR_RS | C43: 10 | D43: 4483 | E43: =SUMPRODUCT((MeterReadSch[MonthBill]=NorthCycles[[#This Row],[MonthBill]])*(MeterReadSch[Cycle]=NorthCycles[[#This Row],[Cycle]])*MeterReadSch[Begin Bill Period]) -> 45671 | F43: =SUMPRODUCT((MeterReadSch[MonthBill]=NorthCycles[[#This Row],[MonthBill]])*(MeterReadSch[Cycle]=NorthCycles[[#This Row],[Cycle]])*MeterReadSch[End Bill Period]) -> 45701 | G43: =SUMPRODUCT((KCITempAct[Date]>=NorthCycles[[#This Row],[BegRdDate]])*(KCITempAct[Date]<=NorthCycles[[#This Row],[EndRdDate]])*KCITempAct[KCINHDDAdj]) -> 1005.775506 | H43: =SUMPRODUCT((KCITempAct[Date]>=NorthCycles[[#This Row],[BegRdDate]])*(KCITempAct[Date]<=NorthCycles[[#This Row],[EndRdDate]])*KCITempAct[KCIHDDAdj]) -> 1136 | I43: =NorthCycles[[#This Row],[NHDD]]-NorthCycles[[#This Row],[AHDD]] -> -130.2244939 | J43: =NorthCycles[[#This Row],[HDDDiff]]*NorthCycles[[#This Row],[NoOfBills]] -> -583796.4061 | K43: =SUMPRODUCT((BetaCoeff[BeginDate]<=NorthCycles[[#This Row],[BegRdDate]])*(BetaCoeff[EndDate]>=NorthCycles[[#This Row],[EndRdDate]])*(BetaCoeff[CustClass]=NorthCycles[[#This Row],[CustClass]])*BetaCoeff[BetaCoeff]) -> 0.1234365 | L43: =NorthCycles[[#This Row],[Diff*NoOfBills]]*NorthCycles[[#This Row],[BetaCoeff]] -> -72061.78508 | M43: =SUMPRODUCT((NorthCycles[[#This Row],[BegRdDate]]>=VolRates[BeginDate])*(NorthCycles[[#This Row],[EndRdDate]]<=VolRates[EndDate])*(VolRates[CustClass]=NorthCycles[[#This Row],[CustClass]])*VolRates[VolRate]) -> 0.21748 | N43: =ROUND(NorthCycles[[#This Row],[WNAFactor]]*NorthCycles[[#This Row],[VolRate]],2) -> -15672 | O43: =INDEX(RateCat[CustClass],MATCH(NorthCycles[[#This Row],[RateCategory]],RateCat[RateCategory],0)) -> Res | P43: Customer Charge Counts from Revenue Reports
A44: 45717 | B44: ENGC_SGS | C44: 8 | D44: 213 | E44: =SUMPRODUCT((MeterReadSch[MonthBill]=NorthCycles[[#This Row],[MonthBill]])*(MeterReadSch[Cycle]=NorthCycles[[#This Row],[Cycle]])*MeterReadSch[Begin Bill Period]) -> 45700 | F44: =SUMPRODUCT((MeterReadSch[MonthBill]=NorthCycles[[#This Row],[MonthBill]])*(MeterReadSch[Cycle]=NorthCycles[[#This Row],[Cycle]])*MeterReadSch[End Bill Period]) -> 45726 | G44: =SUMPRODUCT((KCITempAct[Date]>=NorthCycles[[#This Row],[BegRdDate]])*(KCITempAct[Date]<=NorthCycles[[#This Row],[EndRdDate]])*KCITempAct[KCINHDDAdj]) -> 877.1836161 | H44: =SUMPRODUCT((KCITempAct[Date]>=NorthCycles[[#This Row],[BegRdDate]])*(KCITempAct[Date]<=NorthCycles[[#This Row],[EndRdDate]])*KCITempAct[KCIHDDAdj]) -> 893 | I44: =NorthCycles[[#This Row],[NHDD]]-NorthCycles[[#This Row],[AHDD]] -> -15.81638395 | J44: =NorthCycles[[#This Row],[HDDDiff]]*NorthCycles[[#This Row],[NoOfBills]] -> -3368.88978 | K44: =SUMPRODUCT((BetaCoeff[BeginDate]<=NorthCycles[[#This Row],[BegRdDate]])*(BetaCoeff[EndDate]>=NorthCycles[[#This Row],[EndRdDate]])*(BetaCoeff[CustClass]=NorthCycles[[#This Row],[CustClass]])*BetaCoeff[BetaCoeff]) -> 0.2793279 | L44: =NorthCycles[[#This Row],[Diff*NoOfBills]]*NorthCycles[[#This Row],[BetaCoeff]] -> -941.0249077 | M44: =SUMPRODUCT((NorthCycles[[#This Row],[BegRdDate]]>=VolRates[BeginDate])*(NorthCycles[[#This Row],[EndRdDate]]<=VolRates[EndDate])*(VolRates[CustClass]=NorthCycles[[#This Row],[CustClass]])*VolRates[VolRate]) -> 0.26033 | N44: =ROUND(NorthCycles[[#This Row],[WNAFactor]]*NorthCycles[[#This Row],[VolRate]],2) -> -244.98 | O44: =INDEX(RateCat[CustClass],MATCH(NorthCycles[[#This Row],[RateCategory]],RateCat[RateCategory],0)) -> SGS | P44: Customer Charge Counts from Revenue Reports
A45: 45717 | B45: ENGC_SGS | C45: 9 | D45: 314 | E45: =SUMPRODUCT((MeterReadSch[MonthBill]=NorthCycles[[#This Row],[MonthBill]])*(MeterReadSch[Cycle]=NorthCycles[[#This Row],[Cycle]])*MeterReadSch[Begin Bill Period]) -> 45702 | F45: =SUMPRODUCT((MeterReadSch[MonthBill]=NorthCycles[[#This Row],[MonthBill]])*(MeterReadSch[Cycle]=NorthCycles[[#This Row],[Cycle]])*MeterReadSch[End Bill Period]) -> 45727 | G45: =SUMPRODUCT((KCITempAct[Date]>=NorthCycles[[#This Row],[BegRdDate]])*(KCITempAct[Date]<=NorthCycles[[#This Row],[EndRdDate]])*KCITempAct[KCINHDDAdj]) -> 805.4011404 | H45: =SUMPRODUCT((KCITempAct[Date]>=NorthCycles[[#This Row],[BegRdDate]])*(KCITempAct[Date]<=NorthCycles[[#This Row],[EndRdDate]])*KCITempAct[KCIHDDAdj]) -> 794 | I45: =NorthCycles[[#This Row],[NHDD]]-NorthCycles[[#This Row],[AHDD]] -> 11.40114042 | J45: =NorthCycles[[#This Row],[HDDDiff]]*NorthCycles[[#This Row],[NoOfBills]] -> 3579.958092 | K45: =SUMPRODUCT((BetaCoeff[BeginDate]<=NorthCycles[[#This Row],[BegRdDate]])*(BetaCoeff[EndDate]>=NorthCycles[[#This Row],[EndRdDate]])*(BetaCoeff[CustClass]=NorthCycles[[#This Row],[CustClass]])*BetaCoeff[BetaCoeff]) -> 0.2793279 | L45: =NorthCycles[[#This Row],[Diff*NoOfBills]]*NorthCycles[[#This Row],[BetaCoeff]] -> 999.9821759 | M45: =SUMPRODUCT((NorthCycles[[#This Row],[BegRdDate]]>=VolRates[BeginDate])*(NorthCycles[[#This Row],[EndRdDate]]<=VolRates[EndDate])*(VolRates[CustClass]=NorthCycles[[#This Row],[CustClass]])*VolRates[VolRate]) -> 0.26033 | N45: =ROUND(NorthCycles[[#This Row],[WNAFactor]]*NorthCycles[[#This Row],[VolRate]],2) -> 260.33 | O45: =INDEX(RateCat[CustClass],MATCH(NorthCycles[[#This Row],[RateCategory]],RateCat[RateCategory],0)) -> SGS | P45: Customer Charge Counts from Revenue Reports
A46: 45717 | B46: ENGC_SGS | C46: 10 | D46: 630 | E46: =SUMPRODUCT((MeterReadSch[MonthBill]=NorthCycles[[#This Row],[MonthBill]])*(MeterReadSch[Cycle]=NorthCycles[[#This Row],[Cycle]])*MeterReadSch[Begin Bill Period]) -> 45702 | F46: =SUMPRODUCT((MeterReadSch[MonthBill]=NorthCycles[[#This Row],[MonthBill]])*(MeterReadSch[Cycle]=NorthCycles[[#This Row],[Cycle]])*MeterReadSch[End Bill Period]) -> 45727 | G46: =SUMPRODUCT((KCITempAct[Date]>=NorthCycles[[#This Row],[BegRdDate]])*(KCITempAct[Date]<=NorthCycles[[#This Row],[EndRdDate]])*KCITempAct[KCINHDDAdj]) -> 805.4011404 | H46: =SUMPRODUCT((KCITempAct[Date]>=NorthCycles[[#This Row],[BegRdDate]])*(KCITempAct[Date]<=NorthCycles[[#This Row],[EndRdDate]])*KCITempAct[KCIHDDAdj]) -> 794 | I46: =NorthCycles[[#This Row],[NHDD]]-NorthCycles[[#This Row],[AHDD]] -> 11.40114042 | J46: =NorthCycles[[#This Row],[HDDDiff]]*NorthCycles[[#This Row],[NoOfBills]] -> 7182.718465 | K46: =SUMPRODUCT((BetaCoeff[BeginDate]<=NorthCycles[[#This Row],[BegRdDate]])*(BetaCoeff[EndDate]>=NorthCycles[[#This Row],[EndRdDate]])*(BetaCoeff[CustClass]=NorthCycles[[#This Row],[CustClass]])*BetaCoeff[BetaCoeff]) -> 0.2793279 | L46: =NorthCycles[[#This Row],[Diff*NoOfBills]]*NorthCycles[[#This Row],[BetaCoeff]] -> 2006.333665 | M46: =SUMPRODUCT((NorthCycles[[#This Row],[BegRdDate]]>=VolRates[BeginDate])*(NorthCycles[[#This Row],[EndRdDate]]<=VolRates[EndDate])*(VolRates[CustClass]=NorthCycles[[#This Row],[CustClass]])*VolRates[VolRate]) -> 0.26033 | N46: =ROUND(NorthCycles[[#This Row],[WNAFactor]]*NorthCycles[[#This Row],[VolRate]],2) -> 522.31 | O46: =INDEX(RateCat[CustClass],MATCH(NorthCycles[[#This Row],[RateCategory]],RateCat[RateCategory],0)) -> SGS | P46: Customer Charge Counts from Revenue Reports
A47: 45717 | B47: ENGR_RS | C47: 8 | D47: 1163 | E47: =SUMPRODUCT((MeterReadSch[MonthBill]=NorthCycles[[#This Row],[MonthBill]])*(MeterReadSch[Cycle]=NorthCycles[[#This Row],[Cycle]])*MeterReadSch[Begin Bill Period]) -> 45700 | F47: =SUMPRODUCT((MeterReadSch[MonthBill]=NorthCycles[[#This Row],[MonthBill]])*(MeterReadSch[Cycle]=NorthCycles[[#This Row],[Cycle]])*MeterReadSch[End Bill Period]) -> 45726 | G47: =SUMPRODUCT((KCITempAct[Date]>=NorthCycles[[#This Row],[BegRdDate]])*(KCITempAct[Date]<=NorthCycles[[#This Row],[EndRdDate]])*KCITempAct[KCINHDDAdj]) -> 877.1836161 | H47: =SUMPRODUCT((KCITempAct[Date]>=NorthCycles[[#This Row],[BegRdDate]])*(KCITempAct[Date]<=NorthCycles[[#This Row],[EndRdDate]])*KCITempAct[KCIHDDAdj]) -> 893 | I47: =NorthCycles[[#This Row],[NHDD]]-NorthCycles[[#This Row],[AHDD]] -> -15.81638395 | J47: =NorthCycles[[#This Row],[HDDDiff]]*NorthCycles[[#This Row],[NoOfBills]] -> -18394.45453 | K47: =SUMPRODUCT((BetaCoeff[BeginDate]<=NorthCycles[[#This Row],[BegRdDate]])*(BetaCoeff[EndDate]>=NorthCycles[[#This Row],[EndRdDate]])*(BetaCoeff[CustClass]=NorthCycles[[#This Row],[CustClass]])*BetaCoeff[BetaCoeff]) -> 0.1234365 | L47: =NorthCycles[[#This Row],[Diff*NoOfBills]]*NorthCycles[[#This Row],[BetaCoeff]] -> -2270.547086 | M47: =SUMPRODUCT((NorthCycles[[#This Row],[BegRdDate]]>=VolRates[BeginDate])*(NorthCycles[[#This Row],[EndRdDate]]<=VolRates[EndDate])*(VolRates[CustClass]=NorthCycles[[#This Row],[CustClass]])*VolRates[VolRate]) -> 0.21748 | N47: =ROUND(NorthCycles[[#This Row],[WNAFactor]]*NorthCycles[[#This Row],[VolRate]],2) -> -493.8 | O47: =INDEX(RateCat[CustClass],MATCH(NorthCycles[[#This Row],[RateCategory]],RateCat[RateCategory],0)) -> Res | P47: Customer Charge Counts from Revenue Reports
A48: 45717 | B48: ENGR_RS | C48: 9 | D48: 2538 | E48: =SUMPRODUCT((MeterReadSch[MonthBill]=NorthCycles[[#This Row],[MonthBill]])*(MeterReadSch[Cycle]=NorthCycles[[#This Row],[Cycle]])*MeterReadSch[Begin Bill Period]) -> 45702 | F48: =SUMPRODUCT((MeterReadSch[MonthBill]=NorthCycles[[#This Row],[MonthBill]])*(MeterReadSch[Cycle]=NorthCycles[[#This Row],[Cycle]])*MeterReadSch[End Bill Period]) -> 45727 | G48: =SUMPRODUCT((KCITempAct[Date]>=NorthCycles[[#This Row],[BegRdDate]])*(KCITempAct[Date]<=NorthCycles[[#This Row],[EndRdDate]])*KCITempAct[KCINHDDAdj]) -> 805.4011404 | H48: =SUMPRODUCT((KCITempAct[Date]>=NorthCycles[[#This Row],[BegRdDate]])*(KCITempAct[Date]<=NorthCycles[[#This Row],[EndRdDate]])*KCITempAct[KCIHDDAdj]) -> 794 | I48: =NorthCycles[[#This Row],[NHDD]]-NorthCycles[[#This Row],[AHDD]] -> 11.40114042 | J48: =NorthCycles[[#This Row],[HDDDiff]]*NorthCycles[[#This Row],[NoOfBills]] -> 28936.09439 | K48: =SUMPRODUCT((BetaCoeff[BeginDate]<=NorthCycles[[#This Row],[BegRdDate]])*(BetaCoeff[EndDate]>=NorthCycles[[#This Row],[EndRdDate]])*(BetaCoeff[CustClass]=NorthCycles[[#This Row],[CustClass]])*BetaCoeff[BetaCoeff]) -> 0.1234365 | L48: =NorthCycles[[#This Row],[Diff*NoOfBills]]*NorthCycles[[#This Row],[BetaCoeff]] -> 3571.770215 | M48: =SUMPRODUCT((NorthCycles[[#This Row],[BegRdDate]]>=VolRates[BeginDate])*(NorthCycles[[#This Row],[EndRdDate]]<=VolRates[EndDate])*(VolRates[CustClass]=NorthCycles[[#This Row],[CustClass]])*VolRates[VolRate]) -> 0.21748 | N48: =ROUND(NorthCycles[[#This Row],[WNAFactor]]*NorthCycles[[#This Row],[VolRate]],2) -> 776.79 | O48: =INDEX(RateCat[CustClass],MATCH(NorthCycles[[#This Row],[RateCategory]],RateCat[RateCategory],0)) -> Res | P48: Customer Charge Counts from Revenue Reports
A49: 45717 | B49: ENGR_RS | C49: 10 | D49: 4412 | E49: =SUMPRODUCT((MeterReadSch[MonthBill]=NorthCycles[[#This Row],[MonthBill]])*(MeterReadSch[Cycle]=NorthCycles[[#This Row],[Cycle]])*MeterReadSch[Begin Bill Period]) -> 45702 | F49: =SUMPRODUCT((MeterReadSch[MonthBill]=NorthCycles[[#This Row],[MonthBill]])*(MeterReadSch[Cycle]=NorthCycles[[#This Row],[Cycle]])*MeterReadSch[End Bill Period]) -> 45727 | G49: =SUMPRODUCT((KCITempAct[Date]>=NorthCycles[[#This Row],[BegRdDate]])*(KCITempAct[Date]<=NorthCycles[[#This Row],[EndRdDate]])*KCITempAct[KCINHDDAdj]) -> 805.4011404 | H49: =SUMPRODUCT((KCITempAct[Date]>=NorthCycles[[#This Row],[BegRdDate]])*(KCITempAct[Date]<=NorthCycles[[#This Row],[EndRdDate]])*KCITempAct[KCIHDDAdj]) -> 794 | I49: =NorthCycles[[#This Row],[NHDD]]-NorthCycles[[#This Row],[AHDD]] -> 11.40114042 | J49: =NorthCycles[[#This Row],[HDDDiff]]*NorthCycles[[#This Row],[NoOfBills]] -> 50301.83154 | K49: =SUMPRODUCT((BetaCoeff[BeginDate]<=NorthCycles[[#This Row],[BegRdDate]])*(BetaCoeff[EndDate]>=NorthCycles[[#This Row],[EndRdDate]])*(BetaCoeff[CustClass]=NorthCycles[[#This Row],[CustClass]])*BetaCoeff[BetaCoeff]) -> 0.1234365 | L49: =NorthCycles[[#This Row],[Diff*NoOfBills]]*NorthCycles[[#This Row],[BetaCoeff]] -> 6209.082028 | M49: =SUMPRODUCT((NorthCycles[[#This Row],[BegRdDate]]>=VolRates[BeginDate])*(NorthCycles[[#This Row],[EndRdDate]]<=VolRates[EndDate])*(VolRates[CustClass]=NorthCycles[[#This Row],[CustClass]])*VolRates[VolRate]) -> 0.21748 | N49: =ROUND(NorthCycles[[#This Row],[WNAFactor]]*NorthCycles[[#This Row],[VolRate]],2) -> 1350.35 | O49: =INDEX(RateCat[CustClass],MATCH(NorthCycles[[#This Row],[RateCategory]],RateCat[RateCategory],0)) -> Res | P49: Customer Charge Counts from Revenue Reports
A50: 45748 | B50: ENGC_SGS | C50: 8 | D50: 219 | E50: =SUMPRODUCT((MeterReadSch[MonthBill]=NorthCycles[[#This Row],[MonthBill]])*(MeterReadSch[Cycle]=NorthCycles[[#This Row],[Cycle]])*MeterReadSch[Begin Bill Period]) -> 45727 | F50: =SUMPRODUCT((MeterReadSch[MonthBill]=NorthCycles[[#This Row],[MonthBill]])*(MeterReadSch[Cycle]=NorthCycles[[#This Row],[Cycle]])*MeterReadSch[End Bill Period]) -> 45755 | G50: =SUMPRODUCT((KCITempAct[Date]>=NorthCycles[[#This Row],[BegRdDate]])*(KCITempAct[Date]<=NorthCycles[[#This Row],[EndRdDate]])*KCITempAct[KCINHDDAdj]) -> 510.0055735 | H50: =SUMPRODUCT((KCITempAct[Date]>=NorthCycles[[#This Row],[BegRdDate]])*(KCITempAct[Date]<=NorthCycles[[#This Row],[EndRdDate]])*KCITempAct[KCIHDDAdj]) -> 371.5 | I50: =NorthCycles[[#This Row],[NHDD]]-NorthCycles[[#This Row],[AHDD]] -> 138.5055735 | J50: =NorthCycles[[#This Row],[HDDDiff]]*NorthCycles[[#This Row],[NoOfBills]] -> 30332.72059 | K50: =SUMPRODUCT((BetaCoeff[BeginDate]<=NorthCycles[[#This Row],[BegRdDate]])*(BetaCoeff[EndDate]>=NorthCycles[[#This Row],[EndRdDate]])*(BetaCoeff[CustClass]=NorthCycles[[#This Row],[CustClass]])*BetaCoeff[BetaCoeff]) -> 0.2793279 | L50: =NorthCycles[[#This Row],[Diff*NoOfBills]]*NorthCycles[[#This Row],[BetaCoeff]] -> 8472.775144 | M50: =SUMPRODUCT((NorthCycles[[#This Row],[BegRdDate]]>=VolRates[BeginDate])*(NorthCycles[[#This Row],[EndRdDate]]<=VolRates[EndDate])*(VolRates[CustClass]=NorthCycles[[#This Row],[CustClass]])*VolRates[VolRate]) -> 0.26033 | N50: =ROUND(NorthCycles[[#This Row],[WNAFactor]]*NorthCycles[[#This Row],[VolRate]],2) -> 2205.72 | O50: =INDEX(RateCat[CustClass],MATCH(NorthCycles[[#This Row],[RateCategory]],RateCat[RateCategory],0)) -> SGS | P50: Customer Charge Counts from Revenue Reports
A51: 45748 | B51: ENGC_SGS | C51: 9 | D51: 321 | E51: =SUMPRODUCT((MeterReadSch[MonthBill]=NorthCycles[[#This Row],[MonthBill]])*(MeterReadSch[Cycle]=NorthCycles[[#This Row],[Cycle]])*MeterReadSch[Begin Bill Period]) -> 45728 | F51: =SUMPRODUCT((MeterReadSch[MonthBill]=NorthCycles[[#This Row],[MonthBill]])*(MeterReadSch[Cycle]=NorthCycles[[#This Row],[Cycle]])*MeterReadSch[End Bill Period]) -> 45756 | G51: =SUMPRODUCT((KCITempAct[Date]>=NorthCycles[[#This Row],[BegRdDate]])*(KCITempAct[Date]<=NorthCycles[[#This Row],[EndRdDate]])*KCITempAct[KCINHDDAdj]) -> 498.3183871 | H51: =SUMPRODUCT((KCITempAct[Date]>=NorthCycles[[#This Row],[BegRdDate]])*(KCITempAct[Date]<=NorthCycles[[#This Row],[EndRdDate]])*KCITempAct[KCIHDDAdj]) -> 364.5 | I51: =NorthCycles[[#This Row],[NHDD]]-NorthCycles[[#This Row],[AHDD]] -> 133.8183871 | J51: =NorthCycles[[#This Row],[HDDDiff]]*NorthCycles[[#This Row],[NoOfBills]] -> 42955.70226 | K51: =SUMPRODUCT((BetaCoeff[BeginDate]<=NorthCycles[[#This Row],[BegRdDate]])*(BetaCoeff[EndDate]>=NorthCycles[[#This Row],[EndRdDate]])*(BetaCoeff[CustClass]=NorthCycles[[#This Row],[CustClass]])*BetaCoeff[BetaCoeff]) -> 0.2793279 | L51: =NorthCycles[[#This Row],[Diff*NoOfBills]]*NorthCycles[[#This Row],[BetaCoeff]] -> 11998.7261 | M51: =SUMPRODUCT((NorthCycles[[#This Row],[BegRdDate]]>=VolRates[BeginDate])*(NorthCycles[[#This Row],[EndRdDate]]<=VolRates[EndDate])*(VolRates[CustClass]=NorthCycles[[#This Row],[CustClass]])*VolRates[VolRate]) -> 0.26033 | N51: =ROUND(NorthCycles[[#This Row],[WNAFactor]]*NorthCycles[[#This Row],[VolRate]],2) -> 3123.63 | O51: =INDEX(RateCat[CustClass],MATCH(NorthCycles[[#This Row],[RateCategory]],RateCat[RateCategory],0)) -> SGS | P51: Customer Charge Counts from Revenue Reports
A52: 45748 | B52: ENGC_SGS | C52: 10 | D52: 662 | E52: =SUMPRODUCT((MeterReadSch[MonthBill]=NorthCycles[[#This Row],[MonthBill]])*(MeterReadSch[Cycle]=NorthCycles[[#This Row],[Cycle]])*MeterReadSch[Begin Bill Period]) -> 45728 | F52: =SUMPRODUCT((MeterReadSch[MonthBill]=NorthCycles[[#This Row],[MonthBill]])*(MeterReadSch[Cycle]=NorthCycles[[#This Row],[Cycle]])*MeterReadSch[End Bill Period]) -> 45756 | G52: =SUMPRODUCT((KCITempAct[Date]>=NorthCycles[[#This Row],[BegRdDate]])*(KCITempAct[Date]<=NorthCycles[[#This Row],[EndRdDate]])*KCITempAct[KCINHDDAdj]) -> 498.3183871 | H52: =SUMPRODUCT((KCITempAct[Date]>=NorthCycles[[#This Row],[BegRdDate]])*(KCITempAct[Date]<=NorthCycles[[#This Row],[EndRdDate]])*KCITempAct[KCIHDDAdj]) -> 364.5 | I52: =NorthCycles[[#This Row],[NHDD]]-NorthCycles[[#This Row],[AHDD]] -> 133.8183871 | J52: =NorthCycles[[#This Row],[HDDDiff]]*NorthCycles[[#This Row],[NoOfBills]] -> 88587.77226 | K52: =SUMPRODUCT((BetaCoeff[BeginDate]<=NorthCycles[[#This Row],[BegRdDate]])*(BetaCoeff[EndDate]>=NorthCycles[[#This Row],[EndRdDate]])*(BetaCoeff[CustClass]=NorthCycles[[#This Row],[CustClass]])*BetaCoeff[BetaCoeff]) -> 0.2793279 | L52: =NorthCycles[[#This Row],[Diff*NoOfBills]]*NorthCycles[[#This Row],[BetaCoeff]] -> 24745.03639 | M52: =SUMPRODUCT((NorthCycles[[#This Row],[BegRdDate]]>=VolRates[BeginDate])*(NorthCycles[[#This Row],[EndRdDate]]<=VolRates[EndDate])*(VolRates[CustClass]=NorthCycles[[#This Row],[CustClass]])*VolRates[VolRate]) -> 0.26033 | N52: =ROUND(NorthCycles[[#This Row],[WNAFactor]]*NorthCycles[[#This Row],[VolRate]],2) -> 6441.88 | O52: =INDEX(RateCat[CustClass],MATCH(NorthCycles[[#This Row],[RateCategory]],RateCat[RateCategory],0)) -> SGS | P52: Customer Charge Counts from Revenue Reports
A53: 45748 | B53: ENGR_RS | C53: 8 | D53: 1190 | E53: =SUMPRODUCT((MeterReadSch[MonthBill]=NorthCycles[[#This Row],[MonthBill]])*(MeterReadSch[Cycle]=NorthCycles[[#This Row],[Cycle]])*MeterReadSch[Begin Bill Period]) -> 45727 | F53: =SUMPRODUCT((MeterReadSch[MonthBill]=NorthCycles[[#This Row],[MonthBill]])*(MeterReadSch[Cycle]=NorthCycles[[#This Row],[Cycle]])*MeterReadSch[End Bill Period]) -> 45755 | G53: =SUMPRODUCT((KCITempAct[Date]>=NorthCycles[[#This Row],[BegRdDate]])*(KCITempAct[Date]<=NorthCycles[[#This Row],[EndRdDate]])*KCITempAct[KCINHDDAdj]) -> 510.0055735 | H53: =SUMPRODUCT((KCITempAct[Date]>=NorthCycles[[#This Row],[BegRdDate]])*(KCITempAct[Date]<=NorthCycles[[#This Row],[EndRdDate]])*KCITempAct[KCIHDDAdj]) -> 371.5 | I53: =NorthCycles[[#This Row],[NHDD]]-NorthCycles[[#This Row],[AHDD]] -> 138.5055735 | J53: =NorthCycles[[#This Row],[HDDDiff]]*NorthCycles[[#This Row],[NoOfBills]] -> 164821.6324 | K53: =SUMPRODUCT((BetaCoeff[BeginDate]<=NorthCycles[[#This Row],[BegRdDate]])*(BetaCoeff[EndDate]>=NorthCycles[[#This Row],[EndRdDate]])*(BetaCoeff[CustClass]=NorthCycles[[#This Row],[CustClass]])*BetaCoeff[BetaCoeff]) -> 0.1234365 | L53: =NorthCycles[[#This Row],[Diff*NoOfBills]]*NorthCycles[[#This Row],[BetaCoeff]] -> 20345.00543 | M53: =SUMPRODUCT((NorthCycles[[#This Row],[BegRdDate]]>=VolRates[BeginDate])*(NorthCycles[[#This Row],[EndRdDate]]<=VolRates[EndDate])*(VolRates[CustClass]=NorthCycles[[#This Row],[CustClass]])*VolRates[VolRate]) -> 0.21748 | N53: =ROUND(NorthCycles[[#This Row],[WNAFactor]]*NorthCycles[[#This Row],[VolRate]],2) -> 4424.63 | O53: =INDEX(RateCat[CustClass],MATCH(NorthCycles[[#This Row],[RateCategory]],RateCat[RateCategory],0)) -> Res | P53: Customer Charge Counts from Revenue Reports
A54: 45748 | B54: ENGR_RS | C54: 9 | D54: 2594 | E54: =SUMPRODUCT((MeterReadSch[MonthBill]=NorthCycles[[#This Row],[MonthBill]])*(MeterReadSch[Cycle]=NorthCycles[[#This Row],[Cycle]])*MeterReadSch[Begin Bill Period]) -> 45728 | F54: =SUMPRODUCT((MeterReadSch[MonthBill]=NorthCycles[[#This Row],[MonthBill]])*(MeterReadSch[Cycle]=NorthCycles[[#This Row],[Cycle]])*MeterReadSch[End Bill Period]) -> 45756 | G54: =SUMPRODUCT((KCITempAct[Date]>=NorthCycles[[#This Row],[BegRdDate]])*(KCITempAct[Date]<=NorthCycles[[#This Row],[EndRdDate]])*KCITempAct[KCINHDDAdj]) -> 498.3183871 | H54: =SUMPRODUCT((KCITempAct[Date]>=NorthCycles[[#This Row],[BegRdDate]])*(KCITempAct[Date]<=NorthCycles[[#This Row],[EndRdDate]])*KCITempAct[KCIHDDAdj]) -> 364.5 | I54: =NorthCycles[[#This Row],[NHDD]]-NorthCycles[[#This Row],[AHDD]] -> 133.8183871 | J54: =NorthCycles[[#This Row],[HDDDiff]]*NorthCycles[[#This Row],[NoOfBills]] -> 347124.8961 | K54: =SUMPRODUCT((BetaCoeff[BeginDate]<=NorthCycles[[#This Row],[BegRdDate]])*(BetaCoeff[EndDate]>=NorthCycles[[#This Row],[EndRdDate]])*(BetaCoeff[CustClass]=NorthCycles[[#This Row],[CustClass]])*BetaCoeff[BetaCoeff]) -> 0.1234365 | L54: =NorthCycles[[#This Row],[Diff*NoOfBills]]*NorthCycles[[#This Row],[BetaCoeff]] -> 42847.88224 | M54: =SUMPRODUCT((NorthCycles[[#This Row],[BegRdDate]]>=VolRates[BeginDate])*(NorthCycles[[#This Row],[EndRdDate]]<=VolRates[EndDate])*(VolRates[CustClass]=NorthCycles[[#This Row],[CustClass]])*VolRates[VolRate]) -> 0.21748 | N54: =ROUND(NorthCycles[[#This Row],[WNAFactor]]*NorthCycles[[#This Row],[VolRate]],2) -> 9318.56 | O54: =INDEX(RateCat[CustClass],MATCH(NorthCycles[[#This Row],[RateCategory]],RateCat[RateCategory],0)) -> Res | P54: Customer Charge Counts from Revenue Reports
A55: 45748 | B55: ENGR_RS | C55: 10 | D55: 4516 | E55: =SUMPRODUCT((MeterReadSch[MonthBill]=NorthCycles[[#This Row],[MonthBill]])*(MeterReadSch[Cycle]=NorthCycles[[#This Row],[Cycle]])*MeterReadSch[Begin Bill Period]) -> 45728 | F55: =SUMPRODUCT((MeterReadSch[MonthBill]=NorthCycles[[#This Row],[MonthBill]])*(MeterReadSch[Cycle]=NorthCycles[[#This Row],[Cycle]])*MeterReadSch[End Bill Period]) -> 45756 | G55: =SUMPRODUCT((KCITempAct[Date]>=NorthCycles[[#This Row],[BegRdDate]])*(KCITempAct[Date]<=NorthCycles[[#This Row],[EndRdDate]])*KCITempAct[KCINHDDAdj]) -> 498.3183871 | H55: =SUMPRODUCT((KCITempAct[Date]>=NorthCycles[[#This Row],[BegRdDate]])*(KCITempAct[Date]<=NorthCycles[[#This Row],[EndRdDate]])*KCITempAct[KCIHDDAdj]) -> 364.5 | I55: =NorthCycles[[#This Row],[NHDD]]-NorthCycles[[#This Row],[AHDD]] -> 133.8183871 | J55: =NorthCycles[[#This Row],[HDDDiff]]*NorthCycles[[#This Row],[NoOfBills]] -> 604323.8361 | K55: =SUMPRODUCT((BetaCoeff[BeginDate]<=NorthCycles[[#This Row],[BegRdDate]])*(BetaCoeff[EndDate]>=NorthCycles[[#This Row],[EndRdDate]])*(BetaCoeff[CustClass]=NorthCycles[[#This Row],[CustClass]])*BetaCoeff[BetaCoeff]) -> 0.1234365 | L55: =NorthCycles[[#This Row],[Diff*NoOfBills]]*NorthCycles[[#This Row],[BetaCoeff]] -> 74595.6192 | M55: =SUMPRODUCT((NorthCycles[[#This Row],[BegRdDate]]>=VolRates[BeginDate])*(NorthCycles[[#This Row],[EndRdDate]]<=VolRates[EndDate])*(VolRates[CustClass]=NorthCycles[[#This Row],[CustClass]])*VolRates[VolRate]) -> 0.21748 | N55: =ROUND(NorthCycles[[#This Row],[WNAFactor]]*NorthCycles[[#This Row],[VolRate]],2) -> 16223.06 | O55: =INDEX(RateCat[CustClass],MATCH(NorthCycles[[#This Row],[RateCategory]],RateCat[RateCategory],0)) -> Res | P55: Customer Charge Counts from Revenue Reports
A56: 45778 | B56: ENGC_SGS | C56: 8 | D56: 215 | E56: =SUMPRODUCT((MeterReadSch[MonthBill]=NorthCycles[[#This Row],[MonthBill]])*(MeterReadSch[Cycle]=NorthCycles[[#This Row],[Cycle]])*MeterReadSch[Begin Bill Period]) -> 45756 | F56: =SUMPRODUCT((MeterReadSch[MonthBill]=NorthCycles[[#This Row],[MonthBill]])*(MeterReadSch[Cycle]=NorthCycles[[#This Row],[Cycle]])*MeterReadSch[End Bill Period]) -> 45785 | G56: =SUMPRODUCT((KCITempAct[Date]>=NorthCycles[[#This Row],[BegRdDate]])*(KCITempAct[Date]<=NorthCycles[[#This Row],[EndRdDate]])*KCITempAct[KCINHDDAdj]) -> 208.7631004 | H56: =SUMPRODUCT((KCITempAct[Date]>=NorthCycles[[#This Row],[BegRdDate]])*(KCITempAct[Date]<=NorthCycles[[#This Row],[EndRdDate]])*KCITempAct[KCIHDDAdj]) -> 173.5 | I56: =NorthCycles[[#This Row],[NHDD]]-NorthCycles[[#This Row],[AHDD]] -> 35.26310036 | J56: =NorthCycles[[#This Row],[HDDDiff]]*NorthCycles[[#This Row],[NoOfBills]] -> 7581.566577 | K56: =SUMPRODUCT((BetaCoeff[BeginDate]<=NorthCycles[[#This Row],[BegRdDate]])*(BetaCoeff[EndDate]>=NorthCycles[[#This Row],[EndRdDate]])*(BetaCoeff[CustClass]=NorthCycles[[#This Row],[CustClass]])*BetaCoeff[BetaCoeff]) -> 0.2793279 | L56: =NorthCycles[[#This Row],[Diff*NoOfBills]]*NorthCycles[[#This Row],[BetaCoeff]] -> 2117.743071 | M56: =SUMPRODUCT((NorthCycles[[#This Row],[BegRdDate]]>=VolRates[BeginDate])*(NorthCycles[[#This Row],[EndRdDate]]<=VolRates[EndDate])*(VolRates[CustClass]=NorthCycles[[#This Row],[CustClass]])*VolRates[VolRate]) -> 0.26033 | N56: =ROUND(NorthCycles[[#This Row],[WNAFactor]]*NorthCycles[[#This Row],[VolRate]],2) -> 551.31 | O56: =INDEX(RateCat[CustClass],MATCH(NorthCycles[[#This Row],[RateCategory]],RateCat[RateCategory],0)) -> SGS | P56: Customer Charge Counts from Revenue Reports
A57: 45778 | B57: ENGC_SGS | C57: 9 | D57: 317 | E57: =SUMPRODUCT((MeterReadSch[MonthBill]=NorthCycles[[#This Row],[MonthBill]])*(MeterReadSch[Cycle]=NorthCycles[[#This Row],[Cycle]])*MeterReadSch[Begin Bill Period]) -> 45757 | F57: =SUMPRODUCT((MeterReadSch[MonthBill]=NorthCycles[[#This Row],[MonthBill]])*(MeterReadSch[Cycle]=NorthCycles[[#This Row],[Cycle]])*MeterReadSch[End Bill Period]) -> 45786 | G57: =SUMPRODUCT((KCITempAct[Date]>=NorthCycles[[#This Row],[BegRdDate]])*(KCITempAct[Date]<=NorthCycles[[#This Row],[EndRdDate]])*KCITempAct[KCINHDDAdj]) -> 207.960233 | H57: =SUMPRODUCT((KCITempAct[Date]>=NorthCycles[[#This Row],[BegRdDate]])*(KCITempAct[Date]<=NorthCycles[[#This Row],[EndRdDate]])*KCITempAct[KCIHDDAdj]) -> 173.5 | I57: =NorthCycles[[#This Row],[NHDD]]-NorthCycles[[#This Row],[AHDD]] -> 34.46023297 | J57: =NorthCycles[[#This Row],[HDDDiff]]*NorthCycles[[#This Row],[NoOfBills]] -> 10923.89385 | K57: =SUMPRODUCT((BetaCoeff[BeginDate]<=NorthCycles[[#This Row],[BegRdDate]])*(BetaCoeff[EndDate]>=NorthCycles[[#This Row],[EndRdDate]])*(BetaCoeff[CustClass]=NorthCycles[[#This Row],[CustClass]])*BetaCoeff[BetaCoeff]) -> 0.2793279 | L57: =NorthCycles[[#This Row],[Diff*NoOfBills]]*NorthCycles[[#This Row],[BetaCoeff]] -> 3051.34833 | M57: =SUMPRODUCT((NorthCycles[[#This Row],[BegRdDate]]>=VolRates[BeginDate])*(NorthCycles[[#This Row],[EndRdDate]]<=VolRates[EndDate])*(VolRates[CustClass]=NorthCycles[[#This Row],[CustClass]])*VolRates[VolRate]) -> 0.26033 | N57: =ROUND(NorthCycles[[#This Row],[WNAFactor]]*NorthCycles[[#This Row],[VolRate]],2) -> 794.36 | O57: =INDEX(RateCat[CustClass],MATCH(NorthCycles[[#This Row],[RateCategory]],RateCat[RateCategory],0)) -> SGS | P57: Customer Charge Counts from Revenue Reports
A58: 45778 | B58: ENGC_SGS | C58: 10 | D58: 640 | E58: =SUMPRODUCT((MeterReadSch[MonthBill]=NorthCycles[[#This Row],[MonthBill]])*(MeterReadSch[Cycle]=NorthCycles[[#This Row],[Cycle]])*MeterReadSch[Begin Bill Period]) -> 45757 | F58: =SUMPRODUCT((MeterReadSch[MonthBill]=NorthCycles[[#This Row],[MonthBill]])*(MeterReadSch[Cycle]=NorthCycles[[#This Row],[Cycle]])*MeterReadSch[End Bill Period]) -> 45786 | G58: =SUMPRODUCT((KCITempAct[Date]>=NorthCycles[[#This Row],[BegRdDate]])*(KCITempAct[Date]<=NorthCycles[[#This Row],[EndRdDate]])*KCITempAct[KCINHDDAdj]) -> 207.960233 | H58: =SUMPRODUCT((KCITempAct[Date]>=NorthCycles[[#This Row],[BegRdDate]])*(KCITempAct[Date]<=NorthCycles[[#This Row],[EndRdDate]])*KCITempAct[KCIHDDAdj]) -> 173.5 | I58: =NorthCycles[[#This Row],[NHDD]]-NorthCycles[[#This Row],[AHDD]] -> 34.46023297 | J58: =NorthCycles[[#This Row],[HDDDiff]]*NorthCycles[[#This Row],[NoOfBills]] -> 22054.5491 | K58: =SUMPRODUCT((BetaCoeff[BeginDate]<=NorthCycles[[#This Row],[BegRdDate]])*(BetaCoeff[EndDate]>=NorthCycles[[#This Row],[EndRdDate]])*(BetaCoeff[CustClass]=NorthCycles[[#This Row],[CustClass]])*BetaCoeff[BetaCoeff]) -> 0.2793279 | L58: =NorthCycles[[#This Row],[Diff*NoOfBills]]*NorthCycles[[#This Row],[BetaCoeff]] -> 6160.450887 | M58: =SUMPRODUCT((NorthCycles[[#This Row],[BegRdDate]]>=VolRates[BeginDate])*(NorthCycles[[#This Row],[EndRdDate]]<=VolRates[EndDate])*(VolRates[CustClass]=NorthCycles[[#This Row],[CustClass]])*VolRates[VolRate]) -> 0.26033 | N58: =ROUND(NorthCycles[[#This Row],[WNAFactor]]*NorthCycles[[#This Row],[VolRate]],2) -> 1603.75 | O58: =INDEX(RateCat[CustClass],MATCH(NorthCycles[[#This Row],[RateCategory]],RateCat[RateCategory],0)) -> SGS | P58: Customer Charge Counts from Revenue Reports
A59: 45778 | B59: ENGR_RS | C59: 8 | D59: 1171 | E59: =SUMPRODUCT((MeterReadSch[MonthBill]=NorthCycles[[#This Row],[MonthBill]])*(MeterReadSch[Cycle]=NorthCycles[[#This Row],[Cycle]])*MeterReadSch[Begin Bill Period]) -> 45756 | F59: =SUMPRODUCT((MeterReadSch[MonthBill]=NorthCycles[[#This Row],[MonthBill]])*(MeterReadSch[Cycle]=NorthCycles[[#This Row],[Cycle]])*MeterReadSch[End Bill Period]) -> 45785 | G59: =SUMPRODUCT((KCITempAct[Date]>=NorthCycles[[#This Row],[BegRdDate]])*(KCITempAct[Date]<=NorthCycles[[#This Row],[EndRdDate]])*KCITempAct[KCINHDDAdj]) -> 208.7631004 | H59: =SUMPRODUCT((KCITempAct[Date]>=NorthCycles[[#This Row],[BegRdDate]])*(KCITempAct[Date]<=NorthCycles[[#This Row],[EndRdDate]])*KCITempAct[KCIHDDAdj]) -> 173.5 | I59: =NorthCycles[[#This Row],[NHDD]]-NorthCycles[[#This Row],[AHDD]] -> 35.26310036 | J59: =NorthCycles[[#This Row],[HDDDiff]]*NorthCycles[[#This Row],[NoOfBills]] -> 41293.09052 | K59: =SUMPRODUCT((BetaCoeff[BeginDate]<=NorthCycles[[#This Row],[BegRdDate]])*(BetaCoeff[EndDate]>=NorthCycles[[#This Row],[EndRdDate]])*(BetaCoeff[CustClass]=NorthCycles[[#This Row],[CustClass]])*BetaCoeff[BetaCoeff]) -> 0.1234365 | L59: =NorthCycles[[#This Row],[Diff*NoOfBills]]*NorthCycles[[#This Row],[BetaCoeff]] -> 5097.074568 | M59: =SUMPRODUCT((NorthCycles[[#This Row],[BegRdDate]]>=VolRates[BeginDate])*(NorthCycles[[#This Row],[EndRdDate]]<=VolRates[EndDate])*(VolRates[CustClass]=NorthCycles[[#This Row],[CustClass]])*VolRates[VolRate]) -> 0.21748 | N59: =ROUND(NorthCycles[[#This Row],[WNAFactor]]*NorthCycles[[#This Row],[VolRate]],2) -> 1108.51 | O59: =INDEX(RateCat[CustClass],MATCH(NorthCycles[[#This Row],[RateCategory]],RateCat[RateCategory],0)) -> Res | P59: Customer Charge Counts from Revenue Reports
A60: 45778 | B60: ENGR_RS | C60: 9 | D60: 2585 | E60: =SUMPRODUCT((MeterReadSch[MonthBill]=NorthCycles[[#This Row],[MonthBill]])*(MeterReadSch[Cycle]=NorthCycles[[#This Row],[Cycle]])*MeterReadSch[Begin Bill Period]) -> 45757 | F60: =SUMPRODUCT((MeterReadSch[MonthBill]=NorthCycles[[#This Row],[MonthBill]])*(MeterReadSch[Cycle]=NorthCycles[[#This Row],[Cycle]])*MeterReadSch[End Bill Period]) -> 45786 | G60: =SUMPRODUCT((KCITempAct[Date]>=NorthCycles[[#This Row],[BegRdDate]])*(KCITempAct[Date]<=NorthCycles[[#This Row],[EndRdDate]])*KCITempAct[KCINHDDAdj]) -> 207.960233 | H60: =SUMPRODUCT((KCITempAct[Date]>=NorthCycles[[#This Row],[BegRdDate]])*(KCITempAct[Date]<=NorthCycles[[#This Row],[EndRdDate]])*KCITempAct[KCIHDDAdj]) -> 173.5 | I60: =NorthCycles[[#This Row],[NHDD]]-NorthCycles[[#This Row],[AHDD]] -> 34.46023297 | J60: =NorthCycles[[#This Row],[HDDDiff]]*NorthCycles[[#This Row],[NoOfBills]] -> 89079.70224 | K60: =SUMPRODUCT((BetaCoeff[BeginDate]<=NorthCycles[[#This Row],[BegRdDate]])*(BetaCoeff[EndDate]>=NorthCycles[[#This Row],[EndRdDate]])*(BetaCoeff[CustClass]=NorthCycles[[#This Row],[CustClass]])*BetaCoeff[BetaCoeff]) -> 0.1234365 | L60: =NorthCycles[[#This Row],[Diff*NoOfBills]]*NorthCycles[[#This Row],[BetaCoeff]] -> 10995.68667 | M60: =SUMPRODUCT((NorthCycles[[#This Row],[BegRdDate]]>=VolRates[BeginDate])*(NorthCycles[[#This Row],[EndRdDate]]<=VolRates[EndDate])*(VolRates[CustClass]=NorthCycles[[#This Row],[CustClass]])*VolRates[VolRate]) -> 0.21748 | N60: =ROUND(NorthCycles[[#This Row],[WNAFactor]]*NorthCycles[[#This Row],[VolRate]],2) -> 2391.34 | O60: =INDEX(RateCat[CustClass],MATCH(NorthCycles[[#This Row],[RateCategory]],RateCat[RateCategory],0)) -> Res | P60: Customer Charge Counts from Revenue Reports
A61: 45778 | B61: ENGR_RS | C61: 10 | D61: 4448 | E61: =SUMPRODUCT((MeterReadSch[MonthBill]=NorthCycles[[#This Row],[MonthBill]])*(MeterReadSch[Cycle]=NorthCycles[[#This Row],[Cycle]])*MeterReadSch[Begin Bill Period]) -> 45757 | F61: =SUMPRODUCT((MeterReadSch[MonthBill]=NorthCycles[[#This Row],[MonthBill]])*(MeterReadSch[Cycle]=NorthCycles[[#This Row],[Cycle]])*MeterReadSch[End Bill Period]) -> 45786 | G61: =SUMPRODUCT((KCITempAct[Date]>=NorthCycles[[#This Row],[BegRdDate]])*(KCITempAct[Date]<=NorthCycles[[#This Row],[EndRdDate]])*KCITempAct[KCINHDDAdj]) -> 207.960233 | H61: =SUMPRODUCT((KCITempAct[Date]>=NorthCycles[[#This Row],[BegRdDate]])*(KCITempAct[Date]<=NorthCycles[[#This Row],[EndRdDate]])*KCITempAct[KCIHDDAdj]) -> 173.5 | I61: =NorthCycles[[#This Row],[NHDD]]-NorthCycles[[#This Row],[AHDD]] -> 34.46023297 | J61: =NorthCycles[[#This Row],[HDDDiff]]*NorthCycles[[#This Row],[NoOfBills]] -> 153279.1163 | K61: =SUMPRODUCT((BetaCoeff[BeginDate]<=NorthCycles[[#This Row],[BegRdDate]])*(BetaCoeff[EndDate]>=NorthCycles[[#This Row],[EndRdDate]])*(BetaCoeff[CustClass]=NorthCycles[[#This Row],[CustClass]])*BetaCoeff[BetaCoeff]) -> 0.1234365 | L61: =NorthCycles[[#This Row],[Diff*NoOfBills]]*NorthCycles[[#This Row],[BetaCoeff]] -> 18920.23764 | M61: =SUMPRODUCT((NorthCycles[[#This Row],[BegRdDate]]>=VolRates[BeginDate])*(NorthCycles[[#This Row],[EndRdDate]]<=VolRates[EndDate])*(VolRates[CustClass]=NorthCycles[[#This Row],[CustClass]])*VolRates[VolRate]) -> 0.21748 | N61: =ROUND(NorthCycles[[#This Row],[WNAFactor]]*NorthCycles[[#This Row],[VolRate]],2) -> 4114.77 | O61: =INDEX(RateCat[CustClass],MATCH(NorthCycles[[#This Row],[RateCategory]],RateCat[RateCategory],0)) -> Res | P61: Customer Charge Counts from Revenue Reports
A62: 45809 | B62: ENGC_SGS | C62: 8 | D62: 213 | E62: =SUMPRODUCT((MeterReadSch[MonthBill]=NorthCycles[[#This Row],[MonthBill]])*(MeterReadSch[Cycle]=NorthCycles[[#This Row],[Cycle]])*MeterReadSch[Begin Bill Period]) -> 45786 | F62: =SUMPRODUCT((MeterReadSch[MonthBill]=NorthCycles[[#This Row],[MonthBill]])*(MeterReadSch[Cycle]=NorthCycles[[#This Row],[Cycle]])*MeterReadSch[End Bill Period]) -> 45817 | G62: =SUMPRODUCT((KCITempAct[Date]>=NorthCycles[[#This Row],[BegRdDate]])*(KCITempAct[Date]<=NorthCycles[[#This Row],[EndRdDate]])*KCITempAct[KCINHDDAdj]) -> 63.10216846 | H62: =SUMPRODUCT((KCITempAct[Date]>=NorthCycles[[#This Row],[BegRdDate]])*(KCITempAct[Date]<=NorthCycles[[#This Row],[EndRdDate]])*KCITempAct[KCIHDDAdj]) -> 48.5 | I62: =NorthCycles[[#This Row],[NHDD]]-NorthCycles[[#This Row],[AHDD]] -> 14.60216846 | J62: =NorthCycles[[#This Row],[HDDDiff]]*NorthCycles[[#This Row],[NoOfBills]] -> 3110.261882 | K62: =SUMPRODUCT((BetaCoeff[BeginDate]<=NorthCycles[[#This Row],[BegRdDate]])*(BetaCoeff[EndDate]>=NorthCycles[[#This Row],[EndRdDate]])*(BetaCoeff[CustClass]=NorthCycles[[#This Row],[CustClass]])*BetaCoeff[BetaCoeff]) -> 0.2793279 | L62: =NorthCycles[[#This Row],[Diff*NoOfBills]]*NorthCycles[[#This Row],[BetaCoeff]] -> 868.7829199 | M62: =SUMPRODUCT((NorthCycles[[#This Row],[BegRdDate]]>=VolRates[BeginDate])*(NorthCycles[[#This Row],[EndRdDate]]<=VolRates[EndDate])*(VolRates[CustClass]=NorthCycles[[#This Row],[CustClass]])*VolRates[VolRate]) -> 0.26033 | N62: =ROUND(NorthCycles[[#This Row],[WNAFactor]]*NorthCycles[[#This Row],[VolRate]],2) -> 226.17 | O62: =INDEX(RateCat[CustClass],MATCH(NorthCycles[[#This Row],[RateCategory]],RateCat[RateCategory],0)) -> SGS | P62: Customer Charge Counts from Revenue Reports
A63: 45809 | B63: ENGC_SGS | C63: 9 | D63: 315 | E63: =SUMPRODUCT((MeterReadSch[MonthBill]=NorthCycles[[#This Row],[MonthBill]])*(MeterReadSch[Cycle]=NorthCycles[[#This Row],[Cycle]])*MeterReadSch[Begin Bill Period]) -> 45787 | F63: =SUMPRODUCT((MeterReadSch[MonthBill]=NorthCycles[[#This Row],[MonthBill]])*(MeterReadSch[Cycle]=NorthCycles[[#This Row],[Cycle]])*MeterReadSch[End Bill Period]) -> 45818 | G63: =SUMPRODUCT((KCITempAct[Date]>=NorthCycles[[#This Row],[BegRdDate]])*(KCITempAct[Date]<=NorthCycles[[#This Row],[EndRdDate]])*KCITempAct[KCINHDDAdj]) -> 61.88948029 | H63: =SUMPRODUCT((KCITempAct[Date]>=NorthCycles[[#This Row],[BegRdDate]])*(KCITempAct[Date]<=NorthCycles[[#This Row],[EndRdDate]])*KCITempAct[KCIHDDAdj]) -> 47 | I63: =NorthCycles[[#This Row],[NHDD]]-NorthCycles[[#This Row],[AHDD]] -> 14.88948029 | J63: =NorthCycles[[#This Row],[HDDDiff]]*NorthCycles[[#This Row],[NoOfBills]] -> 4690.18629 | K63: =SUMPRODUCT((BetaCoeff[BeginDate]<=NorthCycles[[#This Row],[BegRdDate]])*(BetaCoeff[EndDate]>=NorthCycles[[#This Row],[EndRdDate]])*(BetaCoeff[CustClass]=NorthCycles[[#This Row],[CustClass]])*BetaCoeff[BetaCoeff]) -> 0.2793279 | L63: =NorthCycles[[#This Row],[Diff*NoOfBills]]*NorthCycles[[#This Row],[BetaCoeff]] -> 1310.099887 | M63: =SUMPRODUCT((NorthCycles[[#This Row],[BegRdDate]]>=VolRates[BeginDate])*(NorthCycles[[#This Row],[EndRdDate]]<=VolRates[EndDate])*(VolRates[CustClass]=NorthCycles[[#This Row],[CustClass]])*VolRates[VolRate]) -> 0.26033 | N63: =ROUND(NorthCycles[[#This Row],[WNAFactor]]*NorthCycles[[#This Row],[VolRate]],2) -> 341.06 | O63: =INDEX(RateCat[CustClass],MATCH(NorthCycles[[#This Row],[RateCategory]],RateCat[RateCategory],0)) -> SGS | P63: Customer Charge Counts from Revenue Reports
A64: 45809 | B64: ENGC_SGS | C64: 10 | D64: 643 | E64: =SUMPRODUCT((MeterReadSch[MonthBill]=NorthCycles[[#This Row],[MonthBill]])*(MeterReadSch[Cycle]=NorthCycles[[#This Row],[Cycle]])*MeterReadSch[Begin Bill Period]) -> 45787 | F64: =SUMPRODUCT((MeterReadSch[MonthBill]=NorthCycles[[#This Row],[MonthBill]])*(MeterReadSch[Cycle]=NorthCycles[[#This Row],[Cycle]])*MeterReadSch[End Bill Period]) -> 45818 | G64: =SUMPRODUCT((KCITempAct[Date]>=NorthCycles[[#This Row],[BegRdDate]])*(KCITempAct[Date]<=NorthCycles[[#This Row],[EndRdDate]])*KCITempAct[KCINHDDAdj]) -> 61.88948029 | H64: =SUMPRODUCT((KCITempAct[Date]>=NorthCycles[[#This Row],[BegRdDate]])*(KCITempAct[Date]<=NorthCycles[[#This Row],[EndRdDate]])*KCITempAct[KCIHDDAdj]) -> 47 | I64: =NorthCycles[[#This Row],[NHDD]]-NorthCycles[[#This Row],[AHDD]] -> 14.88948029 | J64: =NorthCycles[[#This Row],[HDDDiff]]*NorthCycles[[#This Row],[NoOfBills]] -> 9573.935824 | K64: =SUMPRODUCT((BetaCoeff[BeginDate]<=NorthCycles[[#This Row],[BegRdDate]])*(BetaCoeff[EndDate]>=NorthCycles[[#This Row],[EndRdDate]])*(BetaCoeff[CustClass]=NorthCycles[[#This Row],[CustClass]])*BetaCoeff[BetaCoeff]) -> 0.2793279 | L64: =NorthCycles[[#This Row],[Diff*NoOfBills]]*NorthCycles[[#This Row],[BetaCoeff]] -> 2674.267389 | M64: =SUMPRODUCT((NorthCycles[[#This Row],[BegRdDate]]>=VolRates[BeginDate])*(NorthCycles[[#This Row],[EndRdDate]]<=VolRates[EndDate])*(VolRates[CustClass]=NorthCycles[[#This Row],[CustClass]])*VolRates[VolRate]) -> 0.26033 | N64: =ROUND(NorthCycles[[#This Row],[WNAFactor]]*NorthCycles[[#This Row],[VolRate]],2) -> 696.19 | O64: =INDEX(RateCat[CustClass],MATCH(NorthCycles[[#This Row],[RateCategory]],RateCat[RateCategory],0)) -> SGS | P64: Customer Charge Counts from Revenue Reports
A65: 45809 | B65: ENGR_RS | C65: 8 | D65: 1160 | E65: =SUMPRODUCT((MeterReadSch[MonthBill]=NorthCycles[[#This Row],[MonthBill]])*(MeterReadSch[Cycle]=NorthCycles[[#This Row],[Cycle]])*MeterReadSch[Begin Bill Period]) -> 45786 | F65: =SUMPRODUCT((MeterReadSch[MonthBill]=NorthCycles[[#This Row],[MonthBill]])*(MeterReadSch[Cycle]=NorthCycles[[#This Row],[Cycle]])*MeterReadSch[End Bill Period]) -> 45817 | G65: =SUMPRODUCT((KCITempAct[Date]>=NorthCycles[[#This Row],[BegRdDate]])*(KCITempAct[Date]<=NorthCycles[[#This Row],[EndRdDate]])*KCITempAct[KCINHDDAdj]) -> 63.10216846 | H65: =SUMPRODUCT((KCITempAct[Date]>=NorthCycles[[#This Row],[BegRdDate]])*(KCITempAct[Date]<=NorthCycles[[#This Row],[EndRdDate]])*KCITempAct[KCIHDDAdj]) -> 48.5 | I65: =NorthCycles[[#This Row],[NHDD]]-NorthCycles[[#This Row],[AHDD]] -> 14.60216846 | J65: =NorthCycles[[#This Row],[HDDDiff]]*NorthCycles[[#This Row],[NoOfBills]] -> 16938.51541 | K65: =SUMPRODUCT((BetaCoeff[BeginDate]<=NorthCycles[[#This Row],[BegRdDate]])*(BetaCoeff[EndDate]>=NorthCycles[[#This Row],[EndRdDate]])*(BetaCoeff[CustClass]=NorthCycles[[#This Row],[CustClass]])*BetaCoeff[BetaCoeff]) -> 0.1234365 | L65: =NorthCycles[[#This Row],[Diff*NoOfBills]]*NorthCycles[[#This Row],[BetaCoeff]] -> 2090.831058 | M65: =SUMPRODUCT((NorthCycles[[#This Row],[BegRdDate]]>=VolRates[BeginDate])*(NorthCycles[[#This Row],[EndRdDate]]<=VolRates[EndDate])*(VolRates[CustClass]=NorthCycles[[#This Row],[CustClass]])*VolRates[VolRate]) -> 0.21748 | N65: =ROUND(NorthCycles[[#This Row],[WNAFactor]]*NorthCycles[[#This Row],[VolRate]],2) -> 454.71 | O65: =INDEX(RateCat[CustClass],MATCH(NorthCycles[[#This Row],[RateCategory]],RateCat[RateCategory],0)) -> Res | P65: Customer Charge Counts from Revenue Reports
A66: 45809 | B66: ENGR_RS | C66: 9 | D66: 2559 | E66: =SUMPRODUCT((MeterReadSch[MonthBill]=NorthCycles[[#This Row],[MonthBill]])*(MeterReadSch[Cycle]=NorthCycles[[#This Row],[Cycle]])*MeterReadSch[Begin Bill Period]) -> 45787 | F66: =SUMPRODUCT((MeterReadSch[MonthBill]=NorthCycles[[#This Row],[MonthBill]])*(MeterReadSch[Cycle]=NorthCycles[[#This Row],[Cycle]])*MeterReadSch[End Bill Period]) -> 45818 | G66: =SUMPRODUCT((KCITempAct[Date]>=NorthCycles[[#This Row],[BegRdDate]])*(KCITempAct[Date]<=NorthCycles[[#This Row],[EndRdDate]])*KCITempAct[KCINHDDAdj]) -> 61.88948029 | H66: =SUMPRODUCT((KCITempAct[Date]>=NorthCycles[[#This Row],[BegRdDate]])*(KCITempAct[Date]<=NorthCycles[[#This Row],[EndRdDate]])*KCITempAct[KCIHDDAdj]) -> 47 | I66: =NorthCycles[[#This Row],[NHDD]]-NorthCycles[[#This Row],[AHDD]] -> 14.88948029 | J66: =NorthCycles[[#This Row],[HDDDiff]]*NorthCycles[[#This Row],[NoOfBills]] -> 38102.18005 | K66: =SUMPRODUCT((BetaCoeff[BeginDate]<=NorthCycles[[#This Row],[BegRdDate]])*(BetaCoeff[EndDate]>=NorthCycles[[#This Row],[EndRdDate]])*(BetaCoeff[CustClass]=NorthCycles[[#This Row],[CustClass]])*BetaCoeff[BetaCoeff]) -> 0.1234365 | L66: =NorthCycles[[#This Row],[Diff*NoOfBills]]*NorthCycles[[#This Row],[BetaCoeff]] -> 4703.199748 | M66: =SUMPRODUCT((NorthCycles[[#This Row],[BegRdDate]]>=VolRates[BeginDate])*(NorthCycles[[#This Row],[EndRdDate]]<=VolRates[EndDate])*(VolRates[CustClass]=NorthCycles[[#This Row],[CustClass]])*VolRates[VolRate]) -> 0.21748 | N66: =ROUND(NorthCycles[[#This Row],[WNAFactor]]*NorthCycles[[#This Row],[VolRate]],2) -> 1022.85 | O66: =INDEX(RateCat[CustClass],MATCH(NorthCycles[[#This Row],[RateCategory]],RateCat[RateCategory],0)) -> Res | P66: Customer Charge Counts from Revenue Reports
A67: 45809 | B67: ENGR_RS | C67: 10 | D67: 4435 | E67: =SUMPRODUCT((MeterReadSch[MonthBill]=NorthCycles[[#This Row],[MonthBill]])*(MeterReadSch[Cycle]=NorthCycles[[#This Row],[Cycle]])*MeterReadSch[Begin Bill Period]) -> 45787 | F67: =SUMPRODUCT((MeterReadSch[MonthBill]=NorthCycles[[#This Row],[MonthBill]])*(MeterReadSch[Cycle]=NorthCycles[[#This Row],[Cycle]])*MeterReadSch[End Bill Period]) -> 45818 | G67: =SUMPRODUCT((KCITempAct[Date]>=NorthCycles[[#This Row],[BegRdDate]])*(KCITempAct[Date]<=NorthCycles[[#This Row],[EndRdDate]])*KCITempAct[KCINHDDAdj]) -> 61.88948029 | H67: =SUMPRODUCT((KCITempAct[Date]>=NorthCycles[[#This Row],[BegRdDate]])*(KCITempAct[Date]<=NorthCycles[[#This Row],[EndRdDate]])*KCITempAct[KCIHDDAdj]) -> 47 | I67: =NorthCycles[[#This Row],[NHDD]]-NorthCycles[[#This Row],[AHDD]] -> 14.88948029 | J67: =NorthCycles[[#This Row],[HDDDiff]]*NorthCycles[[#This Row],[NoOfBills]] -> 66034.84507 | K67: =SUMPRODUCT((BetaCoeff[BeginDate]<=NorthCycles[[#This Row],[BegRdDate]])*(BetaCoeff[EndDate]>=NorthCycles[[#This Row],[EndRdDate]])*(BetaCoeff[CustClass]=NorthCycles[[#This Row],[CustClass]])*BetaCoeff[BetaCoeff]) -> 0.1234365 | L67: =NorthCycles[[#This Row],[Diff*NoOfBills]]*NorthCycles[[#This Row],[BetaCoeff]] -> 8151.110154 | M67: =SUMPRODUCT((NorthCycles[[#This Row],[BegRdDate]]>=VolRates[BeginDate])*(NorthCycles[[#This Row],[EndRdDate]]<=VolRates[EndDate])*(VolRates[CustClass]=NorthCycles[[#This Row],[CustClass]])*VolRates[VolRate]) -> 0.21748 | N67: =ROUND(NorthCycles[[#This Row],[WNAFactor]]*NorthCycles[[#This Row],[VolRate]],2) -> 1772.7 | O67: =INDEX(RateCat[CustClass],MATCH(NorthCycles[[#This Row],[RateCategory]],RateCat[RateCategory],0)) -> Res | P67: Customer Charge Counts from Revenue Reports
A68: 45839 | B68: ENGC_SGS | C68: 8 | D68: 211 | E68: =SUMPRODUCT((MeterReadSch[MonthBill]=NorthCycles[[#This Row],[MonthBill]])*(MeterReadSch[Cycle]=NorthCycles[[#This Row],[Cycle]])*MeterReadSch[Begin Bill Period]) -> 45818 | F68: =SUMPRODUCT((MeterReadSch[MonthBill]=NorthCycles[[#This Row],[MonthBill]])*(MeterReadSch[Cycle]=NorthCycles[[#This Row],[Cycle]])*MeterReadSch[End Bill Period]) -> 45847 | G68: =SUMPRODUCT((KCITempAct[Date]>=NorthCycles[[#This Row],[BegRdDate]])*(KCITempAct[Date]<=NorthCycles[[#This Row],[EndRdDate]])*KCITempAct[KCINHDDAdj]) -> 0 | H68: =SUMPRODUCT((KCITempAct[Date]>=NorthCycles[[#This Row],[BegRdDate]])*(KCITempAct[Date]<=NorthCycles[[#This Row],[EndRdDate]])*KCITempAct[KCIHDDAdj]) -> 0 | I68: =NorthCycles[[#This Row],[NHDD]]-NorthCycles[[#This Row],[AHDD]] -> 0 | J68: =NorthCycles[[#This Row],[HDDDiff]]*NorthCycles[[#This Row],[NoOfBills]] -> 0 | K68: =SUMPRODUCT((BetaCoeff[BeginDate]<=NorthCycles[[#This Row],[BegRdDate]])*(BetaCoeff[EndDate]>=NorthCycles[[#This Row],[EndRdDate]])*(BetaCoeff[CustClass]=NorthCycles[[#This Row],[CustClass]])*BetaCoeff[BetaCoeff]) -> 0.2793279 | L68: =NorthCycles[[#This Row],[Diff*NoOfBills]]*NorthCycles[[#This Row],[BetaCoeff]] -> 0 | M68: =SUMPRODUCT((NorthCycles[[#This Row],[BegRdDate]]>=VolRates[BeginDate])*(NorthCycles[[#This Row],[EndRdDate]]<=VolRates[EndDate])*(VolRates[CustClass]=NorthCycles[[#This Row],[CustClass]])*VolRates[VolRate]) -> 0.26033 | N68: =ROUND(NorthCycles[[#This Row],[WNAFactor]]*NorthCycles[[#This Row],[VolRate]],2) -> 0 | O68: =INDEX(RateCat[CustClass],MATCH(NorthCycles[[#This Row],[RateCategory]],RateCat[RateCategory],0)) -> SGS | P68: Customer Charge Counts from Revenue Reports
A69: 45839 | B69: ENGC_SGS | C69: 9 | D69: 314 | E69: =SUMPRODUCT((MeterReadSch[MonthBill]=NorthCycles[[#This Row],[MonthBill]])*(MeterReadSch[Cycle]=NorthCycles[[#This Row],[Cycle]])*MeterReadSch[Begin Bill Period]) -> 45819 | F69: =SUMPRODUCT((MeterReadSch[MonthBill]=NorthCycles[[#This Row],[MonthBill]])*(MeterReadSch[Cycle]=NorthCycles[[#This Row],[Cycle]])*MeterReadSch[End Bill Period]) -> 45848 | G69: =SUMPRODUCT((KCITempAct[Date]>=NorthCycles[[#This Row],[BegRdDate]])*(KCITempAct[Date]<=NorthCycles[[#This Row],[EndRdDate]])*KCITempAct[KCINHDDAdj]) -> 0 | H69: =SUMPRODUCT((KCITempAct[Date]>=NorthCycles[[#This Row],[BegRdDate]])*(KCITempAct[Date]<=NorthCycles[[#This Row],[EndRdDate]])*KCITempAct[KCIHDDAdj]) -> 0 | I69: =NorthCycles[[#This Row],[NHDD]]-NorthCycles[[#This Row],[AHDD]] -> 0 | J69: =NorthCycles[[#This Row],[HDDDiff]]*NorthCycles[[#This Row],[NoOfBills]] -> 0 | K69: =SUMPRODUCT((BetaCoeff[BeginDate]<=NorthCycles[[#This Row],[BegRdDate]])*(BetaCoeff[EndDate]>=NorthCycles[[#This Row],[EndRdDate]])*(BetaCoeff[CustClass]=NorthCycles[[#This Row],[CustClass]])*BetaCoeff[BetaCoeff]) -> 0.2793279 | L69: =NorthCycles[[#This Row],[Diff*NoOfBills]]*NorthCycles[[#This Row],[BetaCoeff]] -> 0 | M69: =SUMPRODUCT((NorthCycles[[#This Row],[BegRdDate]]>=VolRates[BeginDate])*(NorthCycles[[#This Row],[EndRdDate]]<=VolRates[EndDate])*(VolRates[CustClass]=NorthCycles[[#This Row],[CustClass]])*VolRates[VolRate]) -> 0.26033 | N69: =ROUND(NorthCycles[[#This Row],[WNAFactor]]*NorthCycles[[#This Row],[VolRate]],2) -> 0 | O69: =INDEX(RateCat[CustClass],MATCH(NorthCycles[[#This Row],[RateCategory]],RateCat[RateCategory],0)) -> SGS | P69: Customer Charge Counts from Revenue Reports
A70: 45839 | B70: ENGC_SGS | C70: 10 | D70: 629 | E70: =SUMPRODUCT((MeterReadSch[MonthBill]=NorthCycles[[#This Row],[MonthBill]])*(MeterReadSch[Cycle]=NorthCycles[[#This Row],[Cycle]])*MeterReadSch[Begin Bill Period]) -> 45819 | F70: =SUMPRODUCT((MeterReadSch[MonthBill]=NorthCycles[[#This Row],[MonthBill]])*(MeterReadSch[Cycle]=NorthCycles[[#This Row],[Cycle]])*MeterReadSch[End Bill Period]) -> 45848 | G70: =SUMPRODUCT((KCITempAct[Date]>=NorthCycles[[#This Row],[BegRdDate]])*(KCITempAct[Date]<=NorthCycles[[#This Row],[EndRdDate]])*KCITempAct[KCINHDDAdj]) -> 0 | H70: =SUMPRODUCT((KCITempAct[Date]>=NorthCycles[[#This Row],[BegRdDate]])*(KCITempAct[Date]<=NorthCycles[[#This Row],[EndRdDate]])*KCITempAct[KCIHDDAdj]) -> 0 | I70: =NorthCycles[[#This Row],[NHDD]]-NorthCycles[[#This Row],[AHDD]] -> 0 | J70: =NorthCycles[[#This Row],[HDDDiff]]*NorthCycles[[#This Row],[NoOfBills]] -> 0 | K70: =SUMPRODUCT((BetaCoeff[BeginDate]<=NorthCycles[[#This Row],[BegRdDate]])*(BetaCoeff[EndDate]>=NorthCycles[[#This Row],[EndRdDate]])*(BetaCoeff[CustClass]=NorthCycles[[#This Row],[CustClass]])*BetaCoeff[BetaCoeff]) -> 0.2793279 | L70: =NorthCycles[[#This Row],[Diff*NoOfBills]]*NorthCycles[[#This Row],[BetaCoeff]] -> 0 | M70: =SUMPRODUCT((NorthCycles[[#This Row],[BegRdDate]]>=VolRates[BeginDate])*(NorthCycles[[#This Row],[EndRdDate]]<=VolRates[EndDate])*(VolRates[CustClass]=NorthCycles[[#This Row],[CustClass]])*VolRates[VolRate]) -> 0.26033 | N70: =ROUND(NorthCycles[[#This Row],[WNAFactor]]*NorthCycles[[#This Row],[VolRate]],2) -> 0 | O70: =INDEX(RateCat[CustClass],MATCH(NorthCycles[[#This Row],[RateCategory]],RateCat[RateCategory],0)) -> SGS | P70: Customer Charge Counts from Revenue Reports
A71: 45839 | B71: ENGR_RS | C71: 8 | D71: 1159 | E71: =SUMPRODUCT((MeterReadSch[MonthBill]=NorthCycles[[#This Row],[MonthBill]])*(MeterReadSch[Cycle]=NorthCycles[[#This Row],[Cycle]])*MeterReadSch[Begin Bill Period]) -> 45818 | F71: =SUMPRODUCT((MeterReadSch[MonthBill]=NorthCycles[[#This Row],[MonthBill]])*(MeterReadSch[Cycle]=NorthCycles[[#This Row],[Cycle]])*MeterReadSch[End Bill Period]) -> 45847 | G71: =SUMPRODUCT((KCITempAct[Date]>=NorthCycles[[#This Row],[BegRdDate]])*(KCITempAct[Date]<=NorthCycles[[#This Row],[EndRdDate]])*KCITempAct[KCINHDDAdj]) -> 0 | H71: =SUMPRODUCT((KCITempAct[Date]>=NorthCycles[[#This Row],[BegRdDate]])*(KCITempAct[Date]<=NorthCycles[[#This Row],[EndRdDate]])*KCITempAct[KCIHDDAdj]) -> 0 | I71: =NorthCycles[[#This Row],[NHDD]]-NorthCycles[[#This Row],[AHDD]] -> 0 | J71: =NorthCycles[[#This Row],[HDDDiff]]*NorthCycles[[#This Row],[NoOfBills]] -> 0 | K71: =SUMPRODUCT((BetaCoeff[BeginDate]<=NorthCycles[[#This Row],[BegRdDate]])*(BetaCoeff[EndDate]>=NorthCycles[[#This Row],[EndRdDate]])*(BetaCoeff[CustClass]=NorthCycles[[#This Row],[CustClass]])*BetaCoeff[BetaCoeff]) -> 0.1234365 | L71: =NorthCycles[[#This Row],[Diff*NoOfBills]]*NorthCycles[[#This Row],[BetaCoeff]] -> 0 | M71: =SUMPRODUCT((NorthCycles[[#This Row],[BegRdDate]]>=VolRates[BeginDate])*(NorthCycles[[#This Row],[EndRdDate]]<=VolRates[EndDate])*(VolRates[CustClass]=NorthCycles[[#This Row],[CustClass]])*VolRates[VolRate]) -> 0.21748 | N71: =ROUND(NorthCycles[[#This Row],[WNAFactor]]*NorthCycles[[#This Row],[VolRate]],2) -> 0 | O71: =INDEX(RateCat[CustClass],MATCH(NorthCycles[[#This Row],[RateCategory]],RateCat[RateCategory],0)) -> Res | P71: Customer Charge Counts from Revenue Reports
A72: 45839 | B72: ENGR_RS | C72: 9 | D72: 2551 | E72: =SUMPRODUCT((MeterReadSch[MonthBill]=NorthCycles[[#This Row],[MonthBill]])*(MeterReadSch[Cycle]=NorthCycles[[#This Row],[Cycle]])*MeterReadSch[Begin Bill Period]) -> 45819 | F72: =SUMPRODUCT((MeterReadSch[MonthBill]=NorthCycles[[#This Row],[MonthBill]])*(MeterReadSch[Cycle]=NorthCycles[[#This Row],[Cycle]])*MeterReadSch[End Bill Period]) -> 45848 | G72: =SUMPRODUCT((KCITempAct[Date]>=NorthCycles[[#This Row],[BegRdDate]])*(KCITempAct[Date]<=NorthCycles[[#This Row],[EndRdDate]])*KCITempAct[KCINHDDAdj]) -> 0 | H72: =SUMPRODUCT((KCITempAct[Date]>=NorthCycles[[#This Row],[BegRdDate]])*(KCITempAct[Date]<=NorthCycles[[#This Row],[EndRdDate]])*KCITempAct[KCIHDDAdj]) -> 0 | I72: =NorthCycles[[#This Row],[NHDD]]-NorthCycles[[#This Row],[AHDD]] -> 0 | J72: =NorthCycles[[#This Row],[HDDDiff]]*NorthCycles[[#This Row],[NoOfBills]] -> 0 | K72: =SUMPRODUCT((BetaCoeff[BeginDate]<=NorthCycles[[#This Row],[BegRdDate]])*(BetaCoeff[EndDate]>=NorthCycles[[#This Row],[EndRdDate]])*(BetaCoeff[CustClass]=NorthCycles[[#This Row],[CustClass]])*BetaCoeff[BetaCoeff]) -> 0.1234365 | L72: =NorthCycles[[#This Row],[Diff*NoOfBills]]*NorthCycles[[#This Row],[BetaCoeff]] -> 0 | M72: =SUMPRODUCT((NorthCycles[[#This Row],[BegRdDate]]>=VolRates[BeginDate])*(NorthCycles[[#This Row],[EndRdDate]]<=VolRates[EndDate])*(VolRates[CustClass]=NorthCycles[[#This Row],[CustClass]])*VolRates[VolRate]) -> 0.21748 | N72: =ROUND(NorthCycles[[#This Row],[WNAFactor]]*NorthCycles[[#This Row],[VolRate]],2) -> 0 | O72: =INDEX(RateCat[CustClass],MATCH(NorthCycles[[#This Row],[RateCategory]],RateCat[RateCategory],0)) -> Res | P72: Customer Charge Counts from Revenue Reports
A73: 45839 | B73: ENGR_RS | C73: 10 | D73: 4394 | E73: =SUMPRODUCT((MeterReadSch[MonthBill]=NorthCycles[[#This Row],[MonthBill]])*(MeterReadSch[Cycle]=NorthCycles[[#This Row],[Cycle]])*MeterReadSch[Begin Bill Period]) -> 45819 | F73: =SUMPRODUCT((MeterReadSch[MonthBill]=NorthCycles[[#This Row],[MonthBill]])*(MeterReadSch[Cycle]=NorthCycles[[#This Row],[Cycle]])*MeterReadSch[End Bill Period]) -> 45848 | G73: =SUMPRODUCT((KCITempAct[Date]>=NorthCycles[[#This Row],[BegRdDate]])*(KCITempAct[Date]<=NorthCycles[[#This Row],[EndRdDate]])*KCITempAct[KCINHDDAdj]) -> 0 | H73: =SUMPRODUCT((KCITempAct[Date]>=NorthCycles[[#This Row],[BegRdDate]])*(KCITempAct[Date]<=NorthCycles[[#This Row],[EndRdDate]])*KCITempAct[KCIHDDAdj]) -> 0 | I73: =NorthCycles[[#This Row],[NHDD]]-NorthCycles[[#This Row],[AHDD]] -> 0 | J73: =NorthCycles[[#This Row],[HDDDiff]]*NorthCycles[[#This Row],[NoOfBills]] -> 0 | K73: =SUMPRODUCT((BetaCoeff[BeginDate]<=NorthCycles[[#This Row],[BegRdDate]])*(BetaCoeff[EndDate]>=NorthCycles[[#This Row],[EndRdDate]])*(BetaCoeff[CustClass]=NorthCycles[[#This Row],[CustClass]])*BetaCoeff[BetaCoeff]) -> 0.1234365 | L73: =NorthCycles[[#This Row],[Diff*NoOfBills]]*NorthCycles[[#This Row],[BetaCoeff]] -> 0 | M73: =SUMPRODUCT((NorthCycles[[#This Row],[BegRdDate]]>=VolRates[BeginDate])*(NorthCycles[[#This Row],[EndRdDate]]<=VolRates[EndDate])*(VolRates[CustClass]=NorthCycles[[#This Row],[CustClass]])*VolRates[VolRate]) -> 0.21748 | N73: =ROUND(NorthCycles[[#This Row],[WNAFactor]]*NorthCycles[[#This Row],[VolRate]],2) -> 0 | O73: =INDEX(RateCat[CustClass],MATCH(NorthCycles[[#This Row],[RateCategory]],RateCat[RateCategory],0)) -> Res | P73: Customer Charge Counts from Revenue Reports
A74: 45870 | B74: ENGC_SGS | C74: 8 | D74: 187 | E74: =SUMPRODUCT((MeterReadSch[MonthBill]=NorthCycles[[#This Row],[MonthBill]])*(MeterReadSch[Cycle]=NorthCycles[[#This Row],[Cycle]])*MeterReadSch[Begin Bill Period]) -> 45848 | F74: =SUMPRODUCT((MeterReadSch[MonthBill]=NorthCycles[[#This Row],[MonthBill]])*(MeterReadSch[Cycle]=NorthCycles[[#This Row],[Cycle]])*MeterReadSch[End Bill Period]) -> 45877 | G74: =SUMPRODUCT((KCITempAct[Date]>=NorthCycles[[#This Row],[BegRdDate]])*(KCITempAct[Date]<=NorthCycles[[#This Row],[EndRdDate]])*KCITempAct[KCINHDDAdj]) -> 0 | H74: =SUMPRODUCT((KCITempAct[Date]>=NorthCycles[[#This Row],[BegRdDate]])*(KCITempAct[Date]<=NorthCycles[[#This Row],[EndRdDate]])*KCITempAct[KCIHDDAdj]) -> 0 | I74: =NorthCycles[[#This Row],[NHDD]]-NorthCycles[[#This Row],[AHDD]] -> 0 | J74: =NorthCycles[[#This Row],[HDDDiff]]*NorthCycles[[#This Row],[NoOfBills]] -> 0 | K74: =SUMPRODUCT((BetaCoeff[BeginDate]<=NorthCycles[[#This Row],[BegRdDate]])*(BetaCoeff[EndDate]>=NorthCycles[[#This Row],[EndRdDate]])*(BetaCoeff[CustClass]=NorthCycles[[#This Row],[CustClass]])*BetaCoeff[BetaCoeff]) -> 0.2793279 | L74: =NorthCycles[[#This Row],[Diff*NoOfBills]]*NorthCycles[[#This Row],[BetaCoeff]] -> 0 | M74: =SUMPRODUCT((NorthCycles[[#This Row],[BegRdDate]]>=VolRates[BeginDate])*(NorthCycles[[#This Row],[EndRdDate]]<=VolRates[EndDate])*(VolRates[CustClass]=NorthCycles[[#This Row],[CustClass]])*VolRates[VolRate]) -> 0.26033 | N74: =ROUND(NorthCycles[[#This Row],[WNAFactor]]*NorthCycles[[#This Row],[VolRate]],2) -> 0 | O74: =INDEX(RateCat[CustClass],MATCH(NorthCycles[[#This Row],[RateCategory]],RateCat[RateCategory],0)) -> SGS | P74: Customer Charge Counts from Revenue Reports
A75: 45870 | B75: ENGC_SGS | C75: 9 | D75: 261 | E75: =SUMPRODUCT((MeterReadSch[MonthBill]=NorthCycles[[#This Row],[MonthBill]])*(MeterReadSch[Cycle]=NorthCycles[[#This Row],[Cycle]])*MeterReadSch[Begin Bill Period]) -> 45849 | F75: =SUMPRODUCT((MeterReadSch[MonthBill]=NorthCycles[[#This Row],[MonthBill]])*(MeterReadSch[Cycle]=NorthCycles[[#This Row],[Cycle]])*MeterReadSch[End Bill Period]) -> 45880 | G75: =SUMPRODUCT((KCITempAct[Date]>=NorthCycles[[#This Row],[BegRdDate]])*(KCITempAct[Date]<=NorthCycles[[#This Row],[EndRdDate]])*KCITempAct[KCINHDDAdj]) -> 0 | H75: =SUMPRODUCT((KCITempAct[Date]>=NorthCycles[[#This Row],[BegRdDate]])*(KCITempAct[Date]<=NorthCycles[[#This Row],[EndRdDate]])*KCITempAct[KCIHDDAdj]) -> 0 | I75: =NorthCycles[[#This Row],[NHDD]]-NorthCycles[[#This Row],[AHDD]] -> 0 | J75: =NorthCycles[[#This Row],[HDDDiff]]*NorthCycles[[#This Row],[NoOfBills]] -> 0 | K75: =SUMPRODUCT((BetaCoeff[BeginDate]<=NorthCycles[[#This Row],[BegRdDate]])*(BetaCoeff[EndDate]>=NorthCycles[[#This Row],[EndRdDate]])*(BetaCoeff[CustClass]=NorthCycles[[#This Row],[CustClass]])*BetaCoeff[BetaCoeff]) -> 0.2793279 | L75: =NorthCycles[[#This Row],[Diff*NoOfBills]]*NorthCycles[[#This Row],[BetaCoeff]] -> 0 | M75: =SUMPRODUCT((NorthCycles[[#This Row],[BegRdDate]]>=VolRates[BeginDate])*(NorthCycles[[#This Row],[EndRdDate]]<=VolRates[EndDate])*(VolRates[CustClass]=NorthCycles[[#This Row],[CustClass]])*VolRates[VolRate]) -> 0.26033 | N75: =ROUND(NorthCycles[[#This Row],[WNAFactor]]*NorthCycles[[#This Row],[VolRate]],2) -> 0 | O75: =INDEX(RateCat[CustClass],MATCH(NorthCycles[[#This Row],[RateCategory]],RateCat[RateCategory],0)) -> SGS | P75: Customer Charge Counts from Revenue Reports
A76: 45870 | B76: ENGC_SGS | C76: 10 | D76: 488 | E76: =SUMPRODUCT((MeterReadSch[MonthBill]=NorthCycles[[#This Row],[MonthBill]])*(MeterReadSch[Cycle]=NorthCycles[[#This Row],[Cycle]])*MeterReadSch[Begin Bill Period]) -> 45849 | F76: =SUMPRODUCT((MeterReadSch[MonthBill]=NorthCycles[[#This Row],[MonthBill]])*(MeterReadSch[Cycle]=NorthCycles[[#This Row],[Cycle]])*MeterReadSch[End Bill Period]) -> 45881 | G76: =SUMPRODUCT((KCITempAct[Date]>=NorthCycles[[#This Row],[BegRdDate]])*(KCITempAct[Date]<=NorthCycles[[#This Row],[EndRdDate]])*KCITempAct[KCINHDDAdj]) -> 0 | H76: =SUMPRODUCT((KCITempAct[Date]>=NorthCycles[[#This Row],[BegRdDate]])*(KCITempAct[Date]<=NorthCycles[[#This Row],[EndRdDate]])*KCITempAct[KCIHDDAdj]) -> 0 | I76: =NorthCycles[[#This Row],[NHDD]]-NorthCycles[[#This Row],[AHDD]] -> 0 | J76: =NorthCycles[[#This Row],[HDDDiff]]*NorthCycles[[#This Row],[NoOfBills]] -> 0 | K76: =SUMPRODUCT((BetaCoeff[BeginDate]<=NorthCycles[[#This Row],[BegRdDate]])*(BetaCoeff[EndDate]>=NorthCycles[[#This Row],[EndRdDate]])*(BetaCoeff[CustClass]=NorthCycles[[#This Row],[CustClass]])*BetaCoeff[BetaCoeff]) -> 0.2793279 | L76: =NorthCycles[[#This Row],[Diff*NoOfBills]]*NorthCycles[[#This Row],[BetaCoeff]] -> 0 | M76: =SUMPRODUCT((NorthCycles[[#This Row],[BegRdDate]]>=VolRates[BeginDate])*(NorthCycles[[#This Row],[EndRdDate]]<=VolRates[EndDate])*(VolRates[CustClass]=NorthCycles[[#This Row],[CustClass]])*VolRates[VolRate]) -> 0.26033 | N76: =ROUND(NorthCycles[[#This Row],[WNAFactor]]*NorthCycles[[#This Row],[VolRate]],2) -> 0 | O76: =INDEX(RateCat[CustClass],MATCH(NorthCycles[[#This Row],[RateCategory]],RateCat[RateCategory],0)) -> SGS | P76: Customer Charge Counts from Revenue Reports
A77: 45870 | B77: ENGR_RS | C77: 8 | D77: 1121 | E77: =SUMPRODUCT((MeterReadSch[MonthBill]=NorthCycles[[#This Row],[MonthBill]])*(MeterReadSch[Cycle]=NorthCycles[[#This Row],[Cycle]])*MeterReadSch[Begin Bill Period]) -> 45848 | F77: =SUMPRODUCT((MeterReadSch[MonthBill]=NorthCycles[[#This Row],[MonthBill]])*(MeterReadSch[Cycle]=NorthCycles[[#This Row],[Cycle]])*MeterReadSch[End Bill Period]) -> 45877 | G77: =SUMPRODUCT((KCITempAct[Date]>=NorthCycles[[#This Row],[BegRdDate]])*(KCITempAct[Date]<=NorthCycles[[#This Row],[EndRdDate]])*KCITempAct[KCINHDDAdj]) -> 0 | H77: =SUMPRODUCT((KCITempAct[Date]>=NorthCycles[[#This Row],[BegRdDate]])*(KCITempAct[Date]<=NorthCycles[[#This Row],[EndRdDate]])*KCITempAct[KCIHDDAdj]) -> 0 | I77: =NorthCycles[[#This Row],[NHDD]]-NorthCycles[[#This Row],[AHDD]] -> 0 | J77: =NorthCycles[[#This Row],[HDDDiff]]*NorthCycles[[#This Row],[NoOfBills]] -> 0 | K77: =SUMPRODUCT((BetaCoeff[BeginDate]<=NorthCycles[[#This Row],[BegRdDate]])*(BetaCoeff[EndDate]>=NorthCycles[[#This Row],[EndRdDate]])*(BetaCoeff[CustClass]=NorthCycles[[#This Row],[CustClass]])*BetaCoeff[BetaCoeff]) -> 0.1234365 | L77: =NorthCycles[[#This Row],[Diff*NoOfBills]]*NorthCycles[[#This Row],[BetaCoeff]] -> 0 | M77: =SUMPRODUCT((NorthCycles[[#This Row],[BegRdDate]]>=VolRates[BeginDate])*(NorthCycles[[#This Row],[EndRdDate]]<=VolRates[EndDate])*(VolRates[CustClass]=NorthCycles[[#This Row],[CustClass]])*VolRates[VolRate]) -> 0.21748 | N77: =ROUND(NorthCycles[[#This Row],[WNAFactor]]*NorthCycles[[#This Row],[VolRate]],2) -> 0 | O77: =INDEX(RateCat[CustClass],MATCH(NorthCycles[[#This Row],[RateCategory]],RateCat[RateCategory],0)) -> Res | P77: Customer Charge Counts from Revenue Reports
A78: 45870 | B78: ENGR_RS | C78: 9 | D78: 2500 | E78: =SUMPRODUCT((MeterReadSch[MonthBill]=NorthCycles[[#This Row],[MonthBill]])*(MeterReadSch[Cycle]=NorthCycles[[#This Row],[Cycle]])*MeterReadSch[Begin Bill Period]) -> 45849 | F78: =SUMPRODUCT((MeterReadSch[MonthBill]=NorthCycles[[#This Row],[MonthBill]])*(MeterReadSch[Cycle]=NorthCycles[[#This Row],[Cycle]])*MeterReadSch[End Bill Period]) -> 45880 | G78: =SUMPRODUCT((KCITempAct[Date]>=NorthCycles[[#This Row],[BegRdDate]])*(KCITempAct[Date]<=NorthCycles[[#This Row],[EndRdDate]])*KCITempAct[KCINHDDAdj]) -> 0 | H78: =SUMPRODUCT((KCITempAct[Date]>=NorthCycles[[#This Row],[BegRdDate]])*(KCITempAct[Date]<=NorthCycles[[#This Row],[EndRdDate]])*KCITempAct[KCIHDDAdj]) -> 0 | I78: =NorthCycles[[#This Row],[NHDD]]-NorthCycles[[#This Row],[AHDD]] -> 0 | J78: =NorthCycles[[#This Row],[HDDDiff]]*NorthCycles[[#This Row],[NoOfBills]] -> 0 | K78: =SUMPRODUCT((BetaCoeff[BeginDate]<=NorthCycles[[#This Row],[BegRdDate]])*(BetaCoeff[EndDate]>=NorthCycles[[#This Row],[EndRdDate]])*(BetaCoeff[CustClass]=NorthCycles[[#This Row],[CustClass]])*BetaCoeff[BetaCoeff]) -> 0.1234365 | L78: =NorthCycles[[#This Row],[Diff*NoOfBills]]*NorthCycles[[#This Row],[BetaCoeff]] -> 0 | M78: =SUMPRODUCT((NorthCycles[[#This Row],[BegRdDate]]>=VolRates[BeginDate])*(NorthCycles[[#This Row],[EndRdDate]]<=VolRates[EndDate])*(VolRates[CustClass]=NorthCycles[[#This Row],[CustClass]])*VolRates[VolRate]) -> 0.21748 | N78: =ROUND(NorthCycles[[#This Row],[WNAFactor]]*NorthCycles[[#This Row],[VolRate]],2) -> 0 | O78: =INDEX(RateCat[CustClass],MATCH(NorthCycles[[#This Row],[RateCategory]],RateCat[RateCategory],0)) -> Res | P78: Customer Charge Counts from Revenue Reports
A79: 45870 | B79: ENGR_RS | C79: 10 | D79: 4281 | E79: =SUMPRODUCT((MeterReadSch[MonthBill]=NorthCycles[[#This Row],[MonthBill]])*(MeterReadSch[Cycle]=NorthCycles[[#This Row],[Cycle]])*MeterReadSch[Begin Bill Period]) -> 45849 | F79: =SUMPRODUCT((MeterReadSch[MonthBill]=NorthCycles[[#This Row],[MonthBill]])*(MeterReadSch[Cycle]=NorthCycles[[#This Row],[Cycle]])*MeterReadSch[End Bill Period]) -> 45881 | G79: =SUMPRODUCT((KCITempAct[Date]>=NorthCycles[[#This Row],[BegRdDate]])*(KCITempAct[Date]<=NorthCycles[[#This Row],[EndRdDate]])*KCITempAct[KCINHDDAdj]) -> 0 | H79: =SUMPRODUCT((KCITempAct[Date]>=NorthCycles[[#This Row],[BegRdDate]])*(KCITempAct[Date]<=NorthCycles[[#This Row],[EndRdDate]])*KCITempAct[KCIHDDAdj]) -> 0 | I79: =NorthCycles[[#This Row],[NHDD]]-NorthCycles[[#This Row],[AHDD]] -> 0 | J79: =NorthCycles[[#This Row],[HDDDiff]]*NorthCycles[[#This Row],[NoOfBills]] -> 0 | K79: =SUMPRODUCT((BetaCoeff[BeginDate]<=NorthCycles[[#This Row],[BegRdDate]])*(BetaCoeff[EndDate]>=NorthCycles[[#This Row],[EndRdDate]])*(BetaCoeff[CustClass]=NorthCycles[[#This Row],[CustClass]])*BetaCoeff[BetaCoeff]) -> 0.1234365 | L79: =NorthCycles[[#This Row],[Diff*NoOfBills]]*NorthCycles[[#This Row],[BetaCoeff]] -> 0 | M79: =SUMPRODUCT((NorthCycles[[#This Row],[BegRdDate]]>=VolRates[BeginDate])*(NorthCycles[[#This Row],[EndRdDate]]<=VolRates[EndDate])*(VolRates[CustClass]=NorthCycles[[#This Row],[CustClass]])*VolRates[VolRate]) -> 0.21748 | N79: =ROUND(NorthCycles[[#This Row],[WNAFactor]]*NorthCycles[[#This Row],[VolRate]],2) -> 0 | O79: =INDEX(RateCat[CustClass],MATCH(NorthCycles[[#This Row],[RateCategory]],RateCat[RateCategory],0)) -> Res | P79: Customer Charge Counts from Revenue Reports
A80: 45901 | B80: ENGC_SGS | C80: 8 | D80: 225 | E80: =SUMPRODUCT((MeterReadSch[MonthBill]=NorthCycles[[#This Row],[MonthBill]])*(MeterReadSch[Cycle]=NorthCycles[[#This Row],[Cycle]])*MeterReadSch[Begin Bill Period]) -> 45878 | F80: =SUMPRODUCT((MeterReadSch[MonthBill]=NorthCycles[[#This Row],[MonthBill]])*(MeterReadSch[Cycle]=NorthCycles[[#This Row],[Cycle]])*MeterReadSch[End Bill Period]) -> 45910 | G80: =SUMPRODUCT((KCITempAct[Date]>=NorthCycles[[#This Row],[BegRdDate]])*(KCITempAct[Date]<=NorthCycles[[#This Row],[EndRdDate]])*KCITempAct[KCINHDDAdj]) -> 49.20555556 | H80: =SUMPRODUCT((KCITempAct[Date]>=NorthCycles[[#This Row],[BegRdDate]])*(KCITempAct[Date]<=NorthCycles[[#This Row],[EndRdDate]])*KCITempAct[KCIHDDAdj]) -> 16.5 | I80: =NorthCycles[[#This Row],[NHDD]]-NorthCycles[[#This Row],[AHDD]] -> 32.70555556 | J80: =NorthCycles[[#This Row],[HDDDiff]]*NorthCycles[[#This Row],[NoOfBills]] -> 7358.75 | K80: =SUMPRODUCT((BetaCoeff[BeginDate]<=NorthCycles[[#This Row],[BegRdDate]])*(BetaCoeff[EndDate]>=NorthCycles[[#This Row],[EndRdDate]])*(BetaCoeff[CustClass]=NorthCycles[[#This Row],[CustClass]])*BetaCoeff[BetaCoeff]) -> 0.2793279 | L80: =NorthCycles[[#This Row],[Diff*NoOfBills]]*NorthCycles[[#This Row],[BetaCoeff]] -> 2055.504184 | M80: =SUMPRODUCT((NorthCycles[[#This Row],[BegRdDate]]>=VolRates[BeginDate])*(NorthCycles[[#This Row],[EndRdDate]]<=VolRates[EndDate])*(VolRates[CustClass]=NorthCycles[[#This Row],[CustClass]])*VolRates[VolRate]) -> 0.26033 | N80: =ROUND(NorthCycles[[#This Row],[WNAFactor]]*NorthCycles[[#This Row],[VolRate]],2) -> 535.11 | O80: =INDEX(RateCat[CustClass],MATCH(NorthCycles[[#This Row],[RateCategory]],RateCat[RateCategory],0)) -> SGS | P80: Customer Charge Counts from Revenue Reports
A81: 45901 | B81: ENGC_SGS | C81: 9 | D81: 360 | E81: =SUMPRODUCT((MeterReadSch[MonthBill]=NorthCycles[[#This Row],[MonthBill]])*(MeterReadSch[Cycle]=NorthCycles[[#This Row],[Cycle]])*MeterReadSch[Begin Bill Period]) -> 45881 | F81: =SUMPRODUCT((MeterReadSch[MonthBill]=NorthCycles[[#This Row],[MonthBill]])*(MeterReadSch[Cycle]=NorthCycles[[#This Row],[Cycle]])*MeterReadSch[End Bill Period]) -> 45910 | G81: =SUMPRODUCT((KCITempAct[Date]>=NorthCycles[[#This Row],[BegRdDate]])*(KCITempAct[Date]<=NorthCycles[[#This Row],[EndRdDate]])*KCITempAct[KCINHDDAdj]) -> 49.20555556 | H81: =SUMPRODUCT((KCITempAct[Date]>=NorthCycles[[#This Row],[BegRdDate]])*(KCITempAct[Date]<=NorthCycles[[#This Row],[EndRdDate]])*KCITempAct[KCIHDDAdj]) -> 16.5 | I81: =NorthCycles[[#This Row],[NHDD]]-NorthCycles[[#This Row],[AHDD]] -> 32.70555556 | J81: =NorthCycles[[#This Row],[HDDDiff]]*NorthCycles[[#This Row],[NoOfBills]] -> 11774 | K81: =SUMPRODUCT((BetaCoeff[BeginDate]<=NorthCycles[[#This Row],[BegRdDate]])*(BetaCoeff[EndDate]>=NorthCycles[[#This Row],[EndRdDate]])*(BetaCoeff[CustClass]=NorthCycles[[#This Row],[CustClass]])*BetaCoeff[BetaCoeff]) -> 0.2793279 | L81: =NorthCycles[[#This Row],[Diff*NoOfBills]]*NorthCycles[[#This Row],[BetaCoeff]] -> 3288.806695 | M81: =SUMPRODUCT((NorthCycles[[#This Row],[BegRdDate]]>=VolRates[BeginDate])*(NorthCycles[[#This Row],[EndRdDate]]<=VolRates[EndDate])*(VolRates[CustClass]=NorthCycles[[#This Row],[CustClass]])*VolRates[VolRate]) -> 0.26033 | N81: =ROUND(NorthCycles[[#This Row],[WNAFactor]]*NorthCycles[[#This Row],[VolRate]],2) -> 856.18 | O81: =INDEX(RateCat[CustClass],MATCH(NorthCycles[[#This Row],[RateCategory]],RateCat[RateCategory],0)) -> SGS | P81: Customer Charge Counts from Revenue Reports
A82: 45901 | B82: ENGC_SGS | C82: 10 | D82: 749 | E82: =SUMPRODUCT((MeterReadSch[MonthBill]=NorthCycles[[#This Row],[MonthBill]])*(MeterReadSch[Cycle]=NorthCycles[[#This Row],[Cycle]])*MeterReadSch[Begin Bill Period]) -> 45882 | F82: =SUMPRODUCT((MeterReadSch[MonthBill]=NorthCycles[[#This Row],[MonthBill]])*(MeterReadSch[Cycle]=NorthCycles[[#This Row],[Cycle]])*MeterReadSch[End Bill Period]) -> 45911 | G82: =SUMPRODUCT((KCITempAct[Date]>=NorthCycles[[#This Row],[BegRdDate]])*(KCITempAct[Date]<=NorthCycles[[#This Row],[EndRdDate]])*KCITempAct[KCINHDDAdj]) -> 49.20555556 | H82: =SUMPRODUCT((KCITempAct[Date]>=NorthCycles[[#This Row],[BegRdDate]])*(KCITempAct[Date]<=NorthCycles[[#This Row],[EndRdDate]])*KCITempAct[KCIHDDAdj]) -> 16.5 | I82: =NorthCycles[[#This Row],[NHDD]]-NorthCycles[[#This Row],[AHDD]] -> 32.70555556 | J82: =NorthCycles[[#This Row],[HDDDiff]]*NorthCycles[[#This Row],[NoOfBills]] -> 24496.46111 | K82: =SUMPRODUCT((BetaCoeff[BeginDate]<=NorthCycles[[#This Row],[BegRdDate]])*(BetaCoeff[EndDate]>=NorthCycles[[#This Row],[EndRdDate]])*(BetaCoeff[CustClass]=NorthCycles[[#This Row],[CustClass]])*BetaCoeff[BetaCoeff]) -> 0.2793279 | L82: =NorthCycles[[#This Row],[Diff*NoOfBills]]*NorthCycles[[#This Row],[BetaCoeff]] -> 6842.54504 | M82: =SUMPRODUCT((NorthCycles[[#This Row],[BegRdDate]]>=VolRates[BeginDate])*(NorthCycles[[#This Row],[EndRdDate]]<=VolRates[EndDate])*(VolRates[CustClass]=NorthCycles[[#This Row],[CustClass]])*VolRates[VolRate]) -> 0.26033 | N82: =ROUND(NorthCycles[[#This Row],[WNAFactor]]*NorthCycles[[#This Row],[VolRate]],2) -> 1781.32 | O82: =INDEX(RateCat[CustClass],MATCH(NorthCycles[[#This Row],[RateCategory]],RateCat[RateCategory],0)) -> SGS | P82: Customer Charge Counts from Revenue Reports
A83: 45901 | B83: ENGR_RS | C83: 8 | D83: 1189 | E83: =SUMPRODUCT((MeterReadSch[MonthBill]=NorthCycles[[#This Row],[MonthBill]])*(MeterReadSch[Cycle]=NorthCycles[[#This Row],[Cycle]])*MeterReadSch[Begin Bill Period]) -> 45878 | F83: =SUMPRODUCT((MeterReadSch[MonthBill]=NorthCycles[[#This Row],[MonthBill]])*(MeterReadSch[Cycle]=NorthCycles[[#This Row],[Cycle]])*MeterReadSch[End Bill Period]) -> 45910 | G83: =SUMPRODUCT((KCITempAct[Date]>=NorthCycles[[#This Row],[BegRdDate]])*(KCITempAct[Date]<=NorthCycles[[#This Row],[EndRdDate]])*KCITempAct[KCINHDDAdj]) -> 49.20555556 | H83: =SUMPRODUCT((KCITempAct[Date]>=NorthCycles[[#This Row],[BegRdDate]])*(KCITempAct[Date]<=NorthCycles[[#This Row],[EndRdDate]])*KCITempAct[KCIHDDAdj]) -> 16.5 | I83: =NorthCycles[[#This Row],[NHDD]]-NorthCycles[[#This Row],[AHDD]] -> 32.70555556 | J83: =NorthCycles[[#This Row],[HDDDiff]]*NorthCycles[[#This Row],[NoOfBills]] -> 38886.90556 | K83: =SUMPRODUCT((BetaCoeff[BeginDate]<=NorthCycles[[#This Row],[BegRdDate]])*(BetaCoeff[EndDate]>=NorthCycles[[#This Row],[EndRdDate]])*(BetaCoeff[CustClass]=NorthCycles[[#This Row],[CustClass]])*BetaCoeff[BetaCoeff]) -> 0.1234365 | L83: =NorthCycles[[#This Row],[Diff*NoOfBills]]*NorthCycles[[#This Row],[BetaCoeff]] -> 4800.063518 | M83: =SUMPRODUCT((NorthCycles[[#This Row],[BegRdDate]]>=VolRates[BeginDate])*(NorthCycles[[#This Row],[EndRdDate]]<=VolRates[EndDate])*(VolRates[CustClass]=NorthCycles[[#This Row],[CustClass]])*VolRates[VolRate]) -> 0.21748 | N83: =ROUND(NorthCycles[[#This Row],[WNAFactor]]*NorthCycles[[#This Row],[VolRate]],2) -> 1043.92 | O83: =INDEX(RateCat[CustClass],MATCH(NorthCycles[[#This Row],[RateCategory]],RateCat[RateCategory],0)) -> Res | P83: Customer Charge Counts from Revenue Reports
A84: 45901 | B84: ENGR_RS | C84: 9 | D84: 2595 | E84: =SUMPRODUCT((MeterReadSch[MonthBill]=NorthCycles[[#This Row],[MonthBill]])*(MeterReadSch[Cycle]=NorthCycles[[#This Row],[Cycle]])*MeterReadSch[Begin Bill Period]) -> 45881 | F84: =SUMPRODUCT((MeterReadSch[MonthBill]=NorthCycles[[#This Row],[MonthBill]])*(MeterReadSch[Cycle]=NorthCycles[[#This Row],[Cycle]])*MeterReadSch[End Bill Period]) -> 45910 | G84: =SUMPRODUCT((KCITempAct[Date]>=NorthCycles[[#This Row],[BegRdDate]])*(KCITempAct[Date]<=NorthCycles[[#This Row],[EndRdDate]])*KCITempAct[KCINHDDAdj]) -> 49.20555556 | H84: =SUMPRODUCT((KCITempAct[Date]>=NorthCycles[[#This Row],[BegRdDate]])*(KCITempAct[Date]<=NorthCycles[[#This Row],[EndRdDate]])*KCITempAct[KCIHDDAdj]) -> 16.5 | I84: =NorthCycles[[#This Row],[NHDD]]-NorthCycles[[#This Row],[AHDD]] -> 32.70555556 | J84: =NorthCycles[[#This Row],[HDDDiff]]*NorthCycles[[#This Row],[NoOfBills]] -> 84870.91667 | K84: =SUMPRODUCT((BetaCoeff[BeginDate]<=NorthCycles[[#This Row],[BegRdDate]])*(BetaCoeff[EndDate]>=NorthCycles[[#This Row],[EndRdDate]])*(BetaCoeff[CustClass]=NorthCycles[[#This Row],[CustClass]])*BetaCoeff[BetaCoeff]) -> 0.1234365 | L84: =NorthCycles[[#This Row],[Diff*NoOfBills]]*NorthCycles[[#This Row],[BetaCoeff]] -> 10476.16891 | M84: =SUMPRODUCT((NorthCycles[[#This Row],[BegRdDate]]>=VolRates[BeginDate])*(NorthCycles[[#This Row],[EndRdDate]]<=VolRates[EndDate])*(VolRates[CustClass]=NorthCycles[[#This Row],[CustClass]])*VolRates[VolRate]) -> 0.21748 | N84: =ROUND(NorthCycles[[#This Row],[WNAFactor]]*NorthCycles[[#This Row],[VolRate]],2) -> 2278.36 | O84: =INDEX(RateCat[CustClass],MATCH(NorthCycles[[#This Row],[RateCategory]],RateCat[RateCategory],0)) -> Res | P84: Customer Charge Counts from Revenue Reports
A85: 45901 | B85: ENGR_RS | C85: 10 | D85: 4535 | E85: =SUMPRODUCT((MeterReadSch[MonthBill]=NorthCycles[[#This Row],[MonthBill]])*(MeterReadSch[Cycle]=NorthCycles[[#This Row],[Cycle]])*MeterReadSch[Begin Bill Period]) -> 45882 | F85: =SUMPRODUCT((MeterReadSch[MonthBill]=NorthCycles[[#This Row],[MonthBill]])*(MeterReadSch[Cycle]=NorthCycles[[#This Row],[Cycle]])*MeterReadSch[End Bill Period]) -> 45911 | G85: =SUMPRODUCT((KCITempAct[Date]>=NorthCycles[[#This Row],[BegRdDate]])*(KCITempAct[Date]<=NorthCycles[[#This Row],[EndRdDate]])*KCITempAct[KCINHDDAdj]) -> 49.20555556 | H85: =SUMPRODUCT((KCITempAct[Date]>=NorthCycles[[#This Row],[BegRdDate]])*(KCITempAct[Date]<=NorthCycles[[#This Row],[EndRdDate]])*KCITempAct[KCIHDDAdj]) -> 16.5 | I85: =NorthCycles[[#This Row],[NHDD]]-NorthCycles[[#This Row],[AHDD]] -> 32.70555556 | J85: =NorthCycles[[#This Row],[HDDDiff]]*NorthCycles[[#This Row],[NoOfBills]] -> 148319.6944 | K85: =SUMPRODUCT((BetaCoeff[BeginDate]<=NorthCycles[[#This Row],[BegRdDate]])*(BetaCoeff[EndDate]>=NorthCycles[[#This Row],[EndRdDate]])*(BetaCoeff[CustClass]=NorthCycles[[#This Row],[CustClass]])*BetaCoeff[BetaCoeff]) -> 0.1234365 | L85: =NorthCycles[[#This Row],[Diff*NoOfBills]]*NorthCycles[[#This Row],[BetaCoeff]] -> 18308.06396 | M85: =SUMPRODUCT((NorthCycles[[#This Row],[BegRdDate]]>=VolRates[BeginDate])*(NorthCycles[[#This Row],[EndRdDate]]<=VolRates[EndDate])*(VolRates[CustClass]=NorthCycles[[#This Row],[CustClass]])*VolRates[VolRate]) -> 0.21748 | N85: =ROUND(NorthCycles[[#This Row],[WNAFactor]]*NorthCycles[[#This Row],[VolRate]],2) -> 3981.64 | O85: =INDEX(RateCat[CustClass],MATCH(NorthCycles[[#This Row],[RateCategory]],RateCat[RateCategory],0)) -> Res | P85: Customer Charge Counts from Revenue Reports
A86: 45931 | B86: ENGC_SGS | C86: 8 | D86: 213 | E86: =SUMPRODUCT((MeterReadSch[MonthBill]=NorthCycles[[#This Row],[MonthBill]])*(MeterReadSch[Cycle]=NorthCycles[[#This Row],[Cycle]])*MeterReadSch[Begin Bill Period]) -> 45911 | F86: =SUMPRODUCT((MeterReadSch[MonthBill]=NorthCycles[[#This Row],[MonthBill]])*(MeterReadSch[Cycle]=NorthCycles[[#This Row],[Cycle]])*MeterReadSch[End Bill Period]) -> 45939 | G86: =SUMPRODUCT((KCITempAct[Date]>=NorthCycles[[#This Row],[BegRdDate]])*(KCITempAct[Date]<=NorthCycles[[#This Row],[EndRdDate]])*KCITempAct[KCINHDDAdj]) -> 39.70483871 | H86: =SUMPRODUCT((KCITempAct[Date]>=NorthCycles[[#This Row],[BegRdDate]])*(KCITempAct[Date]<=NorthCycles[[#This Row],[EndRdDate]])*KCITempAct[KCIHDDAdj]) -> 10.5 | I86: =NorthCycles[[#This Row],[NHDD]]-NorthCycles[[#This Row],[AHDD]] -> 29.20483871 | J86: =NorthCycles[[#This Row],[HDDDiff]]*NorthCycles[[#This Row],[NoOfBills]] -> 6220.630645 | K86: =SUMPRODUCT((BetaCoeff[BeginDate]<=NorthCycles[[#This Row],[BegRdDate]])*(BetaCoeff[EndDate]>=NorthCycles[[#This Row],[EndRdDate]])*(BetaCoeff[CustClass]=NorthCycles[[#This Row],[CustClass]])*BetaCoeff[BetaCoeff]) -> 0.2793279 | L86: =NorthCycles[[#This Row],[Diff*NoOfBills]]*NorthCycles[[#This Row],[BetaCoeff]] -> 1737.595695 | M86: =SUMPRODUCT((NorthCycles[[#This Row],[BegRdDate]]>=VolRates[BeginDate])*(NorthCycles[[#This Row],[EndRdDate]]<=VolRates[EndDate])*(VolRates[CustClass]=NorthCycles[[#This Row],[CustClass]])*VolRates[VolRate]) -> 0.26033 | N86: =ROUND(NorthCycles[[#This Row],[WNAFactor]]*NorthCycles[[#This Row],[VolRate]],2) -> 452.35 | O86: =INDEX(RateCat[CustClass],MATCH(NorthCycles[[#This Row],[RateCategory]],RateCat[RateCategory],0)) -> SGS | P86: Customer Charge Counts from Revenue Reports
A87: 45931 | B87: ENGC_SGS | C87: 9 | D87: 321 | E87: =SUMPRODUCT((MeterReadSch[MonthBill]=NorthCycles[[#This Row],[MonthBill]])*(MeterReadSch[Cycle]=NorthCycles[[#This Row],[Cycle]])*MeterReadSch[Begin Bill Period]) -> 45911 | F87: =SUMPRODUCT((MeterReadSch[MonthBill]=NorthCycles[[#This Row],[MonthBill]])*(MeterReadSch[Cycle]=NorthCycles[[#This Row],[Cycle]])*MeterReadSch[End Bill Period]) -> 45939 | G87: =SUMPRODUCT((KCITempAct[Date]>=NorthCycles[[#This Row],[BegRdDate]])*(KCITempAct[Date]<=NorthCycles[[#This Row],[EndRdDate]])*KCITempAct[KCINHDDAdj]) -> 39.70483871 | H87: =SUMPRODUCT((KCITempAct[Date]>=NorthCycles[[#This Row],[BegRdDate]])*(KCITempAct[Date]<=NorthCycles[[#This Row],[EndRdDate]])*KCITempAct[KCIHDDAdj]) -> 10.5 | I87: =NorthCycles[[#This Row],[NHDD]]-NorthCycles[[#This Row],[AHDD]] -> 29.20483871 | J87: =NorthCycles[[#This Row],[HDDDiff]]*NorthCycles[[#This Row],[NoOfBills]] -> 9374.753226 | K87: =SUMPRODUCT((BetaCoeff[BeginDate]<=NorthCycles[[#This Row],[BegRdDate]])*(BetaCoeff[EndDate]>=NorthCycles[[#This Row],[EndRdDate]])*(BetaCoeff[CustClass]=NorthCycles[[#This Row],[CustClass]])*BetaCoeff[BetaCoeff]) -> 0.2793279 | L87: =NorthCycles[[#This Row],[Diff*NoOfBills]]*NorthCycles[[#This Row],[BetaCoeff]] -> 2618.630132 | M87: =SUMPRODUCT((NorthCycles[[#This Row],[BegRdDate]]>=VolRates[BeginDate])*(NorthCycles[[#This Row],[EndRdDate]]<=VolRates[EndDate])*(VolRates[CustClass]=NorthCycles[[#This Row],[CustClass]])*VolRates[VolRate]) -> 0.26033 | N87: =ROUND(NorthCycles[[#This Row],[WNAFactor]]*NorthCycles[[#This Row],[VolRate]],2) -> 681.71 | O87: =INDEX(RateCat[CustClass],MATCH(NorthCycles[[#This Row],[RateCategory]],RateCat[RateCategory],0)) -> SGS | P87: Customer Charge Counts from Revenue Reports
